Workbook

Sheet Αναλυτικά
E1: Συνδυασμοί
E2: Υποψήφιος
B4: ΔΗΜΟΤΙΚΕΣ ΕΚΛΟΓΕΣ 26 ΜΑΙΟΥ 2019
B5: ΣΥΝΔ/ΣΜΟΣ | D5: Α/Α | E5: ΥΠΟΨΗΦΙΟΣ | F5: ΦΗΡΑ | K5: ΗΜΕΡΟΒΙΓΛΙ | L5: ΒΟΥΡΒΟΥΛΟΣ | N5: ΚΑΡΤ/ΔΟΣ | Q5: ΜΕΣΑΡΙΑ | T5: ΒΟΘΩΝΑΣ | V5: ΕΠΙΣΚΟΠΗ-ΓΩΝΙΑΣ | Y5: ΕΞΩ ΓΩΝΙΑ | Z5: ΠΥΡΓΟΣ | AB5: ΜΕΓΑΛΟΧΩΡΙ | AD5: ΑΚΡΩΤΗΡΙ | AF5: ΕΜΠΟΡΕΙΟ | AL5: ΟΙΑ | AO5: ΘΗΡΑΣΙΑ | AQ5: ΣΥΝΟΛΟ
F6: (38Β) | G6: (39Β) | H6: (40Β) | I6: (41Β) | J6: (42Β) | K6: (43Β) | L6: (44) | M6: (45Β) | N6: (46Β) | O6: (47Β) | P6: (48Β) | Q6: (49Β) | R6: (50Β) | S6: (51Β) | T6: (52Β) | U6: (53Β) | V6: (54Β) | W6: (55Β) | X6: (56Β) | Y6: (57Β) | Z6: (58Β) | AA6: (59Β) | AB6: (60) | AC6: (61Β) | AD6: (62Β) | AE6: (63Β) | AF6: (64Β) | AG6: (65Β) | AH6: (66Β) | AI6: (67Β) | AJ6: (68Β) | AK6: (69Β) | AL6: (70Β) | AM6: (71Β) | AN6: (72Β) | AO6: (73) | AP6: (74Β)
A7: 7 | B7: Θηραϊκή Πολιτεία | E7: ΔΗΜΟΤΙΚΗ ΕΝΟΤΗΤΑ ΘΗΡΑΣ | F7: 64 | G7: 99 | H7: 57 | I7: 74 | J7: 65 | K7: 81 | L7: 60 | N7: 58 | O7: 44 | P7: 66 | Q7: 96 | R7: 116 | S7: 101 | T7: 83 | U7: 51 | V7: 78 | W7: 63 | X7: 61 | Y7: 62 | Z7: 164 | AA7: 193 | AC7: 78 | AD7: 66 | AE7: 64 | AF7: 65 | AG7: 65 | AH7: 84 | AI7: 92 | AJ7: 64 | AK7: 80 | AL7: 72 | AM7: 36 | AN7: 49 | AO7: 16 | AP7: 54 | AQ7: =SUM(F7:AP7) -> 2621
A8: 8 | D8: 1 | E8: ΑΡΒΑΝΙΤΗΣ ΜΙΧΑΗΛ του ΝΕΚΤΑΡΙΟΥ | F8: 2 | G8: 0 | H8: 1 | I8: 3 | J8: 1 | K8: 0 | L8: 2 | N8: 2 | O8: 0 | P8: 2 | Q8: 2 | R8: 2 | S8: 2 | T8: 2 | U8: 1 | V8: 2 | W8: 5 | X8: 2 | Y8: 1 | Z8: 25 | AA8: 33 | AC8: 12 | AD8: 3 | AE8: 0 | AF8: 3 | AG8: 3 | AH8: 0 | AI8: 2 | AJ8: 5 | AK8: 4 | AL8: 0 | AM8: 2 | AN8: 0 | AO8: 0 | AP8: 0 | AQ8: 124
A9: 9 | D9: 2 | E9: ΑΡΓΥΡΟΥ ΕΥΑΓΓΕΛΙΑ του ΜΗΝΑ | F9: 2 | G9: 2 | H9: 1 | I9: 5 | J9: 1 | K9: 0 | L9: 1 | N9: 3 | O9: 1 | P9: 1 | Q9: 7 | R9: 1 | S9: 0 | T9: 1 | U9: 3 | V9: 23 | W9: 10 | X9: 16 | Y9: 1 | Z9: 8 | AA9: 9 | AC9: 3 | AD9: 2 | AE9: 1 | AF9: 2 | AG9: 1 | AH9: 1 | AI9: 3 | AJ9: 3 | AK9: 1 | AL9: 1 | AM9: 0 | AN9: 2 | AO9: 0 | AP9: 2 | AQ9: 118
A10: 10 | D10: 3 | E10: ΒΑΛΣΑΜΑΚΗ ΕΙΡΗΝΗ του ΔΗΜΗΤΡΙΟΥ | F10: 14 | G10: 13 | H10: 7 | I10: 5 | J10: 5 | K10: 49 | L10: 5 | N10: 18 | O10: 9 | P10: 11 | Q10: 8 | R10: 10 | S10: 6 | T10: 5 | U10: 7 | V10: 4 | W10: 8 | X10: 3 | Y10: 4 | Z10: 5 | AA10: 8 | AC10: 4 | AD10: 3 | AE10: 4 | AF10: 2 | AG10: 3 | AH10: 8 | AI10: 13 | AJ10: 4 | AK10: 8 | AL10: 4 | AM10: 2 | AN10: 2 | AO10: 0 | AP10: 0 | AQ10: 261
A11: 11 | D11: 4 | E11: ΒΛΑΧΟΥ ΚΑΛΛΙΟΠΗ του ΝΕΚΤΑΡΙΟΥ | F11: 2 | G11: 3 | H11: 1 | I11: 2 | J11: 0 | K11: 4 | L11: 1 | N11: 2 | O11: 4 | P11: 3 | Q11: 6 | R11: 8 | S11: 3 | T11: 37 | U11: 12 | V11: 1 | W11: 2 | X11: 0 | Y11: 0 | Z11: 4 | AA11: 4 | AC11: 2 | AD11: 3 | AE11: 4 | AF11: 1 | AG11: 0 | AH11: 3 | AI11: 4 | AJ11: 0 | AK11: 5 | AL11: 0 | AM11: 0 | AN11: 0 | AO11: 2 | AP11: 2 | AQ11: 125
A12: 12 | D12: 5 | E12: ΓΑΛΑΙΟΣ ΕΛΕΥΘΕΡΙΟΣ του ΠΑΡΑΣΚΕΥΑ | F12: 1 | G12: 1 | H12: 0 | I12: 3 | J12: 1 | K12: 0 | L12: 2 | N12: 0 | O12: 0 | P12: 0 | Q12: 0 | R12: 4 | S12: 3 | T12: 2 | U12: 0 | V12: 0 | W12: 2 | X12: 2 | Y12: 1 | Z12: 24 | AA12: 37 | AC12: 2 | AD12: 5 | AE12: 10 | AF12: 2 | AG12: 4 | AH12: 2 | AI12: 7 | AJ12: 4 | AK12: 6 | AL12: 2 | AM12: 1 | AN12: 1 | AO12: 0 | AP12: 0 | AQ12: 129
A13: 13 | D13: 6 | E13: ΓΕΡΟΥ ΙΩΑΝΝΗΣ του ΗΡΑΚΛΗ | F13: 5 | G13: 5 | H13: 0 | I13: 0 | J13: 4 | K13: 1 | L13: 2 | N13: 18 | O13: 9 | P13: 15 | Q13: 2 | R13: 1 | S13: 0 | T13: 2 | U13: 0 | V13: 2 | W13: 1 | X13: 5 | Y13: 0 | Z13: 2 | AA13: 4 | AC13: 1 | AD13: 1 | AE13: 0 | AF13: 0 | AG13: 0 | AH13: 1 | AI13: 1 | AJ13: 1 | AK13: 1 | AL13: 0 | AM13: 6 | AN13: 0 | AO13: 0 | AP13: 0 | AQ13: 90
A14: 14 | D14: 7 | E14: ΔΑΝΕΖΗΣ ΙΩΑΝΝΗΣ του ΕΥΑΓΓΕΛΟΥ | F14: 0 | G14: 1 | H14: 0 | I14: 5 | J14: 2 | K14: 1 | L14: 5 | N14: 3 | O14: 3 | P14: 1 | Q14: 1 | R14: 5 | S14: 5 | T14: 26 | U14: 14 | V14: 0 | W14: 0 | X14: 0 | Y14: 3 | Z14: 2 | AA14: 8 | AC14: 3 | AD14: 1 | AE14: 1 | AF14: 3 | AG14: 6 | AH14: 2 | AI14: 2 | AJ14: 1 | AK14: 2 | AL14: 0 | AM14: 0 | AN14: 0 | AO14: 0 | AP14: 0 | AQ14: 106
A15: 15 | D15: 8 | E15: ΔΑΡΖΕΝΤΑΣ ΑΝΑΡΓΥΡΟΣ του ΧΑΡΑΛΑΜΠΟΥ | F15: 2 | G15: 4 | H15: 2 | I15: 1 | J15: 1 | K15: 6 | L15: 3 | N15: 3 | O15: 0 | P15: 3 | Q15: 2 | R15: 2 | S15: 10 | T15: 6 | U15: 4 | V15: 5 | W15: 0 | X15: 1 | Y15: 4 | Z15: 8 | AA15: 4 | AC15: 18 | AD15: 7 | AE15: 5 | AF15: 31 | AG15: 41 | AH15: 29 | AI15: 26 | AJ15: 17 | AK15: 22 | AL15: 3 | AM15: 2 | AN15: 2 | AO15: 1 | AP15: 10 | AQ15: 285
A16: 16 | D16: 9 | E16: ΔΙΑΜΑΝΤΟΠΟΥΛΟΥ ΜΟΣΧΑ του ΓΕΩΡΓΙΟΥ | F16: 6 | G16: 9 | H16: 1 | I16: 2 | J16: 3 | K16: 3 | L16: 1 | N16: 2 | O16: 2 | P16: 0 | Q16: 3 | R16: 2 | S16: 3 | T16: 0 | U16: 1 | V16: 3 | W16: 5 | X16: 1 | Y16: 21 | Z16: 6 | AA16: 6 | AC16: 1 | AD16: 2 | AE16: 0 | AF16: 1 | AG16: 3 | AH16: 2 | AI16: 1 | AJ16: 2 | AK16: 1 | AL16: 1 | AM16: 1 | AN16: 1 | AO16: 0 | AP16: 0 | AQ16: 96
A17: 17 | D17: 10 | E17: ΔΡΟΣΟΣ ΕΛΕΥΘΕΡΙΟΣ του ΣΠΥΡΟΥ | F17: 1 | G17: 3 | H17: 0 | I17: 1 | J17: 1 | K17: 1 | L17: 9 | N17: 0 | O17: 2 | P17: 3 | Q17: 5 | R17: 0 | S17: 3 | T17: 2 | U17: 1 | V17: 1 | W17: 2 | X17: 0 | Y17: 6 | Z17: 12 | AA17: 15 | AC17: 3 | AD17: 5 | AE17: 2 | AF17: 19 | AG17: 12 | AH17: 32 | AI17: 16 | AJ17: 13 | AK17: 14 | AL17: 1 | AM17: 0 | AN17: 0 | AO17: 2 | AP17: 11 | AQ17: 198
A18: 18 | D18: 11 | E18: ΖΩΡΖΟΣ ΕΥΑΓΓΕΛΟΣ του ΧΡΙΣΤΟΦΟΡΟΥ | F18: 6 | G18: 12 | H18: 6 | I18: 13 | J18: 4 | K18: 8 | L18: 10 | N18: 5 | O18: 7 | P18: 4 | Q18: 7 | R18: 7 | S18: 9 | T18: 3 | U18: 4 | V18: 13 | W18: 12 | X18: 10 | Y18: 9 | Z18: 135 | AA18: 143 | AC18: 28 | AD18: 10 | AE18: 9 | AF18: 13 | AG18: 9 | AH18: 10 | AI18: 13 | AJ18: 12 | AK18: 12 | AL18: 6 | AM18: 1 | AN18: 5 | AO18: 3 | AP18: 0 | AQ18: 558
A19: 19 | D19: 12 | E19: ΚΑΒΑΛΛΑΡΗΣ ΣΤΑΥΡΟΣ του ΠΕΤΡΟΥ | F19: 9 | G19: 22 | H19: 10 | I19: 10 | J19: 12 | K19: 1 | L19: 8 | N19: 2 | O19: 1 | P19: 2 | Q19: 2 | R19: 1 | S19: 2 | T19: 7 | U19: 3 | V19: 3 | W19: 0 | X19: 4 | Y19: 0 | Z19: 5 | AA19: 3 | AC19: 0 | AD19: 1 | AE19: 0 | AF19: 2 | AG19: 1 | AH19: 0 | AI19: 2 | AJ19: 0 | AK19: 1 | AL19: 0 | AM19: 0 | AN19: 3 | AO19: 0 | AP19: 6 | AQ19: 123
A20: 20 | D20: 13 | E20: ΚΑΜΠΟΥΡΑΚΗΣ ΝΙΚΟΛΑΟΣ του ΧΑΡΑΛΑΜΠΟΥ | F20: 13 | G20: 15 | H20: 9 | I20: 13 | J20: 11 | K20: 10 | L20: 8 | N20: 11 | O20: 10 | P20: 16 | Q20: 55 | R20: 77 | S20: 50 | T20: 12 | U20: 11 | V20: 5 | W20: 10 | X20: 2 | Y20: 5 | Z20: 12 | AA20: 9 | AC20: 8 | AD20: 5 | AE20: 5 | AF20: 5 | AG20: 10 | AH20: 4 | AI20: 11 | AJ20: 6 | AK20: 11 | AL20: 6 | AM20: 0 | AN20: 1 | AO20: 0 | AP20: 4 | AQ20: 440
A21: 21 | D21: 14 | E21: ΚΑΝΕΛΛΑΚΗΣ ΚΩΝΣΤΑΝΤΙΝΟΣ του ΧΡΗΣΤΟΥ | F21: 1 | G21: 11 | H21: 4 | I21: 7 | J21: 4 | K21: 14 | L21: 11 | N21: 1 | O21: 1 | P21: 1 | Q21: 5 | R21: 5 | S21: 7 | T21: 9 | U21: 5 | V21: 4 | W21: 5 | X21: 4 | Y21: 3 | Z21: 22 | AA21: 23 | AC21: 45 | AD21: 8 | AE21: 6 | AF21: 7 | AG21: 2 | AH21: 7 | AI21: 15 | AJ21: 10 | AK21: 7 | AL21: 2 | AM21: 1 | AN21: 1 | AO21: 0 | AP21: 0 | AQ21: 258
A22: 22 | D22: 15 | E22: ΚΑΡΑΜΟΛΕΓΚΟΥ ΦΛΩΡΑ ΛΗΔΑ του ΕΜΜΑΝΟΥΗΛ | F22: 0 | G22: 4 | H22: 2 | I22: 2 | J22: 1 | K22: 0 | L22: 4 | N22: 0 | O22: 0 | P22: 1 | Q22: 0 | R22: 4 | S22: 3 | T22: 0 | U22: 1 | V22: 0 | W22: 1 | X22: 0 | Y22: 0 | Z22: 1 | AA22: 0 | AC22: 1 | AD22: 0 | AE22: 0 | AF22: 0 | AG22: 5 | AH22: 6 | AI22: 9 | AJ22: 7 | AK22: 2 | AL22: 1 | AM22: 0 | AN22: 0 | AO22: 0 | AP22: 0 | AQ22: 55
A23: 23 | D23: 16 | E23: ΚΑΤΣΙΠΗ ΑΝΔΡΟΜΑΧΗ του ΚΩΝΣΤΑΝΤΙΝΟΥ | F23: 1 | G23: 1 | H23: 4 | I23: 0 | J23: 0 | K23: 0 | L23: 0 | N23: 1 | O23: 0 | P23: 0 | Q23: 0 | R23: 2 | S23: 0 | T23: 0 | U23: 0 | V23: 5 | W23: 0 | X23: 0 | Y23: 0 | Z23: 4 | AA23: 0 | AC23: 0 | AD23: 0 | AE23: 1 | AF23: 3 | AG23: 1 | AH23: 1 | AI23: 6 | AJ23: 3 | AK23: 8 | AL23: 1 | AM23: 0 | AN23: 0 | AO23: 0 | AP23: 0 | AQ23: 42
A24: 24 | D24: 17 | E24: ΚΑΦΙΕΡΗΣ ΜΗΝΑΣ του ΔΗΜΗΤΡΙΟΥ | F24: 23 | G24: 35 | H24: 16 | I24: 21 | J24: 23 | K24: 18 | L24: 8 | N24: 6 | O24: 10 | P24: 11 | Q24: 12 | R24: 17 | S24: 7 | T24: 17 | U24: 16 | V24: 14 | W24: 10 | X24: 25 | Y24: 5 | Z24: 16 | AA24: 19 | AC24: 3 | AD24: 15 | AE24: 21 | AF24: 11 | AG24: 5 | AH24: 7 | AI24: 14 | AJ24: 4 | AK24: 9 | AL24: 12 | AM24: 6 | AN24: 5 | AO24: 0 | AP24: 1 | AQ24: 442
A25: 25 | D25: 18 | E25: ΛΙΓΝΟΥ ΑΝΝΑ του ΧΡΙΣΤΟΦΟΡΟΥ | F25: 0 | G25: 0 | H25: 0 | I25: 0 | J25: 1 | K25: 2 | L25: 2 | N25: 1 | O25: 0 | P25: 0 | Q25: 1 | R25: 0 | S25: 1 | T25: 1 | U25: 0 | V25: 22 | W25: 19 | X25: 13 | Y25: 2 | Z25: 4 | AA25: 2 | AC25: 3 | AD25: 2 | AE25: 1 | AF25: 2 | AG25: 0 | AH25: 1 | AI25: 3 | AJ25: 2 | AK25: 0 | AL25: 0 | AM25: 0 | AN25: 0 | AO25: 0 | AP25: 0 | AQ25: 85
A26: 26 | D26: 19 | E26: ΜΕΛΙΧΟΥΡΤΗΣ ΣΤΕΡΓΙΟΣ του ΑΝΑΣΤΑΣΙΟΥ | F26: 8 | G26: 16 | H26: 13 | I26: 8 | J26: 8 | K26: 3 | L26: 1 | N26: 1 | O26: 1 | P26: 0 | Q26: 3 | R26: 3 | S26: 0 | T26: 2 | U26: 3 | V26: 4 | W26: 0 | X26: 0 | Y26: 1 | Z26: 8 | AA26: 9 | AC26: 0 | AD26: 0 | AE26: 1 | AF26: 0 | AG26: 1 | AH26: 0 | AI26: 2 | AJ26: 1 | AK26: 0 | AL26: 0 | AM26: 0 | AN26: 0 | AO26: 0 | AP26: 0 | AQ26: 97
A27: 27 | D27: 20 | E27: ΝOMIKOY ΓΕΩΡΓΙΑ (ΤΖΩΡΤΖΑΚΗ) του ΙΩΑΝΝΗ | F27: 2 | G27: 6 | H27: 0 | I27: 0 | J27: 3 | K27: 2 | L27: 0 | N27: 0 | O27: 2 | P27: 0 | Q27: 7 | R27: 0 | S27: 1 | T27: 0 | U27: 0 | V27: 2 | W27: 1 | X27: 1 | Y27: 0 | Z27: 4 | AA27: 3 | AC27: 4 | AD27: 0 | AE27: 1 | AF27: 12 | AG27: 16 | AH27: 21 | AI27: 14 | AJ27: 23 | AK27: 15 | AL27: 0 | AM27: 0 | AN27: 0 | AO27: 0 | AP27: 0 | AQ27: 140
A28: 28 | D28: 21 | E28: ΝΟΜΙΚΟΣ ΓΕΩΡΓΙΟΣ (ΜΠΟΥΑΣ) του ΑΝΤΩΝΙΟΥ | F28: 5 | G28: 7 | H28: 3 | I28: 5 | J28: 1 | K28: 4 | L28: 8 | N28: 4 | O28: 5 | P28: 11 | Q28: 40 | R28: 30 | S28: 31 | T28: 24 | U28: 9 | V28: 11 | W28: 3 | X28: 3 | Y28: 6 | Z28: 11 | AA28: 27 | AC28: 21 | AD28: 2 | AE28: 2 | AF28: 4 | AG28: 7 | AH28: 1 | AI28: 5 | AJ28: 2 | AK28: 7 | AL28: 2 | AM28: 2 | AN28: 3 | AO28: 1 | AP28: 1 | AQ28: 308
A29: 29 | D29: 22 | E29: ΝΟΜΙΚΟΣ ΙΩΑΝΝΗΣ (ΣΑΞΕΟΣ) του ΖΩΡΖΗ | F29: 4 | G29: 10 | H29: 7 | I29: 3 | J29: 4 | K29: 5 | L29: 3 | N29: 7 | O29: 4 | P29: 7 | Q29: 10 | R29: 15 | S29: 9 | T29: 17 | U29: 2 | V29: 7 | W29: 11 | X29: 7 | Y29: 40 | Z29: 21 | AA29: 15 | AC29: 5 | AD29: 1 | AE29: 1 | AF29: 8 | AG29: 8 | AH29: 9 | AI29: 2 | AJ29: 5 | AK29: 7 | AL29: 8 | AM29: 2 | AN29: 0 | AO29: 0 | AP29: 1 | AQ29: 265
A30: 30 | D30: 23 | E30: ΞΑΓΟΡΑΡΗΣ ΔΗΜΗΤΡΙΟΣ του ΜΑΡΚΟΥ | F30: 9 | G30: 3 | H30: 4 | I30: 13 | J30: 4 | K30: 1 | L30: 0 | N30: 2 | O30: 3 | P30: 7 | Q30: 3 | R30: 1 | S30: 6 | T30: 9 | U30: 3 | V30: 6 | W30: 2 | X30: 1 | Y30: 1 | Z30: 15 | AA30: 31 | AC30: 0 | AD30: 1 | AE30: 8 | AF30: 0 | AG30: 0 | AH30: 3 | AI30: 0 | AJ30: 2 | AK30: 4 | AL30: 0 | AM30: 0 | AN30: 1 | AO30: 0 | AP30: 1 | AQ30: 144
A31: 31 | D31: 24 | E31: ΟΛΙΒΕΡΑ ΒΙΟΛΕΤΑ του ΚΑΡΛΟΥ‑ΓΕΩΡΓΙΟΥ | F31: 5 | G31: 7 | H31: 5 | I31: 2 | J31: 3 | K31: 3 | L31: 1 | N31: 1 | O31: 0 | P31: 1 | Q31: 4 | R31: 4 | S31: 2 | T31: 1 | U31: 3 | V31: 0 | W31: 0 | X31: 1 | Y31: 1 | Z31: 2 | AA31: 2 | AC31: 6 | AD31: 19 | AE31: 31 | AF31: 8 | AG31: 2 | AH31: 1 | AI31: 5 | AJ31: 3 | AK31: 5 | AL31: 1 | AM31: 0 | AN31: 0 | AO31: 1 | AP31: 0 | AQ31: 130
A32: 32 | D32: 25 | E32: ΠΕΛΕΚΑΝΟΣ ΓΕΩΡΓΙΟΣ του ΙΩΑΝΝΗ | F32: 8 | G32: 3 | H32: 1 | I32: 8 | J32: 6 | K32: 0 | L32: 6 | N32: 23 | O32: 12 | P32: 29 | Q32: 1 | R32: 4 | S32: 4 | T32: 0 | U32: 2 | V32: 0 | W32: 2 | X32: 0 | Y32: 3 | Z32: 1 | AA32: 8 | AC32: 0 | AD32: 2 | AE32: 2 | AF32: 4 | AG32: 1 | AH32: 1 | AI32: 1 | AJ32: 0 | AK32: 0 | AL32: 1 | AM32: 0 | AN32: 0 | AO32: 0 | AP32: 0 | AQ32: 133
A33: 33 | D33: 26 | E33: ΠΕΛΕΚΗΣ ΗΛΙΑΣ του ΝΙΚΟΛΑΟΥ | F33: 0 | G33: 1 | H33: 1 | I33: 1 | J33: 2 | K33: 3 | L33: 5 | N33: 2 | O33: 1 | P33: 1 | Q33: 3 | R33: 8 | S33: 2 | T33: 2 | U33: 5 | V33: 34 | W33: 24 | X33: 23 | Y33: 9 | Z33: 3 | AA33: 14 | AC33: 3 | AD33: 8 | AE33: 0 | AF33: 1 | AG33: 0 | AH33: 0 | AI33: 0 | AJ33: 1 | AK33: 1 | AL33: 0 | AM33: 0 | AN33: 0 | AO33: 0 | AP33: 0 | AQ33: 158
A34: 34 | D34: 27 | E34: ΠΟΛΥΧΡΟΝΑΚΗΣ ΠΑΝΑΓΙΩΤΗΣ του ΝΙΚΟΛΑΟΥ | F34: 2 | G34: 4 | H34: 2 | I34: 4 | J34: 2 | K34: 3 | L34: 1 | N34: 1 | O34: 4 | P34: 2 | Q34: 8 | R34: 7 | S34: 17 | T34: 4 | U34: 4 | V34: 0 | W34: 3 | X34: 4 | Y34: 0 | Z34: 1 | AA34: 5 | AC34: 7 | AD34: 28 | AE34: 26 | AF34: 16 | AG34: 15 | AH34: 11 | AI34: 27 | AJ34: 11 | AK34: 10 | AL34: 0 | AM34: 1 | AN34: 2 | AO34: 2 | AP34: 7 | AQ34: 241
A35: 35 | D35: 28 | E35: ΡΕΝΙΕΡΗ ΕΙΡΗΝΗ του ΓΕΡΑΣΙΜΟΥ | F35: 1 | G35: 3 | H35: 1 | I35: 1 | J35: 3 | K35: 2 | L35: 9 | N35: 0 | O35: 0 | P35: 0 | Q35: 3 | R35: 1 | S35: 7 | T35: 0 | U35: 1 | V35: 0 | W35: 0 | X35: 0 | Y35: 0 | Z35: 0 | AA35: 2 | AC35: 0 | AD35: 2 | AE35: 1 | AF35: 0 | AG35: 1 | AH35: 2 | AI35: 2 | AJ35: 0 | AK35: 2 | AL35: 0 | AM35: 0 | AN35: 0 | AO35: 0 | AP35: 0 | AQ35: 44
A36: 36 | D36: 29 | E36: ΡΟΥΣΣΟΥ ΧΡΙΣΤΙΝΑ του ΙΩΑΝΝΗ | F36: 0 | G36: 0 | H36: 1 | I36: 2 | J36: 0 | K36: 0 | L36: 0 | N36: 0 | O36: 0 | P36: 2 | Q36: 5 | R36: 2 | S36: 8 | T36: 1 | U36: 2 | V36: 1 | W36: 0 | X36: 0 | Y36: 1 | Z36: 10 | AA36: 21 | AC36: 2 | AD36: 1 | AE36: 1 | AF36: 0 | AG36: 1 | AH36: 0 | AI36: 0 | AJ36: 0 | AK36: 1 | AL36: 0 | AM36: 0 | AN36: 3 | AO36: 0 | AP36: 0 | AQ36: 65
A37: 37 | D37: 30 | E37: ΣΙΓΑΛΑ ΑΡΤΕΜΙΑ του ΓΕΩΡΓΙΟΥ | F37: 0 | G37: 0 | H37: 1 | I37: 0 | J37: 0 | K37: 23 | L37: 2 | N37: 1 | O37: 0 | P37: 1 | Q37: 1 | R37: 2 | S37: 0 | T37: 0 | U37: 2 | V37: 0 | W37: 1 | X37: 1 | Y37: 0 | Z37: 2 | AA37: 0 | AC37: 2 | AD37: 0 | AE37: 1 | AF37: 0 | AG37: 0 | AH37: 0 | AI37: 1 | AJ37: 1 | AK37: 3 | AL37: 0 | AM37: 0 | AN37: 0 | AO37: 0 | AP37: 0 | AQ37: 45
A38: 38 | D38: 31 | E38: ΣΙΓΑΛΑ ΝΙΚΟΛΕΤΤΑ του ΑΝΤΩΝΙΟΥ | F38: 1 | G38: 6 | H38: 1 | I38: 0 | J38: 1 | K38: 1 | L38: 0 | N38: 0 | O38: 0 | P38: 0 | Q38: 0 | R38: 1 | S38: 0 | T38: 0 | U38: 3 | V38: 1 | W38: 2 | X38: 1 | Y38: 0 | Z38: 7 | AA38: 5 | AC38: 1 | AD38: 0 | AE38: 0 | AF38: 2 | AG38: 2 | AH38: 6 | AI38: 11 | AJ38: 2 | AK38: 9 | AL38: 1 | AM38: 0 | AN38: 0 | AO38: 0 | AP38: 0 | AQ38: 64
A39: 39 | D39: 32 | E39: ΣΙΓΑΛΑΣ ΝΙΚΟΛΑΟΣ του ΕΥΣΤΑΘΙΟΥ | F39: 0 | G39: 1 | H39: 4 | I39: 2 | J39: 10 | K39: 2 | L39: 0 | N39: 1 | O39: 1 | P39: 1 | Q39: 2 | R39: 1 | S39: 0 | T39: 4 | U39: 1 | V39: 2 | W39: 0 | X39: 0 | Y39: 1 | Z39: 5 | AA39: 2 | AC39: 0 | AD39: 0 | AE39: 0 | AF39: 6 | AG39: 3 | AH39: 8 | AI39: 9 | AJ39: 4 | AK39: 10 | AL39: 0 | AM39: 0 | AN39: 0 | AO39: 0 | AP39: 1 | AQ39: =SUM(F39:AP39) -> 81
A40: 40 | D40: 33 | E40: ΤΖΟΥΡΟΣ ΕΛΕΥΘΕΡΙΟΣ του ΑΠΟΣΤΟΛΟΥ | F40: 19 | G40: 23 | H40: 17 | I40: 15 | J40: 19 | K40: 8 | L40: 12 | N40: 15 | O40: 13 | P40: 10 | Q40: 4 | R40: 11 | S40: 11 | T40: 6 | U40: 4 | V40: 7 | W40: 3 | X40: 6 | Y40: 3 | Z40: 22 | AA40: 33 | AC40: 8 | AD40: 11 | AE40: 5 | AF40: 2 | AG40: 2 | AH40: 3 | AI40: 10 | AJ40: 8 | AK40: 2 | AL40: 12 | AM40: 8 | AN40: 8 | AO40: 2 | AP40: 1 | AQ40: 343
A41: 41 | D41: 34 | E41: ΦΟΥΣΤΕΡΗΣ ΠΑΝΤΕΛΕΗΜΩΝ του ΑΘΑΝΑΣΙΟΥ | F41: 0 | G41: 4 | H41: 1 | I41: 3 | J41: 1 | K41: 4 | L41: 0 | N41: 3 | O41: 2 | P41: 4 | Q41: 22 | R41: 19 | S41: 19 | T41: 2 | U41: 5 | V41: 1 | W41: 2 | X41: 1 | Y41: 0 | Z41: 16 | AA41: 30 | AC41: 4 | AD41: 0 | AE41: 0 | AF41: 0 | AG41: 2 | AH41: 1 | AI41: 1 | AJ41: 1 | AK41: 1 | AL41: 2 | AM41: 0 | AN41: 0 | AO41: 0 | AP41: 0 | AQ41: 151
A42: 42 | D42: 35 | E42: ΧΑΛΑΡΗ ΕΙΡΗΝΗ του ΙΩΑΝΝΗ | F42: 0 | G42: 2 | H42: 1 | I42: 0 | J42: 1 | K42: 0 | L42: 0 | N42: 0 | O42: 0 | P42: 2 | Q42: 6 | R42: 1 | S42: 2 | T42: 0 | U42: 0 | V42: 7 | W42: 2 | X42: 15 | Y42: 0 | Z42: 2 | AA42: 0 | AC42: 0 | AD42: 1 | AE42: 0 | AF42: 1 | AG42: 3 | AH42: 1 | AI42: 1 | AJ42: 1 | AK42: 1 | AL42: 0 | AM42: 0 | AN42: 0 | AO42: 1 | AP42: 1 | AQ42: 52
A43: 43 | D43: 36 | E43: ΧΑΛΑΡΗ ΠΑΝΑΓΙΩΤΑ του ΠΑΝΑΓΙΩΤΗ | F43: 1 | G43: 4 | H43: 5 | I43: 3 | J43: 0 | K43: 3 | L43: 0 | N43: 0 | O43: 0 | P43: 0 | Q43: 0 | R43: 3 | S43: 1 | T43: 0 | U43: 0 | V43: 0 | W43: 0 | X43: 0 | Y43: 0 | Z43: 2 | AA43: 1 | AC43: 0 | AD43: 1 | AE43: 0 | AF43: 0 | AG43: 0 | AH43: 0 | AI43: 0 | AJ43: 0 | AK43: 0 | AL43: 1 | AM43: 0 | AN43: 4 | AO43: 0 | AP43: 1 | AQ43: 30
A44: 44 | E44: ΔΗΜΟΤΙΚΗ ΕΝΟΤΗΤΑ ΟΙΑΣ
A45: 45 | D45: 1 | E45: ΒΑΖΑΙΟΣ ΔΗΜΗΤΡΙΟΣ του ΙΩΑΝΝΗ | F45: 11 | G45: 5 | H45: 2 | I45: 8 | J45: 9 | K45: 8 | L45: 17 | N45: 9 | O45: 6 | P45: 9 | Q45: 9 | R45: 18 | S45: 2 | T45: 4 | U45: 0 | V45: 6 | W45: 7 | X45: 8 | Y45: 1 | Z45: 19 | AA45: 19 | AC45: 9 | AD45: 4 | AE45: 2 | AF45: 2 | AG45: 4 | AH45: 2 | AI45: 7 | AJ45: 7 | AK45: 11 | AL45: 11 | AM45: 3 | AN45: 1 | AO45: 0 | AP45: 1 | AQ45: =SUM(F45:AP45) -> 241
A46: 46 | D46: 2 | E46: ΠΑΓΩΝΗΣ ΕΙΡΗΝΙΚΟΣ του ΑΝΤΩΝΙΟΥ | F46: 5 | G46: 9 | H46: 8 | I46: 5 | J46: 4 | K46: 4 | L46: 3 | N46: 9 | O46: 3 | P46: 15 | Q46: 12 | R46: 13 | S46: 14 | T46: 3 | U46: 2 | V46: 2 | W46: 4 | X46: 9 | Y46: 11 | Z46: 26 | AA46: 25 | AC46: 9 | AD46: 4 | AE46: 7 | AF46: 5 | AG46: 5 | AH46: 4 | AI46: 5 | AJ46: 3 | AK46: 10 | AL46: 3 | AM46: 7 | AN46: 8 | AO46: 0 | AP46: 1 | AQ46: 257
A47: 47 | D47: 3 | E47: ΠΑΡΑΒΑΛΟΥ ΑΝΤΩΝΙΑ του ΕΥΑΓΓΕΛΟΥ | F47: 4 | G47: 5 | H47: 3 | I47: 0 | J47: 2 | K47: 6 | L47: 1 | N47: 0 | O47: 3 | P47: 4 | Q47: 4 | R47: 7 | S47: 6 | T47: 1 | U47: 0 | V47: 4 | W47: 2 | X47: 1 | Y47: 1 | Z47: 17 | AA47: 19 | AC47: 4 | AD47: 5 | AE47: 4 | AF47: 5 | AG47: 9 | AH47: 27 | AI47: 11 | AJ47: 10 | AK47: 9 | AL47: 0 | AM47: 0 | AN47: 1 | AO47: 10 | AP47: 38 | AQ47: 223
A48: 48 | D48: 4 | E48: ΠΑΣΣΑΡΗΣ ΑΛΕΞΑΝΔΡΟΣ του ΠΕΤΡΟΥ | F48: 6 | G48: 10 | H48: 9 | I48: 9 | J48: 10 | K48: 18 | L48: 10 | N48: 17 | O48: 14 | P48: 12 | Q48: 11 | R48: 15 | S48: 12 | T48: 20 | U48: 9 | V48: 3 | W48: 5 | X48: 5 | Y48: 3 | Z48: 13 | AA48: 33 | AC48: 4 | AD48: 6 | AE48: 5 | AF48: 1 | AG48: 9 | AH48: 9 | AI48: 18 | AJ48: 5 | AK48: 4 | AL48: 42 | AM48: 18 | AN48: 27 | AO48: 4 | AP48: 12 | AQ48: 408
A49: 49 | D49: 5 | E49: ΧΑΛΑΡΗΣ ΜΑΡΙΟΣ του ΤΖΩΡΤΖΗ | F49: 6 | G49: 6 | H49: 2 | I49: 3 | J49: 4 | K49: 4 | L49: 3 | N49: 3 | O49: 2 | P49: 5 | Q49: 13 | R49: 20 | S49: 18 | T49: 7 | U49: 1 | V49: 6 | W49: 3 | X49: 2 | Y49: 3 | Z49: 17 | AA49: 22 | AC49: 8 | AD49: 5 | AE49: 8 | AF49: 18 | AG49: 4 | AH49: 5 | AI49: 8 | AJ49: 6 | AK49: 11 | AL49: 7 | AM49: 4 | AN49: 8 | AO49: 0 | AP49: 0 | AQ49: 242
A50: 50 | B50: Σαντορίνη Θηρασία Ενότητα Αλλαγή | E50: ΔΗΜΟΤΙΚΗ ΕΝΟΤΗΤΑ ΘΗΡΑΣ | F50: 64 | G50: 60 | H50: 61 | I50: 58 | J50: 43 | K50: 43 | L50: 67 | N50: 22 | O50: 28 | P50: 33 | Q50: 31 | R50: 22 | S50: 22 | T50: 14 | U50: 15 | V50: 23 | W50: 18 | X50: 30 | Y50: 47 | Z50: 33 | AA50: 20 | AC50: 66 | AD50: 28 | AE50: 30 | AF50: 175 | AG50: 188 | AH50: 170 | AI50: 180 | AJ50: 156 | AK50: 185 | AL50: 22 | AM50: 21 | AN50: 29 | AO50: 27 | AP50: 38 | AQ50: =SUM(F50:AP50) -> 2069
A51: 51 | D51: 1 | E51: ΑΛΕΦΡΑΓΚΗΣ ΕΥΑΓΓΕΛΟΣ του ΔΗΜΗΤΡΙΟΥ | F51: 0 | G51: 2 | H51: 1 | I51: 1 | J51: 1 | K51: 0 | L51: 0 | N51: 2 | O51: 2 | P51: 6 | Q51: 1 | R51: 0 | S51: 1 | T51: 0 | U51: 1 | V51: 1 | W51: 0 | X51: 0 | Y51: 0 | Z51: 0 | AA51: 1 | AC51: 0 | AD51: 15 | AE51: 9 | AF51: 1 | AG51: 0 | AH51: 0 | AI51: 0 | AJ51: 0 | AK51: 3 | AL51: 0 | AM51: 1 | AN51: 2 | AO51: 0 | AP51: 1 | AQ51: =SUM(F51:AP51) -> 52
A52: 52 | D52: 2 | E52: ΑΞΙΩΤΗΣ ΚΩΝΣΤΑΝΤΙΝΟΣ του ΑΝΔΡΟΝΙΚΟΥ | F52: 3 | G52: 2 | H52: 1 | I52: 3 | J52: 3 | K52: 1 | L52: 3 | N52: 3 | O52: 3 | P52: 3 | Q52: 2 | R52: 2 | S52: 0 | T52: 0 | U52: 0 | V52: 7 | W52: 6 | X52: 10 | Y52: 3 | Z52: 1 | AA52: 1 | AC52: 1 | AD52: 1 | AE52: 0 | AF52: 2 | AG52: 0 | AH52: 1 | AI52: 1 | AJ52: 3 | AK52: 3 | AL52: 1 | AM52: 1 | AN52: 0 | AO52: 0 | AP52: 0 | AQ52: 71
A53: 53 | D53: 3 | E53: ΑΡΓΥΡΟΣ ΙΩΑΝΝΗΣ (ΓΑΔΑΡΟΣ) του ΚΩΝΣΤΑΝΤΙΝΟΥ | F53: 19 | G53: 22 | H53: 17 | I53: 19 | J53: 16 | K53: 7 | L53: 10 | N53: 3 | O53: 2 | P53: 3 | Q53: 7 | R53: 3 | S53: 2 | T53: 5 | U53: 1 | V53: 0 | W53: 0 | X53: 1 | Y53: 4 | Z53: 2 | AA53: 2 | AC53: 10 | AD53: 2 | AE53: 0 | AF53: 4 | AG53: 7 | AH53: 13 | AI53: 12 | AJ53: 12 | AK53: 7 | AL53: 6 | AM53: 1 | AN53: 1 | AO53: 0 | AP53: 2 | AQ53: 222
A54: 54 | D54: 4 | E54: ΒΑΛΒΗ ΜΑΡΓΑΡΙΤΑ (ΓΕΓΕ) του ΜΙΧΑΗΛ | F54: 2 | G54: 1 | H54: 0 | I54: 1 | J54: 1 | K54: 2 | L54: 0 | N54: 0 | O54: 0 | P54: 0 | Q54: 0 | R54: 0 | S54: 2 | T54: 0 | U54: 0 | V54: 0 | W54: 1 | X54: 0 | Y54: 2 | Z54: 2 | AA54: 2 | AC54: 0 | AD54: 0 | AE54: 0 | AF54: 38 | AG54: 18 | AH54: 15 | AI54: 29 | AJ54: 23 | AK54: 25 | AL54: 0 | AM54: 0 | AN54: 0 | AO54: 0 | AP54: 0 | AQ54: 164
A55: 55 | D55: 5 | E55: ΒΑΛΒΗΣ ΝΙΚΟΛΑΟΣ (ΜΠΑΜΠΑΚΑΡΗΣ) του ΜΑΡΚΟΥ | F55: 1 | G55: 1 | H55: 1 | I55: 2 | J55: 3 | K55: 1 | L55: 1 | N55: 0 | O55: 0 | P55: 0 | Q55: 3 | R55: 0 | S55: 1 | T55: 0 | U55: 0 | V55: 0 | W55: 0 | X55: 4 | Y55: 0 | Z55: 1 | AA55: 0 | AC55: 3 | AD55: 2 | AE55: 6 | AF55: 32 | AG55: 28 | AH55: 31 | AI55: 22 | AJ55: 15 | AK55: 23 | AL55: 0 | AM55: 0 | AN55: 1 | AO55: 0 | AP55: 0 | AQ55: 182
A56: 56 | D56: 6 | E56: ΓΚΛΑΒΑ ΑΔΑΜΑΝΤΙΑ του ΔΗΜΗΤΡΙΟΥ | F56: 2 | G56: 1 | H56: 1 | I56: 1 | J56: 0 | K56: 2 | L56: 0 | N56: 0 | O56: 0 | P56: 1 | Q56: 0 | R56: 0 | S56: 2 | T56: 0 | U56: 0 | V56: 1 | W56: 0 | X56: 0 | Y56: 0 | Z56: 11 | AA56: 4 | AC56: 5 | AD56: 0 | AE56: 2 | AF56: 2 | AG56: 1 | AH56: 0 | AI56: 2 | AJ56: 2 | AK56: 2 | AL56: 0 | AM56: 0 | AN56: 0 | AO56: 0 | AP56: 0 | AQ56: 42
A57: 57 | D57: 7 | E57: ΔΑΜΑΣΚΗΝΟΥ ΓΕΩΡΓΙΑ (ΓΕΡΟΜΑΝΩΛΗ) του ΕΛΕΥΘΕΡΙΟΥ | F57: 1 | G57: 3 | H57: 3 | I57: 0 | J57: 0 | K57: 1 | L57: 0 | N57: 1 | O57: 0 | P57: 0 | Q57: 1 | R57: 0 | S57: 1 | T57: 0 | U57: 0 | V57: 0 | W57: 0 | X57: 0 | Y57: 1 | Z57: 3 | AA57: 1 | AC57: 9 | AD57: 0 | AE57: 1 | AF57: 2 | AG57: 1 | AH57: 2 | AI57: 4 | AJ57: 0 | AK57: 2 | AL57: 0 | AM57: 0 | AN57: 0 | AO57: 0 | AP57: 0 | AQ57: 37
A58: 58 | D58: 8 | E58: ΔΑΜΙΓΟΥ ΜΑΡΙΑ (ΠΡΟΕΔΡΟΥ) του ΝΙΚΟΛΑΟΥ | F58: 2 | G58: 1 | H58: 0 | I58: 1 | J58: 0 | K58: 1 | L58: 33 | N58: 0 | O58: 0 | P58: 0 | Q58: 0 | R58: 1 | S58: 0 | T58: 0 | U58: 1 | V58: 1 | W58: 1 | X58: 0 | Y58: 5 | Z58: 2 | AA58: 0 | AC58: 4 | AD58: 2 | AE58: 0 | AF58: 0 | AG58: 3 | AH58: 2 | AI58: 0 | AJ58: 0 | AK58: 1 | AL58: 0 | AM58: 0 | AN58: 1 | AO58: 0 | AP58: 0 | AQ58: 62
A59: 59 | D59: 9 | E59: ΔΑΡΖΕΝΤΑΣ ΓΕΩΡΓΙΟΣ (ΣΚΟΥΜΠΡΗΣ) του ΙΩΑΝΝΗ | F59: 5 | G59: 9 | H59: 0 | I59: 1 | J59: 4 | K59: 7 | L59: 3 | N59: 0 | O59: 0 | P59: 2 | Q59: 6 | R59: 1 | S59: 5 | T59: 1 | U59: 0 | V59: 1 | W59: 0 | X59: 1 | Y59: 4 | Z59: 2 | AA59: 1 | AC59: 3 | AD59: 0 | AE59: 4 | AF59: 44 | AG59: 63 | AH59: 35 | AI59: 58 | AJ59: 56 | AK59: 65 | AL59: 0 | AM59: 0 | AN59: 0 | AO59: 0 | AP59: 2 | AQ59: 383
A60: 60 | D60: 10 | E60: ΔΑΡΖΕΝΤΑΣ ΝΙΚΟΛΑΟΣ (ΝΙΚΑΚΗΣ) του ΖΑΝΝΕ | F60: 0 | G60: 5 | H60: 2 | I60: 0 | J60: 7 | K60: 0 | L60: 1 | N60: 0 | O60: 1 | P60: 1 | Q60: 9 | R60: 1 | S60: 1 | T60: 2 | U60: 1 | V60: 1 | W60: 2 | X60: 0 | Y60: 2 | Z60: 0 | AA60: 1 | AC60: 1 | AD60: 1 | AE60: 4 | AF60: 44 | AG60: 44 | AH60: 16 | AI60: 36 | AJ60: 26 | AK60: 29 | AL60: 0 | AM60: 1 | AN60: 0 | AO60: 0 | AP60: 0 | AQ60: 239
A61: 61 | D61: 11 | E61: ΔΡΟΣΟΣ ΖΗΣΗΣ του ΣΠΥΡΟΥ | F61: 8 | G61: 2 | H61: 2 | I61: 1 | J61: 1 | K61: 3 | L61: 3 | N61: 4 | O61: 0 | P61: 0 | Q61: 1 | R61: 3 | S61: 0 | T61: 4 | U61: 0 | V61: 0 | W61: 4 | X61: 1 | Y61: 9 | Z61: 4 | AA61: 0 | AC61: 11 | AD61: 0 | AE61: 4 | AF61: 20 | AG61: 22 | AH61: 33 | AI61: 12 | AJ61: 27 | AK61: 32 | AL61: 1 | AM61: 0 | AN61: 0 | AO61: 0 | AP61: 0 | AQ61: 212
A62: 62 | D62: 12 | E62: ΔΡΟΣΟΣ ΣΤΥΛΙΑΝΟΣ (ΦΡΑΓΚΙΑΣ) του ΝΙΚΟΛΑΟΥ | F62: 3 | G62: 2 | H62: 1 | I62: 5 | J62: 1 | K62: 2 | L62: 1 | N62: 0 | O62: 0 | P62: 1 | Q62: 1 | R62: 2 | S62: 1 | T62: 1 | U62: 1 | V62: 0 | W62: 1 | X62: 0 | Y62: 2 | Z62: 0 | AA62: 0 | AC62: 1 | AD62: 1 | AE62: 2 | AF62: 19 | AG62: 12 | AH62: 38 | AI62: 16 | AJ62: 17 | AK62: 21 | AL62: 1 | AM62: 1 | AN62: 0 | AO62: 0 | AP62: 1 | AQ62: 155
A63: 63 | D63: 13 | E63: ΔΡΟΣΟΣ ΧΑΡΑΛΑΜΠΟΣ (ΚΟΝΤΟΣ) του ΛΟΥΚΑ | F63: 0 | G63: 1 | H63: 0 | I63: 2 | J63: 0 | K63: 0 | L63: 1 | N63: 0 | O63: 0 | P63: 1 | Q63: 0 | R63: 0 | S63: 0 | T63: 0 | U63: 0 | V63: 0 | W63: 0 | X63: 0 | Y63: 1 | Z63: 1 | AA63: 0 | AC63: 0 | AD63: 0 | AE63: 1 | AF63: 2 | AG63: 7 | AH63: 22 | AI63: 7 | AJ63: 8 | AK63: 5 | AL63: 1 | AM63: 0 | AN63: 0 | AO63: 0 | AP63: 0 | AQ63: 60
A64: 64 | D64: 14 | E64: ΔΡΟΣΟΥ ΕΙΡΗΝΗ του ΝΙΚΟΛΑΟΥ | F64: 0 | G64: 0 | H64: 0 | I64: 2 | J64: 1 | K64: 5 | L64: 1 | N64: 0 | O64: 0 | P64: 0 | Q64: 0 | R64: 1 | S64: 0 | T64: 0 | U64: 0 | V64: 4 | W64: 0 | X64: 0 | Y64: 0 | Z64: 2 | AA64: 0 | AC64: 0 | AD64: 1 | AE64: 0 | AF64: 9 | AG64: 6 | AH64: 21 | AI64: 5 | AJ64: 3 | AK64: 6 | AL64: 0 | AM64: 0 | AN64: 1 | AO64: 0 | AP64: 1 | AQ64: 69
A65: 65 | D65: 15 | E65: ΖΏΡΖΟΣ ΜΑΡΚΟΣ του ΙΩΑΝΝΗ | F65: 4 | G65: 3 | H65: 3 | I65: 1 | J65: 6 | K65: 0 | L65: 0 | N65: 1 | O65: 0 | P65: 1 | Q65: 1 | R65: 4 | S65: 1 | T65: 1 | U65: 0 | V65: 1 | W65: 0 | X65: 1 | Y65: 14 | Z65: 4 | AA65: 0 | AC65: 3 | AD65: 1 | AE65: 1 | AF65: 12 | AG65: 2 | AH65: 13 | AI65: 4 | AJ65: 2 | AK65: 3 | AL65: 1 | AM65: 0 | AN65: 0 | AO65: 0 | AP65: 0 | AQ65: 88
A66: 66 | D66: 16 | E66: ΖΑΜΠΕΛΗΣ ΕΥΑΓΓΕΛΟΣ (ΤΡΑΜΑΤΙΑΣ) του ΓΕΩΡΓΙΟΥ | F66: 3 | G66: 1 | H66: 0 | I66: 1 | J66: 0 | K66: 0 | L66: 0 | N66: 2 | O66: 1 | P66: 2 | Q66: 2 | R66: 1 | S66: 6 | T66: 1 | U66: 0 | V66: 0 | W66: 1 | X66: 0 | Y66: 6 | Z66: 4 | AA66: 2 | AC66: 4 | AD66: 2 | AE66: 1 | AF66: 38 | AG66: 36 | AH66: 34 | AI66: 46 | AJ66: 27 | AK66: 34 | AL66: 0 | AM66: 0 | AN66: 0 | AO66: 0 | AP66: 0 | AQ66: 255
A67: 67 | D67: 17 | E67: ΚΑΡΑΜΟΛΕΓΚΟΣ ΑΝΤΩΝΙΟΣ του ΕΛΕΥΘΕΡΙΟΥ | F67: 6 | G67: 5 | H67: 5 | I67: 2 | J67: 7 | K67: 1 | L67: 0 | N67: 2 | O67: 2 | P67: 3 | Q67: 16 | R67: 2 | S67: 1 | T67: 1 | U67: 1 | V67: 9 | W67: 0 | X67: 1 | Y67: 3 | Z67: 17 | AA67: 12 | AC67: 12 | AD67: 0 | AE67: 1 | AF67: 3 | AG67: 3 | AH67: 3 | AI67: 8 | AJ67: 3 | AK67: 4 | AL67: 0 | AM67: 0 | AN67: 2 | AO67: 3 | AP67: 3 | AQ67: 141
A68: 68 | D68: 18 | E68: ΚΑΡΑΜΟΛΕΓΚΟΥ ΜΑΡΙΑ του ΕΡΜΟΛΑΟΥ | F68: 0 | G68: 1 | H68: 1 | I68: 2 | J68: 0 | K68: 1 | L68: 0 | N68: 0 | O68: 0 | P68: 0 | Q68: 0 | R68: 0 | S68: 0 | T68: 0 | U68: 0 | V68: 0 | W68: 2 | X68: 0 | Y68: 0 | Z68: 0 | AA68: 1 | AC68: 0 | AD68: 0 | AE68: 0 | AF68: 1 | AG68: 2 | AH68: 6 | AI68: 8 | AJ68: 1 | AK68: 1 | AL68: 0 | AM68: 0 | AN68: 1 | AO68: 0 | AP68: 0 | AQ68: 28
A69: 69 | D69: 19 | E69: ΚΑΦΟΥΡΟΣ ΝΙΚΟΛΑΟΣ του ΓΕΡΑΣΙΜΟΥ | F69: 1 | G69: 8 | H69: 3 | I69: 3 | J69: 2 | K69: 5 | L69: 46 | N69: 0 | O69: 2 | P69: 4 | Q69: 4 | R69: 5 | S69: 1 | T69: 2 | U69: 2 | V69: 2 | W69: 1 | X69: 0 | Y69: 0 | Z69: 2 | AA69: 0 | AC69: 2 | AD69: 1 | AE69: 0 | AF69: 2 | AG69: 5 | AH69: 2 | AI69: 2 | AJ69: 0 | AK69: 0 | AL69: 0 | AM69: 0 | AN69: 1 | AO69: 0 | AP69: 0 | AQ69: 108
A70: 70 | D70: 20 | E70: ΚΙΤΣΟΥ ΣΟΦΙΑ του ΧΑΡΑΛΑΜΠΟΥ | F70: 20 | G70: 18 | H70: 14 | I70: 17 | J70: 12 | K70: 21 | L70: 4 | N70: 4 | O70: 3 | P70: 10 | Q70: 7 | R70: 2 | S70: 5 | T70: 3 | U70: 4 | V70: 8 | W70: 2 | X70: 3 | Y70: 14 | Z70: 4 | AA70: 1 | AC70: 10 | AD70: 4 | AE70: 13 | AF70: 9 | AG70: 12 | AH70: 12 | AI70: 19 | AJ70: 12 | AK70: 22 | AL70: 3 | AM70: 5 | AN70: 4 | AO70: 2 | AP70: 2 | AQ70: 305
A71: 71 | D71: 21 | E71: ΛΕΙΒΑΔΑΡΟΣ ΕΜΜΑΝΟΥΗΛ (ΚΟΣΚΩΤΑΣ) του ΠΕΤΡΟΥ | F71: 4 | G71: 3 | H71: 6 | I71: 4 | J71: 2 | K71: 2 | L71: 7 | N71: 1 | O71: 1 | P71: 3 | Q71: 4 | R71: 4 | S71: 2 | T71: 1 | U71: 2 | V71: 3 | W71: 1 | X71: 0 | Y71: 2 | Z71: 9 | AA71: 1 | AC71: 32 | AD71: 5 | AE71: 4 | AF71: 12 | AG71: 7 | AH71: 13 | AI71: 14 | AJ71: 19 | AK71: 26 | AL71: 0 | AM71: 0 | AN71: 0 | AO71: 5 | AP71: 3 | AQ71: 202
A72: 72 | D72: 22 | E72: ΜΑΝΤΟΥΣΗΣ ΓΡΗΓΟΡΙΟΣ του ΘΕΟΔΩΡΟΥ | F72: 24 | G72: 13 | H72: 20 | I72: 15 | J72: 8 | K72: 19 | L72: 6 | N72: 7 | O72: 8 | P72: 8 | Q72: 10 | R72: 5 | S72: 4 | T72: 2 | U72: 5 | V72: 2 | W72: 2 | X72: 11 | Y72: 9 | Z72: 4 | AA72: 2 | AC72: 9 | AD72: 4 | AE72: 2 | AF72: 11 | AG72: 14 | AH72: 27 | AI72: 22 | AJ72: 14 | AK72: 13 | AL72: 3 | AM72: 2 | AN72: 2 | AO72: 4 | AP72: 1 | AQ72: 312
A73: 73 | D73: 23 | E73: ΜΠΑΝΟΣ ΔΗΜΗΤΡΙΟΣ του ΕΥΑΓΓΕΛΟΥ | F73: 3 | G73: 4 | H73: 1 | I73: 2 | J73: 0 | K73: 0 | L73: 6 | N73: 2 | O73: 0 | P73: 1 | Q73: 2 | R73: 4 | S73: 1 | T73: 2 | U73: 2 | V73: 1 | W73: 0 | X73: 2 | Y73: 3 | Z73: 1 | AA73: 0 | AC73: 1 | AD73: 2 | AE73: 2 | AF73: 21 | AG73: 29 | AH73: 29 | AI73: 29 | AJ73: 23 | AK73: 23 | AL73: 0 | AM73: 0 | AN73: 1 | AO73: 0 | AP73: 0 | AQ73: 197
A74: 74 | D74: 24 | E74: ΜΠΙΣΛΙΑΓΑΚΗ ΒΑΓΙΑ του ΠΑΣΧΑΛΗ | F74: 2 | G74: 3 | H74: 1 | I74: 1 | J74: 2 | K74: 0 | L74: 0 | N74: 0 | O74: 0 | P74: 0 | Q74: 1 | R74: 0 | S74: 0 | T74: 0 | U74: 0 | V74: 1 | W74: 0 | X74: 2 | Y74: 14 | Z74: 0 | AA74: 0 | AC74: 0 | AD74: 0 | AE74: 0 | AF74: 0 | AG74: 1 | AH74: 2 | AI74: 1 | AJ74: 0 | AK74: 2 | AL74: 0 | AM74: 0 | AN74: 0 | AO74: 0 | AP74: 0 | AQ74: 33
A75: 75 | D75: 25 | E75: ΜΠΟΥΛΙΕΡΗ ΛΑΜΠΡΙΝΗ (ΣΙΓΑΛΑ) του ΠΑΝΑΓΙΩΤΗ | F75: 3 | G75: 2 | H75: 0 | I75: 2 | J75: 1 | K75: 0 | L75: 0 | N75: 2 | O75: 5 | P75: 1 | Q75: 0 | R75: 2 | S75: 0 | T75: 0 | U75: 1 | V75: 10 | W75: 5 | X75: 8 | Y75: 8 | Z75: 0 | AA75: 0 | AC75: 0 | AD75: 0 | AE75: 0 | AF75: 0 | AG75: 1 | AH75: 0 | AI75: 1 | AJ75: 0 | AK75: 1 | AL75: 0 | AM75: 0 | AN75: 0 | AO75: 0 | AP75: 0 | AQ75: 53
A76: 76 | D76: 26 | E76: ΞΑΓΟΡΑΡΗΣ ΑΝΤΩΝΙΟΣ (ΚΑΡΑΜΑΛΗΣ) του ΕΥΣΤΑΘΙΟΥ | F76: 3 | G76: 6 | H76: 7 | I76: 9 | J76: 6 | K76: 1 | L76: 1 | N76: 2 | O76: 3 | P76: 2 | Q76: 4 | R76: 2 | S76: 1 | T76: 0 | U76: 0 | V76: 1 | W76: 2 | X76: 1 | Y76: 1 | Z76: 0 | AA76: 2 | AC76: 0 | AD76: 1 | AE76: 0 | AF76: 1 | AG76: 2 | AH76: 1 | AI76: 3 | AJ76: 0 | AK76: 1 | AL76: 0 | AM76: 0 | AN76: 0 | AO76: 2 | AP76: 1 | AQ76: 66
A77: 77 | D77: 27 | E77: ΠΑΛΑΙΟΛΟΓΟΥ ΝΙΚΟΛΙΤΣΑ του ΠΑΝΑΓΙΩΤΗ | F77: 1 | G77: 0 | H77: 1 | I77: 2 | J77: 0 | K77: 0 | L77: 0 | N77: 2 | O77: 2 | P77: 1 | Q77: 0 | R77: 0 | S77: 0 | T77: 1 | U77: 1 | V77: 0 | W77: 0 | X77: 2 | Y77: 0 | Z77: 0 | AA77: 0 | AC77: 1 | AD77: 0 | AE77: 0 | AF77: 0 | AG77: 0 | AH77: 0 | AI77: 1 | AJ77: 2 | AK77: 0 | AL77: 0 | AM77: 0 | AN77: 0 | AO77: 0 | AP77: 1 | AQ77: 18
A78: 78 | D78: 28 | E78: ΠΑΠΑΪΩΑΝΝΟΥ ΙΩΑΝΝΑ του ΑΠΟΣΤΟΛΟΥ | F78: 1 | G78: 0 | H78: 2 | I78: 0 | J78: 0 | K78: 0 | L78: 0 | N78: 0 | O78: 0 | P78: 0 | Q78: 0 | R78: 0 | S78: 0 | T78: 0 | U78: 0 | V78: 0 | W78: 0 | X78: 0 | Y78: 4 | Z78: 1 | AA78: 0 | AC78: 0 | AD78: 0 | AE78: 0 | AF78: 0 | AG78: 0 | AH78: 1 | AI78: 0 | AJ78: 0 | AK78: 1 | AL78: 0 | AM78: 0 | AN78: 0 | AO78: 0 | AP78: 0 | AQ78: 10
A79: 79 | D79: 29 | E79: ΠΑΣΣΑΡΗΣ ΜΑΡΙΟΣ του ΕΛΕΥΘΕΡΙΟΥ | F79: 1 | G79: 0 | H79: 2 | I79: 4 | J79: 0 | K79: 11 | L79: 0 | N79: 0 | O79: 0 | P79: 0 | Q79: 1 | R79: 2 | S79: 0 | T79: 0 | U79: 1 | V79: 0 | W79: 0 | X79: 0 | Y79: 1 | Z79: 0 | AA79: 0 | AC79: 8 | AD79: 1 | AE79: 0 | AF79: 0 | AG79: 3 | AH79: 4 | AI79: 1 | AJ79: 1 | AK79: 1 | AL79: 0 | AM79: 1 | AN79: 2 | AO79: 0 | AP79: 0 | AQ79: 45
A80: 80 | D80: 30 | E80: ΠΡΕΚΑ ΣΠΥΡΙΔΟΥΛΑ του ΑΓΓΕΛΟΥ | F80: 0 | G80: 0 | H80: 0 | I80: 0 | J80: 1 | K80: 0 | L80: 0 | N80: 0 | O80: 1 | P80: 2 | Q80: 1 | R80: 1 | S80: 0 | T80: 0 | U80: 0 | V80: 0 | W80: 0 | X80: 3 | Y80: 0 | Z80: 1 | AA80: 2 | AC80: 5 | AD80: 1 | AE80: 0 | AF80: 31 | AG80: 49 | AH80: 11 | AI80: 26 | AJ80: 36 | AK80: 38 | AL80: 0 | AM80: 0 | AN80: 1 | AO80: 0 | AP80: 0 | AQ80: 210
A81: 81 | D81: 31 | E81: ΡΕΝΙΕΡΗΣ ΓΕΩΡΓΙΟΣ (ΜΠΑΤΟΥΡΟΣ) του ΕΛΕΥΘΕΡΙΟΥ | F81: 5 | G81: 6 | H81: 12 | I81: 25 | J81: 8 | K81: 2 | L81: 4 | N81: 0 | O81: 1 | P81: 1 | Q81: 0 | R81: 0 | S81: 0 | T81: 1 | U81: 0 | V81: 0 | W81: 1 | X81: 0 | Y81: 0 | Z81: 0 | AA81: 0 | AC81: 0 | AD81: 0 | AE81: 0 | AF81: 5 | AG81: 0 | AH81: 1 | AI81: 2 | AJ81: 1 | AK81: 0 | AL81: 0 | AM81: 0 | AN81: 0 | AO81: 0 | AP81: 0 | AQ81: 75
A82: 82 | D82: 32 | E82: ΡΟΥΣΣΟΣ ΕΥΑΓΓΕΛΟΣ (ΛΟΝΤΟΣ) του ΝΙΚΟΛΑΟΥ | F82: 2 | G82: 5 | H82: 1 | I82: 1 | J82: 0 | K82: 0 | L82: 0 | N82: 6 | O82: 6 | P82: 9 | Q82: 0 | R82: 0 | S82: 0 | T82: 0 | U82: 0 | V82: 0 | W82: 1 | X82: 0 | Y82: 0 | Z82: 0 | AA82: 1 | AC82: 2 | AD82: 0 | AE82: 0 | AF82: 0 | AG82: 0 | AH82: 1 | AI82: 3 | AJ82: 0 | AK82: 1 | AL82: 0 | AM82: 0 | AN82: 0 | AO82: 0 | AP82: 1 | AQ82: 40
A83: 83 | D83: 33 | E83: ΣΙΓΑΛΑ ΚΑΛΛΙΟΠΗ (ΒΑΒΟΥΛΑ) συζ. ΑΝΤΩΝΙΟΥ | F83: 3 | G83: 4 | H83: 5 | I83: 2 | J83: 3 | K83: 2 | L83: 5 | N83: 0 | O83: 0 | P83: 0 | Q83: 0 | R83: 0 | S83: 3 | T83: 0 | U83: 0 | V83: 1 | W83: 1 | X83: 1 | Y83: 3 | Z83: 2 | AA83: 2 | AC83: 5 | AD83: 4 | AE83: 1 | AF83: 39 | AG83: 54 | AH83: 26 | AI83: 30 | AJ83: 32 | AK83: 48 | AL83: 1 | AM83: 3 | AN83: 1 | AO83: 7 | AP83: 13 | AQ83: 301
A84: 84 | D84: 34 | E84: ΣΤΕΦΑΝΑΚΗΣ ΓΕΩΡΓΙΟΣ του ΔΗΜΗΤΡΙΟΥ | F84: 6 | G84: 2 | H84: 6 | I84: 2 | J84: 6 | K84: 0 | L84: 0 | N84: 2 | O84: 2 | P84: 2 | Q84: 2 | R84: 2 | S84: 6 | T84: 1 | U84: 0 | V84: 0 | W84: 0 | X84: 1 | Y84: 1 | Z84: 0 | AA84: 2 | AC84: 3 | AD84: 3 | AE84: 6 | AF84: 51 | AG84: 51 | AH84: 45 | AI84: 59 | AJ84: 37 | AK84: 49 | AL84: 0 | AM84: 0 | AN84: 1 | AO84: 0 | AP84: 0 | AQ84: 348
A85: 85 | D85: 35 | E85: ΦΙΛΙΠΠΑΙΟΥ ΜΑΡΙΑ του ΚΩΝΣΤΑΝΤΙΝΟΥ | F85: 0 | G85: 1 | H85: 0 | I85: 1 | J85: 2 | K85: 0 | L85: 0 | N85: 1 | O85: 1 | P85: 3 | Q85: 1 | R85: 0 | S85: 2 | T85: 0 | U85: 2 | V85: 1 | W85: 0 | X85: 4 | Y85: 0 | Z85: 1 | AA85: 1 | AC85: 0 | AD85: 2 | AE85: 0 | AF85: 0 | AG85: 2 | AH85: 0 | AI85: 0 | AJ85: 1 | AK85: 0 | AL85: 1 | AM85: 0 | AN85: 0 | AO85: 0 | AP85: 0 | AQ85: 27
A86: 86 | D86: 36 | E86: ΧΑΛΑΡΗΣ ΕΥΑΓΓΕΛΟΣ (ΣΚΑΡΑΜΑΓΚΑΣ) του ΕΜΜΑΝΟΥΗΛ | F86: 4 | G86: 4 | H86: 7 | I86: 1 | J86: 3 | K86: 0 | L86: 4 | N86: 1 | O86: 4 | P86: 5 | Q86: 0 | R86: 0 | S86: 1 | T86: 0 | U86: 0 | V86: 1 | W86: 0 | X86: 2 | Y86: 2 | Z86: 0 | AA86: 0 | AC86: 0 | AD86: 2 | AE86: 0 | AF86: 9 | AG86: 2 | AH86: 2 | AI86: 2 | AJ86: 0 | AK86: 2 | AL86: 0 | AM86: 0 | AN86: 1 | AO86: 1 | AP86: 0 | AQ86: 60
A87: 87 | E87: ΔΗΜΟΤΙΚΗ ΕΝΟΤΗΤΑ ΟΙΑΣ
A88: 88 | D88: 1 | E88: ΚΟΥΡΤΗ ΧΑΡΟΥΛΑ του ΦΩΤΙΟΥ‑ΘΕΟΦΑΝΟΥΣ | F88: 2 | G88: 2 | H88: 3 | I88: 1 | J88: 7 | K88: 2 | L88: 1 | N88: 2 | O88: 3 | P88: 1 | Q88: 1 | R88: 2 | S88: 1 | T88: 0 | U88: 0 | V88: 3 | W88: 3 | X88: 4 | Y88: 3 | Z88: 0 | AA88: 0 | AC88: 6 | AD88: 3 | AE88: 3 | AF88: 5 | AG88: 4 | AH88: 5 | AI88: 7 | AJ88: 7 | AK88: 7 | AL88: 4 | AM88: 4 | AN88: 1 | AO88: 0 | AP88: 0 | AQ88: =SUM(F88:AP88) -> 97
A89: 89 | D89: 2 | E89: ΜΑΡΚΟΖΑΝΕΣ ΣΙΓΟΥΡΑΣ του ΠΑΝΑΓΙΩΤΗ | F89: 3 | G89: 2 | H89: 2 | I89: 1 | J89: 0 | K89: 4 | L89: 0 | N89: 0 | O89: 2 | P89: 1 | Q89: 3 | R89: 1 | S89: 1 | T89: 2 | U89: 0 | V89: 2 | W89: 0 | X89: 0 | Y89: 4 | Z89: 10 | AA89: 2 | AC89: 4 | AD89: 5 | AE89: 2 | AF89: 17 | AG89: 22 | AH89: 20 | AI89: 18 | AJ89: 16 | AK89: 23 | AL89: 3 | AM89: 4 | AN89: 4 | AO89: 0 | AP89: 0 | AQ89: 178
A90: 90 | D90: 3 | E90: ΠΕΛΕΚΑΝΟΥ ΣΟΦΙΑ ‑ ΡΟΖΑ του ΛΟΥΚΑ | F90: 4 | G90: 2 | H90: 3 | I90: 5 | J90: 10 | K90: 4 | L90: 26 | N90: 3 | O90: 2 | P90: 3 | Q90: 3 | R90: 2 | S90: 6 | T90: 1 | U90: 1 | V90: 4 | W90: 3 | X90: 0 | Y90: 6 | Z90: 6 | AA90: 2 | AC90: 3 | AD90: 2 | AE90: 1 | AF90: 27 | AG90: 43 | AH90: 24 | AI90: 35 | AJ90: 45 | AK90: 25 | AL90: 3 | AM90: 2 | AN90: 10 | AO90: 1 | AP90: 0 | AQ90: 317
A91: 91 | D91: 4 | E91: ΠΙΤΣΙΚΑΛΗΣ ΜΑΡΙΝΟΣ του ΜΑΤΘΑΙΟΥ | F91: 5 | G91: 3 | H91: 0 | I91: 4 | J91: 0 | K91: 2 | L91: 1 | N91: 2 | O91: 2 | P91: 2 | Q91: 4 | R91: 0 | S91: 1 | T91: 0 | U91: 0 | V91: 3 | W91: 1 | X91: 0 | Y91: 5 | Z91: 1 | AA91: 1 | AC91: 7 | AD91: 3 | AE91: 2 | AF91: 13 | AG91: 9 | AH91: 8 | AI91: 6 | AJ91: 12 | AK91: 23 | AL91: 0 | AM91: 0 | AN91: 2 | AO91: 21 | AP91: 35 | AQ91: 178
A92: 92 | D92: 5 | E92: ΣΙΓΑΛΑΣ ΣΤΑΥΡΟΣ του ΠΕΤΡΟΥ | F92: 13 | G92: 15 | H92: 1 | I92: 18 | J92: 11 | K92: 14 | L92: 1 | N92: 6 | O92: 2 | P92: 4 | Q92: 12 | R92: 3 | S92: 3 | T92: 6 | V92: 3 | W92: 1 | X92: 3 | Y92: 3 | Z92: 3 | AA92: 5 | AC92: 12 | AD92: 1 | AE92: 2 | AF92: 37 | AG92: 36 | AH92: 27 | AI92: 31 | AJ92: 17 | AK92: 49 | AL92: 7 | AM92: 5 | AN92: 9 | AO92: 0 | AP92: 2 | AQ92: 362
A93: 93 | B93: Λαϊκή Συσπείρωση | E93: ΔΗΜΟΤΙΚΗ ΕΝΟΤΗΤΑ ΘΗΡΑΣ | F93: 17 | G93: 9 | H93: 17 | I93: 16 | J93: 16 | K93: 11 | L93: 7 | N93: 8 | O93: 11 | P93: 12 | Q93: 20 | R93: 12 | S93: 18 | T93: 12 | U93: 16 | V93: 80 | W93: 75 | X93: 87 | Y93: 17 | Z93: 16 | AA93: 11 | AC93: 13 | AD93: 10 | AE93: 26 | AF93: 7 | AG93: 15 | AH93: 16 | AI93: 28 | AJ93: 11 | AK93: 14 | AL93: 13 | AM93: 16 | AN93: 13 | AO93: 7 | AP93: 7 | AQ93: =SUM(F93:AP93) -> 684
A94: 94 | D94: 1 | E94: ΑΡΓΥΡΟΣ ΑΡΤΕΜΙΟΣ του ΙΩΑΝΝΗ | F94: 2 | G94: 0 | H94: 1 | I94: 0 | J94: 1 | K94: 2 | L94: 0 | N94: 0 | O94: 1 | P94: 0 | Q94: 0 | R94: 1 | S94: 0 | T94: 1 | U94: 0 | V94: 21 | W94: 12 | X94: 15 | Y94: 2 | Z94: 2 | AA94: 1 | AC94: 3 | AD94: 1 | AE94: 1 | AF94: 0 | AG94: 1 | AH94: 0 | AI94: 0 | AJ94: 0 | AK94: 1 | AL94: 0 | AM94: 1 | AN94: 1 | AO94: 0 | AP94: 1 | AQ94: =SUM(F94:AP94) -> 72
A95: 95 | D95: 2 | E95: ΑΣΗΜΑΚΟΠΟΥΛΟΣ ΝΙΚΟΛΑΟΣ του ΓΕΩΡΓΙΟΥ | F95: 0 | G95: 0 | H95: 1 | I95: 0 | J95: 1 | K95: 10 | L95: 0 | N95: 0 | O95: 0 | P95: 1 | Q95: 1 | R95: 0 | S95: 0 | T95: 0 | U95: 0 | V95: 1 | W95: 3 | X95: 0 | Y95: 0 | Z95: 0 | AA95: 0 | AC95: 0 | AD95: 0 | AE95: 0 | AF95: 2 | AG95: 1 | AH95: 0 | AI95: 2 | AJ95: 1 | AK95: 0 | AL95: 0 | AM95: 0 | AN95: 0 | AO95: 0 | AP95: 0 | AQ95: 24
A96: 96 | D96: 3 | E96: ΒΑΪΛΑ ΦΩΤΕΙΝΗ του ΑΝΤΩΝΙΟΥ | F96: 5 | G96: 1 | H96: 1 | I96: 0 | J96: 1 | K96: 1 | L96: 0 | N96: 0 | O96: 0 | P96: 1 | Q96: 3 | R96: 2 | S96: 0 | T96: 0 | U96: 1 | V96: 0 | W96: 139 | X96: 0 | Y96: 5 | Z96: 0 | AA96: 1 | AC96: 0 | AD96: 0 | AE96: 0 | AF96: 0 | AG96: 0 | AH96: 0 | AI96: 0 | AJ96: 0 | AK96: 1 | AL96: 1 | AM96: 0 | AN96: 0 | AO96: 0 | AP96: 0 | AQ96: 163
A97: 97 | D97: 4 | E97: ΔΑΜΙΓΟΣ ΜΗΝΑΣ του ΝΙΚΟΛΑΟΥ | F97: 1 | G97: 0 | H97: 0 | I97: 0 | J97: 0 | K97: 1 | L97: 2 | N97: 2 | O97: 0 | P97: 1 | Q97: 1 | R97: 1 | S97: 0 | T97: 0 | U97: 1 | V97: 5 | W97: 4 | X97: 4 | Y97: 1 | Z97: 1 | AA97: 1 | AC97: 1 | AD97: 0 | AE97: 0 | AF97: 0 | AG97: 0 | AH97: 0 | AI97: 0 | AJ97: 0 | AK97: 0 | AL97: 0 | AM97: 0 | AN97: 0 | AO97: 0 | AP97: 0 | AQ97: 27
A98: 98 | D98: 5 | E98: ΔΙΟΝΥΣΙΟΥ ΑΘΗΝΑ ΕΛΕΥΘΕΡΙΑ του ΙΩΑΝΝΗ | F98: 0 | G98: 0 | H98: 0 | I98: 0 | J98: 1 | K98: 0 | L98: 0 | N98: 0 | O98: 0 | P98: 2 | Q98: 3 | R98: 1 | S98: 0 | T98: 1 | U98: 0 | V98: 0 | W98: 0 | X98: 0 | Y98: 1 | Z98: 1 | AA98: 0 | AC98: 1 | AD98: 0 | AE98: 1 | AF98: 0 | AG98: 2 | AH98: 0 | AI98: 0 | AJ98: 1 | AK98: 0 | AL98: 0 | AM98: 0 | AN98: 0 | AO98: 0 | AP98: 1 | AQ98: 16
A99: 99 | D99: 6 | E99: ΔΡΟΣΟΥ ΜΑΡΟΥΣΩ του ΜΑΡΚΟΥ | F99: 0 | G99: 0 | H99: 1 | I99: 0 | J99: 0 | K99: 0 | L99: 1 | N99: 0 | O99: 0 | P99: 0 | Q99: 7 | R99: 2 | S99: 5 | T99: 3 | U99: 0 | V99: 3 | W99: 2 | X99: 3 | Y99: 0 | Z99: 0 | AA99: 1 | AC99: 0 | AD99: 0 | AE99: 0 | AF99: 0 | AG99: 0 | AH99: 6 | AI99: 4 | AJ99: 2 | AK99: 2 | AL99: 0 | AM99: 0 | AN99: 0 | AO99: 0 | AP99: 0 | AQ99: 42
A100: 100 | D100: 7 | E100: ΖΩΡΖΟΣ ΜΙΧΑΗΛ του ΘΕΜΙΣΤΟΚΛΗ | F100: 0 | G100: 1 | H100: 1 | I100: 0 | J100: 2 | K100: 0 | L100: 0 | N100: 0 | O100: 0 | P100: 1 | Q100: 0 | R100: 1 | S100: 0 | T100: 1 | U100: 0 | V100: 2 | W100: 1 | X100: 8 | Y100: 1 | Z100: 3 | AA100: 0 | AC100: 1 | AD100: 5 | AE100: 20 | AF100: 1 | AG100: 0 | AH100: 1 | AI100: 0 | AJ100: 0 | AK100: 0 | AL100: 0 | AM100: 0 | AN100: 0 | AO100: 0 | AP100: 0 | AQ100: 50
A101: 101 | D101: 8 | E101: ΘΕΟΔΩΡΟΠΟΥΛΟΣ ΚΩΝΣΤΑΝΤΙΝΟΣ του ΠΑΝΑΓΙΩΤΗ | F101: 0 | G101: 2 | H101: 1 | I101: 1 | J101: 0 | K101: 2 | L101: 0 | N101: 0 | O101: 0 | P101: 3 | Q101: 62 | R101: 2 | S101: 4 | T101: 1 | U101: 1 | V101: 0 | W101: 0 | X101: 0 | Y101: 3 | Z101: 0 | AA101: 2 | AC101: 2 | AD101: 1 | AE101: 1 | AF101: 0 | AG101: 4 | AH101: 1 | AI101: 6 | AJ101: 2 | AK101: 3 | AL101: 1 | AM101: 0 | AN101: 0 | AO101: 0 | AP101: 0 | AQ101: 105
A102: 102 | D102: 9 | E102: ΚΑΡΑΜΟΛΕΓΚΟΣ ΧΑΡΑΛΑΜΠΟΣ του ΓΕΩΡΓΙΟΥ | F102: 0 | G102: 1 | H102: 0 | I102: 0 | J102: 1 | K102: 0 | L102: 0 | N102: 0 | O102: 1 | P102: 0 | Q102: 0 | R102: 0 | S102: 1 | T102: 1 | U102: 0 | V102: 14 | W102: 12 | X102: 17 | Y102: 0 | Z102: 2 | AA102: 1 | AC102: 1 | AD102: 1 | AE102: 5 | AF102: 3 | AG102: 0 | AH102: 1 | AI102: 4 | AJ102: 0 | AK102: 2 | AL102: 0 | AM102: 0 | AN102: 0 | AO102: 0 | AP102: 0 | AQ102: 68
A103: 103 | D103: 10 | E103: ΚΑΡΕΛΗ ΡΟΥΜΠΙΝΗ του ΙΩΑΝΝΗ | F103: 2 | G103: 0 | H103: 1 | I103: 1 | J103: 0 | K103: 0 | L103: 0 | N103: 0 | O103: 0 | P103: 1 | Q103: 0 | R103: 0 | S103: 2 | T103: 0 | U103: 0 | V103: 0 | W103: 0 | X103: 1 | Y103: 0 | Z103: 3 | AA103: 0 | AC103: 0 | AD103: 2 | AE103: 3 | AF103: 0 | AG103: 2 | AH103: 1 | AI103: 1 | AJ103: 1 | AK103: 3 | AL103: 0 | AM103: 0 | AN103: 0 | AO103: 1 | AP103: 0 | AQ103: 25
A104: 104 | D104: 11 | E104: ΚΟΚΚΑΛΗ ΑΚΥΛΙΝΑ του ΜΙΧΑΗΛ | F104: 2 | G104: 3 | H104: 2 | I104: 3 | J104: 0 | K104: 2 | L104: 0 | N104: 3 | O104: 2 | P104: 3 | Q104: 4 | R104: 2 | S104: 4 | T104: 1 | U104: 2 | V104: 19 | W104: 11 | X104: 17 | Y104: 4 | Z104: 6 | AA104: 1 | AC104: 3 | AD104: 0 | AE104: 5 | AF104: 1 | AG104: 7 | AH104: 4 | AI104: 14 | AJ104: 6 | AK104: 8 | AL104: 1 | AM104: 1 | AN104: 0 | AO104: 2 | AP104: 0 | AQ104: 143
A105: 105 | D105: 12 | E105: ΚΟΚΚΑΛΗ ΑΝΤΩΝΙΑ συζ. ΙΑΚΩΒΟΥ | F105: 0 | G105: 0 | H105: 0 | I105: 0 | J105: 0 | K105: 1 | L105: 0 | N105: 0 | O105: 0 | P105: 1 | Q105: 0 | R105: 0 | S105: 0 | T105: 1 | U105: 0 | V105: 0 | W105: 3 | X105: 1 | Y105: 1 | Z105: 2 | AA105: 1 | AC105: 0 | AD105: 0 | AE105: 0 | AF105: 2 | AG105: 2 | AH105: 1 | AI105: 3 | AJ105: 0 | AK105: 2 | AL105: 0 | AM105: 0 | AN105: 0 | AO105: 0 | AP105: 1 | AQ105: 22
A106: 106 | D106: 13 | E106: ΛΙΚΑΪ ΡΕΑ του ΦΕΡΝΤΙΝΑΝΤ | F106: 0 | G106: 0 | H106: 0 | I106: 0 | J106: 0 | K106: 0 | L106: 0 | N106: 0 | O106: 0 | P106: 0 | Q106: 0 | R106: 0 | S106: 1 | T106: 0 | U106: 0 | V106: 4 | W106: 3 | X106: 1 | Y106: 1 | Z106: 2 | AA106: 1 | AC106: 1 | AD106: 0 | AE106: 0 | AF106: 1 | AG106: 0 | AH106: 0 | AI106: 1 | AJ106: 0 | AK106: 1 | AL106: 0 | AM106: 0 | AN106: 0 | AO106: 0 | AP106: 0 | AQ106: 17
A107: 107 | D107: 14 | E107: ΛΥΓΝΟΣ ΧΑΡΑΛΑΜΠΟΣ του ΛΟΥΚΑ | F107: 0 | G107: 1 | H107: 0 | I107: 0 | J107: 0 | K107: 2 | L107: 0 | N107: 0 | O107: 1 | P107: 0 | Q107: 1 | R107: 0 | S107: 2 | T107: 2 | U107: 0 | V107: 28 | W107: 24 | X107: 0 | Y107: 1 | Z107: 0 | AA107: 3 | AC107: 1 | AD107: 0 | AE107: 1 | AF107: 0 | AG107: 1 | AH107: 0 | AI107: 1 | AJ107: 0 | AK107: 0 | AL107: 0 | AM107: 1 | AN107: 0 | AO107: 3 | AP107: 3 | AQ107: 76
A108: 108 | D108: 15 | E108: ΜΑΡΓΙΩΛΗ ΒΑΣΙΛΙΚΗ του ΧΡΗΣΤΟΥ | F108: 0 | G108: 0 | H108: 0 | I108: 0 | J108: 2 | K108: 1 | L108: 0 | N108: 0 | O108: 0 | P108: 0 | Q108: 0 | R108: 1 | S108: 0 | T108: 2 | U108: 0 | V108: 2 | W108: 0 | X108: 0 | Y108: 0 | Z108: 0 | AA108: 0 | AC108: 0 | AD108: 0 | AE108: 0 | AF108: 1 | AG108: 1 | AH108: 0 | AI108: 0 | AJ108: 0 | AK108: 0 | AL108: 0 | AM108: 0 | AN108: 0 | AO108: 0 | AP108: 0 | AQ108: 10
A109: 109 | D109: 16 | E109: ΜΕΝΔΡΙΝΟΣ ΕΜΜΑΝΟΥΗΛ του ΓΕΩΡΓΙΟΥ | F109: 3 | G109: 2 | H109: 3 | I109: 1 | J109: 0 | K109: 3 | L109: 0 | N109: 2 | O109: 1 | P109: 0 | Q109: 1 | R109: 0 | S109: 4 | T109: 1 | U109: 2 | V109: 11 | W109: 8 | X109: 4 | Y109: 1 | Z109: 0 | AA109: 0 | AC109: 0 | AD109: 1 | AE109: 0 | AF109: 1 | AG109: 0 | AH109: 1 | AI109: 0 | AJ109: 1 | AK109: 0 | AL109: 0 | AM109: 0 | AN109: 0 | AO109: 0 | AP109: 0 | AQ109: 51
A110: 110 | D110: 17 | E110: ΞΑΓΟΡΑΡΗΣ ΙΑΚΩΒΟΣ του ΑΡΤΕΜΙΟΥ | F110: 0 | G110: 0 | H110: 0 | I110: 0 | J110: 0 | K110: 0 | L110: 0 | N110: 0 | O110: 0 | P110: 0 | Q110: 0 | R110: 0 | S110: 1 | T110: 0 | U110: 0 | V110: 4 | W110: 3 | X110: 10 | Y110: 3 | Z110: 0 | AA110: 0 | AC110: 0 | AD110: 1 | AE110: 0 | AF110: 3 | AG110: 0 | AH110: 0 | AI110: 3 | AJ110: 0 | AK110: 1 | AL110: 0 | AM110: 0 | AN110: 0 | AO110: 0 | AP110: 0 | AQ110: 29
A111: 111 | D111: 18 | E111: ΠΑΠΑΓΙΑΝΝΑΚΗ ΔΕΣΠΟΙΝΑ του ΙΩΑΝΝΗ | F111: 0 | G111: 0 | H111: 1 | I111: 2 | J111: 0 | K111: 0 | L111: 0 | N111: 0 | O111: 0 | P111: 0 | Q111: 1 | R111: 0 | S111: 0 | T111: 0 | U111: 0 | V111: 5 | W111: 2 | X111: 4 | Y111: 0 | Z111: 0 | AA111: 0 | AC111: 0 | AD111: 1 | AE111: 0 | AF111: 0 | AG111: 0 | AH111: 0 | AI111: 1 | AJ111: 0 | AK111: 0 | AL111: 0 | AM111: 0 | AN111: 0 | AO111: 0 | AP111: 0 | AQ111: 17
A112: 112 | D112: 19 | E112: ΠΑΠΑΔΟΠΟΥΛΟΣ ΙΩΑΝΝΗΣ του ΑΘΑΝΑΣΙΟΥ | F112: 1 | G112: 3 | H112: 5 | I112: 1 | J112: 0 | K112: 1 | L112: 0 | N112: 1 | O112: 5 | P112: 1 | Q112: 1 | R112: 1 | S112: 1 | T112: 0 | U112: 1 | V112: 2 | W112: 4 | X112: 3 | Y112: 1 | Z112: 1 | AA112: 1 | AC112: 0 | AD112: 1 | AE112: 3 | AF112: 0 | AG112: 0 | AH112: 0 | AI112: 1 | AJ112: 0 | AK112: 1 | AL112: 0 | AM112: 1 | AN112: 0 | AO112: 0 | AP112: 0 | AQ112: 41
A113: 113 | D113: 20 | E113: ΠΕΛΕΚΗ ΕΛΕΥΘΕΡΙΑ του ΜΙΧΑΗΛ | F113: 0 | G113: 0 | H113: 0 | I113: 0 | J113: 1 | K113: 0 | L113: 0 | N113: 0 | O113: 0 | P113: 0 | Q113: 1 | R113: 2 | S113: 0 | T113: 0 | U113: 0 | V113: 4 | W113: 0 | X113: 5 | Y113: 0 | Z113: 3 | AA113: 0 | AC113: 0 | AD113: 0 | AE113: 0 | AF113: 0 | AG113: 0 | AH113: 0 | AI113: 0 | AJ113: 0 | AK113: 0 | AL113: 0 | AM113: 0 | AN113: 0 | AO113: 0 | AP113: 0 | AQ113: 16
A114: 114 | D114: 21 | E114: ΡΑΓΚΟΥΣΗΣ ΓΕΩΡΓΙΟΣ του ΕΥΘΥΜΙΟΥ | F114: 0 | G114: 1 | H114: 0 | I114: 0 | J114: 5 | K114: 0 | L114: 0 | N114: 0 | O114: 0 | P114: 0 | Q114: 1 | R114: 1 | S114: 0 | T114: 0 | U114: 0 | V114: 0 | W114: 0 | X114: 0 | Y114: 0 | Z114: 0 | AA114: 0 | AC114: 0 | AD114: 1 | AE114: 0 | AF114: 0 | AG114: 1 | AH114: 0 | AI114: 0 | AJ114: 0 | AK114: 0 | AL114: 0 | AM114: 1 | AN114: 2 | AO114: 0 | AP114: 0 | AQ114: 13
A115: 115 | D115: 22 | E115: ΤΖΟΥΡΟΣ ΕΥΘΥΜΙΟΣ του ΑΠΟΣΤΟΛΟΥ | F115: 3 | G115: 0 | H115: 0 | I115: 2 | J115: 1 | K115: 1 | L115: 0 | N115: 0 | O115: 1 | P115: 1 | Q115: 1 | R115: 1 | S115: 0 | T115: 0 | U115: 0 | V115: 2 | W115: 0 | X115: 0 | Y115: 1 | Z115: 2 | AA115: 0 | AC115: 2 | AD115: 0 | AE115: 0 | AF115: 0 | AG115: 0 | AH115: 0 | AI115: 0 | AJ115: 0 | AK115: 0 | AL115: 0 | AM115: 0 | AN115: 0 | AO115: 0 | AP115: 0 | AQ115: 18
A116: 116 | D116: 23 | E116: ΤΣΙΓΓΕΡΛΙΩΤΗΣ ΙΩΑΝΝΗΣ του ΒΑΣΙΛΕΙΟΥ | F116: 1 | G116: 1 | H116: 1 | I116: 4 | J116: 0 | K116: 1 | L116: 0 | N116: 0 | O116: 0 | P116: 0 | Q116: 1 | R116: 1 | S116: 1 | T116: 1 | U116: 1 | V116: 3 | W116: 1 | X116: 2 | Y116: 0 | Z116: 5 | AA116: 1 | AC116: 2 | AD116: 0 | AE116: 1 | AF116: 0 | AG116: 3 | AH116: 1 | AI116: 9 | AJ116: 5 | AK116: 3 | AL116: 1 | AM116: 1 | AN116: 1 | AO116: 0 | AP116: 0 | AQ116: 52
A117: 117 | D117: 24 | E117: ΦΟΥΝΤΟΥΛΗΣ ΣΤΑΜΑΤΙΟΣ του ΓΕΩΡΓΙΟΥ | F117: 3 | G117: 1 | H117: 4 | I117: 4 | J117: 3 | K117: 0 | L117: 1 | N117: 0 | O117: 1 | P117: 0 | Q117: 2 | R117: 1 | S117: 3 | T117: 1 | U117: 1 | V117: 1 | W117: 2 | X117: 5 | Y117: 1 | Z117: 0 | AA117: 0 | AC117: 0 | AD117: 0 | AE117: 1 | AF117: 0 | AG117: 0 | AH117: 0 | AI117: 0 | AJ117: 0 | AK117: 0 | AL117: 0 | AM117: 0 | AN117: 1 | AO117: 0 | AP117: 0 | AQ117: 36
A118: 118 | D118: 25 | E118: ΦΡΑΓΚΑΚΟΥ ΓΡΗΓΟΡΙΑ (ΡΟΥΛΑ) του ΛΑΖΑΡΟΥ | F118: 2 | G118: 0 | H118: 3 | I118: 6 | J118: 0 | K118: 0 | L118: 2 | N118: 2 | O118: 1 | P118: 3 | Q118: 3 | R118: 2 | S118: 4 | T118: 3 | U118: 0 | V118: 0 | W118: 5 | X118: 4 | Y118: 0 | Z118: 4 | AA118: 2 | AC118: 2 | AD118: 2 | AE118: 2 | AF118: 2 | AG118: 4 | AH118: 2 | AI118: 8 | AJ118: 0 | AK118: 6 | AL118: 0 | AM118: 1 | AN118: 0 | AO118: 0 | AP118: 0 | AQ118: 75
A119: 119 | D119: 26 | E119: ΦΡΑΓΚΟΥ ΜΑΡΙΑ του ΘΕΟΔΩΡΟΥ | F119: 0 | G119: 0 | H119: 0 | I119: 1 | J119: 0 | K119: 0 | L119: 0 | N119: 0 | O119: 0 | P119: 0 | Q119: 1 | R119: 0 | S119: 0 | T119: 0 | U119: 0 | V119: 2 | W119: 2 | X119: 1 | Y119: 1 | Z119: 0 | AA119: 2 | AC119: 0 | AD119: 0 | AE119: 0 | AF119: 1 | AG119: 0 | AH119: 0 | AI119: 0 | AJ119: 0 | AK119: 0 | AL119: 0 | AM119: 0 | AN119: 0 | AO119: 0 | AP119: 0 | AQ119: 11
A120: 120 | D120: 27 | E120: ΦΥΤΡΟΣ ΓΕΩΡΓΙΟΣ του ΜΗΝΑ | F120: 0 | G120: 0 | H120: 0 | I120: 0 | J120: 0 | K120: 0 | L120: 0 | N120: 0 | O120: 1 | P120: 0 | Q120: 1 | R120: 0 | S120: 0 | T120: 0 | U120: 0 | V120: 1 | W120: 0 | X120: 7 | Y120: 0 | Z120: 1 | AA120: 1 | AC120: 0 | AD120: 1 | AE120: 1 | AF120: 0 | AG120: 0 | AH120: 0 | AI120: 2 | AJ120: 0 | AK120: 0 | AL120: 0 | AM120: 0 | AN120: 0 | AO120: 0 | AP120: 0 | AQ120: 16
A121: 121 | D121: 28 | E121: ΧΑΛΑΡΗ ΘΕΟΔΩΡΑ του ΣΤΕΦΑΝΟΥ | F121: 0 | G121: 0 | H121: 1 | I121: 0 | J121: 1 | K121: 0 | L121: 0 | N121: 0 | O121: 0 | P121: 1 | Q121: 0 | R121: 1 | S121: 0 | T121: 0 | U121: 0 | V121: 7 | W121: 13 | X121: 11 | Y121: 0 | Z121: 0 | AA121: 0 | AC121: 0 | AD121: 4 | AE121: 5 | AF121: 0 | AG121: 0 | AH121: 1 | AI121: 0 | AJ121: 0 | AK121: 0 | AL121: 3 | AM121: 0 | AN121: 2 | AO121: 0 | AP121: 0 | AQ121: 50
A122: 122 | D122: 29 | E122: ΧΑΛΑΡΗΣ ΣΤΕΦΑΝΟΣ του ΓΕΩΡΓΙΟΥ | F122: 0 | G122: 1 | H122: 0 | I122: 0 | J122: 1 | K122: 1 | L122: 0 | N122: 1 | O122: 1 | P122: 1 | Q122: 0 | R122: 0 | S122: 1 | T122: 0 | U122: 1 | V122: 19 | W122: 35 | X122: 28 | Y122: 3 | Z122: 0 | AA122: 0 | AC122: 1 | AD122: 1 | AE122: 0 | AF122: 0 | AG122: 1 | AH122: 0 | AI122: 0 | AJ122: 0 | AK122: 0 | AL122: 0 | AM122: 0 | AN122: 1 | AO122: 0 | AP122: 0 | AQ122: 97
A123: 123 | D123: 30 | E123: ΧΑΡΑΛΑΜΠΑΚΟΣ ΟΡΕΣΤΗΣ του ΒΑΣΙΛΕΙΟΥ | F123: 5 | G123: 0 | H123: 4 | I123: 5 | J123: 3 | K123: 3 | L123: 1 | N123: 1 | O123: 3 | P123: 2 | Q123: 1 | R123: 1 | S123: 2 | T123: 3 | U123: 2 | V123: 15 | W123: 25 | X123: 28 | Y123: 0 | Z123: 0 | AA123: 2 | AC123: 3 | AD123: 3 | AE123: 11 | AF123: 3 | AG123: 3 | AH123: 4 | AI123: 2 | AJ123: 0 | AK123: 0 | AL123: 0 | AM123: 0 | AN123: 0 | AO123: 0 | AP123: 1 | AQ123: 136
A124: 124 | E124: ΔΗΜΟΤΙΚΗ ΕΝΟΤΗΤΑ ΟΙΑΣ
A125: 125 | D125: 1 | E125: ΓΙΑΚΙΜΙ ΑΛΚΕΝΤ του ΛΟΥΑΝ | F125: 2 | G125: 1 | H125: 2 | I125: 2 | J125: 0 | K125: 1 | L125: 0 | N125: 1 | O125: 1 | P125: 1 | Q125: 1 | R125: 4 | S125: 4 | T125: 2 | U125: 1 | V125: 13 | W125: 6 | X125: 8 | Y125: 0 | Z125: 2 | AA125: 2 | AC125: 0 | AD125: 2 | AE125: 5 | AF125: 0 | AG125: 3 | AH125: 1 | AI125: 6 | AJ125: 2 | AK125: 4 | AL125: 1 | AM125: 1 | AN125: 2 | AO125: 4 | AP125: 2 | AQ125: 87
A126: 126 | D126: 2 | E126: ΣΑΡΒΑΛΗ ΓΕΩΡΓΙΑ του ΘΕΟΔΩΡΟΥ | F126: 3 | G126: 1 | H126: 4 | I126: 2 | J126: 0 | K126: 5 | L126: 1 | N126: 1 | O126: 1 | P126: 2 | Q126: 6 | R126: 3 | S126: 1 | T126: 1 | U126: 0 | V126: 7 | W126: 2 | X126: 7 | Y126: 3 | Z126: 4 | AA126: 0 | AC126: 0 | AD126: 2 | AE126: 3 | AF126: 2 | AG126: 1 | AH126: 1 | AI126: 4 | AJ126: 2 | AK126: 5 | AL126: 0 | AM126: 1 | AN126: 3 | AO126: 0 | AP126: 3 | AQ126: 81
A127: 127 | D127: 3 | E127: ΦΟΥΣΤΕΡΗΣ ΠΑΣΧΑΛΗΣ του ΑΡΤΕΜΙΟΥ | F127: 0 | G127: 1 | H127: 1 | I127: 4 | J127: 2 | K127: 2 | L127: 0 | N127: 0 | O127: 3 | P127: 0 | Q127: 0 | R127: 2 | S127: 3 | T127: 1 | U127: 0 | V127: 7 | W127: 44 | X127: 9 | Y127: 2 | Z127: 1 | AA127: 0 | AC127: 2 | AD127: 2 | AE127: 6 | AF127: 1 | AG127: 1 | AH127: 0 | AI127: 2 | AJ127: 0 | AK127: 3 | AL127: 2 | AM127: 0 | AN127: 2 | AO127: 1 | AP127: 0 | AQ127: 104
A128: 128 | B128: ΜΑΖΙ ΑΛΛΑΖΟΥΜΕ ΣΑΝΤΟΡΙΝΗ – ΘΗΡΑΣΙΑ | E128: ΔΗΜΟΤΙΚΗ ΕΝΟΤΗΤΑ ΘΗΡΑΣ | F128: 80 | G128: 62 | H128: 62 | I128: 54 | J128: 67 | K128: 84 | L128: 20 | N128: 91 | O128: 92 | P128: 123 | Q128: 63 | R128: 74 | S128: 84 | T128: 127 | U128: 97 | V128: 74 | W128: 102 | X128: 91 | Y128: 63 | Z128: 26 | AA128: 29 | AC128: 58 | AD128: 37 | AE128: 62 | AF128: 56 | AG128: 28 | AH128: 28 | AI128: 45 | AJ128: 30 | AK128: 24 | AL128: 30 | AM128: 26 | AN128: 30 | AO128: 14 | AP128: 4 | AQ128: =SUM(F128:AP128) -> 2037
A129: 129 | D129: 1 | E129: ΑΛΕΦΡΑΓΚΗΣ ΑΝΤΩΝΙΟΣ του ΑΡΤΕMIΟΥ | F129: 11 | G129: 3 | H129: 4 | I129: 3 | J129: 4 | K129: 3 | L129: 2 | N129: 1 | O129: 0 | P129: 0 | Q129: 2 | R129: 2 | S129: 2 | T129: 0 | U129: 1 | V129: 1 | W129: 2 | X129: 2 | Y129: 1 | Z129: 0 | AA129: 0 | AC129: 0 | AD129: 1 | AE129: 3 | AF129: 1 | AG129: 0 | AH129: 1 | AI129: 0 | AJ129: 0 | AK129: 0 | AL129: 1 | AM129: 0 | AN129: 0 | AO129: 0 | AP129: 0 | AQ129: =SUM(F129:AP129) -> 51
A130: 130 | D130: 2 | E130: ΑΡΒΑΝΙΤΗΣ ΗΛΙΑΣ του ΕΜΜΑΝΟYHΛ (ΤΟΥΡΚΙ) | F130: 0 | G130: 0 | H130: 22 | I130: 1 | J130: 1 | K130: 0 | L130: 0 | N130: 1 | O130: 0 | P130: 0 | Q130: 2 | R130: 6 | S130: 6 | T130: 1 | U130: 0 | V130: 3 | W130: 1 | X130: 0 | Y130: 2 | Z130: 0 | AA130: 0 | AC130: 0 | AD130: 3 | AE130: 1 | AF130: 0 | AG130: 0 | AH130: 1 | AI130: 0 | AJ130: 0 | AK130: 0 | AL130: 0 | AM130: 0 | AN130: 1 | AO130: 0 | AP130: 0 | AQ130: 52
A131: 131 | D131: 3 | E131: ΒΑΜΒΑΚΟΥΣΗ ΣΑΒΒΙΝΑ‑ΕΛΕΥΘΕΡΙΑ του ΑΝΤΩNIOΥ | F131: 2 | G131: 0 | H131: 2 | I131: 2 | J131: 2 | K131: 1 | L131: 0 | N131: 0 | O131: 1 | P131: 1 | Q131: 3 | R131: 1 | S131: 2 | T131: 1 | U131: 0 | V131: 0 | W131: 2 | X131: 2 | Y131: 0 | Z131: 11 | AA131: 6 | AC131: 0 | AD131: 0 | AE131: 2 | AF131: 0 | AG131: 0 | AH131: 1 | AI131: 1 | AJ131: 0 | AK131: 2 | AL131: 0 | AM131: 0 | AN131: 0 | AO131: 0 | AP131: 0 | AQ131: 45
A132: 132 | D132: 4 | E132: ΒΑΣΣΑΛΟΣ ΛΟΥΚΑΣ του ΦΡΑΤZEΣΚΟΥ | F132: 5 | G132: 2 | H132: 0 | I132: 4 | J132: 0 | K132: 1 | L132: 0 | N132: 8 | O132: 4 | P132: 2 | Q132: 9 | R132: 2 | S132: 4 | T132: 8 | U132: 1 | V132: 10 | W132: 7 | X132: 6 | Y132: 5 | Z132: 1 | AA132: 1 | AC132: 9 | AD132: 3 | AE132: 3 | AF132: 21 | AG132: 15 | AH132: 2 | AI132: 12 | AJ132: 6 | AK132: 5 | AL132: 0 | AM132: 0 | AN132: 0 | AO132: 1 | AP132: 0 | AQ132: 157
A133: 133 | D133: 5 | E133: ΓΙΑΝΝΑΚΙΔΟΥ ΧΑΡΑΛΑΜΠΙΑ του ΧΡΗΣΤΟΥ (ΧΑΡΑ) | F133: 3 | G133: 0 | H133: 1 | I133: 3 | J133: 2 | K133: 1 | L133: 0 | N133: 8 | O133: 11 | P133: 11 | Q133: 1 | R133: 3 | S133: 1 | T133: 4 | U133: 7 | V133: 9 | W133: 4 | X133: 2 | Y133: 7 | Z133: 1 | AA133: 1 | AC133: 0 | AD133: 0 | AE133: 0 | AF133: 0 | AG133: 1 | AH133: 0 | AI133: 0 | AJ133: 0 | AK133: 0 | AL133: 0 | AM133: 0 | AN133: 2 | AO133: 0 | AP133: 0 | AQ133: 83
A134: 134 | D134: 6 | E134: ΓΡΑΤΣΙΑΣ ΙΩΑΝΝΗΣ του ΓΕΩΡΓΙΟΥ | F134: 39 | G134: 21 | H134: 26 | I134: 20 | J134: 11 | K134: 30 | L134: 6 | N134: 27 | O134: 17 | P134: 25 | Q134: 9 | R134: 19 | S134: 16 | T134: 55 | U134: 39 | V134: 25 | W134: 21 | X134: 23 | Y134: 19 | Z134: 3 | AA134: 4 | AC134: 4 | AD134: 1 | AE134: 2 | AF134: 6 | AG134: 3 | AH134: 3 | AI134: 11 | AJ134: 4 | AK134: 2 | AL134: 5 | AM134: 7 | AN134: 9 | AO134: 0 | AP134: 0 | AQ134: 512
A135: 135 | D135: 7 | E135: ΔΑΜΙΓΟΥ ΜΑΡΙΑ του ΝΙΚΟΛΑΟΥ | F135: 0 | G135: 1 | H135: 3 | I135: 3 | J135: 5 | K135: 0 | L135: 9 | N135: 1 | O135: 0 | P135: 0 | Q135: 1 | R135: 2 | S135: 0 | T135: 1 | U135: 2 | V135: 1 | W135: 1 | X135: 3 | Y135: 0 | Z135: 0 | AA135: 0 | AC135: 0 | AD135: 0 | AE135: 0 | AF135: 0 | AG135: 0 | AH135: 0 | AI135: 2 | AJ135: 0 | AK135: 0 | AL135: 2 | AM135: 0 | AN135: 0 | AO135: 0 | AP135: 0 | AQ135: 37
A136: 136 | D136: 8 | E136: ΔΡΟΣΟΣ ΣΠΥΡΙΔΩΝ του ΣΤΑΥΡΟΥ | F136: 24 | G136: 7 | H136: 23 | I136: 8 | J136: 17 | K136: 5 | L136: 1 | N136: 70 | O136: 80 | P136: 96 | Q136: 10 | R136: 8 | S136: 14 | T136: 24 | U136: 6 | V136: 10 | W136: 10 | X136: 2 | Y136: 8 | Z136: 2 | AA136: 1 | AC136: 29 | AD136: 12 | AE136: 18 | AF136: 9 | AG136: 4 | AH136: 8 | AI136: 5 | AJ136: 7 | AK136: 6 | AL136: 2 | AM136: 6 | AN136: 0 | AO136: 2 | AP136: 1 | AQ136: 535
A137: 137 | D137: 9 | E137: ΖΑΜΠΕΛΗ ΕΙΡΗΝΗ του ΑΝΑΣΤΑΣΙΟΥ | F137: 2 | G137: 13 | H137: 3 | I137: 0 | J137: 9 | K137: 1 | L137: 2 | N137: 2 | O137: 0 | P137: 0 | Q137: 1 | R137: 0 | S137: 1 | T137: 0 | U137: 1 | V137: 2 | W137: 1 | X137: 1 | Y137: 0 | Z137: 0 | AA137: 1 | AC137: 1 | AD137: 0 | AE137: 0 | AF137: 0 | AG137: 0 | AH137: 3 | AI137: 0 | AJ137: 0 | AK137: 0 | AL137: 1 | AM137: 1 | AN137: 1 | AO137: 0 | AP137: 0 | AQ137: 47
A138: 138 | D138: 10 | E138: ΖΑΜΠΕΛΗΣ ΓΕΩΡΓΙΟΣ του ΝΙΚΟΛΑΟΥ | F138: 1 | G138: 0 | H138: 0 | I138: 1 | J138: 3 | K138: 1 | L138: 1 | N138: 0 | O138: 1 | P138: 0 | Q138: 2 | R138: 1 | S138: 0 | T138: 1 | U138: 4 | V138: 0 | W138: 1 | X138: 0 | Y138: 1 | Z138: 2 | AA138: 0 | AC138: 8 | AD138: 2 | AE138: 2 | AF138: 6 | AG138: 2 | AH138: 6 | AI138: 8 | AJ138: 6 | AK138: 2 | AL138: 0 | AM138: 0 | AN138: 0 | AO138: 0 | AP138: 0 | AQ138: 62
A139: 139 | D139: 11 | E139: ΖΩΤΟΥ ΑΝΤΩΝΙΑ του ΙΩΑΝΝΗ (ΤΟΝΙΑ) | F139: 8 | G139: 5 | H139: 0 | I139: 4 | J139: 2 | K139: 1 | L139: 0 | N139: 4 | O139: 1 | P139: 1 | Q139: 0 | R139: 0 | S139: 0 | T139: 0 | U139: 1 | V139: 1 | W139: 1 | X139: 0 | Y139: 1 | Z139: 0 | AA139: 0 | AC139: 0 | AD139: 0 | AE139: 0 | AF139: 0 | AG139: 0 | AH139: 0 | AI139: 1 | AJ139: 0 | AK139: 1 | AL139: 0 | AM139: 0 | AN139: 0 | AO139: 0 | AP139: 0 | AQ139: 32
A140: 140 | D140: 12 | E140: ΚΑΛΑΪΔΟΠΟΥΛΟΥ ΚΥΡΙΑΚΗ του ΜΙΧΑΗΛ (ΚΑΙΤΗ) | F140: 1 | G140: 1 | H140: 0 | I140: 1 | J140: 1 | K140: 1 | L140: 1 | N140: 6 | O140: 1 | P140: 2 | Q140: 0 | R140: 1 | S140: 0 | T140: 1 | U140: 1 | V140: 0 | W140: 1 | X140: 3 | Y140: 0 | Z140: 0 | AA140: 0 | AC140: 0 | AD140: 0 | AE140: 0 | AF140: 1 | AG140: 0 | AH140: 1 | AI140: 1 | AJ140: 1 | AK140: 0 | AL140: 0 | AM140: 0 | AN140: 0 | AO140: 0 | AP140: 0 | AQ140: 26
A141: 141 | D141: 13 | E141: ΚΑΛΟΥΔΗΣ ΘΕΟΔΩΡΟΣ του ΕΛΕΥΘΕΡΙΟΥ | F141: 1 | G141: 9 | H141: 1 | I141: 1 | J141: 1 | K141: 9 | L141: 5 | N141: 5 | O141: 4 | P141: 3 | Q141: 4 | R141: 12 | S141: 11 | T141: 18 | U141: 13 | V141: 5 | W141: 11 | X141: 7 | Y141: 2 | Z141: 2 | AA141: 2 | AC141: 1 | AD141: 2 | AE141: 1 | AF141: 0 | AG141: 0 | AH141: 3 | AI141: 0 | AJ141: 1 | AK141: 2 | AL141: 0 | AM141: 0 | AN141: 0 | AO141: 0 | AP141: 0 | AQ141: 136
A142: 142 | D142: 14 | E142: ΚΑΝΤΖΕΛΗΣ ΧΡΗΣΤΟΣ του ΗΛΙΑ | F142: 1 | G142: 0 | H142: 3 | I142: 5 | J142: 3 | K142: 4 | L142: 0 | N142: 3 | O142: 5 | P142: 4 | Q142: 3 | R142: 1 | S142: 0 | T142: 7 | U142: 4 | V142: 15 | W142: 14 | X142: 11 | Y142: 11 | Z142: 0 | AA142: 3 | AC142: 0 | AD142: 0 | AE142: 4 | AF142: 0 | AG142: 0 | AH142: 1 | AI142: 4 | AJ142: 2 | AK142: 0 | AL142: 2 | AM142: 0 | AN142: 3 | AO142: 0 | AP142: 0 | AQ142: 113
A143: 143 | D143: 15 | E143: ΚΑΤΣΙΠΗΣ ΑΝΤΩΝΙΟΣ του ΓΕΩΡΓΙΟΥ | F143: 10 | G143: 15 | H143: 5 | I143: 5 | J143: 9 | K143: 4 | L143: 0 | N143: 0 | O143: 1 | P143: 2 | Q143: 8 | R143: 10 | S143: 4 | T143: 9 | U143: 4 | V143: 0 | W143: 0 | X143: 3 | Y143: 2 | Z143: 3 | AA143: 2 | AC143: 10 | AD143: 1 | AE143: 2 | AF143: 19 | AG143: 6 | AH143: 3 | AI143: 16 | AJ143: 7 | AK143: 4 | AL143: 0 | AM143: 0 | AN143: 0 | AO143: 0 | AP143: 0 | AQ143: 164
A144: 144 | D144: 16 | E144: ΚΑΤΣΙΠΗΣ ΕΜΜΑΝΟΥΗΛ του ΝΙΚΟΛΑΟΥ (ΣΠΕΗΣ) | F144: 2 | G144: 0 | H144: 1 | I144: 2 | J144: 0 | K144: 0 | L144: 0 | N144: 0 | O144: 1 | P144: 1 | Q144: 2 | R144: 1 | S144: 0 | T144: 0 | U144: 1 | V144: 0 | W144: 0 | X144: 1 | Y144: 0 | Z144: 3 | AA144: 1 | AC144: 3 | AD144: 0 | AE144: 0 | AF144: 12 | AG144: 3 | AH144: 4 | AI144: 12 | AJ144: 4 | AK144: 5 | AL144: 0 | AM144: 0 | AN144: 0 | AO144: 0 | AP144: 0 | AQ144: 59
A145: 145 | D145: 17 | E145: ΚΑΤΣΙΠΗΣ ΣΑΜΨΩΝ του ΙΑΚΩΒΟΥ | F145: 6 | G145: 2 | H145: 1 | I145: 4 | J145: 8 | K145: 6 | L145: 2 | N145: 3 | O145: 2 | P145: 0 | Q145: 2 | R145: 2 | S145: 4 | T145: 4 | U145: 4 | V145: 3 | W145: 2 | X145: 1 | Y145: 6 | Z145: 9 | AA145: 7 | AC145: 11 | AD145: 1 | AE145: 4 | AF145: 8 | AG145: 0 | AH145: 7 | AI145: 5 | AJ145: 9 | AK145: 4 | AL145: 0 | AM145: 0 | AN145: 0 | AO145: 0 | AP145: 0 | AQ145: 127
A146: 146 | D146: 18 | E146: ΚΟΥΡΟΥΠΗ ΑΙΚΑΤΕΡΙΝΗ του ΝΙΚΟΛΑΟΥ | F146: 2 | G146: 1 | H146: 2 | I146: 0 | J146: 2 | K146: 1 | L146: 0 | N146: 1 | O146: 0 | P146: 0 | Q146: 2 | R146: 0 | S146: 2 | T146: 0 | U146: 0 | V146: 2 | W146: 0 | X146: 0 | Y146: 0 | Z146: 0 | AA146: 0 | AC146: 0 | AD146: 0 | AE146: 0 | AF146: 0 | AG146: 0 | AH146: 0 | AI146: 0 | AJ146: 0 | AK146: 2 | AL146: 0 | AM146: 1 | AN146: 0 | AO146: 0 | AP146: 0 | AQ146: 18
A147: 147 | D147: 19 | E147: ΛΙΓΝΟΥ ΠΑΡΑΣΚΕΥΗ του ΕΜΜΑΝΟΥΗΛ | F147: 4 | G147: 7 | H147: 9 | I147: 6 | J147: 2 | K147: 12 | L147: 0 | N147: 3 | O147: 3 | P147: 2 | Q147: 0 | R147: 2 | S147: 7 | T147: 37 | U147: 23 | V147: 7 | W147: 4 | X147: 0 | Y147: 4 | Z147: 1 | AA147: 2 | AC147: 3 | AD147: 3 | AE147: 4 | AF147: 1 | AG147: 0 | AH147: 2 | AI147: 0 | AJ147: 3 | AK147: 3 | AL147: 1 | AM147: 0 | AN147: 1 | AO147: 0 | AP147: 0 | AQ147: 156
A148: 148 | D148: 20 | E148: ΜΑΪΝΑΣ ΙΩΑΝΝΗΣ του ΝΙΚΟΛΑΟΥ | F148: 7 | G148: 9 | H148: 6 | I148: 6 | J148: 6 | K148: 31 | L148: 3 | N148: 7 | O148: 6 | P148: 14 | Q148: 13 | R148: 11 | S148: 17 | T148: 55 | U148: 43 | V148: 34 | W148: 71 | X148: 49 | Y148: 8 | Z148: 3 | AA148: 6 | AC148: 5 | AD148: 3 | AE148: 6 | AF148: 24 | AG148: 11 | AH148: 8 | AI148: 3 | AJ148: 6 | AK148: 6 | AL148: 2 | AM148: 2 | AN148: 3 | AO148: 1 | AP148: 2 | AQ148: 487
A149: 149 | D149: 21 | E149: ΝΟΜΙΚΟΣ ΕΥΘΥΜΙΟΣ του ΓΕΩΡΓΙΟΥ | F149: 1 | G149: 1 | H149: 3 | I149: 1 | J149: 3 | K149: 0 | L149: 0 | N149: 1 | O149: 4 | P149: 1 | Q149: 2 | R149: 0 | S149: 2 | T149: 3 | U149: 3 | V149: 2 | W149: 0 | X149: 2 | Y149: 0 | Z149: 1 | AA149: 2 | AC149: 20 | AD149: 2 | AE149: 4 | AF149: 5 | AG149: 0 | AH149: 0 | AI149: 2 | AJ149: 2 | AK149: 1 | AL149: 0 | AM149: 0 | AN149: 0 | AO149: 0 | AP149: 0 | AQ149: 68
A150: 150 | D150: 22 | E150: ΝΟΜΙΚΟΥ ΚΥΡΙΑΚΗ του ΙΩΑΝΝΗ (ΚΕΛΛΥ) | F150: 0 | G150: 2 | H150: 1 | I150: 1 | J150: 1 | K150: 2 | L150: 0 | N150: 3 | O150: 3 | P150: 2 | Q150: 0 | R150: 2 | S150: 2 | T150: 1 | U150: 1 | V150: 0 | W150: 0 | X150: 0 | Y150: 0 | Z150: 1 | AA150: 0 | AC150: 5 | AD150: 6 | AE150: 6 | AF150: 3 | AG150: 1 | AH150: 1 | AI150: 4 | AJ150: 7 | AK150: 1 | AL150: 0 | AM150: 0 | AN150: 0 | AO150: 0 | AP150: 0 | AQ150: 56
A151: 151 | D151: 23 | E151: ΝΟΜΙΚΟΥ ΜΑΡΙΑ του ΜΑΡΚΟΥ (ΜΟΔΑ ΜΑΡΙΑ) | F151: 10 | G151: 9 | H151: 10 | I151: 10 | J151: 15 | K151: 4 | L151: 3 | N151: 2 | O151: 2 | P151: 0 | Q151: 0 | R151: 7 | S151: 2 | T151: 5 | U151: 2 | V151: 0 | W151: 0 | X151: 1 | Y151: 1 | Z151: 1 | AA151: 3 | AC151: 7 | AD151: 0 | AE151: 2 | AF151: 5 | AG151: 0 | AH151: 2 | AI151: 13 | AJ151: 2 | AK151: 3 | AL151: 0 | AM151: 0 | AN151: 0 | AO151: 0 | AP151: 0 | AQ151: 121
A152: 152 | D152: 24 | E152: ΠΑΓΚΑΛΙΔΗΣ ΚΥΡΟΣ του ΧΡΗΣΤΟΥ | F152: 3 | G152: 1 | H152: 3 | I152: 6 | J152: 4 | K152: 12 | L152: 0 | N152: 7 | O152: 0 | P152: 6 | Q152: 8 | R152: 4 | S152: 3 | T152: 4 | U152: 2 | V152: 10 | W152: 2 | X152: 2 | Y152: 13 | Z152: 0 | AA152: 0 | AC152: 2 | AD152: 0 | AE152: 3 | AF152: 0 | AG152: 1 | AH152: 0 | AI152: 2 | AJ152: 1 | AK152: 0 | AL152: 1 | AM152: 0 | AN152: 2 | AO152: 0 | AP152: 0 | AQ152: 102
A153: 153 | D153: 25 | E153: ΠΑΠΑΓΙΑΝΝΟΠΟΥΛΟΥ ΝΕΦΕΛΗ ΕΥΑΓΓΕΛΙΑ του ΓΕΩΡΓΙΟΥ | F153: 2 | G153: 4 | H153: 4 | I153: 0 | J153: 0 | K153: 0 | L153: 0 | N153: 1 | O153: 3 | P153: 1 | Q153: 0 | R153: 2 | S153: 2 | T153: 0 | U153: 0 | V153: 4 | W153: 1 | X153: 1 | Y153: 2 | Z153: 0 | AA153: 1 | AC153: 1 | AD153: 1 | AE153: 0 | AF153: 0 | AG153: 0 | AH153: 0 | AI153: 0 | AJ153: 2 | AK153: 1 | AL153: 3 | AM153: 0 | AN153: 1 | AO153: 0 | AP153: 0 | AQ153: 37
A154: 154 | D154: 26 | E154: ΠΟΥΛΗΣ ΧΑΡΑΛΑΜΠΟΣ του ΦΑΝΟΥΡΙΟΥ | F154: 0 | G154: 0 | H154: 0 | I154: 0 | J154: 1 | K154: 0 | L154: 1 | N154: 0 | O154: 1 | P154: 1 | Q154: 1 | R154: 4 | S154: 2 | T154: 1 | U154: 1 | V154: 6 | W154: 11 | X154: 25 | Y154: 4 | Z154: 2 | AA154: 2 | AC154: 0 | AD154: 1 | AE154: 1 | AF154: 3 | AG154: 0 | AH154: 3 | AI154: 1 | AJ154: 0 | AK154: 2 | AL154: 0 | AM154: 1 | AN154: 0 | AO154: 0 | AP154: 0 | AQ154: 75
A155: 155 | D155: 27 | E155: ΠΡΕΒΟΛΗ ΑΙΚΑΤΕΡΙΝΗ του ΜΙΧΑΗΛ (ΣΤΑΚΟΥ) | F155: 0 | G155: 1 | H155: 0 | I155: 0 | J155: 0 | K155: 1 | L155: 0 | N155: 0 | O155: 0 | P155: 4 | Q155: 0 | R155: 0 | S155: 1 | T155: 1 | U155: 0 | V155: 0 | W155: 1 | X155: 0 | Y155: 11 | Z155: 0 | AA155: 0 | AC155: 0 | AD155: 0 | AE155: 0 | AF155: 0 | AG155: 0 | AH155: 0 | AI155: 0 | AJ155: 0 | AK155: 0 | AL155: 0 | AM155: 0 | AN155: 0 | AO155: 0 | AP155: 0 | AQ155: 20
A156: 156 | D156: 28 | E156: ΡΟΥΣΣΟΣ ΓΕΩΡΓΙΟΣ του ΑΡΤΕΜΙΟΥ (ΑΡΑΠΗΣ) | F156: 1 | G156: 0 | H156: 3 | I156: 6 | J156: 3 | K156: 2 | L156: 1 | N156: 4 | O156: 2 | P156: 0 | Q156: 0 | R156: 3 | S156: 0 | T156: 3 | U156: 4 | V156: 0 | W156: 1 | X156: 2 | Y156: 28 | Z156: 0 | AA156: 1 | AC156: 2 | AD156: 0 | AE156: 1 | AF156: 1 | AG156: 0 | AH156: 0 | AI156: 1 | AJ156: 0 | AK156: 2 | AL156: 0 | AM156: 0 | AN156: 0 | AO156: 0 | AP156: 0 | AQ156: 71
A157: 157 | D157: 29 | E157: ΡΟΥΣΣΟΣ ΓΕΩΡΓΙΟΣ του ΠΑΝΑΓΙΩΤΗ | F157: 19 | G157: 13 | H157: 3 | I157: 0 | J157: 9 | K157: 3 | L157: 1 | N157: 11 | O157: 4 | P157: 15 | Q157: 2 | R157: 8 | S157: 1 | T157: 27 | U157: 14 | V157: 5 | W157: 3 | X157: 5 | Y157: 3 | Z157: 0 | AA157: 0 | AC157: 5 | AD157: 0 | AE157: 2 | AF157: 1 | AG157: 0 | AH157: 2 | AI157: 0 | AJ157: 0 | AK157: 1 | AL157: 1 | AM157: 1 | AN157: 0 | AO157: 1 | AP157: 1 | AQ157: 161
A158: 158 | D158: 30 | E158: ΣΙΓΑΛΑΣ ΕΠΙΦΑΝΙΟΣ του ΑΝΤΩΝΙΟΥ | F158: 6 | G158: 5 | H158: 4 | I158: 3 | J158: 2 | K158: 10 | L158: 4 | N158: 3 | O158: 9 | P158: 1 | Q158: 9 | R158: 6 | S158: 16 | T158: 32 | U158: 39 | V158: 1 | W158: 4 | X158: 9 | Y158: 3 | Z158: 5 | AA158: 3 | AC158: 15 | AD158: 31 | AE158: 38 | AF158: 17 | AG158: 6 | AH158: 3 | AI158: 7 | AJ158: 2 | AK158: 4 | AL158: 0 | AM158: 1 | AN158: 0 | AO158: 0 | AP158: 0 | AQ158: 298
A159: 159 | D159: 31 | E159: ΦΟΥΣΤΕΡΗ ΜΑΡΙΑΝΝΑ του ΕΛΕΥΘΕΡΙΟΥ | F159: 1 | G159: 0 | H159: 1 | I159: 1 | J159: 2 | K159: 1 | L159: 0 | N159: 0 | O159: 0 | P159: 1 | Q159: 3 | R159: 24 | S159: 24 | T159: 2 | U159: 2 | V159: 0 | W159: 1 | X159: 2 | Y159: 2 | Z159: 0 | AA159: 0 | AC159: 0 | AD159: 0 | AE159: 1 | AF159: 0 | AG159: 0 | AH159: 0 | AI159: 0 | AJ159: 0 | AK159: 0 | AL159: 0 | AM159: 0 | AN159: 0 | AO159: 0 | AP159: 0 | AQ159: 68
A160: 160 | D160: 32 | E160: ΦΟΥΣΤΕΡΗΣ ΙΩΑΝΝΗΣ του ΓΕΩΡΓΙΟΥ | F160: 4 | G160: 1 | H160: 0 | I160: 0 | J160: 3 | K160: 1 | L160: 0 | N160: 0 | O160: 0 | P160: 0 | Q160: 3 | R160: 3 | S160: 1 | T160: 2 | U160: 2 | V160: 0 | W160: 1 | X160: 0 | Y160: 0 | Z160: 3 | AA160: 6 | AC160: 0 | AD160: 1 | AE160: 0 | AF160: 0 | AG160: 0 | AH160: 1 | AI160: 0 | AJ160: 0 | AK160: 1 | AL160: 0 | AM160: 0 | AN160: 0 | AO160: 0 | AP160: 0 | AQ160: 33
A161: 161 | D161: 33 | E161: ΦΟΥΣΤΕΡΗΣ ΙΩΑΝΝΗΣ του ΕΥΑΓΓΕΛΟΥ | F161: 1 | G161: 1 | H161: 2 | I161: 0 | J161: 0 | K161: 3 | L161: 1 | N161: 2 | O161: 2 | P161: 0 | Q161: 9 | R161: 15 | S161: 36 | T161: 3 | U161: 4 | V161: 4 | W161: 8 | X161: 3 | Y161: 1 | Z161: 2 | AA161: 1 | AC161: 0 | AD161: 0 | AE161: 1 | AF161: 1 | AG161: 0 | AH161: 0 | AI161: 1 | AJ161: 1 | AK161: 0 | AL161: 1 | AM161: 0 | AN161: 1 | AO161: 0 | AP161: 0 | AQ161: 104
A162: 162 | D162: 34 | E162: ΧΑΛΑΡΗ ΜΑΡΙΑ του ΑΝΤΩΝΙΟΥ | F162: 1 | G162: 2 | H162: 0 | I162: 1 | J162: 0 | K162: 11 | L162: 0 | N162: 2 | O162: 0 | P162: 1 | Q162: 2 | R162: 1 | S162: 0 | T162: 1 | U162: 1 | V162: 0 | W162: 1 | X162: 1 | Y162: 0 | Z162: 1 | AA162: 0 | AC162: 0 | AD162: 0 | AE162: 0 | AF162: 1 | AG162: 1 | AH162: 0 | AI162: 0 | AJ162: 0 | AK162: 1 | AL162: 1 | AM162: 0 | AN162: 2 | AO162: 0 | AP162: 0 | AQ162: 32
A163: 163 | D163: 35 | E163: ΧΑΛΑΡΗΣ ΑΝΤΩΝΙΟΣ του ΝΙΚΗΤΑ (ΣΚΑΡΑΜΑΓΚΑΣ) | F163: 9 | G163: 6 | H163: 5 | I163: 3 | J163: 4 | K163: 22 | L163: 2 | N163: 23 | O163: 31 | P163: 48 | Q163: 9 | R163: 11 | S163: 6 | T163: 9 | U163: 4 | V163: 13 | W163: 13 | X163: 8 | Y163: 2 | Z163: 1 | AA163: 0 | AC163: 1 | AD163: 3 | AE163: 0 | AF163: 2 | AG163: 0 | AH163: 3 | AI163: 1 | AJ163: 1 | AK163: 0 | AL163: 1 | AM163: 1 | AN163: 1 | AO163: 0 | AP163: 0 | AQ163: 243
A164: 164 | D164: 36 | E164: ΧΗΤΑΣ ΡΕΝΟΣ του ΑΘΑΝΑΣΙΟΥ | F164: 11 | G164: 6 | H164: 2 | I164: 4 | J164: 8 | K164: 5 | L164: 0 | N164: 24 | O164: 57 | P164: 52 | Q164: 6 | R164: 3 | S164: 7 | T164: 9 | U164: 3 | V164: 2 | W164: 5 | X164: 1 | Y164: 5 | Z164: 1 | AA164: 2 | AC164: 1 | AD164: 3 | AE164: 2 | AF164: 1 | AG164: 1 | AH164: 1 | AI164: 0 | AJ164: 0 | AK164: 0 | AL164: 0 | AM164: 2 | AN164: 0 | AO164: 1 | AP164: 0 | AQ164: 225
A165: 165 | E165: ΔΗΜΟΤΙΚΗ ΕΝΟΤΗΤΑ ΟΙΑΣ
A166: 166 | D166: 1 | E166: ΚΑΡΡΑΣ ΜΙΧΑΗΛ του ΧΡΗΣΤΟΥ | F166: 4 | G166: 2 | H166: 6 | I166: 4 | J166: 5 | K166: 16 | L166: 0 | N166: 1 | O166: 7 | P166: 7 | Q166: 5 | R166: 9 | S166: 7 | T166: 9 | U166: 3 | V166: 3 | W166: 8 | X166: 5 | Y166: 3 | Z166: 2 | AA166: 1 | AC166: 3 | AD166: 2 | AE166: 0 | AF166: 17 | AG166: 1 | AH166: 1 | AI166: 7 | AJ166: 1 | AK166: 5 | AL166: 10 | AM166: 14 | AN166: 13 | AO166: 1 | AP166: 0 | AQ166: =SUM(F166:AP166) -> 182
A167: 167 | D167: 2 | E167: ΜΑΡΚΟΖΑΝΕΣ ΙΩΑΝΝΗΣ του ΓΕΩΡΓΙΟΥ | F167: 11 | G167: 5 | H167: 6 | I167: 8 | J167: 8 | K167: 10 | L167: 1 | N167: 25 | O167: 33 | P167: 34 | Q167: 11 | R167: 10 | S167: 10 | T167: 10 | U167: 7 | V167: 1 | W167: 8 | X167: 11 | Y167: 19 | Z167: 0 | AA167: 3 | AC167: 6 | AD167: 2 | AE167: 3 | AF167: 9 | AG167: 3 | AH167: 3 | AI167: 5 | AJ167: 3 | AK167: 2 | AL167: 1 | AM167: 2 | AN167: 2 | AO167: 0 | AP167: 0 | AQ167: 272
A168: 168 | D168: 3 | E168: ΜΟΥΤΣΑΤΣΟΥ ΚΥΡΙΑΚΗ του ΓΕΩΡΓΙΟΥ (ΚΙΚΗ) | F168: 9 | G168: 7 | H168: 3 | I168: 2 | J168: 5 | K168: 6 | L168: 1 | N168: 5 | O168: 12 | P168: 8 | Q168: 9 | R168: 7 | S168: 12 | T168: 41 | U168: 11 | V168: 4 | W168: 9 | X168: 3 | Y168: 3 | Z168: 1 | AA168: 0 | AC168: 6 | AD168: 0 | AE168: 2 | AF168: 1 | AG168: 0 | AH168: 2 | AI168: 2 | AJ168: 6 | AK168: 2 | AL168: 6 | AM168: 2 | AN168: 6 | AO168: 0 | AP168: 0 | AQ168: 193
A169: 169 | D169: 4 | E169: ΣΟΡΩΤΟΣ ΙΩΑΝΝΗΣ του ΑΝΑΡΓΥΡΟΥ | F169: 20 | G169: 19 | H169: 9 | I169: 6 | J169: 23 | K169: 19 | L169: 11 | N169: 19 | O169: 22 | P169: 24 | Q169: 4 | R169: 11 | S169: 12 | T169: 29 | U169: 25 | V169: 19 | W169: 13 | X169: 6 | Y169: 2 | Z169: 7 | AA169: 5 | AC169: 14 | AD169: 8 | AE169: 13 | AF169: 10 | AG169: 8 | AH169: 7 | AI169: 7 | AJ169: 7 | AK169: 3 | AL169: 2 | AM169: 3 | AN169: 1 | AO169: 0 | AP169: 2 | AQ169: 390
A170: 170 | D170: 5 | E170: ΣΥΡΙΓΟΥ ΑΝΝΑ του ΙΑΚΩΒΟΥ | F170: 4 | G170: 1 | H170: 2 | I170: 2 | J170: 3 | K170: 5 | L170: 1 | N170: 2 | O170: 1 | P170: 6 | Q170: 3 | R170: 5 | S170: 0 | T170: 2 | U170: 6 | V170: 3 | W170: 4 | X170: 1 | Y170: 5 | Z170: 3 | AA170: 1 | AC170: 7 | AE170: 4 | AF170: 2 | AG170: 2 | AH170: 2 | AI170: 2 | AJ170: 0 | AK170: 5 | AL170: 3 | AM170: 1 | AN170: 3 | AO170: 3 | AP170: 2 | AQ170: 96
A171: 171 | B171: ΤΩΡΑ! Για τη Σαντορίνη και τη Θηρασιά | E171: ΔΗΜΟΤΙΚΗ ΕΝΟΤΗΤΑ ΘΗΡΑΣ | F171: 59 | G171: 74 | H171: 72 | I171: 72 | J171: 51 | K171: 85 | L171: 31 | N171: 53 | O171: 58 | P171: 64 | Q171: 49 | R171: 50 | S171: 50 | T171: 43 | U171: 27 | V171: 56 | W171: 57 | X171: 46 | Y171: 27 | Z171: 41 | AA171: 64 | AC171: 13 | AD171: 23 | AE171: 36 | AF171: 22 | AG171: 21 | AH171: 25 | AI171: 18 | AJ171: 27 | AK171: 32 | AL171: 69 | AM171: 79 | AN171: 67 | AO171: 26 | AP171: 31 | AQ171: 1618
A172: 172 | D172: 1 | E172: ΑΓΓΕΛΑΚΗ ΜΑΡΙΑ του ΣΠΥΡΙΔΩΝΟΣ | F172: 7 | G172: 13 | H172: 13 | I172: 6 | J172: 6 | K172: 15 | L172: 3 | N172: 3 | O172: 6 | P172: 9 | Q172: 7 | R172: 5 | S172: 6 | T172: 12 | U172: 5 | V172: 6 | W172: 7 | X172: 4 | Y172: 4 | Z172: 4 | AA172: 7 | AC172: 3 | AD172: 2 | AE172: 4 | AF172: 6 | AG172: 1 | AH172: 2 | AI172: 5 | AJ172: 2 | AK172: 2 | AL172: 3 | AM172: 4 | AN172: 3 | AO172: 1 | AP172: 1 | AQ172: =SUM(F172:AP172) -> 187
A173: 173 | D173: 2 | E173: ΑΛΑΦΟΥΖΟΣ ΒΑΣΙΛΕΙΟΣ του ΑΝΑΣΤΑΣΙΟΥ | F173: 6 | G173: 11 | H173: 10 | I173: 11 | J173: 11 | K173: 14 | L173: 10 | N173: 6 | O173: 13 | P173: 10 | Q173: 7 | R173: 5 | S173: 9 | T173: 8 | U173: 5 | V173: 29 | W173: 28 | X173: 25 | Y173: 7 | Z173: 9 | AA173: 3 | AC173: 3 | AD173: 5 | AE173: 2 | AF173: 3 | AG173: 3 | AH173: 2 | AI173: 0 | AJ173: 4 | AK173: 6 | AL173: 14 | AM173: 9 | AN173: 7 | AO173: 0 | AP173: 0 | AQ173: 295
A174: 174 | D174: 3 | E174: ΑΛΕΞΙΟΥ ΝΙΚΟΛΕΤΑ (ΝΙΚΗ) του ΙΠΠΟΚΡΑΤΗ | F174: 3 | G174: 0 | H174: 0 | I174: 0 | J174: 2 | K174: 4 | L174: 1 | N174: 3 | O174: 0 | P174: 0 | Q174: 0 | R174: 0 | S174: 3 | T174: 2 | U174: 0 | V174: 19 | W174: 9 | X174: 10 | Y174: 0 | Z174: 0 | AA174: 6 | AC174: 0 | AD174: 1 | AE174: 0 | AF174: 0 | AG174: 0 | AH174: 1 | AI174: 1 | AJ174: 1 | AK174: 0 | AL174: 0 | AM174: 0 | AN174: 0 | AO174: 0 | AP174: 0 | AQ174: 66
A175: 175 | D175: 4 | E175: ΒΑΛΒΗΣ ΧΑΡΑΛΑΜΠΟΣ (ΨΟΜΟΦΑΣ) του ΝΙΚΟΛΑΟΥ | F175: 1 | G175: 0 | H175: 2 | I175: 0 | J175: 1 | K175: 1 | L175: 0 | N175: 0 | O175: 0 | P175: 0 | Q175: 1 | R175: 2 | S175: 1 | T175: 1 | U175: 1 | V175: 0 | W175: 3 | X175: 1 | Y175: 0 | Z175: 0 | AA175: 1 | AC175: 0 | AD175: 0 | AE175: 0 | AF175: 6 | AG175: 0 | AH175: 0 | AI175: 2 | AJ175: 0 | AK175: 0 | AL175: 0 | AM175: 2 | AN175: 0 | AO175: 0 | AP175: 0 | AQ175: 26
A176: 176 | D176: 5 | E176: ΒΛΑΒΙΑΝΟΥ ΕΙΡΗΝΗ του ΛΟΥΚΑ | F176: 5 | G176: 7 | H176: 7 | I176: 7 | J176: 3 | K176: 50 | L176: 5 | N176: 4 | O176: 4 | P176: 3 | Q176: 4 | R176: 1 | S176: 3 | T176: 1 | U176: 1 | V176: 2 | W176: 4 | X176: 0 | Y176: 4 | Z176: 4 | AA176: 2 | AC176: 1 | AD176: 1 | AE176: 0 | AF176: 0 | AG176: 0 | AH176: 0 | AI176: 3 | AJ176: 0 | AK176: 3 | AL176: 6 | AM176: 5 | AN176: 8 | AO176: 0 | AP176: 0 | AQ176: 148
A177: 177 | D177: 6 | E177: ΓΑΛΑΙΟΣ ΝΙΚΟΛΑΟΣ του ΕΜΜΑΝΟΥΗΛ | F177: 1 | G177: 0 | H177: 0 | I177: 1 | J177: 1 | K177: 1 | L177: 0 | N177: 0 | O177: 0 | P177: 3 | Q177: 1 | R177: 3 | S177: 0 | T177: 1 | U177: 0 | V177: 3 | W177: 3 | X177: 1 | Y177: 1 | Z177: 7 | AA177: 13 | AC177: 1 | AD177: 0 | AE177: 1 | AF177: 0 | AG177: 0 | AH177: 1 | AI177: 0 | AJ177: 0 | AK177: 2 | AL177: 0 | AM177: 1 | AN177: 5 | AO177: 0 | AP177: 0 | AQ177: 51
A178: 178 | D178: 7 | E178: ΓΑΛΑΙΟΣ ΠΑΝΑΓΙΩΤΗΣ του ΠΑΡΑΣΚΕΥΑ | F178: 3 | G178: 4 | H178: 4 | I178: 4 | J178: 2 | K178: 2 | L178: 3 | N178: 0 | O178: 0 | P178: 0 | Q178: 2 | R178: 2 | S178: 3 | T178: 2 | U178: 3 | V178: 0 | W178: 2 | X178: 2 | Y178: 3 | Z178: 6 | AA178: 2 | AC178: 1 | AD178: 1 | AE178: 0 | AF178: 1 | AG178: 0 | AH178: 0 | AI178: 3 | AJ178: 0 | AK178: 3 | AL178: 0 | AM178: 1 | AN178: 1 | AO178: 0 | AP178: 0 | AQ178: 60
A179: 179 | D179: 8 | E179: ΔΑΚΟΡΩΝΙΑ‑ ΖΩΡΖΟΥ ΠΕΤΡΟΥΛΑ του ΓΕΩΡΓΙΟΥ | F179: 5 | G179: 14 | H179: 6 | I179: 2 | J179: 3 | K179: 1 | L179: 0 | N179: 5 | O179: 3 | P179: 2 | Q179: 8 | R179: 0 | S179: 0 | T179: 4 | U179: 1 | V179: 2 | W179: 3 | X179: 0 | Y179: 2 | Z179: 3 | AA179: 2 | AC179: 1 | AD179: 1 | AE179: 3 | AF179: 1 | AG179: 6 | AH179: 0 | AI179: 1 | AJ179: 2 | AK179: 2 | AL179: 0 | AM179: 0 | AN179: 1 | AO179: 2 | AP179: 0 | AQ179: 86
A180: 180 | D180: 9 | E180: ΔΑΚΟΥΤΡΟΣ ΙΑΚΩΒΟΣ (ΒΑΚΗΣ) του ΑΝΔΡΕΑ | F180: 11 | G180: 20 | H180: 11 | I180: 8 | J180: 9 | K180: 2 | L180: 1 | N180: 1 | O180: 1 | P180: 1 | Q180: 5 | R180: 4 | S180: 3 | T180: 3 | U180: 1 | V180: 2 | W180: 1 | X180: 0 | Y180: 2 | Z180: 1 | AA180: 7 | AC180: 0 | AD180: 0 | AE180: 0 | AF180: 0 | AG180: 2 | AH180: 0 | AI180: 0 | AJ180: 0 | AK180: 0 | AL180: 1 | AM180: 1 | AN180: 1 | AO180: 1 | AP180: 1 | AQ180: 101
A181: 181 | D181: 10 | E181: ΔΑΜΑΣΚΗΝΟΣ ΑΝΤΩΝΙΟΣ του ΙΩΑΝΝΗ | F181: 0 | G181: 2 | H181: 1 | I181: 1 | J181: 0 | K181: 0 | L181: 1 | N181: 0 | O181: 0 | P181: 1 | Q181: 2 | R181: 0 | S181: 0 | T181: 4 | U181: 0 | V181: 0 | W181: 1 | X181: 1 | Y181: 0 | Z181: 0 | AA181: 0 | AC181: 4 | AD181: 0 | AE181: 4 | AF181: 0 | AG181: 1 | AH181: 0 | AI181: 2 | AJ181: 0 | AK181: 4 | AL181: 0 | AM181: 0 | AN181: 1 | AO181: 0 | AP181: 0 | AQ181: 30
A182: 182 | D182: 11 | E182: ΔΡΟΣΟΣ ΜΙΧΑΗΛ (ΜΠΙΣΤΟΛΗΣ) του ΕΥΣΤΑΘΙΟΥ | F182: 0 | G182: 0 | H182: 0 | I182: 0 | J182: 0 | K182: 0 | L182: 0 | N182: 0 | O182: 1 | P182: 0 | Q182: 0 | R182: 0 | S182: 0 | T182: 0 | U182: 0 | V182: 0 | W182: 0 | X182: 0 | Y182: 0 | Z182: 0 | AA182: 0 | AC182: 0 | AD182: 0 | AE182: 0 | AF182: 0 | AG182: 0 | AH182: 0 | AI182: 9 | AJ182: 0 | AK182: 0 | AL182: 0 | AM182: 0 | AN182: 0 | AO182: 0 | AP182: 0 | AQ182: 10
A183: 183 | D183: 12 | E183: ΔΡΟΣΟΥ ΜΑΡΙΑ του ΕΥΑΓΓΕΛΟΥ | F183: 0 | G183: 1 | H183: 2 | I183: 1 | J183: 1 | K183: 3 | L183: 0 | N183: 0 | O183: 2 | P183: 1 | Q183: 2 | R183: 0 | S183: 0 | T183: 2 | U183: 1 | V183: 1 | W183: 3 | X183: 3 | Y183: 1 | Z183: 1 | AA183: 2 | AC183: 0 | AD183: 0 | AE183: 1 | AF183: 0 | AG183: 2 | AH183: 10 | AI183: 1 | AJ183: 8 | AK183: 4 | AL183: 1 | AM183: 1 | AN183: 1 | AO183: 1 | AP183: 0 | AQ183: 57
A184: 184 | D184: 13 | E184: ΖΑΜΠΕΛΗ ΕΙΡΗΝΗ του ΣΤΑΥΡΟΥ | F184: 2 | G184: 1 | H184: 1 | I184: 0 | J184: 1 | K184: 1 | L184: 0 | N184: 6 | O184: 8 | P184: 1 | Q184: 3 | R184: 0 | S184: 0 | T184: 1 | U184: 2 | V184: 1 | W184: 5 | X184: 2 | Y184: 1 | Z184: 0 | AA184: 3 | AC184: 0 | AD184: 0 | AE184: 0 | AF184: 6 | AG184: 6 | AH184: 8 | AI184: 0 | AJ184: 8 | AK184: 3 | AL184: 1 | AM184: 0 | AN184: 2 | AO184: 0 | AP184: 0 | AQ184: 73
A185: 185 | D185: 14 | E185: ΚΑΤΡΗΣ ΛΟΥΚΑΣ του ΓΕΩΡΓΙΟΥ | F185: 12 | G185: 5 | H185: 3 | I185: 6 | J185: 4 | K185: 4 | L185: 11 | N185: 7 | O185: 0 | P185: 5 | Q185: 1 | R185: 3 | S185: 5 | T185: 2 | U185: 0 | V185: 1 | W185: 2 | X185: 1 | Y185: 3 | Z185: 1 | AA185: 3 | AC185: 0 | AD185: 1 | AE185: 1 | AF185: 0 | AG185: 1 | AH185: 0 | AI185: 0 | AJ185: 0 | AK185: 1 | AL185: 0 | AM185: 2 | AN185: 0 | AO185: 0 | AP185: 0 | AQ185: 85
A186: 186 | D186: 15 | E186: ΛΙΓΝΟΥ ΑΝΝΑ του ΕΥΑΓΓΕΛΟΥ | F186: 0 | G186: 3 | H186: 3 | I186: 2 | J186: 4 | K186: 1 | L186: 1 | N186: 4 | O186: 1 | P186: 2 | Q186: 2 | R186: 4 | S186: 10 | T186: 13 | U186: 12 | V186: 1 | W186: - | X186: 0 | Y186: 1 | Z186: 1 | AA186: 0 | AC186: 0 | AD186: 0 | AE186: 0 | AF186: 0 | AG186: 1 | AH186: 0 | AI186: 0 | AJ186: 1 | AK186: 0 | AL186: 1 | AM186: 1 | AN186: 1 | AO186: 2 | AP186: 0 | AQ186: 72
A187: 187 | D187: 16 | E187: ΛΥΓΝΟΥ ΝΙΚΟΛΙΝΑ (ΝΙΚΗ) του ΕΥΑΓΓΕΛΟΥ | F187: 0 | G187: 1 | H187: 2 | I187: 1 | J187: 1 | K187: 0 | L187: 0 | N187: 2 | O187: 1 | P187: 1 | Q187: 5 | R187: 10 | S187: 4 | T187: 0 | U187: 0 | V187: 1 | W187: =-W1088 -> 0 | X187: 0 | Y187: 0 | Z187: 0 | AA187: 0 | AC187: 0 | AD187: 0 | AE187: 0 | AF187: 0 | AG187: 0 | AH187: 0 | AI187: 0 | AJ187: 0 | AK187: 0 | AL187: 1 | AM187: 0 | AN187: 2 | AO187: 0 | AP187: 0 | AQ187: 32
A188: 188 | D188: 17 | E188: ΜΑΚΡΗΣ ΠΑΝΑΓΙΩΤΗΣ του ΧΡΗΣΤΟΥ | F188: 0 | G188: 1 | H188: 0 | I188: 1 | J188: 0 | K188: 0 | L188: 0 | N188: 2 | O188: 1 | P188: 2 | Q188: 0 | R188: 0 | S188: 2 | T188: 1 | U188: 1 | V188: 5 | W188: 14 | X188: 7 | Y188: 0 | Z188: 1 | AA188: 4 | AC188: 0 | AD188: 0 | AE188: 1 | AF188: 0 | AG188: 0 | AH188: 0 | AI188: 0 | AJ188: 0 | AK188: 0 | AL188: 0 | AM188: 0 | AN188: 0 | AO188: 0 | AP188: 0 | AQ188: 43
A189: 189 | D189: 18 | E189: ΜΟΥΚΑΤΕΜΙΔΟΥ‑ΙΩΑΝΝΙΔΟΥ ΕΛΙΣΣΑΒΕΤ (ΛΙΖΑ) του ΙΩΑΝΝΗ | F189: 2 | G189: 4 | H189: 3 | I189: 1 | J189: 5 | K189: 1 | L189: 1 | N189: 1 | O189: 0 | P189: 1 | Q189: 0 | R189: 1 | S189: 1 | T189: 1 | U189: 0 | V189: 5 | W189: 0 | X189: 20 | Y189: 0 | Z189: 0 | AA189: 2 | AC189: 2 | AD189: 0 | AE189: 2 | AF189: 0 | AG189: 1 | AH189: 0 | AI189: 0 | AJ189: 0 | AK189: 2 | AL189: 1 | AM189: 0 | AN189: 0 | AO189: 0 | AP189: 0 | AQ189: 57
A190: 190 | D190: 19 | E190: ΜΠΑΪΚΑ ΜΑΡΙΑ του ΧΡΗΣΤΟΥ | F190: 0 | G190: 1 | H190: 8 | I190: 1 | J190: 3 | K190: 3 | L190: 0 | N190: 1 | O190: 0 | P190: 2 | Q190: 1 | R190: 0 | S190: 0 | T190: 1 | U190: 1 | V190: 0 | W190: 3 | X190: 0 | Y190: 1 | Z190: 1 | AA190: 0 | AC190: 0 | AD190: 10 | AE190: 19 | AF190: 0 | AG190: 4 | AH190: 0 | AI190: 0 | AJ190: 0 | AK190: 1 | AL190: 1 | AM190: 0 | AN190: 2 | AO190: 0 | AP190: 0 | AQ190: 64
A191: 191 | D191: 20 | E191: ΜΠΛΕΔΑΚΗΣ ΑΛΕΞΑΝΔΡΟΣ (ΑΛΕΚΟΣ) του ΑΝΤΩΝΙΟΥ | F191: 16 | G191: 7 | H191: 10 | I191: 20 | J191: 10 | K191: 34 | L191: 3 | N191: 2 | O191: 2 | P191: 4 | Q191: 4 | R191: 5 | S191: 3 | T191: 3 | U191: 4 | V191: 4 | W191: 4 | X191: 8 | Y191: 2 | Z191: 2 | AA191: 0 | AC191: 1 | AD191: 0 | AE191: 0 | AF191: 0 | AG191: 0 | AH191: 1 | AI191: 0 | AJ191: 3 | AK191: 0 | AL191: 2 | AM191: 1 | AN191: 1 | AO191: 0 | AP191: 0 | AQ191: 156
A192: 192 | D192: 21 | E192: ΞΑΓΟΡΑΡΗΣ ΓΡΗΓΟΡΙΟΣ του ΝΙΚΟΛΑΟΥ | F192: 10 | G192: 5 | H192: 7 | I192: 3 | J192: 5 | K192: 7 | L192: 3 | N192: 1 | O192: 2 | P192: 7 | Q192: 3 | R192: 6 | S192: 4 | T192: 2 | U192: 6 | V192: 2 | W192: 5 | X192: 4 | Y192: 4 | Z192: 9 | AA192: 18 | AC192: 0 | AD192: 4 | AE192: 3 | AF192: 1 | AG192: 2 | AH192: 0 | AI192: 0 | AJ192: 6 | AK192: 2 | AL192: 0 | AM192: 1 | AN192: 0 | AO192: 2 | AP192: 2 | AQ192: 136
A193: 193 | D193: 22 | E193: ΠΕΛΕΚΑΝΟΥ ΑΙΚΑΤΕΡΙΝΗ του ΚΩΝΣΤΑΝΤΙΝΟΥ | F193: 6 | G193: 4 | H193: 3 | I193: 9 | J193: 4 | K193: 3 | L193: 0 | N193: 1 | O193: 14 | P193: 5 | Q193: 8 | R193: 4 | S193: 3 | T193: 2 | U193: 1 | V193: 4 | W193: 1 | X193: 1 | Y193: 3 | Z193: 0 | AA193: 3 | AC193: 2 | AD193: 1 | AE193: 3 | AF193: 1 | AG193: 1 | AH193: 0 | AI193: 0 | AJ193: 3 | AK193: 0 | AL193: 2 | AM193: 1 | AN193: 5 | AO193: 0 | AP193: 4 | AQ193: 102
A194: 194 | D194: 23 | E194: ΠΕΤΙΝΗΣ ΝΙΚΟΛΑΟΣ του ΕΜΜΑΝΟΥΗΛ | F194: 5 | G194: 7 | H194: 8 | I194: 9 | J194: 5 | K194: 2 | L194: 5 | N194: 11 | O194: 10 | P194: 13 | Q194: 8 | R194: 7 | S194: 9 | T194: 7 | U194: 3 | V194: 3 | W194: 1 | X194: 2 | Y194: 2 | Z194: 1 | AA194: 3 | AC194: 1 | AD194: 2 | AE194: 1 | AF194: 1 | AG194: 2 | AH194: 5 | AI194: 0 | AJ194: 1 | AK194: 2 | AL194: 1 | AM194: 6 | AN194: 0 | AO194: 0 | AP194: 0 | AQ194: 143
A195: 195 | D195: 24 | E195: ΠΡΕΚΑΣ ΓΕΩΡΓΙΟΣ του ΠΑΝΑΓΙΩΤΗ | F195: 9 | G195: 5 | H195: 4 | I195: 5 | J195: 2 | K195: 1 | L195: 0 | N195: 0 | O195: 7 | P195: 2 | Q195: 4 | R195: 2 | S195: 1 | T195: 2 | U195: 0 | V195: 4 | W195: 3 | X195: 2 | Y195: 0 | Z195: 1 | AA195: 0 | AC195: 0 | AD195: 0 | AE195: 2 | AF195: 2 | AG195: 0 | AH195: 2 | AI195: 0 | AJ195: 0 | AK195: 0 | AL195: 0 | AM195: 0 | AN195: 4 | AO195: 1 | AP195: 1 | AQ195: 66
A196: 196 | D196: 25 | E196: ΠΡΕΚΑΣ ΠΕΤΡΟΣ (ΣΒΟΡΩΝΟΣ) του ΕΜΜΑΝΟΥΗΛ | F196: 13 | G196: 24 | H196: 17 | I196: 34 | J196: 11 | K196: 9 | L196: 2 | N196: 2 | O196: 5 | P196: 11 | Q196: 1 | R196: 1 | S196: 1 | T196: 2 | U196: 0 | V196: 3 | W196: 3 | X196: 0 | Y196: 0 | Z196: 15 | AA196: 38 | AC196: 2 | AD196: 1 | AE196: 1 | AF196: 3 | AG196: 0 | AH196: 1 | AI196: 0 | AJ196: 0 | AK196: 5 | AL196: 1 | AM196: 4 | AN196: 2 | AO196: 0 | AP196: 1 | AQ196: 213
A197: 197 | D197: 26 | E197: ΡΟΥΣΣΟΣ ΣΤΑΥΡΟΣ του ΒΙΔΙΑΝΟΥ | F197: 2 | G197: 6 | H197: 8 | I197: 5 | J197: 3 | K197: 13 | L197: 6 | N197: 11 | O197: 16 | P197: 21 | Q197: 2 | R197: 7 | S197: 2 | T197: 2 | U197: 1 | V197: 1 | W197: 3 | X197: 1 | Y197: 0 | Z197: 3 | AA197: 0 | AC197: 2 | AD197: 2 | AE197: 3 | AF197: 3 | AG197: 1 | AH197: 1 | AI197: 0 | AJ197: 2 | AK197: 2 | AL197: 3 | AM197: 9 | AN197: 6 | AO197: 11 | AP197: 16 | AQ197: 174
A198: 198 | D198: 27 | E198: ΡΟΥΣΣΟΣ ΦΑΝΟΥΡΙΟΣ (ΦΑΝΗΣ) του ΒΑΣΙΛΕΙΟΥ | F198: 2 | G198: 4 | H198: 1 | I198: 2 | J198: 2 | K198: 1 | L198: 0 | N198: 4 | O198: 7 | P198: 8 | Q198: 2 | R198: 1 | S198: 1 | T198: 1 | U198: 1 | V198: 0 | W198: 1 | X198: 1 | Y198: 0 | Z198: 1 | AA198: 2 | AC198: 0 | AD198: 0 | AE198: 0 | AF198: 0 | AG198: 0 | AH198: 1 | AI198: 2 | AJ198: 0 | AK198: 1 | AL198: 2 | AM198: 0 | AN198: 0 | AO198: 0 | AP198: 0 | AQ198: 48
A199: 199 | D199: 28 | E199: ΣΑΧ ΧΑΜΙΝΤ ΑΛΕΞΑΝΔΡΟΣ του ΦΙΝΤΑ ΧΟΥΣΕΪΝ | F199: 4 | G199: 9 | H199: 11 | I199: 8 | J199: 6 | K199: 6 | L199: 1 | N199: 13 | O199: 9 | P199: 7 | Q199: 7 | R199: 9 | S199: 8 | T199: 3 | U199: 1 | V199: 3 | W199: 12 | X199: 3 | Y199: 7 | Z199: 2 | AA199: 3 | AC199: 2 | AD199: 5 | AE199: 12 | AF199: 1 | AG199: 0 | AH199: 3 | AI199: 0 | AJ199: 3 | AK199: 0 | AL199: 6 | AM199: 3 | AN199: 3 | AO199: 0 | AP199: 2 | AQ199: 172
A200: 200 | D200: 29 | E200: ΣΙΓΑΛΑ ΧΡΙΣΤΙΝΑ του ΕΥΑΓΓΕΛΟΥ | F200: 1 | G200: 3 | H200: 3 | I200: 2 | J200: 4 | K200: 3 | L200: 2 | N200: 2 | O200: 11 | P200: 0 | Q200: 4 | R200: 1 | S200: 5 | T200: 3 | U200: 1 | V200: 1 | W200: 1 | X200: 1 | Y200: 2 | Z200: 5 | AA200: 3 | AC200: 4 | AD200: 6 | AE200: 10 | AF200: 6 | AG200: 7 | AH200: 10 | AI200: 7 | AJ200: 10 | AK200: 10 | AL200: 0 | AM200: 1 | AN200: 1 | AO200: 0 | AP200: 0 | AQ200: 130
A201: 201 | D201: 30 | E201: ΣΤΕΦΑΝΟΓΙΑΝΝΗΣ ΜΙΧΑΗΛ του ΙΩΑΝΝΗ | F201: 2 | G201: 4 | H201: 9 | I201: 0 | J201: 4 | K201: 1 | L201: 0 | N201: 4 | O201: 8 | P201: 3 | Q201: 2 | R201: 3 | S201: 3 | T201: 3 | U201: 0 | V201: 4 | W201: 2 | X201: 2 | Y201: 0 | Z201: 2 | AA201: 2 | AC201: 0 | AD201: 1 | AE201: 0 | AF201: 0 | AG201: 0 | AH201: 0 | AI201: 1 | AJ201: 1 | AK201: 3 | AL201: 1 | AM201: 2 | AN201: 0 | AO201: 0 | AP201: 1 | AQ201: 68
... 12 more rows

Sheet Συγκεντρωτικά
B2: ΦΗΡΑ | G2: ΗΜΕΡΟΒΙΓΛΙ | H2: ΒΟΥΡΒΟΥΛΟΣ | J2: ΚΑΡΤ/ΔΟΣ | M2: ΜΕΣΑΡΙΑ | P2: ΒΟΘΩΝΑΣ | R2: ΕΠΙΣΚΟΠΗ-ΓΩΝΙΑΣ | U2: ΕΞΩ ΓΩΝΙΑ | V2: ΠΥΡΓΟΣ | X2: ΜΕΓΑΛΟΧΩΡΙ | Z2: ΑΚΡΩΤΗΡΙ | AB2: ΕΜΠΟΡΕΙΟ | AH2: ΟΙΑ | AK2: ΘΗΡΑΣΙΑ | AM2: ΣΥΝΟΛΑ
B3: (38Β) | C3: (39Β) | D3: (40Β) | E3: (41Β) | F3: (42Β) | G3: (43Β) | H3: (44) | I3: (45Β) | J3: (46Β) | K3: (47Β) | L3: (48Β) | M3: (49Β) | N3: (50Β) | O3: (51Β) | P3: (52Β) | Q3: (53Β) | R3: (54Β) | S3: (55Β) | T3: (56Β) | U3: (57Β) | V3: (58Β) | W3: (59Β) | X3: (60) | Y3: (61Β) | Z3: (62Β) | AA3: (63Β) | AB3: (64Β) | AC3: (65Β) | AD3: (66Β) | AE3: (67Β) | AF3: (68Β) | AG3: (69Β) | AH3: (70Β) | AI3: (71Β) | AJ3: (72Β) | AK3: (73) | AL3: (74Β)
A4: ΕΓΓΕΓΡΑΜΕΝΟΙ | AM4: =SUM(B4:AL4) -> 0
A5: ΣΥΝΟΛΑ | B5: =SUM(B4:F4) -> 0 | G5: =SUM(G4) -> 0 | H5: =SUM(H4:I4) -> 0 | J5: =SUM(J4:L4) -> 0 | M5: =SUM(M4:O4) -> 0 | P5: =SUM(P4:Q4) -> 0 | R5: =SUM(R4:T4) -> 0 | U5: =SUM(U4) -> 0 | V5: =SUM(V4:W4) -> 0 | X5: =SUM(X4:Y4) -> 0 | Z5: =SUM(Z4:AA4) -> 0 | AB5: =SUM(AB4:AG4) -> 0 | AH5: =SUM(AH4:AJ4) -> 0 | AK5: =SUM(AK4:AL4) -> 0
A6: ΨΗΦΙΣΑΝΤΕΣ | AM6: =SUM(B6:AL6) -> 0
A7: ΣΥΝΟΛΑ | B7: =SUM(B6:F6) -> 0 | G7: =SUM(G6) -> 0 | H7: =SUM(H6:I6) -> 0 | J7: =SUM(J6:L6) -> 0 | M7: =SUM(M6:O6) -> 0 | P7: =SUM(P6:Q6) -> 0 | R7: =SUM(R6:T6) -> 0 | U7: =SUM(U6) -> 0 | V7: =SUM(V6:W6) -> 0 | X7: =SUM(X6:Y6) -> 0 | Z7: =SUM(Z6:AA6) -> 0 | AB7: =SUM(AB6:AG6) -> 0 | AH7: =SUM(AH6:AJ6) -> 0 | AK7: =SUM(AK6:AL6) -> 0
A8: ΛΕΥΚΑ / ΑΚΥΡΑ | AM8: =SUM(B8:AL8) -> 0
A9: ΣΥΝΟΛΑ | B9: =SUM(B8:F8) -> 0 | G9: =SUM(G8) -> 0 | H9: =SUM(H8:I8) -> 0 | J9: =SUM(J8:L8) -> 0 | M9: =SUM(M8:O8) -> 0 | P9: =SUM(P8:Q8) -> 0 | R9: =SUM(R8:T8) -> 0 | U9: =SUM(U8) -> 0 | V9: =SUM(V8:W8) -> 0 | X9: =SUM(X8:Y8) -> 0 | Z9: =SUM(Z8:AA8) -> 0 | AB9: =SUM(AB8:AG8) -> 0 | AH9: =SUM(AH8:AJ8) -> 0 | AK9: =SUM(AK8:AL8) -> 0
A10: ΕΓΚΥΡΑ | AM10: =SUM(B10:AL10) -> 0
A11: ΣΥΝΟΛΑ | B11: =SUM(B10:F10) -> 0 | G11: =SUM(G10) -> 0 | H11: =SUM(H10:I10) -> 0 | J11: =SUM(J10:L10) -> 0 | M11: =SUM(M10:O10) -> 0 | P11: =SUM(P10:Q10) -> 0 | R11: =SUM(R10:T10) -> 0 | U11: =SUM(U10) -> 0 | V11: =SUM(V10:W10) -> 0 | X11: =SUM(X10:Y10) -> 0 | Z11: =SUM(Z10:AA10) -> 0 | AB11: =SUM(AB10:AG10) -> 0 | AH11: =SUM(AH10:AJ10) -> 0 | AK11: =SUM(AK10:AL10) -> 0
A13: Συνδυασμοί
A14: =IF(SUM($AM$14,$AM$16,$AM$18,$AM$20,$AM$22)=0,"Θηραϊκή Πολιτεία",CONCATENATE("Θηραϊκή Πολιτεία"," ",TEXT(AM14/SUM($AM$14,$AM$16,$AM$18,$AM$20,$AM$22),"0,00%"))) -> Θηραϊκή Πολιτεία 29,03% | B14: =Αναλυτικά!F7 -> 64 | C14: =Αναλυτικά!G7 -> 99 | D14: =Αναλυτικά!H7 -> 57 | E14: =Αναλυτικά!I7 -> 74 | F14: =Αναλυτικά!J7 -> 65 | G14: =Αναλυτικά!K7 -> 81 | H14: =Αναλυτικά!L7 -> 60 | I14: =Αναλυτικά!M7 -> 0 | J14: =Αναλυτικά!N7 -> 58 | K14: =Αναλυτικά!O7 -> 44 | L14: =Αναλυτικά!P7 -> 66 | M14: =Αναλυτικά!Q7 -> 96 | N14: =Αναλυτικά!R7 -> 116 | O14: =Αναλυτικά!S7 -> 101 | P14: =Αναλυτικά!T7 -> 83 | Q14: =Αναλυτικά!U7 -> 51 | R14: =Αναλυτικά!V7 -> 78 | S14: =Αναλυτικά!W7 -> 63 | T14: =Αναλυτικά!X7 -> 61 | U14: =Αναλυτικά!Y7 -> 62 | V14: =Αναλυτικά!Z7 -> 164 | W14: =Αναλυτικά!AA7 -> 193 | X14: =Αναλυτικά!AB7 -> 0 | Y14: =Αναλυτικά!AC7 -> 78 | Z14: =Αναλυτικά!AD7 -> 66 | AA14: =Αναλυτικά!AE7 -> 64 | AB14: =Αναλυτικά!AF7 -> 65 | AC14: =Αναλυτικά!AG7 -> 65 | AD14: =Αναλυτικά!AH7 -> 84 | AE14: =Αναλυτικά!AI7 -> 92 | AF14: =Αναλυτικά!AJ7 -> 64 | AG14: =Αναλυτικά!AK7 -> 80 | AH14: =Αναλυτικά!AL7 -> 72 | AI14: =Αναλυτικά!AM7 -> 36 | AJ14: =Αναλυτικά!AN7 -> 49 | AK14: =Αναλυτικά!AO7 -> 16 | AL14: =Αναλυτικά!AP7 -> 54 | AM14: =SUM(B14:AL14) -> 2621
A15: ΣΥΝΟΛΑ | B15: =SUM(B14:F14) -> 359 | G15: =SUM(G14) -> 81 | H15: =SUM(H14:I14) -> 60 | J15: =SUM(J14:L14) -> 168 | M15: =SUM(M14:O14) -> 313 | P15: =SUM(P14:Q14) -> 134 | R15: =SUM(R14:T14) -> 202 | U15: =SUM(U14) -> 62 | V15: =SUM(V14:W14) -> 357 | X15: =SUM(X14:Y14) -> 78 | Z15: =SUM(Z14:AA14) -> 130 | AB15: =SUM(AB14:AG14) -> 450 | AH15: =SUM(AH14:AJ14) -> 157 | AK15: =SUM(AK14:AL14) -> 70
A16: =IF(SUM($AM$14,$AM$16,$AM$18,$AM$20,$AM$22)=0,"Σαντορίνη Θηρασία Ενότητα Αλλαγή",CONCATENATE("Σαντορίνη Θηρασία Ενότητα Αλλαγή"," ",TEXT(AM16/SUM($AM$14,$AM$16,$AM$18,$AM$20,$AM$22),"0,00%"))) -> Σαντορίνη Θηρασία Ενότητα Αλλαγή 22,92% | B16: =Αναλυτικά!F50 -> 64 | C16: =Αναλυτικά!G50 -> 60 | D16: =Αναλυτικά!H50 -> 61 | E16: =Αναλυτικά!I50 -> 58 | F16: =Αναλυτικά!J50 -> 43 | G16: =Αναλυτικά!K50 -> 43 | H16: =Αναλυτικά!L50 -> 67 | I16: =Αναλυτικά!M50 -> 0 | J16: =Αναλυτικά!N50 -> 22 | K16: =Αναλυτικά!O50 -> 28 | L16: =Αναλυτικά!P50 -> 33 | M16: =Αναλυτικά!Q50 -> 31 | N16: =Αναλυτικά!R50 -> 22 | O16: =Αναλυτικά!S50 -> 22 | P16: =Αναλυτικά!T50 -> 14 | Q16: =Αναλυτικά!U50 -> 15 | R16: =Αναλυτικά!V50 -> 23 | S16: =Αναλυτικά!W50 -> 18 | T16: =Αναλυτικά!X50 -> 30 | U16: =Αναλυτικά!Y50 -> 47 | V16: =Αναλυτικά!Z50 -> 33 | W16: =Αναλυτικά!AA50 -> 20 | X16: =Αναλυτικά!AB50 -> 0 | Y16: =Αναλυτικά!AC50 -> 66 | Z16: =Αναλυτικά!AD50 -> 28 | AA16: =Αναλυτικά!AE50 -> 30 | AB16: =Αναλυτικά!AF50 -> 175 | AC16: =Αναλυτικά!AG50 -> 188 | AD16: =Αναλυτικά!AH50 -> 170 | AE16: =Αναλυτικά!AI50 -> 180 | AF16: =Αναλυτικά!AJ50 -> 156 | AG16: =Αναλυτικά!AK50 -> 185 | AH16: =Αναλυτικά!AL50 -> 22 | AI16: =Αναλυτικά!AM50 -> 21 | AJ16: =Αναλυτικά!AN50 -> 29 | AK16: =Αναλυτικά!AO50 -> 27 | AL16: =Αναλυτικά!AP50 -> 38 | AM16: =SUM(B16:AL16) -> 2069
A17: ΣΥΝΟΛΑ | B17: =SUM(B16:F16) -> 286 | G17: =SUM(G16) -> 43 | H17: =SUM(H16:I16) -> 67 | J17: =SUM(J16:L16) -> 83 | M17: =SUM(M16:O16) -> 75 | P17: =SUM(P16:Q16) -> 29 | R17: =SUM(R16:T16) -> 71 | U17: =SUM(U16) -> 47 | V17: =SUM(V16:W16) -> 53 | X17: =SUM(X16:Y16) -> 66 | Z17: =SUM(Z16:AA16) -> 58 | AB17: =SUM(AB16:AG16) -> 1054 | AH17: =SUM(AH16:AJ16) -> 72 | AK17: =SUM(AK16:AL16) -> 65
A18: =IF(SUM($AM$14,$AM$16,$AM$18,$AM$20,$AM$22)=0,"Λαϊκή Συσπείρωση",CONCATENATE("Λαϊκή Συσπείρωση"," ",TEXT(AM18/SUM($AM$14,$AM$16,$AM$18,$AM$20,$AM$22),"0,00%"))) -> Λαϊκή Συσπείρωση 7,58% | B18: =Αναλυτικά!F93 -> 17 | C18: =Αναλυτικά!G93 -> 9 | D18: =Αναλυτικά!H93 -> 17 | E18: =Αναλυτικά!I93 -> 16 | F18: =Αναλυτικά!J93 -> 16 | G18: =Αναλυτικά!K93 -> 11 | H18: =Αναλυτικά!L93 -> 7 | I18: =Αναλυτικά!M93 -> 0 | J18: =Αναλυτικά!N93 -> 8 | K18: =Αναλυτικά!O93 -> 11 | L18: =Αναλυτικά!P93 -> 12 | M18: =Αναλυτικά!Q93 -> 20 | N18: =Αναλυτικά!R93 -> 12 | O18: =Αναλυτικά!S93 -> 18 | P18: =Αναλυτικά!T93 -> 12 | Q18: =Αναλυτικά!U93 -> 16 | R18: =Αναλυτικά!V93 -> 80 | S18: =Αναλυτικά!W93 -> 75 | T18: =Αναλυτικά!X93 -> 87 | U18: =Αναλυτικά!Y93 -> 17 | V18: =Αναλυτικά!Z93 -> 16 | W18: =Αναλυτικά!AA93 -> 11 | X18: =Αναλυτικά!AB93 -> 0 | Y18: =Αναλυτικά!AC93 -> 13 | Z18: =Αναλυτικά!AD93 -> 10 | AA18: =Αναλυτικά!AE93 -> 26 | AB18: =Αναλυτικά!AF93 -> 7 | AC18: =Αναλυτικά!AG93 -> 15 | AD18: =Αναλυτικά!AH93 -> 16 | AE18: =Αναλυτικά!AI93 -> 28 | AF18: =Αναλυτικά!AJ93 -> 11 | AG18: =Αναλυτικά!AK93 -> 14 | AH18: =Αναλυτικά!AL93 -> 13 | AI18: =Αναλυτικά!AM93 -> 16 | AJ18: =Αναλυτικά!AN93 -> 13 | AK18: =Αναλυτικά!AO93 -> 7 | AL18: =Αναλυτικά!AP93 -> 7 | AM18: =SUM(B18:AL18) -> 684
A19: ΣΥΝΟΛΑ | B19: =SUM(B18:F18) -> 75 | G19: =SUM(G18) -> 11 | H19: =SUM(H18:I18) -> 7 | J19: =SUM(J18:L18) -> 31 | M19: =SUM(M18:O18) -> 50 | P19: =SUM(P18:Q18) -> 28 | R19: =SUM(R18:T18) -> 242 | U19: =SUM(U18) -> 17 | V19: =SUM(V18:W18) -> 27 | X19: =SUM(X18:Y18) -> 13 | Z19: =SUM(Z18:AA18) -> 36 | AB19: =SUM(AB18:AG18) -> 91 | AH19: =SUM(AH18:AJ18) -> 42 | AK19: =SUM(AK18:AL18) -> 14
A20: =IF(SUM($AM$14,$AM$16,$AM$18,$AM$20,$AM$22)=0,"ΜΑΖΙ ΑΛΛΑΖΟΥΜΕ ΣΑΝΤΟΡΙΝΗ – ΘΗΡΑΣΙΑ",CONCATENATE("ΜΑΖΙ ΑΛΛΑΖΟΥΜΕ ΣΑΝΤΟΡΙΝΗ – ΘΗΡΑΣΙΑ"," ",TEXT(AM20/SUM($AM$14,$AM$16,$AM$18,$AM$20,$AM$22),"0,00%"))) -> ΜΑΖΙ ΑΛΛΑΖΟΥΜΕ ΣΑΝΤΟΡΙΝΗ – ΘΗΡΑΣΙΑ 22,56% | B20: =Αναλυτικά!F128 -> 80 | C20: =Αναλυτικά!G128 -> 62 | D20: =Αναλυτικά!H128 -> 62 | E20: =Αναλυτικά!I128 -> 54 | F20: =Αναλυτικά!J128 -> 67 | G20: =Αναλυτικά!K128 -> 84 | H20: =Αναλυτικά!L128 -> 20 | I20: =Αναλυτικά!M128 -> 0 | J20: =Αναλυτικά!N128 -> 91 | K20: =Αναλυτικά!O128 -> 92 | L20: =Αναλυτικά!P128 -> 123 | M20: =Αναλυτικά!Q128 -> 63 | N20: =Αναλυτικά!R128 -> 74 | O20: =Αναλυτικά!S128 -> 84 | P20: =Αναλυτικά!T128 -> 127 | Q20: =Αναλυτικά!U128 -> 97 | R20: =Αναλυτικά!V128 -> 74 | S20: =Αναλυτικά!W128 -> 102 | T20: =Αναλυτικά!X128 -> 91 | U20: =Αναλυτικά!Y128 -> 63 | V20: =Αναλυτικά!Z128 -> 26 | W20: =Αναλυτικά!AA128 -> 29 | X20: =Αναλυτικά!AB128 -> 0 | Y20: =Αναλυτικά!AC128 -> 58 | Z20: =Αναλυτικά!AD128 -> 37 | AA20: =Αναλυτικά!AE128 -> 62 | AB20: =Αναλυτικά!AF128 -> 56 | AC20: =Αναλυτικά!AG128 -> 28 | AD20: =Αναλυτικά!AH128 -> 28 | AE20: =Αναλυτικά!AI128 -> 45 | AF20: =Αναλυτικά!AJ128 -> 30 | AG20: =Αναλυτικά!AK128 -> 24 | AH20: =Αναλυτικά!AL128 -> 30 | AI20: =Αναλυτικά!AM128 -> 26 | AJ20: =Αναλυτικά!AN128 -> 30 | AK20: =Αναλυτικά!AO128 -> 14 | AL20: =Αναλυτικά!AP128 -> 4 | AM20: =SUM(B20:AL20) -> 2037
A21: ΣΥΝΟΛΑ | B21: =SUM(B20:F20) -> 325 | G21: =SUM(G20) -> 84 | H21: =SUM(H20:I20) -> 20 | J21: =SUM(J20:L20) -> 306 | M21: =SUM(M20:O20) -> 221 | P21: =SUM(P20:Q20) -> 224 | R21: =SUM(R20:T20) -> 267 | U21: =SUM(U20) -> 63 | V21: =SUM(V20:W20) -> 55 | X21: =SUM(X20:Y20) -> 58 | Z21: =SUM(Z20:AA20) -> 99 | AB21: =SUM(AB20:AG20) -> 211 | AH21: =SUM(AH20:AJ20) -> 86 | AK21: =SUM(AK20:AL20) -> 18
A22: =IF(SUM($AM$14,$AM$16,$AM$18,$AM$20,$AM$22)=0,"ΤΩΡΑ! Για τη Σαντορίνη και τη Θηρασιά",CONCATENATE("ΤΩΡΑ! Για τη Σαντορίνη και τη Θηρασιά"," ",TEXT(AM22/SUM($AM$14,$AM$16,$AM$18,$AM$20,$AM$22),"0,00%"))) -> ΤΩΡΑ! Για τη Σαντορίνη και τη Θηρασιά 17,92% | B22: =Αναλυτικά!F171 -> 59 | C22: =Αναλυτικά!G171 -> 74 | D22: =Αναλυτικά!H171 -> 72 | E22: =Αναλυτικά!I171 -> 72 | F22: =Αναλυτικά!J171 -> 51 | G22: =Αναλυτικά!K171 -> 85 | H22: =Αναλυτικά!L171 -> 31 | I22: =Αναλυτικά!M171 -> 0 | J22: =Αναλυτικά!N171 -> 53 | K22: =Αναλυτικά!O171 -> 58 | L22: =Αναλυτικά!P171 -> 64 | M22: =Αναλυτικά!Q171 -> 49 | N22: =Αναλυτικά!R171 -> 50 | O22: =Αναλυτικά!S171 -> 50 | P22: =Αναλυτικά!T171 -> 43 | Q22: =Αναλυτικά!U171 -> 27 | R22: =Αναλυτικά!V171 -> 56 | S22: =Αναλυτικά!W171 -> 57 | T22: =Αναλυτικά!X171 -> 46 | U22: =Αναλυτικά!Y171 -> 27 | V22: =Αναλυτικά!Z171 -> 41 | W22: =Αναλυτικά!AA171 -> 64 | X22: =Αναλυτικά!AB171 -> 0 | Y22: =Αναλυτικά!AC171 -> 13 | Z22: =Αναλυτικά!AD171 -> 23 | AA22: =Αναλυτικά!AE171 -> 36 | AB22: =Αναλυτικά!AF171 -> 22 | AC22: =Αναλυτικά!AG171 -> 21 | AD22: =Αναλυτικά!AH171 -> 25 | AE22: =Αναλυτικά!AI171 -> 18 | AF22: =Αναλυτικά!AJ171 -> 27 | AG22: =Αναλυτικά!AK171 -> 32 | AH22: =Αναλυτικά!AL171 -> 69 | AI22: =Αναλυτικά!AM171 -> 79 | AJ22: =Αναλυτικά!AN171 -> 67 | AK22: =Αναλυτικά!AO171 -> 26 | AL22: =Αναλυτικά!AP171 -> 31 | AM22: =SUM(B22:AL22) -> 1618
A23: ΣΥΝΟΛΑ | B23: =SUM(B22:F22) -> 328 | G23: =SUM(G22) -> 85 | H23: =SUM(H22:I22) -> 31 | J23: =SUM(J22:L22) -> 175 | M23: =SUM(M22:O22) -> 149 | P23: =SUM(P22:Q22) -> 70 | R23: =SUM(R22:T22) -> 159 | U23: =SUM(U22) -> 27 | V23: =SUM(V22:W22) -> 105 | X23: =SUM(X22:Y22) -> 13 | Z23: =SUM(Z22:AA22) -> 59 | AB23: =SUM(AB22:AG22) -> 145 | AH23: =SUM(AH22:AJ22) -> 215 | AK23: =SUM(AK22:AL22) -> 57

Sheet Δημοτικοί ανά χωριό
B2: ΔΗΜΟΤΙΚΕΣ ΕΚΛΟΓΕΣ 26 ΜΑΙΟΥ 2019
B3: ΣΥΝΔ/ΣΜΟΣ | D3: Α/Α | E3: ΥΠΟΨΗΦΙΟΣ | F3: ΦΗΡΑ | G3: ΗΜΕΡΟΒΙΓΛΙ | H3: ΒΟΥΡΒΟΥΛΟΣ | I3: ΚΑΡΤ/ΔΟΣ | J3: ΜΕΣΑΡΙΑ | K3: ΒΟΘΩΝΑΣ | L3: ΕΠΙΣΚΟΠΗ ΓΩΝΙΑΣ | M3: ΕΞΩ ΓΩΝΙΑ | N3: ΠΥΡΓΟΣ | O3: ΜΕΓΑΛΟΧΩΡΙ | P3: ΑΚΡΩΤΗΡΙ | Q3: ΕΜΠΟΡΕΙΟ | R3: ΟΙΑ | S3: ΘΗΡΑΣΙΑ | T3: ΣΥΝΟΛΟ
A5: 7 | B5: Θηραϊκή Πολιτεία | E5: ΔΗΜΟΤΙΚΗ ΕΝΟΤΗΤΑ ΘΗΡΑΣ
A6: 8 | D6: 1 | E6: =Αναλυτικά!E8 -> ΑΡΒΑΝΙΤΗΣ ΜΙΧΑΗΛ του ΝΕΚΤΑΡΙΟΥ | F6: =SUM(Αναλυτικά!F8:J8) -> 7 | G6: =SUM(Αναλυτικά!K8) -> 0 | H6: =SUM(Αναλυτικά!L8:M8) -> 2 | I6: =SUM(Αναλυτικά!N8:P8) -> 4 | J6: =SUM(Αναλυτικά!Q8:S8) -> 6 | K6: =SUM(Αναλυτικά!T8:U8) -> 3 | L6: =SUM(Αναλυτικά!V8:X8) -> 9 | M6: =SUM(Αναλυτικά!Y8) -> 1 | N6: =SUM(Αναλυτικά!Z8:AA8) -> 58 | O6: =SUM(Αναλυτικά!AB8:AC8) -> 12 | P6: =SUM(Αναλυτικά!AD8:AE8) -> 3 | Q6: =SUM(Αναλυτικά!AF8:AK8) -> 17 | R6: =SUM(Αναλυτικά!AL8:AN8) -> 2 | S6: =SUM(Αναλυτικά!AO8:AP8) -> 0 | T6: =SUM(F6:S6) -> 124
A7: 9 | D7: 2 | E7: =Αναλυτικά!E9 -> ΑΡΓΥΡΟΥ ΕΥΑΓΓΕΛΙΑ του ΜΗΝΑ | F7: =SUM(Αναλυτικά!F9:J9) -> 11 | G7: =SUM(Αναλυτικά!K9) -> 0 | H7: =SUM(Αναλυτικά!L9:M9) -> 1 | I7: =SUM(Αναλυτικά!N9:P9) -> 5 | J7: =SUM(Αναλυτικά!Q9:S9) -> 8 | K7: =SUM(Αναλυτικά!T9:U9) -> 4 | L7: =SUM(Αναλυτικά!V9:X9) -> 49 | M7: =SUM(Αναλυτικά!Y9) -> 1 | N7: =SUM(Αναλυτικά!Z9:AA9) -> 17 | O7: =SUM(Αναλυτικά!AB9:AC9) -> 3 | P7: =SUM(Αναλυτικά!AD9:AE9) -> 3 | Q7: =SUM(Αναλυτικά!AF9:AK9) -> 11 | R7: =SUM(Αναλυτικά!AL9:AN9) -> 3 | S7: =SUM(Αναλυτικά!AO9:AP9) -> 2 | T7: =SUM(F7:S7) -> 118
A8: 10 | D8: 3 | E8: =Αναλυτικά!E10 -> ΒΑΛΣΑΜΑΚΗ ΕΙΡΗΝΗ του ΔΗΜΗΤΡΙΟΥ | F8: =SUM(Αναλυτικά!F10:J10) -> 44 | G8: =SUM(Αναλυτικά!K10) -> 49 | H8: =SUM(Αναλυτικά!L10:M10) -> 5 | I8: =SUM(Αναλυτικά!N10:P10) -> 38 | J8: =SUM(Αναλυτικά!Q10:S10) -> 24 | K8: =SUM(Αναλυτικά!T10:U10) -> 12 | L8: =SUM(Αναλυτικά!V10:X10) -> 15 | M8: =SUM(Αναλυτικά!Y10) -> 4 | N8: =SUM(Αναλυτικά!Z10:AA10) -> 13 | O8: =SUM(Αναλυτικά!AB10:AC10) -> 4 | P8: =SUM(Αναλυτικά!AD10:AE10) -> 7 | Q8: =SUM(Αναλυτικά!AF10:AK10) -> 38 | R8: =SUM(Αναλυτικά!AL10:AN10) -> 8 | S8: =SUM(Αναλυτικά!AO10:AP10) -> 0 | T8: 261
A9: 11 | D9: 4 | E9: =Αναλυτικά!E11 -> ΒΛΑΧΟΥ ΚΑΛΛΙΟΠΗ του ΝΕΚΤΑΡΙΟΥ | F9: =SUM(Αναλυτικά!F11:J11) -> 8 | G9: =SUM(Αναλυτικά!K11) -> 4 | H9: =SUM(Αναλυτικά!L11:M11) -> 1 | I9: =SUM(Αναλυτικά!N11:P11) -> 9 | J9: =SUM(Αναλυτικά!Q11:S11) -> 17 | K9: =SUM(Αναλυτικά!T11:U11) -> 49 | L9: =SUM(Αναλυτικά!V11:X11) -> 3 | M9: =SUM(Αναλυτικά!Y11) -> 0 | N9: =SUM(Αναλυτικά!Z11:AA11) -> 8 | O9: =SUM(Αναλυτικά!AB11:AC11) -> 2 | P9: =SUM(Αναλυτικά!AD11:AE11) -> 7 | Q9: =SUM(Αναλυτικά!AF11:AK11) -> 13 | R9: =SUM(Αναλυτικά!AL11:AN11) -> 0 | S9: =SUM(Αναλυτικά!AO11:AP11) -> 4 | T9: 125
A10: 12 | D10: 5 | E10: =Αναλυτικά!E12 -> ΓΑΛΑΙΟΣ ΕΛΕΥΘΕΡΙΟΣ του ΠΑΡΑΣΚΕΥΑ | F10: =SUM(Αναλυτικά!F12:J12) -> 6 | G10: =SUM(Αναλυτικά!K12) -> 0 | H10: =SUM(Αναλυτικά!L12:M12) -> 2 | I10: =SUM(Αναλυτικά!N12:P12) -> 0 | J10: =SUM(Αναλυτικά!Q12:S12) -> 7 | K10: =SUM(Αναλυτικά!T12:U12) -> 2 | L10: =SUM(Αναλυτικά!V12:X12) -> 4 | M10: =SUM(Αναλυτικά!Y12) -> 1 | N10: =SUM(Αναλυτικά!Z12:AA12) -> 61 | O10: =SUM(Αναλυτικά!AB12:AC12) -> 2 | P10: =SUM(Αναλυτικά!AD12:AE12) -> 15 | Q10: =SUM(Αναλυτικά!AF12:AK12) -> 25 | R10: =SUM(Αναλυτικά!AL12:AN12) -> 4 | S10: =SUM(Αναλυτικά!AO12:AP12) -> 0 | T10: 129
A11: 13 | D11: 6 | E11: =Αναλυτικά!E13 -> ΓΕΡΟΥ ΙΩΑΝΝΗΣ του ΗΡΑΚΛΗ | F11: =SUM(Αναλυτικά!F13:J13) -> 14 | G11: =SUM(Αναλυτικά!K13) -> 1 | H11: =SUM(Αναλυτικά!L13:M13) -> 2 | I11: =SUM(Αναλυτικά!N13:P13) -> 42 | J11: =SUM(Αναλυτικά!Q13:S13) -> 3 | K11: =SUM(Αναλυτικά!T13:U13) -> 2 | L11: =SUM(Αναλυτικά!V13:X13) -> 8 | M11: =SUM(Αναλυτικά!Y13) -> 0 | N11: =SUM(Αναλυτικά!Z13:AA13) -> 6 | O11: =SUM(Αναλυτικά!AB13:AC13) -> 1 | P11: =SUM(Αναλυτικά!AD13:AE13) -> 1 | Q11: =SUM(Αναλυτικά!AF13:AK13) -> 4 | R11: =SUM(Αναλυτικά!AL13:AN13) -> 6 | S11: =SUM(Αναλυτικά!AO13:AP13) -> 0 | T11: 90
A12: 14 | D12: 7 | E12: =Αναλυτικά!E14 -> ΔΑΝΕΖΗΣ ΙΩΑΝΝΗΣ του ΕΥΑΓΓΕΛΟΥ | F12: =SUM(Αναλυτικά!F14:J14) -> 8 | G12: =SUM(Αναλυτικά!K14) -> 1 | H12: =SUM(Αναλυτικά!L14:M14) -> 5 | I12: =SUM(Αναλυτικά!N14:P14) -> 7 | J12: =SUM(Αναλυτικά!Q14:S14) -> 11 | K12: =SUM(Αναλυτικά!T14:U14) -> 40 | L12: =SUM(Αναλυτικά!V14:X14) -> 0 | M12: =SUM(Αναλυτικά!Y14) -> 3 | N12: =SUM(Αναλυτικά!Z14:AA14) -> 10 | O12: =SUM(Αναλυτικά!AB14:AC14) -> 3 | P12: =SUM(Αναλυτικά!AD14:AE14) -> 2 | Q12: =SUM(Αναλυτικά!AF14:AK14) -> 16 | R12: =SUM(Αναλυτικά!AL14:AN14) -> 0 | S12: =SUM(Αναλυτικά!AO14:AP14) -> 0 | T12: 106
A13: 15 | D13: 8 | E13: =Αναλυτικά!E15 -> ΔΑΡΖΕΝΤΑΣ ΑΝΑΡΓΥΡΟΣ του ΧΑΡΑΛΑΜΠΟΥ | F13: =SUM(Αναλυτικά!F15:J15) -> 10 | G13: =SUM(Αναλυτικά!K15) -> 6 | H13: =SUM(Αναλυτικά!L15:M15) -> 3 | I13: =SUM(Αναλυτικά!N15:P15) -> 6 | J13: =SUM(Αναλυτικά!Q15:S15) -> 14 | K13: =SUM(Αναλυτικά!T15:U15) -> 10 | L13: =SUM(Αναλυτικά!V15:X15) -> 6 | M13: =SUM(Αναλυτικά!Y15) -> 4 | N13: =SUM(Αναλυτικά!Z15:AA15) -> 12 | O13: =SUM(Αναλυτικά!AB15:AC15) -> 18 | P13: =SUM(Αναλυτικά!AD15:AE15) -> 12 | Q13: =SUM(Αναλυτικά!AF15:AK15) -> 166 | R13: =SUM(Αναλυτικά!AL15:AN15) -> 7 | S13: =SUM(Αναλυτικά!AO15:AP15) -> 11 | T13: 285
A14: 16 | D14: 9 | E14: =Αναλυτικά!E16 -> ΔΙΑΜΑΝΤΟΠΟΥΛΟΥ ΜΟΣΧΑ του ΓΕΩΡΓΙΟΥ | F14: =SUM(Αναλυτικά!F16:J16) -> 21 | G14: =SUM(Αναλυτικά!K16) -> 3 | H14: =SUM(Αναλυτικά!L16:M16) -> 1 | I14: =SUM(Αναλυτικά!N16:P16) -> 4 | J14: =SUM(Αναλυτικά!Q16:S16) -> 8 | K14: =SUM(Αναλυτικά!T16:U16) -> 1 | L14: =SUM(Αναλυτικά!V16:X16) -> 9 | M14: =SUM(Αναλυτικά!Y16) -> 21 | N14: =SUM(Αναλυτικά!Z16:AA16) -> 12 | O14: =SUM(Αναλυτικά!AB16:AC16) -> 1 | P14: =SUM(Αναλυτικά!AD16:AE16) -> 2 | Q14: =SUM(Αναλυτικά!AF16:AK16) -> 10 | R14: =SUM(Αναλυτικά!AL16:AN16) -> 3 | S14: =SUM(Αναλυτικά!AO16:AP16) -> 0 | T14: 96
A15: 17 | D15: 10 | E15: =Αναλυτικά!E17 -> ΔΡΟΣΟΣ ΕΛΕΥΘΕΡΙΟΣ του ΣΠΥΡΟΥ | F15: =SUM(Αναλυτικά!F17:J17) -> 6 | G15: =SUM(Αναλυτικά!K17) -> 1 | H15: =SUM(Αναλυτικά!L17:M17) -> 9 | I15: =SUM(Αναλυτικά!N17:P17) -> 5 | J15: =SUM(Αναλυτικά!Q17:S17) -> 8 | K15: =SUM(Αναλυτικά!T17:U17) -> 3 | L15: =SUM(Αναλυτικά!V17:X17) -> 3 | M15: =SUM(Αναλυτικά!Y17) -> 6 | N15: =SUM(Αναλυτικά!Z17:AA17) -> 27 | O15: =SUM(Αναλυτικά!AB17:AC17) -> 3 | P15: =SUM(Αναλυτικά!AD17:AE17) -> 7 | Q15: =SUM(Αναλυτικά!AF17:AK17) -> 106 | R15: =SUM(Αναλυτικά!AL17:AN17) -> 1 | S15: =SUM(Αναλυτικά!AO17:AP17) -> 13 | T15: 198
A16: 18 | D16: 11 | E16: =Αναλυτικά!E18 -> ΖΩΡΖΟΣ ΕΥΑΓΓΕΛΟΣ του ΧΡΙΣΤΟΦΟΡΟΥ | F16: =SUM(Αναλυτικά!F18:J18) -> 41 | G16: =SUM(Αναλυτικά!K18) -> 8 | H16: =SUM(Αναλυτικά!L18:M18) -> 10 | I16: =SUM(Αναλυτικά!N18:P18) -> 16 | J16: =SUM(Αναλυτικά!Q18:S18) -> 23 | K16: =SUM(Αναλυτικά!T18:U18) -> 7 | L16: =SUM(Αναλυτικά!V18:X18) -> 35 | M16: =SUM(Αναλυτικά!Y18) -> 9 | N16: =SUM(Αναλυτικά!Z18:AA18) -> 278 | O16: =SUM(Αναλυτικά!AB18:AC18) -> 28 | P16: =SUM(Αναλυτικά!AD18:AE18) -> 19 | Q16: =SUM(Αναλυτικά!AF18:AK18) -> 69 | R16: =SUM(Αναλυτικά!AL18:AN18) -> 12 | S16: =SUM(Αναλυτικά!AO18:AP18) -> 3 | T16: 558
A17: 19 | D17: 12 | E17: =Αναλυτικά!E19 -> ΚΑΒΑΛΛΑΡΗΣ ΣΤΑΥΡΟΣ του ΠΕΤΡΟΥ | F17: =SUM(Αναλυτικά!F19:J19) -> 63 | G17: =SUM(Αναλυτικά!K19) -> 1 | H17: =SUM(Αναλυτικά!L19:M19) -> 8 | I17: =SUM(Αναλυτικά!N19:P19) -> 5 | J17: =SUM(Αναλυτικά!Q19:S19) -> 5 | K17: =SUM(Αναλυτικά!T19:U19) -> 10 | L17: =SUM(Αναλυτικά!V19:X19) -> 7 | M17: =SUM(Αναλυτικά!Y19) -> 0 | N17: =SUM(Αναλυτικά!Z19:AA19) -> 8 | O17: =SUM(Αναλυτικά!AB19:AC19) -> 0 | P17: =SUM(Αναλυτικά!AD19:AE19) -> 1 | Q17: =SUM(Αναλυτικά!AF19:AK19) -> 6 | R17: =SUM(Αναλυτικά!AL19:AN19) -> 3 | S17: =SUM(Αναλυτικά!AO19:AP19) -> 6 | T17: 123
A18: 20 | D18: 13 | E18: =Αναλυτικά!E20 -> ΚΑΜΠΟΥΡΑΚΗΣ ΝΙΚΟΛΑΟΣ του ΧΑΡΑΛΑΜΠΟΥ | F18: =SUM(Αναλυτικά!F20:J20) -> 61 | G18: =SUM(Αναλυτικά!K20) -> 10 | H18: =SUM(Αναλυτικά!L20:M20) -> 8 | I18: =SUM(Αναλυτικά!N20:P20) -> 37 | J18: =SUM(Αναλυτικά!Q20:S20) -> 182 | K18: =SUM(Αναλυτικά!T20:U20) -> 23 | L18: =SUM(Αναλυτικά!V20:X20) -> 17 | M18: =SUM(Αναλυτικά!Y20) -> 5 | N18: =SUM(Αναλυτικά!Z20:AA20) -> 21 | O18: =SUM(Αναλυτικά!AB20:AC20) -> 8 | P18: =SUM(Αναλυτικά!AD20:AE20) -> 10 | Q18: =SUM(Αναλυτικά!AF20:AK20) -> 47 | R18: =SUM(Αναλυτικά!AL20:AN20) -> 7 | S18: =SUM(Αναλυτικά!AO20:AP20) -> 4 | T18: 440
A19: 21 | D19: 14 | E19: =Αναλυτικά!E21 -> ΚΑΝΕΛΛΑΚΗΣ ΚΩΝΣΤΑΝΤΙΝΟΣ του ΧΡΗΣΤΟΥ | F19: =SUM(Αναλυτικά!F21:J21) -> 27 | G19: =SUM(Αναλυτικά!K21) -> 14 | H19: =SUM(Αναλυτικά!L21:M21) -> 11 | I19: =SUM(Αναλυτικά!N21:P21) -> 3 | J19: =SUM(Αναλυτικά!Q21:S21) -> 17 | K19: =SUM(Αναλυτικά!T21:U21) -> 14 | L19: =SUM(Αναλυτικά!V21:X21) -> 13 | M19: =SUM(Αναλυτικά!Y21) -> 3 | N19: =SUM(Αναλυτικά!Z21:AA21) -> 45 | O19: =SUM(Αναλυτικά!AB21:AC21) -> 45 | P19: =SUM(Αναλυτικά!AD21:AE21) -> 14 | Q19: =SUM(Αναλυτικά!AF21:AK21) -> 48 | R19: =SUM(Αναλυτικά!AL21:AN21) -> 4 | S19: =SUM(Αναλυτικά!AO21:AP21) -> 0 | T19: 258
A20: 22 | D20: 15 | E20: =Αναλυτικά!E22 -> ΚΑΡΑΜΟΛΕΓΚΟΥ ΦΛΩΡΑ ΛΗΔΑ του ΕΜΜΑΝΟΥΗΛ | F20: =SUM(Αναλυτικά!F22:J22) -> 9 | G20: =SUM(Αναλυτικά!K22) -> 0 | H20: =SUM(Αναλυτικά!L22:M22) -> 4 | I20: =SUM(Αναλυτικά!N22:P22) -> 1 | J20: =SUM(Αναλυτικά!Q22:S22) -> 7 | K20: =SUM(Αναλυτικά!T22:U22) -> 1 | L20: =SUM(Αναλυτικά!V22:X22) -> 1 | M20: =SUM(Αναλυτικά!Y22) -> 0 | N20: =SUM(Αναλυτικά!Z22:AA22) -> 1 | O20: =SUM(Αναλυτικά!AB22:AC22) -> 1 | P20: =SUM(Αναλυτικά!AD22:AE22) -> 0 | Q20: =SUM(Αναλυτικά!AF22:AK22) -> 29 | R20: =SUM(Αναλυτικά!AL22:AN22) -> 1 | S20: =SUM(Αναλυτικά!AO22:AP22) -> 0 | T20: 55
A21: 23 | D21: 16 | E21: =Αναλυτικά!E23 -> ΚΑΤΣΙΠΗ ΑΝΔΡΟΜΑΧΗ του ΚΩΝΣΤΑΝΤΙΝΟΥ | F21: =SUM(Αναλυτικά!F23:J23) -> 6 | G21: =SUM(Αναλυτικά!K23) -> 0 | H21: =SUM(Αναλυτικά!L23:M23) -> 0 | I21: =SUM(Αναλυτικά!N23:P23) -> 1 | J21: =SUM(Αναλυτικά!Q23:S23) -> 2 | K21: =SUM(Αναλυτικά!T23:U23) -> 0 | L21: =SUM(Αναλυτικά!V23:X23) -> 5 | M21: =SUM(Αναλυτικά!Y23) -> 0 | N21: =SUM(Αναλυτικά!Z23:AA23) -> 4 | O21: =SUM(Αναλυτικά!AB23:AC23) -> 0 | P21: =SUM(Αναλυτικά!AD23:AE23) -> 1 | Q21: =SUM(Αναλυτικά!AF23:AK23) -> 22 | R21: =SUM(Αναλυτικά!AL23:AN23) -> 1 | S21: =SUM(Αναλυτικά!AO23:AP23) -> 0 | T21: 42
A22: 24 | D22: 17 | E22: =Αναλυτικά!E24 -> ΚΑΦΙΕΡΗΣ ΜΗΝΑΣ του ΔΗΜΗΤΡΙΟΥ | F22: =SUM(Αναλυτικά!F24:J24) -> 118 | G22: =SUM(Αναλυτικά!K24) -> 18 | H22: =SUM(Αναλυτικά!L24:M24) -> 8 | I22: =SUM(Αναλυτικά!N24:P24) -> 27 | J22: =SUM(Αναλυτικά!Q24:S24) -> 36 | K22: =SUM(Αναλυτικά!T24:U24) -> 33 | L22: =SUM(Αναλυτικά!V24:X24) -> 49 | M22: =SUM(Αναλυτικά!Y24) -> 5 | N22: =SUM(Αναλυτικά!Z24:AA24) -> 35 | O22: =SUM(Αναλυτικά!AB24:AC24) -> 3 | P22: =SUM(Αναλυτικά!AD24:AE24) -> 36 | Q22: =SUM(Αναλυτικά!AF24:AK24) -> 50 | R22: =SUM(Αναλυτικά!AL24:AN24) -> 23 | S22: =SUM(Αναλυτικά!AO24:AP24) -> 1 | T22: 442
A23: 25 | D23: 18 | E23: =Αναλυτικά!E25 -> ΛΙΓΝΟΥ ΑΝΝΑ του ΧΡΙΣΤΟΦΟΡΟΥ | F23: =SUM(Αναλυτικά!F25:J25) -> 1 | G23: =SUM(Αναλυτικά!K25) -> 2 | H23: =SUM(Αναλυτικά!L25:M25) -> 2 | I23: =SUM(Αναλυτικά!N25:P25) -> 1 | J23: =SUM(Αναλυτικά!Q25:S25) -> 2 | K23: =SUM(Αναλυτικά!T25:U25) -> 1 | L23: =SUM(Αναλυτικά!V25:X25) -> 54 | M23: =SUM(Αναλυτικά!Y25) -> 2 | N23: =SUM(Αναλυτικά!Z25:AA25) -> 6 | O23: =SUM(Αναλυτικά!AB25:AC25) -> 3 | P23: =SUM(Αναλυτικά!AD25:AE25) -> 3 | Q23: =SUM(Αναλυτικά!AF25:AK25) -> 8 | R23: =SUM(Αναλυτικά!AL25:AN25) -> 0 | S23: =SUM(Αναλυτικά!AO25:AP25) -> 0 | T23: 85
A24: 26 | D24: 19 | E24: =Αναλυτικά!E26 -> ΜΕΛΙΧΟΥΡΤΗΣ ΣΤΕΡΓΙΟΣ του ΑΝΑΣΤΑΣΙΟΥ | F24: =SUM(Αναλυτικά!F26:J26) -> 53 | G24: =SUM(Αναλυτικά!K26) -> 3 | H24: =SUM(Αναλυτικά!L26:M26) -> 1 | I24: =SUM(Αναλυτικά!N26:P26) -> 2 | J24: =SUM(Αναλυτικά!Q26:S26) -> 6 | K24: =SUM(Αναλυτικά!T26:U26) -> 5 | L24: =SUM(Αναλυτικά!V26:X26) -> 4 | M24: =SUM(Αναλυτικά!Y26) -> 1 | N24: =SUM(Αναλυτικά!Z26:AA26) -> 17 | O24: =SUM(Αναλυτικά!AB26:AC26) -> 0 | P24: =SUM(Αναλυτικά!AD26:AE26) -> 1 | Q24: =SUM(Αναλυτικά!AF26:AK26) -> 4 | R24: =SUM(Αναλυτικά!AL26:AN26) -> 0 | S24: =SUM(Αναλυτικά!AO26:AP26) -> 0 | T24: 97
A25: 27 | D25: 20 | E25: =Αναλυτικά!E27 -> ΝOMIKOY ΓΕΩΡΓΙΑ (ΤΖΩΡΤΖΑΚΗ) του ΙΩΑΝΝΗ | F25: =SUM(Αναλυτικά!F27:J27) -> 11 | G25: =SUM(Αναλυτικά!K27) -> 2 | H25: =SUM(Αναλυτικά!L27:M27) -> 0 | I25: =SUM(Αναλυτικά!N27:P27) -> 2 | J25: =SUM(Αναλυτικά!Q27:S27) -> 8 | K25: =SUM(Αναλυτικά!T27:U27) -> 0 | L25: =SUM(Αναλυτικά!V27:X27) -> 4 | M25: =SUM(Αναλυτικά!Y27) -> 0 | N25: =SUM(Αναλυτικά!Z27:AA27) -> 7 | O25: =SUM(Αναλυτικά!AB27:AC27) -> 4 | P25: =SUM(Αναλυτικά!AD27:AE27) -> 1 | Q25: =SUM(Αναλυτικά!AF27:AK27) -> 101 | R25: =SUM(Αναλυτικά!AL27:AN27) -> 0 | S25: =SUM(Αναλυτικά!AO27:AP27) -> 0 | T25: 140
A26: 28 | D26: 21 | E26: =Αναλυτικά!E28 -> ΝΟΜΙΚΟΣ ΓΕΩΡΓΙΟΣ (ΜΠΟΥΑΣ) του ΑΝΤΩΝΙΟΥ | F26: =SUM(Αναλυτικά!F28:J28) -> 21 | G26: =SUM(Αναλυτικά!K28) -> 4 | H26: =SUM(Αναλυτικά!L28:M28) -> 8 | I26: =SUM(Αναλυτικά!N28:P28) -> 20 | J26: =SUM(Αναλυτικά!Q28:S28) -> 101 | K26: =SUM(Αναλυτικά!T28:U28) -> 33 | L26: =SUM(Αναλυτικά!V28:X28) -> 17 | M26: =SUM(Αναλυτικά!Y28) -> 6 | N26: =SUM(Αναλυτικά!Z28:AA28) -> 38 | O26: =SUM(Αναλυτικά!AB28:AC28) -> 21 | P26: =SUM(Αναλυτικά!AD28:AE28) -> 4 | Q26: =SUM(Αναλυτικά!AF28:AK28) -> 26 | R26: =SUM(Αναλυτικά!AL28:AN28) -> 7 | S26: =SUM(Αναλυτικά!AO28:AP28) -> 2 | T26: 308
A27: 29 | D27: 22 | E27: =Αναλυτικά!E29 -> ΝΟΜΙΚΟΣ ΙΩΑΝΝΗΣ (ΣΑΞΕΟΣ) του ΖΩΡΖΗ | F27: =SUM(Αναλυτικά!F29:J29) -> 28 | G27: =SUM(Αναλυτικά!K29) -> 5 | H27: =SUM(Αναλυτικά!L29:M29) -> 3 | I27: =SUM(Αναλυτικά!N29:P29) -> 18 | J27: =SUM(Αναλυτικά!Q29:S29) -> 34 | K27: =SUM(Αναλυτικά!T29:U29) -> 19 | L27: =SUM(Αναλυτικά!V29:X29) -> 25 | M27: =SUM(Αναλυτικά!Y29) -> 40 | N27: =SUM(Αναλυτικά!Z29:AA29) -> 36 | O27: =SUM(Αναλυτικά!AB29:AC29) -> 5 | P27: =SUM(Αναλυτικά!AD29:AE29) -> 2 | Q27: =SUM(Αναλυτικά!AF29:AK29) -> 39 | R27: =SUM(Αναλυτικά!AL29:AN29) -> 10 | S27: =SUM(Αναλυτικά!AO29:AP29) -> 1 | T27: 265
A28: 30 | D28: 23 | E28: =Αναλυτικά!E30 -> ΞΑΓΟΡΑΡΗΣ ΔΗΜΗΤΡΙΟΣ του ΜΑΡΚΟΥ | F28: =SUM(Αναλυτικά!F30:J30) -> 33 | G28: =SUM(Αναλυτικά!K30) -> 1 | H28: =SUM(Αναλυτικά!L30:M30) -> 0 | I28: =SUM(Αναλυτικά!N30:P30) -> 12 | J28: =SUM(Αναλυτικά!Q30:S30) -> 10 | K28: =SUM(Αναλυτικά!T30:U30) -> 12 | L28: =SUM(Αναλυτικά!V30:X30) -> 9 | M28: =SUM(Αναλυτικά!Y30) -> 1 | N28: =SUM(Αναλυτικά!Z30:AA30) -> 46 | O28: =SUM(Αναλυτικά!AB30:AC30) -> 0 | P28: =SUM(Αναλυτικά!AD30:AE30) -> 9 | Q28: =SUM(Αναλυτικά!AF30:AK30) -> 9 | R28: =SUM(Αναλυτικά!AL30:AN30) -> 1 | S28: =SUM(Αναλυτικά!AO30:AP30) -> 1 | T28: 144
A29: 31 | D29: 24 | E29: =Αναλυτικά!E31 -> ΟΛΙΒΕΡΑ ΒΙΟΛΕΤΑ του ΚΑΡΛΟΥ‑ΓΕΩΡΓΙΟΥ | F29: =SUM(Αναλυτικά!F31:J31) -> 22 | G29: =SUM(Αναλυτικά!K31) -> 3 | H29: =SUM(Αναλυτικά!L31:M31) -> 1 | I29: =SUM(Αναλυτικά!N31:P31) -> 2 | J29: =SUM(Αναλυτικά!Q31:S31) -> 10 | K29: =SUM(Αναλυτικά!T31:U31) -> 4 | L29: =SUM(Αναλυτικά!V31:X31) -> 1 | M29: =SUM(Αναλυτικά!Y31) -> 1 | N29: =SUM(Αναλυτικά!Z31:AA31) -> 4 | O29: =SUM(Αναλυτικά!AB31:AC31) -> 6 | P29: =SUM(Αναλυτικά!AD31:AE31) -> 50 | Q29: =SUM(Αναλυτικά!AF31:AK31) -> 24 | R29: =SUM(Αναλυτικά!AL31:AN31) -> 1 | S29: =SUM(Αναλυτικά!AO31:AP31) -> 1 | T29: 130
A30: 32 | D30: 25 | E30: =Αναλυτικά!E32 -> ΠΕΛΕΚΑΝΟΣ ΓΕΩΡΓΙΟΣ του ΙΩΑΝΝΗ | F30: =SUM(Αναλυτικά!F32:J32) -> 26 | G30: =SUM(Αναλυτικά!K32) -> 0 | H30: =SUM(Αναλυτικά!L32:M32) -> 6 | I30: =SUM(Αναλυτικά!N32:P32) -> 64 | J30: =SUM(Αναλυτικά!Q32:S32) -> 9 | K30: =SUM(Αναλυτικά!T32:U32) -> 2 | L30: =SUM(Αναλυτικά!V32:X32) -> 2 | M30: =SUM(Αναλυτικά!Y32) -> 3 | N30: =SUM(Αναλυτικά!Z32:AA32) -> 9 | O30: =SUM(Αναλυτικά!AB32:AC32) -> 0 | P30: =SUM(Αναλυτικά!AD32:AE32) -> 4 | Q30: =SUM(Αναλυτικά!AF32:AK32) -> 7 | R30: =SUM(Αναλυτικά!AL32:AN32) -> 1 | S30: =SUM(Αναλυτικά!AO32:AP32) -> 0 | T30: 133
A31: 33 | D31: 26 | E31: =Αναλυτικά!E33 -> ΠΕΛΕΚΗΣ ΗΛΙΑΣ του ΝΙΚΟΛΑΟΥ | F31: =SUM(Αναλυτικά!F33:J33) -> 5 | G31: =SUM(Αναλυτικά!K33) -> 3 | H31: =SUM(Αναλυτικά!L33:M33) -> 5 | I31: =SUM(Αναλυτικά!N33:P33) -> 4 | J31: =SUM(Αναλυτικά!Q33:S33) -> 13 | K31: =SUM(Αναλυτικά!T33:U33) -> 7 | L31: =SUM(Αναλυτικά!V33:X33) -> 81 | M31: =SUM(Αναλυτικά!Y33) -> 9 | N31: =SUM(Αναλυτικά!Z33:AA33) -> 17 | O31: =SUM(Αναλυτικά!AB33:AC33) -> 3 | P31: =SUM(Αναλυτικά!AD33:AE33) -> 8 | Q31: =SUM(Αναλυτικά!AF33:AK33) -> 3 | R31: =SUM(Αναλυτικά!AL33:AN33) -> 0 | S31: =SUM(Αναλυτικά!AO33:AP33) -> 0 | T31: 158
A32: 34 | D32: 27 | E32: =Αναλυτικά!E34 -> ΠΟΛΥΧΡΟΝΑΚΗΣ ΠΑΝΑΓΙΩΤΗΣ του ΝΙΚΟΛΑΟΥ | F32: =SUM(Αναλυτικά!F34:J34) -> 14 | G32: =SUM(Αναλυτικά!K34) -> 3 | H32: =SUM(Αναλυτικά!L34:M34) -> 1 | I32: =SUM(Αναλυτικά!N34:P34) -> 7 | J32: =SUM(Αναλυτικά!Q34:S34) -> 32 | K32: =SUM(Αναλυτικά!T34:U34) -> 8 | L32: =SUM(Αναλυτικά!V34:X34) -> 7 | M32: =SUM(Αναλυτικά!Y34) -> 0 | N32: =SUM(Αναλυτικά!Z34:AA34) -> 6 | O32: =SUM(Αναλυτικά!AB34:AC34) -> 7 | P32: =SUM(Αναλυτικά!AD34:AE34) -> 54 | Q32: =SUM(Αναλυτικά!AF34:AK34) -> 90 | R32: =SUM(Αναλυτικά!AL34:AN34) -> 3 | S32: =SUM(Αναλυτικά!AO34:AP34) -> 9 | T32: 241
A33: 35 | D33: 28 | E33: =Αναλυτικά!E35 -> ΡΕΝΙΕΡΗ ΕΙΡΗΝΗ του ΓΕΡΑΣΙΜΟΥ | F33: =SUM(Αναλυτικά!F35:J35) -> 9 | G33: =SUM(Αναλυτικά!K35) -> 2 | H33: =SUM(Αναλυτικά!L35:M35) -> 9 | I33: =SUM(Αναλυτικά!N35:P35) -> 0 | J33: =SUM(Αναλυτικά!Q35:S35) -> 11 | K33: =SUM(Αναλυτικά!T35:U35) -> 1 | L33: =SUM(Αναλυτικά!V35:X35) -> 0 | M33: =SUM(Αναλυτικά!Y35) -> 0 | N33: =SUM(Αναλυτικά!Z35:AA35) -> 2 | O33: =SUM(Αναλυτικά!AB35:AC35) -> 0 | P33: =SUM(Αναλυτικά!AD35:AE35) -> 3 | Q33: =SUM(Αναλυτικά!AF35:AK35) -> 7 | R33: =SUM(Αναλυτικά!AL35:AN35) -> 0 | S33: =SUM(Αναλυτικά!AO35:AP35) -> 0 | T33: 44
A34: 36 | D34: 29 | E34: =Αναλυτικά!E36 -> ΡΟΥΣΣΟΥ ΧΡΙΣΤΙΝΑ του ΙΩΑΝΝΗ | F34: =SUM(Αναλυτικά!F36:J36) -> 3 | G34: =SUM(Αναλυτικά!K36) -> 0 | H34: =SUM(Αναλυτικά!L36:M36) -> 0 | I34: =SUM(Αναλυτικά!N36:P36) -> 2 | J34: =SUM(Αναλυτικά!Q36:S36) -> 15 | K34: =SUM(Αναλυτικά!T36:U36) -> 3 | L34: =SUM(Αναλυτικά!V36:X36) -> 1 | M34: =SUM(Αναλυτικά!Y36) -> 1 | N34: =SUM(Αναλυτικά!Z36:AA36) -> 31 | O34: =SUM(Αναλυτικά!AB36:AC36) -> 2 | P34: =SUM(Αναλυτικά!AD36:AE36) -> 2 | Q34: =SUM(Αναλυτικά!AF36:AK36) -> 2 | R34: =SUM(Αναλυτικά!AL36:AN36) -> 3 | S34: =SUM(Αναλυτικά!AO36:AP36) -> 0 | T34: 65
A35: 37 | D35: 30 | E35: =Αναλυτικά!E37 -> ΣΙΓΑΛΑ ΑΡΤΕΜΙΑ του ΓΕΩΡΓΙΟΥ | F35: =SUM(Αναλυτικά!F37:J37) -> 1 | G35: =SUM(Αναλυτικά!K37) -> 23 | H35: =SUM(Αναλυτικά!L37:M37) -> 2 | I35: =SUM(Αναλυτικά!N37:P37) -> 2 | J35: =SUM(Αναλυτικά!Q37:S37) -> 3 | K35: =SUM(Αναλυτικά!T37:U37) -> 2 | L35: =SUM(Αναλυτικά!V37:X37) -> 2 | M35: =SUM(Αναλυτικά!Y37) -> 0 | N35: =SUM(Αναλυτικά!Z37:AA37) -> 2 | O35: =SUM(Αναλυτικά!AB37:AC37) -> 2 | P35: =SUM(Αναλυτικά!AD37:AE37) -> 1 | Q35: =SUM(Αναλυτικά!AF37:AK37) -> 5 | R35: =SUM(Αναλυτικά!AL37:AN37) -> 0 | S35: =SUM(Αναλυτικά!AO37:AP37) -> 0 | T35: 45
A36: 38 | D36: 31 | E36: =Αναλυτικά!E38 -> ΣΙΓΑΛΑ ΝΙΚΟΛΕΤΤΑ του ΑΝΤΩΝΙΟΥ | F36: =SUM(Αναλυτικά!F38:J38) -> 9 | G36: =SUM(Αναλυτικά!K38) -> 1 | H36: =SUM(Αναλυτικά!L38:M38) -> 0 | I36: =SUM(Αναλυτικά!N38:P38) -> 0 | J36: =SUM(Αναλυτικά!Q38:S38) -> 1 | K36: =SUM(Αναλυτικά!T38:U38) -> 3 | L36: =SUM(Αναλυτικά!V38:X38) -> 4 | M36: =SUM(Αναλυτικά!Y38) -> 0 | N36: =SUM(Αναλυτικά!Z38:AA38) -> 12 | O36: =SUM(Αναλυτικά!AB38:AC38) -> 1 | P36: =SUM(Αναλυτικά!AD38:AE38) -> 0 | Q36: =SUM(Αναλυτικά!AF38:AK38) -> 32 | R36: =SUM(Αναλυτικά!AL38:AN38) -> 1 | S36: =SUM(Αναλυτικά!AO38:AP38) -> 0 | T36: 64
A37: 39 | D37: 32 | E37: =Αναλυτικά!E39 -> ΣΙΓΑΛΑΣ ΝΙΚΟΛΑΟΣ του ΕΥΣΤΑΘΙΟΥ | F37: =SUM(Αναλυτικά!F39:J39) -> 17 | G37: =SUM(Αναλυτικά!K39) -> 2 | H37: =SUM(Αναλυτικά!L39:M39) -> 0 | I37: =SUM(Αναλυτικά!N39:P39) -> 3 | J37: =SUM(Αναλυτικά!Q39:S39) -> 3 | K37: =SUM(Αναλυτικά!T39:U39) -> 5 | L37: =SUM(Αναλυτικά!V39:X39) -> 2 | M37: =SUM(Αναλυτικά!Y39) -> 1 | N37: =SUM(Αναλυτικά!Z39:AA39) -> 7 | O37: =SUM(Αναλυτικά!AB39:AC39) -> 0 | P37: =SUM(Αναλυτικά!AD39:AE39) -> 0 | Q37: =SUM(Αναλυτικά!AF39:AK39) -> 40 | R37: =SUM(Αναλυτικά!AL39:AN39) -> 0 | S37: =SUM(Αναλυτικά!AO39:AP39) -> 1 | T37: 81
A38: 40 | D38: 33 | E38: =Αναλυτικά!E40 -> ΤΖΟΥΡΟΣ ΕΛΕΥΘΕΡΙΟΣ του ΑΠΟΣΤΟΛΟΥ | F38: =SUM(Αναλυτικά!F40:J40) -> 93 | G38: =SUM(Αναλυτικά!K40) -> 8 | H38: =SUM(Αναλυτικά!L40:M40) -> 12 | I38: =SUM(Αναλυτικά!N40:P40) -> 38 | J38: =SUM(Αναλυτικά!Q40:S40) -> 26 | K38: =SUM(Αναλυτικά!T40:U40) -> 10 | L38: =SUM(Αναλυτικά!V40:X40) -> 16 | M38: =SUM(Αναλυτικά!Y40) -> 3 | N38: =SUM(Αναλυτικά!Z40:AA40) -> 55 | O38: =SUM(Αναλυτικά!AB40:AC40) -> 8 | P38: =SUM(Αναλυτικά!AD40:AE40) -> 16 | Q38: =SUM(Αναλυτικά!AF40:AK40) -> 27 | R38: =SUM(Αναλυτικά!AL40:AN40) -> 28 | S38: =SUM(Αναλυτικά!AO40:AP40) -> 3 | T38: 343
A39: 41 | D39: 34 | E39: =Αναλυτικά!E41 -> ΦΟΥΣΤΕΡΗΣ ΠΑΝΤΕΛΕΗΜΩΝ του ΑΘΑΝΑΣΙΟΥ | F39: =SUM(Αναλυτικά!F41:J41) -> 9 | G39: =SUM(Αναλυτικά!K41) -> 4 | H39: =SUM(Αναλυτικά!L41:M41) -> 0 | I39: =SUM(Αναλυτικά!N41:P41) -> 9 | J39: =SUM(Αναλυτικά!Q41:S41) -> 60 | K39: =SUM(Αναλυτικά!T41:U41) -> 7 | L39: =SUM(Αναλυτικά!V41:X41) -> 4 | M39: =SUM(Αναλυτικά!Y41) -> 0 | N39: =SUM(Αναλυτικά!Z41:AA41) -> 46 | O39: =SUM(Αναλυτικά!AB41:AC41) -> 4 | P39: =SUM(Αναλυτικά!AD41:AE41) -> 0 | Q39: =SUM(Αναλυτικά!AF41:AK41) -> 6 | R39: =SUM(Αναλυτικά!AL41:AN41) -> 2 | S39: =SUM(Αναλυτικά!AO41:AP41) -> 0 | T39: 151
A40: 42 | D40: 35 | E40: =Αναλυτικά!E42 -> ΧΑΛΑΡΗ ΕΙΡΗΝΗ του ΙΩΑΝΝΗ | F40: =SUM(Αναλυτικά!F42:J42) -> 4 | G40: =SUM(Αναλυτικά!K42) -> 0 | H40: =SUM(Αναλυτικά!L42:M42) -> 0 | I40: =SUM(Αναλυτικά!N42:P42) -> 2 | J40: =SUM(Αναλυτικά!Q42:S42) -> 9 | K40: =SUM(Αναλυτικά!T42:U42) -> 0 | L40: =SUM(Αναλυτικά!V42:X42) -> 24 | M40: =SUM(Αναλυτικά!Y42) -> 0 | N40: =SUM(Αναλυτικά!Z42:AA42) -> 2 | O40: =SUM(Αναλυτικά!AB42:AC42) -> 0 | P40: =SUM(Αναλυτικά!AD42:AE42) -> 1 | Q40: =SUM(Αναλυτικά!AF42:AK42) -> 8 | R40: =SUM(Αναλυτικά!AL42:AN42) -> 0 | S40: =SUM(Αναλυτικά!AO42:AP42) -> 2 | T40: 52
A41: 43 | D41: 36 | E41: =Αναλυτικά!E43 -> ΧΑΛΑΡΗ ΠΑΝΑΓΙΩΤΑ του ΠΑΝΑΓΙΩΤΗ | F41: =SUM(Αναλυτικά!F43:J43) -> 13 | G41: =SUM(Αναλυτικά!K43) -> 3 | H41: =SUM(Αναλυτικά!L43:M43) -> 0 | I41: =SUM(Αναλυτικά!N43:P43) -> 0 | J41: =SUM(Αναλυτικά!Q43:S43) -> 4 | K41: =SUM(Αναλυτικά!T43:U43) -> 0 | L41: =SUM(Αναλυτικά!V43:X43) -> 0 | M41: =SUM(Αναλυτικά!Y43) -> 0 | N41: =SUM(Αναλυτικά!Z43:AA43) -> 3 | O41: =SUM(Αναλυτικά!AB43:AC43) -> 0 | P41: =SUM(Αναλυτικά!AD43:AE43) -> 1 | Q41: =SUM(Αναλυτικά!AF43:AK43) -> 0 | R41: =SUM(Αναλυτικά!AL43:AN43) -> 5 | S41: =SUM(Αναλυτικά!AO43:AP43) -> 1 | T41: 30
A42: 56 | E42: ΔΗΜΟΤΙΚΗ ΕΝΟΤΗΤΑ ΟΙΑΣ
A43: 57 | D43: 37 | E43: =Αναλυτικά!E45 -> ΒΑΖΑΙΟΣ ΔΗΜΗΤΡΙΟΣ του ΙΩΑΝΝΗ | F43: =SUM(Αναλυτικά!F45:J45) -> 35 | G43: =SUM(Αναλυτικά!K45) -> 8 | H43: =SUM(Αναλυτικά!L45:M45) -> 17 | I43: =SUM(Αναλυτικά!N45:P45) -> 24 | J43: =SUM(Αναλυτικά!Q45:S45) -> 29 | K43: =SUM(Αναλυτικά!T45:U45) -> 4 | L43: =SUM(Αναλυτικά!V45:X45) -> 21 | M43: =SUM(Αναλυτικά!Y45) -> 1 | N43: =SUM(Αναλυτικά!Z45:AA45) -> 38 | O43: =SUM(Αναλυτικά!AB45:AC45) -> 9 | P43: =SUM(Αναλυτικά!AD45:AE45) -> 6 | Q43: =SUM(Αναλυτικά!AF45:AK45) -> 33 | R43: =SUM(Αναλυτικά!AL45:AN45) -> 15 | S43: =SUM(Αναλυτικά!AO45:AP45) -> 1 | T43: =SUM(F43:S43) -> 241
A44: 58 | D44: 38 | E44: =Αναλυτικά!E46 -> ΠΑΓΩΝΗΣ ΕΙΡΗΝΙΚΟΣ του ΑΝΤΩΝΙΟΥ | F44: =SUM(Αναλυτικά!F46:J46) -> 31 | G44: =SUM(Αναλυτικά!K46) -> 4 | H44: =SUM(Αναλυτικά!L46:M46) -> 3 | I44: =SUM(Αναλυτικά!N46:P46) -> 27 | J44: =SUM(Αναλυτικά!Q46:S46) -> 39 | K44: =SUM(Αναλυτικά!T46:U46) -> 5 | L44: =SUM(Αναλυτικά!V46:X46) -> 15 | M44: =SUM(Αναλυτικά!Y46) -> 11 | N44: =SUM(Αναλυτικά!Z46:AA46) -> 51 | O44: =SUM(Αναλυτικά!AB46:AC46) -> 9 | P44: =SUM(Αναλυτικά!AD46:AE46) -> 11 | Q44: =SUM(Αναλυτικά!AF46:AK46) -> 32 | R44: =SUM(Αναλυτικά!AL46:AN46) -> 18 | S44: =SUM(Αναλυτικά!AO46:AP46) -> 1 | T44: 257
A45: 59 | D45: 39 | E45: =Αναλυτικά!E47 -> ΠΑΡΑΒΑΛΟΥ ΑΝΤΩΝΙΑ του ΕΥΑΓΓΕΛΟΥ | F45: =SUM(Αναλυτικά!F47:J47) -> 14 | G45: =SUM(Αναλυτικά!K47) -> 6 | H45: =SUM(Αναλυτικά!L47:M47) -> 1 | I45: =SUM(Αναλυτικά!N47:P47) -> 7 | J45: =SUM(Αναλυτικά!Q47:S47) -> 17 | K45: =SUM(Αναλυτικά!T47:U47) -> 1 | L45: =SUM(Αναλυτικά!V47:X47) -> 7 | M45: =SUM(Αναλυτικά!Y47) -> 1 | N45: =SUM(Αναλυτικά!Z47:AA47) -> 36 | O45: =SUM(Αναλυτικά!AB47:AC47) -> 4 | P45: =SUM(Αναλυτικά!AD47:AE47) -> 9 | Q45: =SUM(Αναλυτικά!AF47:AK47) -> 71 | R45: =SUM(Αναλυτικά!AL47:AN47) -> 1 | S45: =SUM(Αναλυτικά!AO47:AP47) -> 48 | T45: 223
A46: 60 | D46: 40 | E46: =Αναλυτικά!E48 -> ΠΑΣΣΑΡΗΣ ΑΛΕΞΑΝΔΡΟΣ του ΠΕΤΡΟΥ | F46: =SUM(Αναλυτικά!F48:J48) -> 44 | G46: =SUM(Αναλυτικά!K48) -> 18 | H46: =SUM(Αναλυτικά!L48:M48) -> 10 | I46: =SUM(Αναλυτικά!N48:P48) -> 43 | J46: =SUM(Αναλυτικά!Q48:S48) -> 38 | K46: =SUM(Αναλυτικά!T48:U48) -> 29 | L46: =SUM(Αναλυτικά!V48:X48) -> 13 | M46: =SUM(Αναλυτικά!Y48) -> 3 | N46: =SUM(Αναλυτικά!Z48:AA48) -> 46 | O46: =SUM(Αναλυτικά!AB48:AC48) -> 4 | P46: =SUM(Αναλυτικά!AD48:AE48) -> 11 | Q46: =SUM(Αναλυτικά!AF48:AK48) -> 46 | R46: =SUM(Αναλυτικά!AL48:AN48) -> 87 | S46: =SUM(Αναλυτικά!AO48:AP48) -> 16 | T46: 408
A47: 61 | D47: 41 | E47: =Αναλυτικά!E49 -> ΧΑΛΑΡΗΣ ΜΑΡΙΟΣ του ΤΖΩΡΤΖΗ | F47: =SUM(Αναλυτικά!F49:J49) -> 21 | G47: =SUM(Αναλυτικά!K49) -> 4 | H47: =SUM(Αναλυτικά!L49:M49) -> 3 | I47: =SUM(Αναλυτικά!N49:P49) -> 10 | J47: =SUM(Αναλυτικά!Q49:S49) -> 51 | K47: =SUM(Αναλυτικά!T49:U49) -> 8 | L47: =SUM(Αναλυτικά!V49:X49) -> 11 | M47: =SUM(Αναλυτικά!Y49) -> 3 | N47: =SUM(Αναλυτικά!Z49:AA49) -> 39 | O47: =SUM(Αναλυτικά!AB49:AC49) -> 8 | P47: =SUM(Αναλυτικά!AD49:AE49) -> 13 | Q47: =SUM(Αναλυτικά!AF49:AK49) -> 52 | R47: =SUM(Αναλυτικά!AL49:AN49) -> 19 | S47: =SUM(Αναλυτικά!AO49:AP49) -> 0 | T47: 242
A48: 63 | B48: Σαντορίνη Θηρασία Ενότητα Αλλαγή | E48: ΔΗΜΟΤΙΚΗ ΕΝΟΤΗΤΑ ΘΗΡΑΣ
A49: 64 | D49: 42 | E49: =Αναλυτικά!E51 -> ΑΛΕΦΡΑΓΚΗΣ ΕΥΑΓΓΕΛΟΣ του ΔΗΜΗΤΡΙΟΥ | F49: =SUM(Αναλυτικά!F51:J51) -> 5 | G49: =SUM(Αναλυτικά!K51) -> 0 | H49: =SUM(Αναλυτικά!L51:M51) -> 0 | I49: =SUM(Αναλυτικά!N51:P51) -> 10 | J49: =SUM(Αναλυτικά!Q51:S51) -> 2 | K49: =SUM(Αναλυτικά!T51:U51) -> 1 | L49: =SUM(Αναλυτικά!V51:X51) -> 1 | M49: =SUM(Αναλυτικά!Y51) -> 0 | N49: =SUM(Αναλυτικά!Z51:AA51) -> 1 | O49: =SUM(Αναλυτικά!AB51:AC51) -> 0 | P49: =SUM(Αναλυτικά!AD51:AE51) -> 24 | Q49: =SUM(Αναλυτικά!AF51:AK51) -> 4 | R49: =SUM(Αναλυτικά!AL51:AN51) -> 3 | S49: =SUM(Αναλυτικά!AO51:AP51) -> 1 | T49: =SUM(F49:S49) -> 52
A50: 65 | D50: 43 | E50: =Αναλυτικά!E52 -> ΑΞΙΩΤΗΣ ΚΩΝΣΤΑΝΤΙΝΟΣ του ΑΝΔΡΟΝΙΚΟΥ | F50: =SUM(Αναλυτικά!F52:J52) -> 12 | G50: =SUM(Αναλυτικά!K52) -> 1 | H50: =SUM(Αναλυτικά!L52:M52) -> 3 | I50: =SUM(Αναλυτικά!N52:P52) -> 9 | J50: =SUM(Αναλυτικά!Q52:S52) -> 4 | K50: =SUM(Αναλυτικά!T52:U52) -> 0 | L50: =SUM(Αναλυτικά!V52:X52) -> 23 | M50: =SUM(Αναλυτικά!Y52) -> 3 | N50: =SUM(Αναλυτικά!Z52:AA52) -> 2 | O50: =SUM(Αναλυτικά!AB52:AC52) -> 1 | P50: =SUM(Αναλυτικά!AD52:AE52) -> 1 | Q50: =SUM(Αναλυτικά!AF52:AK52) -> 10 | R50: =SUM(Αναλυτικά!AL52:AN52) -> 2 | S50: =SUM(Αναλυτικά!AO52:AP52) -> 0 | T50: 71
A51: 66 | D51: 44 | E51: =Αναλυτικά!E53 -> ΑΡΓΥΡΟΣ ΙΩΑΝΝΗΣ (ΓΑΔΑΡΟΣ) του ΚΩΝΣΤΑΝΤΙΝΟΥ | F51: =SUM(Αναλυτικά!F53:J53) -> 93 | G51: =SUM(Αναλυτικά!K53) -> 7 | H51: =SUM(Αναλυτικά!L53:M53) -> 10 | I51: =SUM(Αναλυτικά!N53:P53) -> 8 | J51: =SUM(Αναλυτικά!Q53:S53) -> 12 | K51: =SUM(Αναλυτικά!T53:U53) -> 6 | L51: =SUM(Αναλυτικά!V53:X53) -> 1 | M51: =SUM(Αναλυτικά!Y53) -> 4 | N51: =SUM(Αναλυτικά!Z53:AA53) -> 4 | O51: =SUM(Αναλυτικά!AB53:AC53) -> 10 | P51: =SUM(Αναλυτικά!AD53:AE53) -> 2 | Q51: =SUM(Αναλυτικά!AF53:AK53) -> 55 | R51: =SUM(Αναλυτικά!AL53:AN53) -> 8 | S51: =SUM(Αναλυτικά!AO53:AP53) -> 2 | T51: 222
A52: 67 | D52: 45 | E52: =Αναλυτικά!E54 -> ΒΑΛΒΗ ΜΑΡΓΑΡΙΤΑ (ΓΕΓΕ) του ΜΙΧΑΗΛ | F52: =SUM(Αναλυτικά!F54:J54) -> 5 | G52: =SUM(Αναλυτικά!K54) -> 2 | H52: =SUM(Αναλυτικά!L54:M54) -> 0 | I52: =SUM(Αναλυτικά!N54:P54) -> 0 | J52: =SUM(Αναλυτικά!Q54:S54) -> 2 | K52: =SUM(Αναλυτικά!T54:U54) -> 0 | L52: =SUM(Αναλυτικά!V54:X54) -> 1 | M52: =SUM(Αναλυτικά!Y54) -> 2 | N52: =SUM(Αναλυτικά!Z54:AA54) -> 4 | O52: =SUM(Αναλυτικά!AB54:AC54) -> 0 | P52: =SUM(Αναλυτικά!AD54:AE54) -> 0 | Q52: =SUM(Αναλυτικά!AF54:AK54) -> 148 | R52: =SUM(Αναλυτικά!AL54:AN54) -> 0 | S52: =SUM(Αναλυτικά!AO54:AP54) -> 0 | T52: 164
A53: 68 | D53: 46 | E53: =Αναλυτικά!E55 -> ΒΑΛΒΗΣ ΝΙΚΟΛΑΟΣ (ΜΠΑΜΠΑΚΑΡΗΣ) του ΜΑΡΚΟΥ | F53: =SUM(Αναλυτικά!F55:J55) -> 8 | G53: =SUM(Αναλυτικά!K55) -> 1 | H53: =SUM(Αναλυτικά!L55:M55) -> 1 | I53: =SUM(Αναλυτικά!N55:P55) -> 0 | J53: =SUM(Αναλυτικά!Q55:S55) -> 4 | K53: =SUM(Αναλυτικά!T55:U55) -> 0 | L53: =SUM(Αναλυτικά!V55:X55) -> 4 | M53: =SUM(Αναλυτικά!Y55) -> 0 | N53: =SUM(Αναλυτικά!Z55:AA55) -> 1 | O53: =SUM(Αναλυτικά!AB55:AC55) -> 3 | P53: =SUM(Αναλυτικά!AD55:AE55) -> 8 | Q53: =SUM(Αναλυτικά!AF55:AK55) -> 151 | R53: =SUM(Αναλυτικά!AL55:AN55) -> 1 | S53: =SUM(Αναλυτικά!AO55:AP55) -> 0 | T53: 182
A54: 69 | D54: 47 | E54: =Αναλυτικά!E56 -> ΓΚΛΑΒΑ ΑΔΑΜΑΝΤΙΑ του ΔΗΜΗΤΡΙΟΥ | F54: =SUM(Αναλυτικά!F56:J56) -> 5 | G54: =SUM(Αναλυτικά!K56) -> 2 | H54: =SUM(Αναλυτικά!L56:M56) -> 0 | I54: =SUM(Αναλυτικά!N56:P56) -> 1 | J54: =SUM(Αναλυτικά!Q56:S56) -> 2 | K54: =SUM(Αναλυτικά!T56:U56) -> 0 | L54: =SUM(Αναλυτικά!V56:X56) -> 1 | M54: =SUM(Αναλυτικά!Y56) -> 0 | N54: =SUM(Αναλυτικά!Z56:AA56) -> 15 | O54: =SUM(Αναλυτικά!AB56:AC56) -> 5 | P54: =SUM(Αναλυτικά!AD56:AE56) -> 2 | Q54: =SUM(Αναλυτικά!AF56:AK56) -> 9 | R54: =SUM(Αναλυτικά!AL56:AN56) -> 0 | S54: =SUM(Αναλυτικά!AO56:AP56) -> 0 | T54: 42
A55: 70 | D55: 48 | E55: =Αναλυτικά!E57 -> ΔΑΜΑΣΚΗΝΟΥ ΓΕΩΡΓΙΑ (ΓΕΡΟΜΑΝΩΛΗ) του ΕΛΕΥΘΕΡΙΟΥ | F55: =SUM(Αναλυτικά!F57:J57) -> 7 | G55: =SUM(Αναλυτικά!K57) -> 1 | H55: =SUM(Αναλυτικά!L57:M57) -> 0 | I55: =SUM(Αναλυτικά!N57:P57) -> 1 | J55: =SUM(Αναλυτικά!Q57:S57) -> 2 | K55: =SUM(Αναλυτικά!T57:U57) -> 0 | L55: =SUM(Αναλυτικά!V57:X57) -> 0 | M55: =SUM(Αναλυτικά!Y57) -> 1 | N55: =SUM(Αναλυτικά!Z57:AA57) -> 4 | O55: =SUM(Αναλυτικά!AB57:AC57) -> 9 | P55: =SUM(Αναλυτικά!AD57:AE57) -> 1 | Q55: =SUM(Αναλυτικά!AF57:AK57) -> 11 | R55: =SUM(Αναλυτικά!AL57:AN57) -> 0 | S55: =SUM(Αναλυτικά!AO57:AP57) -> 0 | T55: 37
A56: 71 | D56: 49 | E56: =Αναλυτικά!E58 -> ΔΑΜΙΓΟΥ ΜΑΡΙΑ (ΠΡΟΕΔΡΟΥ) του ΝΙΚΟΛΑΟΥ | F56: =SUM(Αναλυτικά!F58:J58) -> 4 | G56: =SUM(Αναλυτικά!K58) -> 1 | H56: =SUM(Αναλυτικά!L58:M58) -> 33 | I56: =SUM(Αναλυτικά!N58:P58) -> 0 | J56: =SUM(Αναλυτικά!Q58:S58) -> 1 | K56: =SUM(Αναλυτικά!T58:U58) -> 1 | L56: =SUM(Αναλυτικά!V58:X58) -> 2 | M56: =SUM(Αναλυτικά!Y58) -> 5 | N56: =SUM(Αναλυτικά!Z58:AA58) -> 2 | O56: =SUM(Αναλυτικά!AB58:AC58) -> 4 | P56: =SUM(Αναλυτικά!AD58:AE58) -> 2 | Q56: =SUM(Αναλυτικά!AF58:AK58) -> 6 | R56: =SUM(Αναλυτικά!AL58:AN58) -> 1 | S56: =SUM(Αναλυτικά!AO58:AP58) -> 0 | T56: 62
A57: 72 | D57: 50 | E57: =Αναλυτικά!E59 -> ΔΑΡΖΕΝΤΑΣ ΓΕΩΡΓΙΟΣ (ΣΚΟΥΜΠΡΗΣ) του ΙΩΑΝΝΗ | F57: =SUM(Αναλυτικά!F59:J59) -> 19 | G57: =SUM(Αναλυτικά!K59) -> 7 | H57: =SUM(Αναλυτικά!L59:M59) -> 3 | I57: =SUM(Αναλυτικά!N59:P59) -> 2 | J57: =SUM(Αναλυτικά!Q59:S59) -> 12 | K57: =SUM(Αναλυτικά!T59:U59) -> 1 | L57: =SUM(Αναλυτικά!V59:X59) -> 2 | M57: =SUM(Αναλυτικά!Y59) -> 4 | N57: =SUM(Αναλυτικά!Z59:AA59) -> 3 | O57: =SUM(Αναλυτικά!AB59:AC59) -> 3 | P57: =SUM(Αναλυτικά!AD59:AE59) -> 4 | Q57: =SUM(Αναλυτικά!AF59:AK59) -> 321 | R57: =SUM(Αναλυτικά!AL59:AN59) -> 0 | S57: =SUM(Αναλυτικά!AO59:AP59) -> 2 | T57: 383
A58: 73 | D58: 51 | E58: =Αναλυτικά!E60 -> ΔΑΡΖΕΝΤΑΣ ΝΙΚΟΛΑΟΣ (ΝΙΚΑΚΗΣ) του ΖΑΝΝΕ | F58: =SUM(Αναλυτικά!F60:J60) -> 14 | G58: =SUM(Αναλυτικά!K60) -> 0 | H58: =SUM(Αναλυτικά!L60:M60) -> 1 | I58: =SUM(Αναλυτικά!N60:P60) -> 2 | J58: =SUM(Αναλυτικά!Q60:S60) -> 11 | K58: =SUM(Αναλυτικά!T60:U60) -> 3 | L58: =SUM(Αναλυτικά!V60:X60) -> 3 | M58: =SUM(Αναλυτικά!Y60) -> 2 | N58: =SUM(Αναλυτικά!Z60:AA60) -> 1 | O58: =SUM(Αναλυτικά!AB60:AC60) -> 1 | P58: =SUM(Αναλυτικά!AD60:AE60) -> 5 | Q58: =SUM(Αναλυτικά!AF60:AK60) -> 195 | R58: =SUM(Αναλυτικά!AL60:AN60) -> 1 | S58: =SUM(Αναλυτικά!AO60:AP60) -> 0 | T58: 239
A59: 74 | D59: 52 | E59: =Αναλυτικά!E61 -> ΔΡΟΣΟΣ ΖΗΣΗΣ του ΣΠΥΡΟΥ | F59: =SUM(Αναλυτικά!F61:J61) -> 14 | G59: =SUM(Αναλυτικά!K61) -> 3 | H59: =SUM(Αναλυτικά!L61:M61) -> 3 | I59: =SUM(Αναλυτικά!N61:P61) -> 4 | J59: =SUM(Αναλυτικά!Q61:S61) -> 4 | K59: =SUM(Αναλυτικά!T61:U61) -> 4 | L59: =SUM(Αναλυτικά!V61:X61) -> 5 | M59: =SUM(Αναλυτικά!Y61) -> 9 | N59: =SUM(Αναλυτικά!Z61:AA61) -> 4 | O59: =SUM(Αναλυτικά!AB61:AC61) -> 11 | P59: =SUM(Αναλυτικά!AD61:AE61) -> 4 | Q59: =SUM(Αναλυτικά!AF61:AK61) -> 146 | R59: =SUM(Αναλυτικά!AL61:AN61) -> 1 | S59: =SUM(Αναλυτικά!AO61:AP61) -> 0 | T59: 212
A60: 75 | D60: 53 | E60: =Αναλυτικά!E62 -> ΔΡΟΣΟΣ ΣΤΥΛΙΑΝΟΣ (ΦΡΑΓΚΙΑΣ) του ΝΙΚΟΛΑΟΥ | F60: =SUM(Αναλυτικά!F62:J62) -> 12 | G60: =SUM(Αναλυτικά!K62) -> 2 | H60: =SUM(Αναλυτικά!L62:M62) -> 1 | I60: =SUM(Αναλυτικά!N62:P62) -> 1 | J60: =SUM(Αναλυτικά!Q62:S62) -> 4 | K60: =SUM(Αναλυτικά!T62:U62) -> 2 | L60: =SUM(Αναλυτικά!V62:X62) -> 1 | M60: =SUM(Αναλυτικά!Y62) -> 2 | N60: =SUM(Αναλυτικά!Z62:AA62) -> 0 | O60: =SUM(Αναλυτικά!AB62:AC62) -> 1 | P60: =SUM(Αναλυτικά!AD62:AE62) -> 3 | Q60: =SUM(Αναλυτικά!AF62:AK62) -> 123 | R60: =SUM(Αναλυτικά!AL62:AN62) -> 2 | S60: =SUM(Αναλυτικά!AO62:AP62) -> 1 | T60: 155
A61: 76 | D61: 54 | E61: =Αναλυτικά!E63 -> ΔΡΟΣΟΣ ΧΑΡΑΛΑΜΠΟΣ (ΚΟΝΤΟΣ) του ΛΟΥΚΑ | F61: =SUM(Αναλυτικά!F63:J63) -> 3 | G61: =SUM(Αναλυτικά!K63) -> 0 | H61: =SUM(Αναλυτικά!L63:M63) -> 1 | I61: =SUM(Αναλυτικά!N63:P63) -> 1 | J61: =SUM(Αναλυτικά!Q63:S63) -> 0 | K61: =SUM(Αναλυτικά!T63:U63) -> 0 | L61: =SUM(Αναλυτικά!V63:X63) -> 0 | M61: =SUM(Αναλυτικά!Y63) -> 1 | N61: =SUM(Αναλυτικά!Z63:AA63) -> 1 | O61: =SUM(Αναλυτικά!AB63:AC63) -> 0 | P61: =SUM(Αναλυτικά!AD63:AE63) -> 1 | Q61: =SUM(Αναλυτικά!AF63:AK63) -> 51 | R61: =SUM(Αναλυτικά!AL63:AN63) -> 1 | S61: =SUM(Αναλυτικά!AO63:AP63) -> 0 | T61: 60
A62: 77 | D62: 55 | E62: =Αναλυτικά!E64 -> ΔΡΟΣΟΥ ΕΙΡΗΝΗ του ΝΙΚΟΛΑΟΥ | F62: =SUM(Αναλυτικά!F64:J64) -> 3 | G62: =SUM(Αναλυτικά!K64) -> 5 | H62: =SUM(Αναλυτικά!L64:M64) -> 1 | I62: =SUM(Αναλυτικά!N64:P64) -> 0 | J62: =SUM(Αναλυτικά!Q64:S64) -> 1 | K62: =SUM(Αναλυτικά!T64:U64) -> 0 | L62: =SUM(Αναλυτικά!V64:X64) -> 4 | M62: =SUM(Αναλυτικά!Y64) -> 0 | N62: =SUM(Αναλυτικά!Z64:AA64) -> 2 | O62: =SUM(Αναλυτικά!AB64:AC64) -> 0 | P62: =SUM(Αναλυτικά!AD64:AE64) -> 1 | Q62: =SUM(Αναλυτικά!AF64:AK64) -> 50 | R62: =SUM(Αναλυτικά!AL64:AN64) -> 1 | S62: =SUM(Αναλυτικά!AO64:AP64) -> 1 | T62: 69
A63: 78 | D63: 56 | E63: =Αναλυτικά!E65 -> ΖΏΡΖΟΣ ΜΑΡΚΟΣ του ΙΩΑΝΝΗ | F63: =SUM(Αναλυτικά!F65:J65) -> 17 | G63: =SUM(Αναλυτικά!K65) -> 0 | H63: =SUM(Αναλυτικά!L65:M65) -> 0 | I63: =SUM(Αναλυτικά!N65:P65) -> 2 | J63: =SUM(Αναλυτικά!Q65:S65) -> 6 | K63: =SUM(Αναλυτικά!T65:U65) -> 1 | L63: =SUM(Αναλυτικά!V65:X65) -> 2 | M63: =SUM(Αναλυτικά!Y65) -> 14 | N63: =SUM(Αναλυτικά!Z65:AA65) -> 4 | O63: =SUM(Αναλυτικά!AB65:AC65) -> 3 | P63: =SUM(Αναλυτικά!AD65:AE65) -> 2 | Q63: =SUM(Αναλυτικά!AF65:AK65) -> 36 | R63: =SUM(Αναλυτικά!AL65:AN65) -> 1 | S63: =SUM(Αναλυτικά!AO65:AP65) -> 0 | T63: 88
A64: 79 | D64: 57 | E64: =Αναλυτικά!E66 -> ΖΑΜΠΕΛΗΣ ΕΥΑΓΓΕΛΟΣ (ΤΡΑΜΑΤΙΑΣ) του ΓΕΩΡΓΙΟΥ | F64: =SUM(Αναλυτικά!F66:J66) -> 5 | G64: =SUM(Αναλυτικά!K66) -> 0 | H64: =SUM(Αναλυτικά!L66:M66) -> 0 | I64: =SUM(Αναλυτικά!N66:P66) -> 5 | J64: =SUM(Αναλυτικά!Q66:S66) -> 9 | K64: =SUM(Αναλυτικά!T66:U66) -> 1 | L64: =SUM(Αναλυτικά!V66:X66) -> 1 | M64: =SUM(Αναλυτικά!Y66) -> 6 | N64: =SUM(Αναλυτικά!Z66:AA66) -> 6 | O64: =SUM(Αναλυτικά!AB66:AC66) -> 4 | P64: =SUM(Αναλυτικά!AD66:AE66) -> 3 | Q64: =SUM(Αναλυτικά!AF66:AK66) -> 215 | R64: =SUM(Αναλυτικά!AL66:AN66) -> 0 | S64: =SUM(Αναλυτικά!AO66:AP66) -> 0 | T64: 255
A65: 80 | D65: 58 | E65: =Αναλυτικά!E67 -> ΚΑΡΑΜΟΛΕΓΚΟΣ ΑΝΤΩΝΙΟΣ του ΕΛΕΥΘΕΡΙΟΥ | F65: =SUM(Αναλυτικά!F67:J67) -> 25 | G65: =SUM(Αναλυτικά!K67) -> 1 | H65: =SUM(Αναλυτικά!L67:M67) -> 0 | I65: =SUM(Αναλυτικά!N67:P67) -> 7 | J65: =SUM(Αναλυτικά!Q67:S67) -> 19 | K65: =SUM(Αναλυτικά!T67:U67) -> 2 | L65: =SUM(Αναλυτικά!V67:X67) -> 10 | M65: =SUM(Αναλυτικά!Y67) -> 3 | N65: =SUM(Αναλυτικά!Z67:AA67) -> 29 | O65: =SUM(Αναλυτικά!AB67:AC67) -> 12 | P65: =SUM(Αναλυτικά!AD67:AE67) -> 1 | Q65: =SUM(Αναλυτικά!AF67:AK67) -> 24 | R65: =SUM(Αναλυτικά!AL67:AN67) -> 2 | S65: =SUM(Αναλυτικά!AO67:AP67) -> 6 | T65: 141
A66: 81 | D66: 59 | E66: =Αναλυτικά!E68 -> ΚΑΡΑΜΟΛΕΓΚΟΥ ΜΑΡΙΑ του ΕΡΜΟΛΑΟΥ | F66: =SUM(Αναλυτικά!F68:J68) -> 4 | G66: =SUM(Αναλυτικά!K68) -> 1 | H66: =SUM(Αναλυτικά!L68:M68) -> 0 | I66: =SUM(Αναλυτικά!N68:P68) -> 0 | J66: =SUM(Αναλυτικά!Q68:S68) -> 0 | K66: =SUM(Αναλυτικά!T68:U68) -> 0 | L66: =SUM(Αναλυτικά!V68:X68) -> 2 | M66: =SUM(Αναλυτικά!Y68) -> 0 | N66: =SUM(Αναλυτικά!Z68:AA68) -> 1 | O66: =SUM(Αναλυτικά!AB68:AC68) -> 0 | P66: =SUM(Αναλυτικά!AD68:AE68) -> 0 | Q66: =SUM(Αναλυτικά!AF68:AK68) -> 19 | R66: =SUM(Αναλυτικά!AL68:AN68) -> 1 | S66: =SUM(Αναλυτικά!AO68:AP68) -> 0 | T66: 28
A67: 82 | D67: 60 | E67: =Αναλυτικά!E69 -> ΚΑΦΟΥΡΟΣ ΝΙΚΟΛΑΟΣ του ΓΕΡΑΣΙΜΟΥ | F67: =SUM(Αναλυτικά!F69:J69) -> 17 | G67: =SUM(Αναλυτικά!K69) -> 5 | H67: =SUM(Αναλυτικά!L69:M69) -> 46 | I67: =SUM(Αναλυτικά!N69:P69) -> 6 | J67: =SUM(Αναλυτικά!Q69:S69) -> 10 | K67: =SUM(Αναλυτικά!T69:U69) -> 4 | L67: =SUM(Αναλυτικά!V69:X69) -> 3 | M67: =SUM(Αναλυτικά!Y69) -> 0 | N67: =SUM(Αναλυτικά!Z69:AA69) -> 2 | O67: =SUM(Αναλυτικά!AB69:AC69) -> 2 | P67: =SUM(Αναλυτικά!AD69:AE69) -> 1 | Q67: =SUM(Αναλυτικά!AF69:AK69) -> 11 | R67: =SUM(Αναλυτικά!AL69:AN69) -> 1 | S67: =SUM(Αναλυτικά!AO69:AP69) -> 0 | T67: 108
A68: 83 | D68: 61 | E68: =Αναλυτικά!E70 -> ΚΙΤΣΟΥ ΣΟΦΙΑ του ΧΑΡΑΛΑΜΠΟΥ | F68: =SUM(Αναλυτικά!F70:J70) -> 81 | G68: =SUM(Αναλυτικά!K70) -> 21 | H68: =SUM(Αναλυτικά!L70:M70) -> 4 | I68: =SUM(Αναλυτικά!N70:P70) -> 17 | J68: =SUM(Αναλυτικά!Q70:S70) -> 14 | K68: =SUM(Αναλυτικά!T70:U70) -> 7 | L68: =SUM(Αναλυτικά!V70:X70) -> 13 | M68: =SUM(Αναλυτικά!Y70) -> 14 | N68: =SUM(Αναλυτικά!Z70:AA70) -> 5 | O68: =SUM(Αναλυτικά!AB70:AC70) -> 10 | P68: =SUM(Αναλυτικά!AD70:AE70) -> 17 | Q68: =SUM(Αναλυτικά!AF70:AK70) -> 86 | R68: =SUM(Αναλυτικά!AL70:AN70) -> 12 | S68: =SUM(Αναλυτικά!AO70:AP70) -> 4 | T68: 305
A69: 84 | D69: 62 | E69: =Αναλυτικά!E71 -> ΛΕΙΒΑΔΑΡΟΣ ΕΜΜΑΝΟΥΗΛ (ΚΟΣΚΩΤΑΣ) του ΠΕΤΡΟΥ | F69: =SUM(Αναλυτικά!F71:J71) -> 19 | G69: =SUM(Αναλυτικά!K71) -> 2 | H69: =SUM(Αναλυτικά!L71:M71) -> 7 | I69: =SUM(Αναλυτικά!N71:P71) -> 5 | J69: =SUM(Αναλυτικά!Q71:S71) -> 10 | K69: =SUM(Αναλυτικά!T71:U71) -> 3 | L69: =SUM(Αναλυτικά!V71:X71) -> 4 | M69: =SUM(Αναλυτικά!Y71) -> 2 | N69: =SUM(Αναλυτικά!Z71:AA71) -> 10 | O69: =SUM(Αναλυτικά!AB71:AC71) -> 32 | P69: =SUM(Αναλυτικά!AD71:AE71) -> 9 | Q69: =SUM(Αναλυτικά!AF71:AK71) -> 91 | R69: =SUM(Αναλυτικά!AL71:AN71) -> 0 | S69: =SUM(Αναλυτικά!AO71:AP71) -> 8 | T69: 202
A70: 85 | D70: 63 | E70: =Αναλυτικά!E72 -> ΜΑΝΤΟΥΣΗΣ ΓΡΗΓΟΡΙΟΣ του ΘΕΟΔΩΡΟΥ | F70: =SUM(Αναλυτικά!F72:J72) -> 80 | G70: =SUM(Αναλυτικά!K72) -> 19 | H70: =SUM(Αναλυτικά!L72:M72) -> 6 | I70: =SUM(Αναλυτικά!N72:P72) -> 23 | J70: =SUM(Αναλυτικά!Q72:S72) -> 19 | K70: =SUM(Αναλυτικά!T72:U72) -> 7 | L70: =SUM(Αναλυτικά!V72:X72) -> 15 | M70: =SUM(Αναλυτικά!Y72) -> 9 | N70: =SUM(Αναλυτικά!Z72:AA72) -> 6 | O70: =SUM(Αναλυτικά!AB72:AC72) -> 9 | P70: =SUM(Αναλυτικά!AD72:AE72) -> 6 | Q70: =SUM(Αναλυτικά!AF72:AK72) -> 101 | R70: =SUM(Αναλυτικά!AL72:AN72) -> 7 | S70: =SUM(Αναλυτικά!AO72:AP72) -> 5 | T70: 312
A71: 86 | D71: 64 | E71: =Αναλυτικά!E73 -> ΜΠΑΝΟΣ ΔΗΜΗΤΡΙΟΣ του ΕΥΑΓΓΕΛΟΥ | F71: =SUM(Αναλυτικά!F73:J73) -> 10 | G71: =SUM(Αναλυτικά!K73) -> 0 | H71: =SUM(Αναλυτικά!L73:M73) -> 6 | I71: =SUM(Αναλυτικά!N73:P73) -> 3 | J71: =SUM(Αναλυτικά!Q73:S73) -> 7 | K71: =SUM(Αναλυτικά!T73:U73) -> 4 | L71: =SUM(Αναλυτικά!V73:X73) -> 3 | M71: =SUM(Αναλυτικά!Y73) -> 3 | N71: =SUM(Αναλυτικά!Z73:AA73) -> 1 | O71: =SUM(Αναλυτικά!AB73:AC73) -> 1 | P71: =SUM(Αναλυτικά!AD73:AE73) -> 4 | Q71: =SUM(Αναλυτικά!AF73:AK73) -> 154 | R71: =SUM(Αναλυτικά!AL73:AN73) -> 1 | S71: =SUM(Αναλυτικά!AO73:AP73) -> 0 | T71: 197
A72: 87 | D72: 65 | E72: =Αναλυτικά!E74 -> ΜΠΙΣΛΙΑΓΑΚΗ ΒΑΓΙΑ του ΠΑΣΧΑΛΗ | F72: =SUM(Αναλυτικά!F74:J74) -> 9 | G72: =SUM(Αναλυτικά!K74) -> 0 | H72: =SUM(Αναλυτικά!L74:M74) -> 0 | I72: =SUM(Αναλυτικά!N74:P74) -> 0 | J72: =SUM(Αναλυτικά!Q74:S74) -> 1 | K72: =SUM(Αναλυτικά!T74:U74) -> 0 | L72: =SUM(Αναλυτικά!V74:X74) -> 3 | M72: =SUM(Αναλυτικά!Y74) -> 14 | N72: =SUM(Αναλυτικά!Z74:AA74) -> 0 | O72: =SUM(Αναλυτικά!AB74:AC74) -> 0 | P72: =SUM(Αναλυτικά!AD74:AE74) -> 0 | Q72: =SUM(Αναλυτικά!AF74:AK74) -> 6 | R72: =SUM(Αναλυτικά!AL74:AN74) -> 0 | S72: =SUM(Αναλυτικά!AO74:AP74) -> 0 | T72: 33
A73: 88 | D73: 66 | E73: =Αναλυτικά!E75 -> ΜΠΟΥΛΙΕΡΗ ΛΑΜΠΡΙΝΗ (ΣΙΓΑΛΑ) του ΠΑΝΑΓΙΩΤΗ | F73: =SUM(Αναλυτικά!F75:J75) -> 8 | G73: =SUM(Αναλυτικά!K75) -> 0 | H73: =SUM(Αναλυτικά!L75:M75) -> 0 | I73: =SUM(Αναλυτικά!N75:P75) -> 8 | J73: =SUM(Αναλυτικά!Q75:S75) -> 2 | K73: =SUM(Αναλυτικά!T75:U75) -> 1 | L73: =SUM(Αναλυτικά!V75:X75) -> 23 | M73: =SUM(Αναλυτικά!Y75) -> 8 | N73: =SUM(Αναλυτικά!Z75:AA75) -> 0 | O73: =SUM(Αναλυτικά!AB75:AC75) -> 0 | P73: =SUM(Αναλυτικά!AD75:AE75) -> 0 | Q73: =SUM(Αναλυτικά!AF75:AK75) -> 3 | R73: =SUM(Αναλυτικά!AL75:AN75) -> 0 | S73: =SUM(Αναλυτικά!AO75:AP75) -> 0 | T73: 53
A74: 89 | D74: 67 | E74: =Αναλυτικά!E76 -> ΞΑΓΟΡΑΡΗΣ ΑΝΤΩΝΙΟΣ (ΚΑΡΑΜΑΛΗΣ) του ΕΥΣΤΑΘΙΟΥ | F74: =SUM(Αναλυτικά!F76:J76) -> 31 | G74: =SUM(Αναλυτικά!K76) -> 1 | H74: =SUM(Αναλυτικά!L76:M76) -> 1 | I74: =SUM(Αναλυτικά!N76:P76) -> 7 | J74: =SUM(Αναλυτικά!Q76:S76) -> 7 | K74: =SUM(Αναλυτικά!T76:U76) -> 0 | L74: =SUM(Αναλυτικά!V76:X76) -> 4 | M74: =SUM(Αναλυτικά!Y76) -> 1 | N74: =SUM(Αναλυτικά!Z76:AA76) -> 2 | O74: =SUM(Αναλυτικά!AB76:AC76) -> 0 | P74: =SUM(Αναλυτικά!AD76:AE76) -> 1 | Q74: =SUM(Αναλυτικά!AF76:AK76) -> 8 | R74: =SUM(Αναλυτικά!AL76:AN76) -> 0 | S74: =SUM(Αναλυτικά!AO76:AP76) -> 3 | T74: 66
A75: 90 | D75: 68 | E75: =Αναλυτικά!E77 -> ΠΑΛΑΙΟΛΟΓΟΥ ΝΙΚΟΛΙΤΣΑ του ΠΑΝΑΓΙΩΤΗ | F75: =SUM(Αναλυτικά!F77:J77) -> 4 | G75: =SUM(Αναλυτικά!K77) -> 0 | H75: =SUM(Αναλυτικά!L77:M77) -> 0 | I75: =SUM(Αναλυτικά!N77:P77) -> 5 | J75: =SUM(Αναλυτικά!Q77:S77) -> 0 | K75: =SUM(Αναλυτικά!T77:U77) -> 2 | L75: =SUM(Αναλυτικά!V77:X77) -> 2 | M75: =SUM(Αναλυτικά!Y77) -> 0 | N75: =SUM(Αναλυτικά!Z77:AA77) -> 0 | O75: =SUM(Αναλυτικά!AB77:AC77) -> 1 | P75: =SUM(Αναλυτικά!AD77:AE77) -> 0 | Q75: =SUM(Αναλυτικά!AF77:AK77) -> 3 | R75: =SUM(Αναλυτικά!AL77:AN77) -> 0 | S75: =SUM(Αναλυτικά!AO77:AP77) -> 1 | T75: 18
A76: 91 | D76: 69 | E76: =Αναλυτικά!E78 -> ΠΑΠΑΪΩΑΝΝΟΥ ΙΩΑΝΝΑ του ΑΠΟΣΤΟΛΟΥ | F76: =SUM(Αναλυτικά!F78:J78) -> 3 | G76: =SUM(Αναλυτικά!K78) -> 0 | H76: =SUM(Αναλυτικά!L78:M78) -> 0 | I76: =SUM(Αναλυτικά!N78:P78) -> 0 | J76: =SUM(Αναλυτικά!Q78:S78) -> 0 | K76: =SUM(Αναλυτικά!T78:U78) -> 0 | L76: =SUM(Αναλυτικά!V78:X78) -> 0 | M76: =SUM(Αναλυτικά!Y78) -> 4 | N76: =SUM(Αναλυτικά!Z78:AA78) -> 1 | O76: =SUM(Αναλυτικά!AB78:AC78) -> 0 | P76: =SUM(Αναλυτικά!AD78:AE78) -> 0 | Q76: =SUM(Αναλυτικά!AF78:AK78) -> 2 | R76: =SUM(Αναλυτικά!AL78:AN78) -> 0 | S76: =SUM(Αναλυτικά!AO78:AP78) -> 0 | T76: 10
A77: 92 | D77: 70 | E77: =Αναλυτικά!E79 -> ΠΑΣΣΑΡΗΣ ΜΑΡΙΟΣ του ΕΛΕΥΘΕΡΙΟΥ | F77: =SUM(Αναλυτικά!F79:J79) -> 7 | G77: =SUM(Αναλυτικά!K79) -> 11 | H77: =SUM(Αναλυτικά!L79:M79) -> 0 | I77: =SUM(Αναλυτικά!N79:P79) -> 0 | J77: =SUM(Αναλυτικά!Q79:S79) -> 3 | K77: =SUM(Αναλυτικά!T79:U79) -> 1 | L77: =SUM(Αναλυτικά!V79:X79) -> 0 | M77: =SUM(Αναλυτικά!Y79) -> 1 | N77: =SUM(Αναλυτικά!Z79:AA79) -> 0 | O77: =SUM(Αναλυτικά!AB79:AC79) -> 8 | P77: =SUM(Αναλυτικά!AD79:AE79) -> 1 | Q77: =SUM(Αναλυτικά!AF79:AK79) -> 10 | R77: =SUM(Αναλυτικά!AL79:AN79) -> 3 | S77: =SUM(Αναλυτικά!AO79:AP79) -> 0 | T77: 45
A78: 93 | D78: 71 | E78: =Αναλυτικά!E80 -> ΠΡΕΚΑ ΣΠΥΡΙΔΟΥΛΑ του ΑΓΓΕΛΟΥ | F78: =SUM(Αναλυτικά!F80:J80) -> 1 | G78: =SUM(Αναλυτικά!K80) -> 0 | H78: =SUM(Αναλυτικά!L80:M80) -> 0 | I78: =SUM(Αναλυτικά!N80:P80) -> 3 | J78: =SUM(Αναλυτικά!Q80:S80) -> 2 | K78: =SUM(Αναλυτικά!T80:U80) -> 0 | L78: =SUM(Αναλυτικά!V80:X80) -> 3 | M78: =SUM(Αναλυτικά!Y80) -> 0 | N78: =SUM(Αναλυτικά!Z80:AA80) -> 3 | O78: =SUM(Αναλυτικά!AB80:AC80) -> 5 | P78: =SUM(Αναλυτικά!AD80:AE80) -> 1 | Q78: =SUM(Αναλυτικά!AF80:AK80) -> 191 | R78: =SUM(Αναλυτικά!AL80:AN80) -> 1 | S78: =SUM(Αναλυτικά!AO80:AP80) -> 0 | T78: 210
A79: 94 | D79: 72 | E79: =Αναλυτικά!E81 -> ΡΕΝΙΕΡΗΣ ΓΕΩΡΓΙΟΣ (ΜΠΑΤΟΥΡΟΣ) του ΕΛΕΥΘΕΡΙΟΥ | F79: =SUM(Αναλυτικά!F81:J81) -> 56 | G79: =SUM(Αναλυτικά!K81) -> 2 | H79: =SUM(Αναλυτικά!L81:M81) -> 4 | I79: =SUM(Αναλυτικά!N81:P81) -> 2 | J79: =SUM(Αναλυτικά!Q81:S81) -> 0 | K79: =SUM(Αναλυτικά!T81:U81) -> 1 | L79: =SUM(Αναλυτικά!V81:X81) -> 1 | M79: =SUM(Αναλυτικά!Y81) -> 0 | N79: =SUM(Αναλυτικά!Z81:AA81) -> 0 | O79: =SUM(Αναλυτικά!AB81:AC81) -> 0 | P79: =SUM(Αναλυτικά!AD81:AE81) -> 0 | Q79: =SUM(Αναλυτικά!AF81:AK81) -> 9 | R79: =SUM(Αναλυτικά!AL81:AN81) -> 0 | S79: =SUM(Αναλυτικά!AO81:AP81) -> 0 | T79: 75
A80: 95 | D80: 73 | E80: =Αναλυτικά!E82 -> ΡΟΥΣΣΟΣ ΕΥΑΓΓΕΛΟΣ (ΛΟΝΤΟΣ) του ΝΙΚΟΛΑΟΥ | F80: =SUM(Αναλυτικά!F82:J82) -> 9 | G80: =SUM(Αναλυτικά!K82) -> 0 | H80: =SUM(Αναλυτικά!L82:M82) -> 0 | I80: =SUM(Αναλυτικά!N82:P82) -> 21 | J80: =SUM(Αναλυτικά!Q82:S82) -> 0 | K80: =SUM(Αναλυτικά!T82:U82) -> 0 | L80: =SUM(Αναλυτικά!V82:X82) -> 1 | M80: =SUM(Αναλυτικά!Y82) -> 0 | N80: =SUM(Αναλυτικά!Z82:AA82) -> 1 | O80: =SUM(Αναλυτικά!AB82:AC82) -> 2 | P80: =SUM(Αναλυτικά!AD82:AE82) -> 0 | Q80: =SUM(Αναλυτικά!AF82:AK82) -> 5 | R80: =SUM(Αναλυτικά!AL82:AN82) -> 0 | S80: =SUM(Αναλυτικά!AO82:AP82) -> 1 | T80: 40
A81: 96 | D81: 74 | E81: =Αναλυτικά!E83 -> ΣΙΓΑΛΑ ΚΑΛΛΙΟΠΗ (ΒΑΒΟΥΛΑ) συζ. ΑΝΤΩΝΙΟΥ | F81: =SUM(Αναλυτικά!F83:J83) -> 17 | G81: =SUM(Αναλυτικά!K83) -> 2 | H81: =SUM(Αναλυτικά!L83:M83) -> 5 | I81: =SUM(Αναλυτικά!N83:P83) -> 0 | J81: =SUM(Αναλυτικά!Q83:S83) -> 3 | K81: =SUM(Αναλυτικά!T83:U83) -> 0 | L81: =SUM(Αναλυτικά!V83:X83) -> 3 | M81: =SUM(Αναλυτικά!Y83) -> 3 | N81: =SUM(Αναλυτικά!Z83:AA83) -> 4 | O81: =SUM(Αναλυτικά!AB83:AC83) -> 5 | P81: =SUM(Αναλυτικά!AD83:AE83) -> 5 | Q81: =SUM(Αναλυτικά!AF83:AK83) -> 229 | R81: =SUM(Αναλυτικά!AL83:AN83) -> 5 | S81: =SUM(Αναλυτικά!AO83:AP83) -> 20 | T81: 301
A82: 97 | D82: 75 | E82: =Αναλυτικά!E84 -> ΣΤΕΦΑΝΑΚΗΣ ΓΕΩΡΓΙΟΣ του ΔΗΜΗΤΡΙΟΥ | F82: =SUM(Αναλυτικά!F84:J84) -> 22 | G82: =SUM(Αναλυτικά!K84) -> 0 | H82: =SUM(Αναλυτικά!L84:M84) -> 0 | I82: =SUM(Αναλυτικά!N84:P84) -> 6 | J82: =SUM(Αναλυτικά!Q84:S84) -> 10 | K82: =SUM(Αναλυτικά!T84:U84) -> 1 | L82: =SUM(Αναλυτικά!V84:X84) -> 1 | M82: =SUM(Αναλυτικά!Y84) -> 1 | N82: =SUM(Αναλυτικά!Z84:AA84) -> 2 | O82: =SUM(Αναλυτικά!AB84:AC84) -> 3 | P82: =SUM(Αναλυτικά!AD84:AE84) -> 9 | Q82: =SUM(Αναλυτικά!AF84:AK84) -> 292 | R82: =SUM(Αναλυτικά!AL84:AN84) -> 1 | S82: =SUM(Αναλυτικά!AO84:AP84) -> 0 | T82: 348
A83: 98 | D83: 76 | E83: =Αναλυτικά!E85 -> ΦΙΛΙΠΠΑΙΟΥ ΜΑΡΙΑ του ΚΩΝΣΤΑΝΤΙΝΟΥ | F83: =SUM(Αναλυτικά!F85:J85) -> 4 | G83: =SUM(Αναλυτικά!K85) -> 0 | H83: =SUM(Αναλυτικά!L85:M85) -> 0 | I83: =SUM(Αναλυτικά!N85:P85) -> 5 | J83: =SUM(Αναλυτικά!Q85:S85) -> 3 | K83: =SUM(Αναλυτικά!T85:U85) -> 2 | L83: =SUM(Αναλυτικά!V85:X85) -> 5 | M83: =SUM(Αναλυτικά!Y85) -> 0 | N83: =SUM(Αναλυτικά!Z85:AA85) -> 2 | O83: =SUM(Αναλυτικά!AB85:AC85) -> 0 | P83: =SUM(Αναλυτικά!AD85:AE85) -> 2 | Q83: =SUM(Αναλυτικά!AF85:AK85) -> 3 | R83: =SUM(Αναλυτικά!AL85:AN85) -> 1 | S83: =SUM(Αναλυτικά!AO85:AP85) -> 0 | T83: 27
A84: 99 | D84: 77 | E84: =Αναλυτικά!E86 -> ΧΑΛΑΡΗΣ ΕΥΑΓΓΕΛΟΣ (ΣΚΑΡΑΜΑΓΚΑΣ) του ΕΜΜΑΝΟΥΗΛ | F84: =SUM(Αναλυτικά!F86:J86) -> 19 | G84: =SUM(Αναλυτικά!K86) -> 0 | H84: =SUM(Αναλυτικά!L86:M86) -> 4 | I84: =SUM(Αναλυτικά!N86:P86) -> 10 | J84: =SUM(Αναλυτικά!Q86:S86) -> 1 | K84: =SUM(Αναλυτικά!T86:U86) -> 0 | L84: =SUM(Αναλυτικά!V86:X86) -> 3 | M84: =SUM(Αναλυτικά!Y86) -> 2 | N84: =SUM(Αναλυτικά!Z86:AA86) -> 0 | O84: =SUM(Αναλυτικά!AB86:AC86) -> 0 | P84: =SUM(Αναλυτικά!AD86:AE86) -> 2 | Q84: =SUM(Αναλυτικά!AF86:AK86) -> 17 | R84: =SUM(Αναλυτικά!AL86:AN86) -> 1 | S84: =SUM(Αναλυτικά!AO86:AP86) -> 1 | T84: 60
A85: 112 | E85: ΔΗΜΟΤΙΚΗ ΕΝΟΤΗΤΑ ΟΙΑΣ
A86: 113 | D86: 78 | E86: =Αναλυτικά!E88 -> ΚΟΥΡΤΗ ΧΑΡΟΥΛΑ του ΦΩΤΙΟΥ‑ΘΕΟΦΑΝΟΥΣ | F86: =SUM(Αναλυτικά!F88:J88) -> 15 | G86: =SUM(Αναλυτικά!K88) -> 2 | H86: =SUM(Αναλυτικά!L88:M88) -> 1 | I86: =SUM(Αναλυτικά!N88:P88) -> 6 | J86: =SUM(Αναλυτικά!Q88:S88) -> 4 | K86: =SUM(Αναλυτικά!T88:U88) -> 0 | L86: =SUM(Αναλυτικά!V88:X88) -> 10 | M86: =SUM(Αναλυτικά!Y88) -> 3 | N86: =SUM(Αναλυτικά!Z88:AA88) -> 0 | O86: =SUM(Αναλυτικά!AB88:AC88) -> 6 | P86: =SUM(Αναλυτικά!AD88:AE88) -> 6 | Q86: =SUM(Αναλυτικά!AF88:AK88) -> 35 | R86: =SUM(Αναλυτικά!AL88:AN88) -> 9 | S86: =SUM(Αναλυτικά!AO88:AP88) -> 0 | T86: =SUM(F86:S86) -> 97
A87: 114 | D87: 79 | E87: =Αναλυτικά!E89 -> ΜΑΡΚΟΖΑΝΕΣ ΣΙΓΟΥΡΑΣ του ΠΑΝΑΓΙΩΤΗ | F87: =SUM(Αναλυτικά!F89:J89) -> 8 | G87: =SUM(Αναλυτικά!K89) -> 4 | H87: =SUM(Αναλυτικά!L89:M89) -> 0 | I87: =SUM(Αναλυτικά!N89:P89) -> 3 | J87: =SUM(Αναλυτικά!Q89:S89) -> 5 | K87: =SUM(Αναλυτικά!T89:U89) -> 2 | L87: =SUM(Αναλυτικά!V89:X89) -> 2 | M87: =SUM(Αναλυτικά!Y89) -> 4 | N87: =SUM(Αναλυτικά!Z89:AA89) -> 12 | O87: =SUM(Αναλυτικά!AB89:AC89) -> 4 | P87: =SUM(Αναλυτικά!AD89:AE89) -> 7 | Q87: =SUM(Αναλυτικά!AF89:AK89) -> 116 | R87: =SUM(Αναλυτικά!AL89:AN89) -> 11 | S87: =SUM(Αναλυτικά!AO89:AP89) -> 0 | T87: 178
A88: 115 | D88: 80 | E88: =Αναλυτικά!E90 -> ΠΕΛΕΚΑΝΟΥ ΣΟΦΙΑ ‑ ΡΟΖΑ του ΛΟΥΚΑ | F88: =SUM(Αναλυτικά!F90:J90) -> 24 | G88: =SUM(Αναλυτικά!K90) -> 4 | H88: =SUM(Αναλυτικά!L90:M90) -> 26 | I88: =SUM(Αναλυτικά!N90:P90) -> 8 | J88: =SUM(Αναλυτικά!Q90:S90) -> 11 | K88: =SUM(Αναλυτικά!T90:U90) -> 2 | L88: =SUM(Αναλυτικά!V90:X90) -> 7 | M88: =SUM(Αναλυτικά!Y90) -> 6 | N88: =SUM(Αναλυτικά!Z90:AA90) -> 8 | O88: =SUM(Αναλυτικά!AB90:AC90) -> 3 | P88: =SUM(Αναλυτικά!AD90:AE90) -> 3 | Q88: =SUM(Αναλυτικά!AF90:AK90) -> 199 | R88: =SUM(Αναλυτικά!AL90:AN90) -> 15 | S88: =SUM(Αναλυτικά!AO90:AP90) -> 1 | T88: 317
A89: 116 | D89: 81 | E89: =Αναλυτικά!E91 -> ΠΙΤΣΙΚΑΛΗΣ ΜΑΡΙΝΟΣ του ΜΑΤΘΑΙΟΥ | F89: =SUM(Αναλυτικά!F91:J91) -> 12 | G89: =SUM(Αναλυτικά!K91) -> 2 | H89: =SUM(Αναλυτικά!L91:M91) -> 1 | I89: =SUM(Αναλυτικά!N91:P91) -> 6 | J89: =SUM(Αναλυτικά!Q91:S91) -> 5 | K89: =SUM(Αναλυτικά!T91:U91) -> 0 | L89: =SUM(Αναλυτικά!V91:X91) -> 4 | M89: =SUM(Αναλυτικά!Y91) -> 5 | N89: =SUM(Αναλυτικά!Z91:AA91) -> 2 | O89: =SUM(Αναλυτικά!AB91:AC91) -> 7 | P89: =SUM(Αναλυτικά!AD91:AE91) -> 5 | Q89: =SUM(Αναλυτικά!AF91:AK91) -> 71 | R89: =SUM(Αναλυτικά!AL91:AN91) -> 2 | S89: =SUM(Αναλυτικά!AO91:AP91) -> 56 | T89: 178
A90: 117 | D90: 82 | E90: =Αναλυτικά!E92 -> ΣΙΓΑΛΑΣ ΣΤΑΥΡΟΣ του ΠΕΤΡΟΥ | F90: =SUM(Αναλυτικά!F92:J92) -> 58 | G90: =SUM(Αναλυτικά!K92) -> 14 | H90: =SUM(Αναλυτικά!L92:M92) -> 1 | I90: =SUM(Αναλυτικά!N92:P92) -> 12 | J90: =SUM(Αναλυτικά!Q92:S92) -> 18 | K90: =SUM(Αναλυτικά!T92:U92) -> 6 | L90: =SUM(Αναλυτικά!V92:X92) -> 7 | M90: =SUM(Αναλυτικά!Y92) -> 3 | N90: =SUM(Αναλυτικά!Z92:AA92) -> 8 | O90: =SUM(Αναλυτικά!AB92:AC92) -> 12 | P90: =SUM(Αναλυτικά!AD92:AE92) -> 3 | Q90: =SUM(Αναλυτικά!AF92:AK92) -> 197 | R90: =SUM(Αναλυτικά!AL92:AN92) -> 21 | S90: =SUM(Αναλυτικά!AO92:AP92) -> 2 | T90: 362
A91: 119 | B91: Λαϊκή Συσπείρωση | E91: ΔΗΜΟΤΙΚΗ ΕΝΟΤΗΤΑ ΘΗΡΑΣ
A92: 120 | D92: 83 | E92: =Αναλυτικά!E94 -> ΑΡΓΥΡΟΣ ΑΡΤΕΜΙΟΣ του ΙΩΑΝΝΗ | F92: =SUM(Αναλυτικά!F94:J94) -> 4 | G92: =SUM(Αναλυτικά!K94) -> 2 | H92: =SUM(Αναλυτικά!L94:M94) -> 0 | I92: =SUM(Αναλυτικά!N94:P94) -> 1 | J92: =SUM(Αναλυτικά!Q94:S94) -> 1 | K92: =SUM(Αναλυτικά!T94:U94) -> 1 | L92: =SUM(Αναλυτικά!V94:X94) -> 48 | M92: =SUM(Αναλυτικά!Y94) -> 2 | N92: =SUM(Αναλυτικά!Z94:AA94) -> 3 | O92: =SUM(Αναλυτικά!AB94:AC94) -> 3 | P92: =SUM(Αναλυτικά!AD94:AE94) -> 2 | Q92: =SUM(Αναλυτικά!AF94:AK94) -> 2 | R92: =SUM(Αναλυτικά!AL94:AN94) -> 2 | S92: =SUM(Αναλυτικά!AO94:AP94) -> 1 | T92: =SUM(F92:S92) -> 72
A93: 121 | D93: 84 | E93: =Αναλυτικά!E95 -> ΑΣΗΜΑΚΟΠΟΥΛΟΣ ΝΙΚΟΛΑΟΣ του ΓΕΩΡΓΙΟΥ | F93: =SUM(Αναλυτικά!F95:J95) -> 2 | G93: =SUM(Αναλυτικά!K95) -> 10 | H93: =SUM(Αναλυτικά!L95:M95) -> 0 | I93: =SUM(Αναλυτικά!N95:P95) -> 1 | J93: =SUM(Αναλυτικά!Q95:S95) -> 1 | K93: =SUM(Αναλυτικά!T95:U95) -> 0 | L93: =SUM(Αναλυτικά!V95:X95) -> 4 | M93: =SUM(Αναλυτικά!Y95) -> 0 | N93: =SUM(Αναλυτικά!Z95:AA95) -> 0 | O93: =SUM(Αναλυτικά!AB95:AC95) -> 0 | P93: =SUM(Αναλυτικά!AD95:AE95) -> 0 | Q93: =SUM(Αναλυτικά!AF95:AK95) -> 6 | R93: =SUM(Αναλυτικά!AL95:AN95) -> 0 | S93: =SUM(Αναλυτικά!AO95:AP95) -> 0 | T93: 24
A94: 122 | D94: 85 | E94: =Αναλυτικά!E96 -> ΒΑΪΛΑ ΦΩΤΕΙΝΗ του ΑΝΤΩΝΙΟΥ | F94: =SUM(Αναλυτικά!F96:J96) -> 8 | G94: =SUM(Αναλυτικά!K96) -> 1 | H94: =SUM(Αναλυτικά!L96:M96) -> 0 | I94: =SUM(Αναλυτικά!N96:P96) -> 1 | J94: =SUM(Αναλυτικά!Q96:S96) -> 5 | K94: =SUM(Αναλυτικά!T96:U96) -> 1 | L94: =SUM(Αναλυτικά!V96:X96) -> 139 | M94: =SUM(Αναλυτικά!Y96) -> 5 | N94: =SUM(Αναλυτικά!Z96:AA96) -> 1 | O94: =SUM(Αναλυτικά!AB96:AC96) -> 0 | P94: =SUM(Αναλυτικά!AD96:AE96) -> 0 | Q94: =SUM(Αναλυτικά!AF96:AK96) -> 1 | R94: =SUM(Αναλυτικά!AL96:AN96) -> 1 | S94: =SUM(Αναλυτικά!AO96:AP96) -> 0 | T94: 163
A95: 123 | D95: 86 | E95: =Αναλυτικά!E97 -> ΔΑΜΙΓΟΣ ΜΗΝΑΣ του ΝΙΚΟΛΑΟΥ | F95: =SUM(Αναλυτικά!F97:J97) -> 1 | G95: =SUM(Αναλυτικά!K97) -> 1 | H95: =SUM(Αναλυτικά!L97:M97) -> 2 | I95: =SUM(Αναλυτικά!N97:P97) -> 3 | J95: =SUM(Αναλυτικά!Q97:S97) -> 2 | K95: =SUM(Αναλυτικά!T97:U97) -> 1 | L95: =SUM(Αναλυτικά!V97:X97) -> 13 | M95: =SUM(Αναλυτικά!Y97) -> 1 | N95: =SUM(Αναλυτικά!Z97:AA97) -> 2 | O95: =SUM(Αναλυτικά!AB97:AC97) -> 1 | P95: =SUM(Αναλυτικά!AD97:AE97) -> 0 | Q95: =SUM(Αναλυτικά!AF97:AK97) -> 0 | R95: =SUM(Αναλυτικά!AL97:AN97) -> 0 | S95: =SUM(Αναλυτικά!AO97:AP97) -> 0 | T95: 27
A96: 124 | D96: 87 | E96: =Αναλυτικά!E98 -> ΔΙΟΝΥΣΙΟΥ ΑΘΗΝΑ ΕΛΕΥΘΕΡΙΑ του ΙΩΑΝΝΗ | F96: =SUM(Αναλυτικά!F98:J98) -> 1 | G96: =SUM(Αναλυτικά!K98) -> 0 | H96: =SUM(Αναλυτικά!L98:M98) -> 0 | I96: =SUM(Αναλυτικά!N98:P98) -> 2 | J96: =SUM(Αναλυτικά!Q98:S98) -> 4 | K96: =SUM(Αναλυτικά!T98:U98) -> 1 | L96: =SUM(Αναλυτικά!V98:X98) -> 0 | M96: =SUM(Αναλυτικά!Y98) -> 1 | N96: =SUM(Αναλυτικά!Z98:AA98) -> 1 | O96: =SUM(Αναλυτικά!AB98:AC98) -> 1 | P96: =SUM(Αναλυτικά!AD98:AE98) -> 1 | Q96: =SUM(Αναλυτικά!AF98:AK98) -> 3 | R96: =SUM(Αναλυτικά!AL98:AN98) -> 0 | S96: =SUM(Αναλυτικά!AO98:AP98) -> 1 | T96: 16
A97: 125 | D97: 88 | E97: =Αναλυτικά!E99 -> ΔΡΟΣΟΥ ΜΑΡΟΥΣΩ του ΜΑΡΚΟΥ | F97: =SUM(Αναλυτικά!F99:J99) -> 1 | G97: =SUM(Αναλυτικά!K99) -> 0 | H97: =SUM(Αναλυτικά!L99:M99) -> 1 | I97: =SUM(Αναλυτικά!N99:P99) -> 0 | J97: =SUM(Αναλυτικά!Q99:S99) -> 14 | K97: =SUM(Αναλυτικά!T99:U99) -> 3 | L97: =SUM(Αναλυτικά!V99:X99) -> 8 | M97: =SUM(Αναλυτικά!Y99) -> 0 | N97: =SUM(Αναλυτικά!Z99:AA99) -> 1 | O97: =SUM(Αναλυτικά!AB99:AC99) -> 0 | P97: =SUM(Αναλυτικά!AD99:AE99) -> 0 | Q97: =SUM(Αναλυτικά!AF99:AK99) -> 14 | R97: =SUM(Αναλυτικά!AL99:AN99) -> 0 | S97: =SUM(Αναλυτικά!AO99:AP99) -> 0 | T97: 42
A98: 126 | D98: 89 | E98: =Αναλυτικά!E100 -> ΖΩΡΖΟΣ ΜΙΧΑΗΛ του ΘΕΜΙΣΤΟΚΛΗ | F98: =SUM(Αναλυτικά!F100:J100) -> 4 | G98: =SUM(Αναλυτικά!K100) -> 0 | H98: =SUM(Αναλυτικά!L100:M100) -> 0 | I98: =SUM(Αναλυτικά!N100:P100) -> 1 | J98: =SUM(Αναλυτικά!Q100:S100) -> 1 | K98: =SUM(Αναλυτικά!T100:U100) -> 1 | L98: =SUM(Αναλυτικά!V100:X100) -> 11 | M98: =SUM(Αναλυτικά!Y100) -> 1 | N98: =SUM(Αναλυτικά!Z100:AA100) -> 3 | O98: =SUM(Αναλυτικά!AB100:AC100) -> 1 | P98: =SUM(Αναλυτικά!AD100:AE100) -> 25 | Q98: =SUM(Αναλυτικά!AF100:AK100) -> 2 | R98: =SUM(Αναλυτικά!AL100:AN100) -> 0 | S98: =SUM(Αναλυτικά!AO100:AP100) -> 0 | T98: 50
A99: 127 | D99: 90 | E99: =Αναλυτικά!E101 -> ΘΕΟΔΩΡΟΠΟΥΛΟΣ ΚΩΝΣΤΑΝΤΙΝΟΣ του ΠΑΝΑΓΙΩΤΗ | F99: =SUM(Αναλυτικά!F101:J101) -> 4 | G99: =SUM(Αναλυτικά!K101) -> 2 | H99: =SUM(Αναλυτικά!L101:M101) -> 0 | I99: =SUM(Αναλυτικά!N101:P101) -> 3 | J99: =SUM(Αναλυτικά!Q101:S101) -> 68 | K99: =SUM(Αναλυτικά!T101:U101) -> 2 | L99: =SUM(Αναλυτικά!V101:X101) -> 0 | M99: =SUM(Αναλυτικά!Y101) -> 3 | N99: =SUM(Αναλυτικά!Z101:AA101) -> 2 | O99: =SUM(Αναλυτικά!AB101:AC101) -> 2 | P99: =SUM(Αναλυτικά!AD101:AE101) -> 2 | Q99: =SUM(Αναλυτικά!AF101:AK101) -> 16 | R99: =SUM(Αναλυτικά!AL101:AN101) -> 1 | S99: =SUM(Αναλυτικά!AO101:AP101) -> 0 | T99: 105
A100: 128 | D100: 91 | E100: =Αναλυτικά!E102 -> ΚΑΡΑΜΟΛΕΓΚΟΣ ΧΑΡΑΛΑΜΠΟΣ του ΓΕΩΡΓΙΟΥ | F100: =SUM(Αναλυτικά!F102:J102) -> 2 | G100: =SUM(Αναλυτικά!K102) -> 0 | H100: =SUM(Αναλυτικά!L102:M102) -> 0 | I100: =SUM(Αναλυτικά!N102:P102) -> 1 | J100: =SUM(Αναλυτικά!Q102:S102) -> 1 | K100: =SUM(Αναλυτικά!T102:U102) -> 1 | L100: =SUM(Αναλυτικά!V102:X102) -> 43 | M100: =SUM(Αναλυτικά!Y102) -> 0 | N100: =SUM(Αναλυτικά!Z102:AA102) -> 3 | O100: =SUM(Αναλυτικά!AB102:AC102) -> 1 | P100: =SUM(Αναλυτικά!AD102:AE102) -> 6 | Q100: =SUM(Αναλυτικά!AF102:AK102) -> 10 | R100: =SUM(Αναλυτικά!AL102:AN102) -> 0 | S100: =SUM(Αναλυτικά!AO102:AP102) -> 0 | T100: 68
A101: 129 | D101: 92 | E101: =Αναλυτικά!E103 -> ΚΑΡΕΛΗ ΡΟΥΜΠΙΝΗ του ΙΩΑΝΝΗ | F101: =SUM(Αναλυτικά!F103:J103) -> 4 | G101: =SUM(Αναλυτικά!K103) -> 0 | H101: =SUM(Αναλυτικά!L103:M103) -> 0 | I101: =SUM(Αναλυτικά!N103:P103) -> 1 | J101: =SUM(Αναλυτικά!Q103:S103) -> 2 | K101: =SUM(Αναλυτικά!T103:U103) -> 0 | L101: =SUM(Αναλυτικά!V103:X103) -> 1 | M101: =SUM(Αναλυτικά!Y103) -> 0 | N101: =SUM(Αναλυτικά!Z103:AA103) -> 3 | O101: =SUM(Αναλυτικά!AB103:AC103) -> 0 | P101: =SUM(Αναλυτικά!AD103:AE103) -> 5 | Q101: =SUM(Αναλυτικά!AF103:AK103) -> 8 | R101: =SUM(Αναλυτικά!AL103:AN103) -> 0 | S101: =SUM(Αναλυτικά!AO103:AP103) -> 1 | T101: 25
A102: 130 | D102: 93 | E102: =Αναλυτικά!E104 -> ΚΟΚΚΑΛΗ ΑΚΥΛΙΝΑ του ΜΙΧΑΗΛ | F102: =SUM(Αναλυτικά!F104:J104) -> 10 | G102: =SUM(Αναλυτικά!K104) -> 2 | H102: =SUM(Αναλυτικά!L104:M104) -> 0 | I102: =SUM(Αναλυτικά!N104:P104) -> 8 | J102: =SUM(Αναλυτικά!Q104:S104) -> 10 | K102: =SUM(Αναλυτικά!T104:U104) -> 3 | L102: =SUM(Αναλυτικά!V104:X104) -> 47 | M102: =SUM(Αναλυτικά!Y104) -> 4 | N102: =SUM(Αναλυτικά!Z104:AA104) -> 7 | O102: =SUM(Αναλυτικά!AB104:AC104) -> 3 | P102: =SUM(Αναλυτικά!AD104:AE104) -> 5 | Q102: =SUM(Αναλυτικά!AF104:AK104) -> 40 | R102: =SUM(Αναλυτικά!AL104:AN104) -> 2 | S102: =SUM(Αναλυτικά!AO104:AP104) -> 2 | T102: 143
A103: 131 | D103: 94 | E103: =Αναλυτικά!E105 -> ΚΟΚΚΑΛΗ ΑΝΤΩΝΙΑ συζ. ΙΑΚΩΒΟΥ | F103: =SUM(Αναλυτικά!F105:J105) -> 0 | G103: =SUM(Αναλυτικά!K105) -> 1 | H103: =SUM(Αναλυτικά!L105:M105) -> 0 | I103: =SUM(Αναλυτικά!N105:P105) -> 1 | J103: =SUM(Αναλυτικά!Q105:S105) -> 0 | K103: =SUM(Αναλυτικά!T105:U105) -> 1 | L103: =SUM(Αναλυτικά!V105:X105) -> 4 | M103: =SUM(Αναλυτικά!Y105) -> 1 | N103: =SUM(Αναλυτικά!Z105:AA105) -> 3 | O103: =SUM(Αναλυτικά!AB105:AC105) -> 0 | P103: =SUM(Αναλυτικά!AD105:AE105) -> 0 | Q103: =SUM(Αναλυτικά!AF105:AK105) -> 10 | R103: =SUM(Αναλυτικά!AL105:AN105) -> 0 | S103: =SUM(Αναλυτικά!AO105:AP105) -> 1 | T103: 22
A104: 132 | D104: 95 | E104: =Αναλυτικά!E106 -> ΛΙΚΑΪ ΡΕΑ του ΦΕΡΝΤΙΝΑΝΤ | F104: =SUM(Αναλυτικά!F106:J106) -> 0 | G104: =SUM(Αναλυτικά!K106) -> 0 | H104: =SUM(Αναλυτικά!L106:M106) -> 0 | I104: =SUM(Αναλυτικά!N106:P106) -> 0 | J104: =SUM(Αναλυτικά!Q106:S106) -> 1 | K104: =SUM(Αναλυτικά!T106:U106) -> 0 | L104: =SUM(Αναλυτικά!V106:X106) -> 8 | M104: =SUM(Αναλυτικά!Y106) -> 1 | N104: =SUM(Αναλυτικά!Z106:AA106) -> 3 | O104: =SUM(Αναλυτικά!AB106:AC106) -> 1 | P104: =SUM(Αναλυτικά!AD106:AE106) -> 0 | Q104: =SUM(Αναλυτικά!AF106:AK106) -> 3 | R104: =SUM(Αναλυτικά!AL106:AN106) -> 0 | S104: =SUM(Αναλυτικά!AO106:AP106) -> 0 | T104: 17
A105: 133 | D105: 96 | E105: =Αναλυτικά!E107 -> ΛΥΓΝΟΣ ΧΑΡΑΛΑΜΠΟΣ του ΛΟΥΚΑ | F105: =SUM(Αναλυτικά!F107:J107) -> 1 | G105: =SUM(Αναλυτικά!K107) -> 2 | H105: =SUM(Αναλυτικά!L107:M107) -> 0 | I105: =SUM(Αναλυτικά!N107:P107) -> 1 | J105: =SUM(Αναλυτικά!Q107:S107) -> 3 | K105: =SUM(Αναλυτικά!T107:U107) -> 2 | L105: =SUM(Αναλυτικά!V107:X107) -> 52 | M105: =SUM(Αναλυτικά!Y107) -> 1 | N105: =SUM(Αναλυτικά!Z107:AA107) -> 3 | O105: =SUM(Αναλυτικά!AB107:AC107) -> 1 | P105: =SUM(Αναλυτικά!AD107:AE107) -> 1 | Q105: =SUM(Αναλυτικά!AF107:AK107) -> 2 | R105: =SUM(Αναλυτικά!AL107:AN107) -> 1 | S105: =SUM(Αναλυτικά!AO107:AP107) -> 6 | T105: 76
A106: 134 | D106: 97 | E106: =Αναλυτικά!E108 -> ΜΑΡΓΙΩΛΗ ΒΑΣΙΛΙΚΗ του ΧΡΗΣΤΟΥ | F106: =SUM(Αναλυτικά!F108:J108) -> 2 | G106: =SUM(Αναλυτικά!K108) -> 1 | H106: =SUM(Αναλυτικά!L108:M108) -> 0 | I106: =SUM(Αναλυτικά!N108:P108) -> 0 | J106: =SUM(Αναλυτικά!Q108:S108) -> 1 | K106: =SUM(Αναλυτικά!T108:U108) -> 2 | L106: =SUM(Αναλυτικά!V108:X108) -> 2 | M106: =SUM(Αναλυτικά!Y108) -> 0 | N106: =SUM(Αναλυτικά!Z108:AA108) -> 0 | O106: =SUM(Αναλυτικά!AB108:AC108) -> 0 | P106: =SUM(Αναλυτικά!AD108:AE108) -> 0 | Q106: =SUM(Αναλυτικά!AF108:AK108) -> 2 | R106: =SUM(Αναλυτικά!AL108:AN108) -> 0 | S106: =SUM(Αναλυτικά!AO108:AP108) -> 0 | T106: 10
A107: 135 | D107: 98 | E107: =Αναλυτικά!E109 -> ΜΕΝΔΡΙΝΟΣ ΕΜΜΑΝΟΥΗΛ του ΓΕΩΡΓΙΟΥ | F107: =SUM(Αναλυτικά!F109:J109) -> 9 | G107: =SUM(Αναλυτικά!K109) -> 3 | H107: =SUM(Αναλυτικά!L109:M109) -> 0 | I107: =SUM(Αναλυτικά!N109:P109) -> 3 | J107: =SUM(Αναλυτικά!Q109:S109) -> 5 | K107: =SUM(Αναλυτικά!T109:U109) -> 3 | L107: =SUM(Αναλυτικά!V109:X109) -> 23 | M107: =SUM(Αναλυτικά!Y109) -> 1 | N107: =SUM(Αναλυτικά!Z109:AA109) -> 0 | O107: =SUM(Αναλυτικά!AB109:AC109) -> 0 | P107: =SUM(Αναλυτικά!AD109:AE109) -> 1 | Q107: =SUM(Αναλυτικά!AF109:AK109) -> 3 | R107: =SUM(Αναλυτικά!AL109:AN109) -> 0 | S107: =SUM(Αναλυτικά!AO109:AP109) -> 0 | T107: 51
A108: 136 | D108: 99 | E108: =Αναλυτικά!E110 -> ΞΑΓΟΡΑΡΗΣ ΙΑΚΩΒΟΣ του ΑΡΤΕΜΙΟΥ | F108: =SUM(Αναλυτικά!F110:J110) -> 0 | G108: =SUM(Αναλυτικά!K110) -> 0 | H108: =SUM(Αναλυτικά!L110:M110) -> 0 | I108: =SUM(Αναλυτικά!N110:P110) -> 0 | J108: =SUM(Αναλυτικά!Q110:S110) -> 1 | K108: =SUM(Αναλυτικά!T110:U110) -> 0 | L108: =SUM(Αναλυτικά!V110:X110) -> 17 | M108: =SUM(Αναλυτικά!Y110) -> 3 | N108: =SUM(Αναλυτικά!Z110:AA110) -> 0 | O108: =SUM(Αναλυτικά!AB110:AC110) -> 0 | P108: =SUM(Αναλυτικά!AD110:AE110) -> 1 | Q108: =SUM(Αναλυτικά!AF110:AK110) -> 7 | R108: =SUM(Αναλυτικά!AL110:AN110) -> 0 | S108: =SUM(Αναλυτικά!AO110:AP110) -> 0 | T108: 29
A109: 137 | D109: 100 | E109: =Αναλυτικά!E111 -> ΠΑΠΑΓΙΑΝΝΑΚΗ ΔΕΣΠΟΙΝΑ του ΙΩΑΝΝΗ | F109: =SUM(Αναλυτικά!F111:J111) -> 3 | G109: =SUM(Αναλυτικά!K111) -> 0 | H109: =SUM(Αναλυτικά!L111:M111) -> 0 | I109: =SUM(Αναλυτικά!N111:P111) -> 0 | J109: =SUM(Αναλυτικά!Q111:S111) -> 1 | K109: =SUM(Αναλυτικά!T111:U111) -> 0 | L109: =SUM(Αναλυτικά!V111:X111) -> 11 | M109: =SUM(Αναλυτικά!Y111) -> 0 | N109: =SUM(Αναλυτικά!Z111:AA111) -> 0 | O109: =SUM(Αναλυτικά!AB111:AC111) -> 0 | P109: =SUM(Αναλυτικά!AD111:AE111) -> 1 | Q109: =SUM(Αναλυτικά!AF111:AK111) -> 1 | R109: =SUM(Αναλυτικά!AL111:AN111) -> 0 | S109: =SUM(Αναλυτικά!AO111:AP111) -> 0 | T109: 17
A110: 138 | D110: 101 | E110: =Αναλυτικά!E112 -> ΠΑΠΑΔΟΠΟΥΛΟΣ ΙΩΑΝΝΗΣ του ΑΘΑΝΑΣΙΟΥ | F110: =SUM(Αναλυτικά!F112:J112) -> 10 | G110: =SUM(Αναλυτικά!K112) -> 1 | H110: =SUM(Αναλυτικά!L112:M112) -> 0 | I110: =SUM(Αναλυτικά!N112:P112) -> 7 | J110: =SUM(Αναλυτικά!Q112:S112) -> 3 | K110: =SUM(Αναλυτικά!T112:U112) -> 1 | L110: =SUM(Αναλυτικά!V112:X112) -> 9 | M110: =SUM(Αναλυτικά!Y112) -> 1 | N110: =SUM(Αναλυτικά!Z112:AA112) -> 2 | O110: =SUM(Αναλυτικά!AB112:AC112) -> 0 | P110: =SUM(Αναλυτικά!AD112:AE112) -> 4 | Q110: =SUM(Αναλυτικά!AF112:AK112) -> 2 | R110: =SUM(Αναλυτικά!AL112:AN112) -> 1 | S110: =SUM(Αναλυτικά!AO112:AP112) -> 0 | T110: 41
A111: 139 | D111: 102 | E111: =Αναλυτικά!E113 -> ΠΕΛΕΚΗ ΕΛΕΥΘΕΡΙΑ του ΜΙΧΑΗΛ | F111: =SUM(Αναλυτικά!F113:J113) -> 1 | G111: =SUM(Αναλυτικά!K113) -> 0 | H111: =SUM(Αναλυτικά!L113:M113) -> 0 | I111: =SUM(Αναλυτικά!N113:P113) -> 0 | J111: =SUM(Αναλυτικά!Q113:S113) -> 3 | K111: =SUM(Αναλυτικά!T113:U113) -> 0 | L111: =SUM(Αναλυτικά!V113:X113) -> 9 | M111: =SUM(Αναλυτικά!Y113) -> 0 | N111: =SUM(Αναλυτικά!Z113:AA113) -> 3 | O111: =SUM(Αναλυτικά!AB113:AC113) -> 0 | P111: =SUM(Αναλυτικά!AD113:AE113) -> 0 | Q111: =SUM(Αναλυτικά!AF113:AK113) -> 0 | R111: =SUM(Αναλυτικά!AL113:AN113) -> 0 | S111: =SUM(Αναλυτικά!AO113:AP113) -> 0 | T111: 16
A112: 140 | D112: 103 | E112: =Αναλυτικά!E114 -> ΡΑΓΚΟΥΣΗΣ ΓΕΩΡΓΙΟΣ του ΕΥΘΥΜΙΟΥ | F112: =SUM(Αναλυτικά!F114:J114) -> 6 | G112: =SUM(Αναλυτικά!K114) -> 0 | H112: =SUM(Αναλυτικά!L114:M114) -> 0 | I112: =SUM(Αναλυτικά!N114:P114) -> 0 | J112: =SUM(Αναλυτικά!Q114:S114) -> 2 | K112: =SUM(Αναλυτικά!T114:U114) -> 0 | L112: =SUM(Αναλυτικά!V114:X114) -> 0 | M112: =SUM(Αναλυτικά!Y114) -> 0 | N112: =SUM(Αναλυτικά!Z114:AA114) -> 0 | O112: =SUM(Αναλυτικά!AB114:AC114) -> 0 | P112: =SUM(Αναλυτικά!AD114:AE114) -> 1 | Q112: =SUM(Αναλυτικά!AF114:AK114) -> 1 | R112: =SUM(Αναλυτικά!AL114:AN114) -> 3 | S112: =SUM(Αναλυτικά!AO114:AP114) -> 0 | T112: 13
A113: 141 | D113: 104 | E113: =Αναλυτικά!E115 -> ΤΖΟΥΡΟΣ ΕΥΘΥΜΙΟΣ του ΑΠΟΣΤΟΛΟΥ | F113: =SUM(Αναλυτικά!F115:J115) -> 6 | G113: =SUM(Αναλυτικά!K115) -> 1 | H113: =SUM(Αναλυτικά!L115:M115) -> 0 | I113: =SUM(Αναλυτικά!N115:P115) -> 2 | J113: =SUM(Αναλυτικά!Q115:S115) -> 2 | K113: =SUM(Αναλυτικά!T115:U115) -> 0 | L113: =SUM(Αναλυτικά!V115:X115) -> 2 | M113: =SUM(Αναλυτικά!Y115) -> 1 | N113: =SUM(Αναλυτικά!Z115:AA115) -> 2 | O113: =SUM(Αναλυτικά!AB115:AC115) -> 2 | P113: =SUM(Αναλυτικά!AD115:AE115) -> 0 | Q113: =SUM(Αναλυτικά!AF115:AK115) -> 0 | R113: =SUM(Αναλυτικά!AL115:AN115) -> 0 | S113: =SUM(Αναλυτικά!AO115:AP115) -> 0 | T113: 18
A114: 142 | D114: 105 | E114: =Αναλυτικά!E116 -> ΤΣΙΓΓΕΡΛΙΩΤΗΣ ΙΩΑΝΝΗΣ του ΒΑΣΙΛΕΙΟΥ | F114: =SUM(Αναλυτικά!F116:J116) -> 7 | G114: =SUM(Αναλυτικά!K116) -> 1 | H114: =SUM(Αναλυτικά!L116:M116) -> 0 | I114: =SUM(Αναλυτικά!N116:P116) -> 0 | J114: =SUM(Αναλυτικά!Q116:S116) -> 3 | K114: =SUM(Αναλυτικά!T116:U116) -> 2 | L114: =SUM(Αναλυτικά!V116:X116) -> 6 | M114: =SUM(Αναλυτικά!Y116) -> 0 | N114: =SUM(Αναλυτικά!Z116:AA116) -> 6 | O114: =SUM(Αναλυτικά!AB116:AC116) -> 2 | P114: =SUM(Αναλυτικά!AD116:AE116) -> 1 | Q114: =SUM(Αναλυτικά!AF116:AK116) -> 21 | R114: =SUM(Αναλυτικά!AL116:AN116) -> 3 | S114: =SUM(Αναλυτικά!AO116:AP116) -> 0 | T114: 52
A115: 143 | D115: 106 | E115: =Αναλυτικά!E117 -> ΦΟΥΝΤΟΥΛΗΣ ΣΤΑΜΑΤΙΟΣ του ΓΕΩΡΓΙΟΥ | F115: =SUM(Αναλυτικά!F117:J117) -> 15 | G115: =SUM(Αναλυτικά!K117) -> 0 | H115: =SUM(Αναλυτικά!L117:M117) -> 1 | I115: =SUM(Αναλυτικά!N117:P117) -> 1 | J115: =SUM(Αναλυτικά!Q117:S117) -> 6 | K115: =SUM(Αναλυτικά!T117:U117) -> 2 | L115: =SUM(Αναλυτικά!V117:X117) -> 8 | M115: =SUM(Αναλυτικά!Y117) -> 1 | N115: =SUM(Αναλυτικά!Z117:AA117) -> 0 | O115: =SUM(Αναλυτικά!AB117:AC117) -> 0 | P115: =SUM(Αναλυτικά!AD117:AE117) -> 1 | Q115: =SUM(Αναλυτικά!AF117:AK117) -> 0 | R115: =SUM(Αναλυτικά!AL117:AN117) -> 1 | S115: =SUM(Αναλυτικά!AO117:AP117) -> 0 | T115: 36
A116: 144 | D116: 107 | E116: =Αναλυτικά!E118 -> ΦΡΑΓΚΑΚΟΥ ΓΡΗΓΟΡΙΑ (ΡΟΥΛΑ) του ΛΑΖΑΡΟΥ | F116: =SUM(Αναλυτικά!F118:J118) -> 11 | G116: =SUM(Αναλυτικά!K118) -> 0 | H116: =SUM(Αναλυτικά!L118:M118) -> 2 | I116: =SUM(Αναλυτικά!N118:P118) -> 6 | J116: =SUM(Αναλυτικά!Q118:S118) -> 9 | K116: =SUM(Αναλυτικά!T118:U118) -> 3 | L116: =SUM(Αναλυτικά!V118:X118) -> 9 | M116: =SUM(Αναλυτικά!Y118) -> 0 | N116: =SUM(Αναλυτικά!Z118:AA118) -> 6 | O116: =SUM(Αναλυτικά!AB118:AC118) -> 2 | P116: =SUM(Αναλυτικά!AD118:AE118) -> 4 | Q116: =SUM(Αναλυτικά!AF118:AK118) -> 22 | R116: =SUM(Αναλυτικά!AL118:AN118) -> 1 | S116: =SUM(Αναλυτικά!AO118:AP118) -> 0 | T116: 75
D117: 108 | E117: =Αναλυτικά!E119 -> ΦΡΑΓΚΟΥ ΜΑΡΙΑ του ΘΕΟΔΩΡΟΥ | F117: =SUM(Αναλυτικά!F119:J119) -> 1 | G117: =SUM(Αναλυτικά!K119) -> 0 | H117: =SUM(Αναλυτικά!L119:M119) -> 0 | I117: =SUM(Αναλυτικά!N119:P119) -> 0 | J117: =SUM(Αναλυτικά!Q119:S119) -> 1 | K117: =SUM(Αναλυτικά!T119:U119) -> 0 | L117: =SUM(Αναλυτικά!V119:X119) -> 5 | M117: =SUM(Αναλυτικά!Y119) -> 1 | N117: =SUM(Αναλυτικά!Z119:AA119) -> 2 | O117: =SUM(Αναλυτικά!AB119:AC119) -> 0 | P117: =SUM(Αναλυτικά!AD119:AE119) -> 0 | Q117: =SUM(Αναλυτικά!AF119:AK119) -> 1 | R117: =SUM(Αναλυτικά!AL119:AN119) -> 0 | S117: =SUM(Αναλυτικά!AO119:AP119) -> 0
D118: 109 | E118: =Αναλυτικά!E120 -> ΦΥΤΡΟΣ ΓΕΩΡΓΙΟΣ του ΜΗΝΑ | F118: =SUM(Αναλυτικά!F120:J120) -> 0 | G118: =SUM(Αναλυτικά!K120) -> 0 | H118: =SUM(Αναλυτικά!L120:M120) -> 0 | I118: =SUM(Αναλυτικά!N120:P120) -> 1 | J118: =SUM(Αναλυτικά!Q120:S120) -> 1 | K118: =SUM(Αναλυτικά!T120:U120) -> 0 | L118: =SUM(Αναλυτικά!V120:X120) -> 8 | M118: =SUM(Αναλυτικά!Y120) -> 0 | N118: =SUM(Αναλυτικά!Z120:AA120) -> 2 | O118: =SUM(Αναλυτικά!AB120:AC120) -> 0 | P118: =SUM(Αναλυτικά!AD120:AE120) -> 2 | Q118: =SUM(Αναλυτικά!AF120:AK120) -> 2 | R118: =SUM(Αναλυτικά!AL120:AN120) -> 0 | S118: =SUM(Αναλυτικά!AO120:AP120) -> 0
D119: 110 | E119: =Αναλυτικά!E121 -> ΧΑΛΑΡΗ ΘΕΟΔΩΡΑ του ΣΤΕΦΑΝΟΥ | F119: =SUM(Αναλυτικά!F121:J121) -> 2 | G119: =SUM(Αναλυτικά!K121) -> 0 | H119: =SUM(Αναλυτικά!L121:M121) -> 0 | I119: =SUM(Αναλυτικά!N121:P121) -> 1 | J119: =SUM(Αναλυτικά!Q121:S121) -> 1 | K119: =SUM(Αναλυτικά!T121:U121) -> 0 | L119: =SUM(Αναλυτικά!V121:X121) -> 31 | M119: =SUM(Αναλυτικά!Y121) -> 0 | N119: =SUM(Αναλυτικά!Z121:AA121) -> 0 | O119: =SUM(Αναλυτικά!AB121:AC121) -> 0 | P119: =SUM(Αναλυτικά!AD121:AE121) -> 9 | Q119: =SUM(Αναλυτικά!AF121:AK121) -> 1 | R119: =SUM(Αναλυτικά!AL121:AN121) -> 5 | S119: =SUM(Αναλυτικά!AO121:AP121) -> 0
D120: 111 | E120: =Αναλυτικά!E122 -> ΧΑΛΑΡΗΣ ΣΤΕΦΑΝΟΣ του ΓΕΩΡΓΙΟΥ | F120: =SUM(Αναλυτικά!F122:J122) -> 2 | G120: =SUM(Αναλυτικά!K122) -> 1 | H120: =SUM(Αναλυτικά!L122:M122) -> 0 | I120: =SUM(Αναλυτικά!N122:P122) -> 3 | J120: =SUM(Αναλυτικά!Q122:S122) -> 1 | K120: =SUM(Αναλυτικά!T122:U122) -> 1 | L120: =SUM(Αναλυτικά!V122:X122) -> 82 | M120: =SUM(Αναλυτικά!Y122) -> 3 | N120: =SUM(Αναλυτικά!Z122:AA122) -> 0 | O120: =SUM(Αναλυτικά!AB122:AC122) -> 1 | P120: =SUM(Αναλυτικά!AD122:AE122) -> 1 | Q120: =SUM(Αναλυτικά!AF122:AK122) -> 1 | R120: =SUM(Αναλυτικά!AL122:AN122) -> 1 | S120: =SUM(Αναλυτικά!AO122:AP122) -> 0
D121: 112 | E121: =Αναλυτικά!E123 -> ΧΑΡΑΛΑΜΠΑΚΟΣ ΟΡΕΣΤΗΣ του ΒΑΣΙΛΕΙΟΥ | F121: =SUM(Αναλυτικά!F123:J123) -> 17 | G121: =SUM(Αναλυτικά!K123) -> 3 | H121: =SUM(Αναλυτικά!L123:M123) -> 1 | I121: =SUM(Αναλυτικά!N123:P123) -> 6 | J121: =SUM(Αναλυτικά!Q123:S123) -> 4 | K121: =SUM(Αναλυτικά!T123:U123) -> 5 | L121: =SUM(Αναλυτικά!V123:X123) -> 68 | M121: =SUM(Αναλυτικά!Y123) -> 0 | N121: =SUM(Αναλυτικά!Z123:AA123) -> 2 | O121: =SUM(Αναλυτικά!AB123:AC123) -> 3 | P121: =SUM(Αναλυτικά!AD123:AE123) -> 14 | Q121: =SUM(Αναλυτικά!AF123:AK123) -> 12 | R121: =SUM(Αναλυτικά!AL123:AN123) -> 0 | S121: =SUM(Αναλυτικά!AO123:AP123) -> 1
E122: ΔΗΜΟΤΙΚΗ ΕΝΟΤΗΤΑ ΟΙΑΣ
D123: 113 | E123: =Αναλυτικά!E125 -> ΓΙΑΚΙΜΙ ΑΛΚΕΝΤ του ΛΟΥΑΝ | F123: =SUM(Αναλυτικά!F125:J125) -> 7 | G123: =SUM(Αναλυτικά!K125) -> 1 | H123: =SUM(Αναλυτικά!L125:M125) -> 0 | I123: =SUM(Αναλυτικά!N125:P125) -> 3 | J123: =SUM(Αναλυτικά!Q125:S125) -> 9 | K123: =SUM(Αναλυτικά!T125:U125) -> 3 | L123: =SUM(Αναλυτικά!V125:X125) -> 27 | M123: =SUM(Αναλυτικά!Y125) -> 0 | N123: =SUM(Αναλυτικά!Z125:AA125) -> 4 | O123: =SUM(Αναλυτικά!AB125:AC125) -> 0 | P123: =SUM(Αναλυτικά!AD125:AE125) -> 7 | Q123: =SUM(Αναλυτικά!AF125:AK125) -> 16 | R123: =SUM(Αναλυτικά!AL125:AN125) -> 4 | S123: =SUM(Αναλυτικά!AO125:AP125) -> 6
D124: 114 | E124: =Αναλυτικά!E126 -> ΣΑΡΒΑΛΗ ΓΕΩΡΓΙΑ του ΘΕΟΔΩΡΟΥ | F124: =SUM(Αναλυτικά!F126:J126) -> 10 | G124: =SUM(Αναλυτικά!K126) -> 5 | H124: =SUM(Αναλυτικά!L126:M126) -> 1 | I124: =SUM(Αναλυτικά!N126:P126) -> 4 | J124: =SUM(Αναλυτικά!Q126:S126) -> 10 | K124: =SUM(Αναλυτικά!T126:U126) -> 1 | L124: =SUM(Αναλυτικά!V126:X126) -> 16 | M124: =SUM(Αναλυτικά!Y126) -> 3 | N124: =SUM(Αναλυτικά!Z126:AA126) -> 4 | O124: =SUM(Αναλυτικά!AB126:AC126) -> 0 | P124: =SUM(Αναλυτικά!AD126:AE126) -> 5 | Q124: =SUM(Αναλυτικά!AF126:AK126) -> 15 | R124: =SUM(Αναλυτικά!AL126:AN126) -> 4 | S124: =SUM(Αναλυτικά!AO126:AP126) -> 3
A125: 145 | D125: 115 | E125: =Αναλυτικά!E127 -> ΦΟΥΣΤΕΡΗΣ ΠΑΣΧΑΛΗΣ του ΑΡΤΕΜΙΟΥ | F125: =SUM(Αναλυτικά!F127:J127) -> 8 | G125: =SUM(Αναλυτικά!K127) -> 2 | H125: =SUM(Αναλυτικά!L127:M127) -> 0 | I125: =SUM(Αναλυτικά!N127:P127) -> 3 | J125: =SUM(Αναλυτικά!Q127:S127) -> 5 | K125: =SUM(Αναλυτικά!T127:U127) -> 1 | L125: =SUM(Αναλυτικά!V127:X127) -> 60 | M125: =SUM(Αναλυτικά!Y127) -> 2 | N125: =SUM(Αναλυτικά!Z127:AA127) -> 1 | O125: =SUM(Αναλυτικά!AB127:AC127) -> 2 | P125: =SUM(Αναλυτικά!AD127:AE127) -> 8 | Q125: =SUM(Αναλυτικά!AF127:AK127) -> 7 | R125: =SUM(Αναλυτικά!AL127:AN127) -> 4 | S125: =SUM(Αναλυτικά!AO127:AP127) -> 1 | T125: 104
A126: 146 | B126: ΜΑΖΙ ΑΛΛΑΖΟΥΜΕ ΣΑΝΤΟΡΙΝΗ – ΘΗΡΑΣΙΑ | E126: ΔΗΜΟΤΙΚΗ ΕΝΟΤΗΤΑ ΘΗΡΑΣ
A127: 147 | D127: 116 | E127: =Αναλυτικά!E129 -> ΑΛΕΦΡΑΓΚΗΣ ΑΝΤΩΝΙΟΣ του ΑΡΤΕMIΟΥ | F127: =SUM(Αναλυτικά!F129:J129) -> 25 | G127: =SUM(Αναλυτικά!K129) -> 3 | H127: =SUM(Αναλυτικά!L129:M129) -> 2 | I127: =SUM(Αναλυτικά!N129:P129) -> 1 | J127: =SUM(Αναλυτικά!Q129:S129) -> 6 | K127: =SUM(Αναλυτικά!T129:U129) -> 1 | L127: =SUM(Αναλυτικά!V129:X129) -> 5 | M127: =SUM(Αναλυτικά!Y129) -> 1 | N127: =SUM(Αναλυτικά!Z129:AA129) -> 0 | O127: =SUM(Αναλυτικά!AB129:AC129) -> 0 | P127: =SUM(Αναλυτικά!AD129:AE129) -> 4 | Q127: =SUM(Αναλυτικά!AF129:AK129) -> 2 | R127: =SUM(Αναλυτικά!AL129:AN129) -> 1 | S127: =SUM(Αναλυτικά!AO129:AP129) -> 0 | T127: =SUM(F127:S127) -> 51
A128: 148 | D128: 117 | E128: =Αναλυτικά!E130 -> ΑΡΒΑΝΙΤΗΣ ΗΛΙΑΣ του ΕΜΜΑΝΟYHΛ (ΤΟΥΡΚΙ) | F128: =SUM(Αναλυτικά!F130:J130) -> 24 | G128: =SUM(Αναλυτικά!K130) -> 0 | H128: =SUM(Αναλυτικά!L130:M130) -> 0 | I128: =SUM(Αναλυτικά!N130:P130) -> 1 | J128: =SUM(Αναλυτικά!Q130:S130) -> 14 | K128: =SUM(Αναλυτικά!T130:U130) -> 1 | L128: =SUM(Αναλυτικά!V130:X130) -> 4 | M128: =SUM(Αναλυτικά!Y130) -> 2 | N128: =SUM(Αναλυτικά!Z130:AA130) -> 0 | O128: =SUM(Αναλυτικά!AB130:AC130) -> 0 | P128: =SUM(Αναλυτικά!AD130:AE130) -> 4 | Q128: =SUM(Αναλυτικά!AF130:AK130) -> 1 | R128: =SUM(Αναλυτικά!AL130:AN130) -> 1 | S128: =SUM(Αναλυτικά!AO130:AP130) -> 0 | T128: 52
A129: 149 | D129: 118 | E129: =Αναλυτικά!E131 -> ΒΑΜΒΑΚΟΥΣΗ ΣΑΒΒΙΝΑ‑ΕΛΕΥΘΕΡΙΑ του ΑΝΤΩNIOΥ | F129: =SUM(Αναλυτικά!F131:J131) -> 8 | G129: =SUM(Αναλυτικά!K131) -> 1 | H129: =SUM(Αναλυτικά!L131:M131) -> 0 | I129: =SUM(Αναλυτικά!N131:P131) -> 2 | J129: =SUM(Αναλυτικά!Q131:S131) -> 6 | K129: =SUM(Αναλυτικά!T131:U131) -> 1 | L129: =SUM(Αναλυτικά!V131:X131) -> 4 | M129: =SUM(Αναλυτικά!Y131) -> 0 | N129: =SUM(Αναλυτικά!Z131:AA131) -> 17 | O129: =SUM(Αναλυτικά!AB131:AC131) -> 0 | P129: =SUM(Αναλυτικά!AD131:AE131) -> 2 | Q129: =SUM(Αναλυτικά!AF131:AK131) -> 4 | R129: =SUM(Αναλυτικά!AL131:AN131) -> 0 | S129: =SUM(Αναλυτικά!AO131:AP131) -> 0 | T129: 45
A130: 150 | D130: 119 | E130: =Αναλυτικά!E132 -> ΒΑΣΣΑΛΟΣ ΛΟΥΚΑΣ του ΦΡΑΤZEΣΚΟΥ | F130: =SUM(Αναλυτικά!F132:J132) -> 11 | G130: =SUM(Αναλυτικά!K132) -> 1 | H130: =SUM(Αναλυτικά!L132:M132) -> 0 | I130: =SUM(Αναλυτικά!N132:P132) -> 14 | J130: =SUM(Αναλυτικά!Q132:S132) -> 15 | K130: =SUM(Αναλυτικά!T132:U132) -> 9 | L130: =SUM(Αναλυτικά!V132:X132) -> 23 | M130: =SUM(Αναλυτικά!Y132) -> 5 | N130: =SUM(Αναλυτικά!Z132:AA132) -> 2 | O130: =SUM(Αναλυτικά!AB132:AC132) -> 9 | P130: =SUM(Αναλυτικά!AD132:AE132) -> 6 | Q130: =SUM(Αναλυτικά!AF132:AK132) -> 61 | R130: =SUM(Αναλυτικά!AL132:AN132) -> 0 | S130: =SUM(Αναλυτικά!AO132:AP132) -> 1 | T130: 157
A131: 151 | D131: 120 | E131: =Αναλυτικά!E133 -> ΓΙΑΝΝΑΚΙΔΟΥ ΧΑΡΑΛΑΜΠΙΑ του ΧΡΗΣΤΟΥ (ΧΑΡΑ) | F131: =SUM(Αναλυτικά!F133:J133) -> 9 | G131: =SUM(Αναλυτικά!K133) -> 1 | H131: =SUM(Αναλυτικά!L133:M133) -> 0 | I131: =SUM(Αναλυτικά!N133:P133) -> 30 | J131: =SUM(Αναλυτικά!Q133:S133) -> 5 | K131: =SUM(Αναλυτικά!T133:U133) -> 11 | L131: =SUM(Αναλυτικά!V133:X133) -> 15 | M131: =SUM(Αναλυτικά!Y133) -> 7 | N131: =SUM(Αναλυτικά!Z133:AA133) -> 2 | O131: =SUM(Αναλυτικά!AB133:AC133) -> 0 | P131: =SUM(Αναλυτικά!AD133:AE133) -> 0 | Q131: =SUM(Αναλυτικά!AF133:AK133) -> 1 | R131: =SUM(Αναλυτικά!AL133:AN133) -> 2 | S131: =SUM(Αναλυτικά!AO133:AP133) -> 0 | T131: 83
A132: 152 | D132: 121 | E132: =Αναλυτικά!E134 -> ΓΡΑΤΣΙΑΣ ΙΩΑΝΝΗΣ του ΓΕΩΡΓΙΟΥ | F132: =SUM(Αναλυτικά!F134:J134) -> 117 | G132: =SUM(Αναλυτικά!K134) -> 30 | H132: =SUM(Αναλυτικά!L134:M134) -> 6 | I132: =SUM(Αναλυτικά!N134:P134) -> 69 | J132: =SUM(Αναλυτικά!Q134:S134) -> 44 | K132: =SUM(Αναλυτικά!T134:U134) -> 94 | L132: =SUM(Αναλυτικά!V134:X134) -> 69 | M132: =SUM(Αναλυτικά!Y134) -> 19 | N132: =SUM(Αναλυτικά!Z134:AA134) -> 7 | O132: =SUM(Αναλυτικά!AB134:AC134) -> 4 | P132: =SUM(Αναλυτικά!AD134:AE134) -> 3 | Q132: =SUM(Αναλυτικά!AF134:AK134) -> 29 | R132: =SUM(Αναλυτικά!AL134:AN134) -> 21 | S132: =SUM(Αναλυτικά!AO134:AP134) -> 0 | T132: 512
A133: 153 | D133: 122 | E133: =Αναλυτικά!E135 -> ΔΑΜΙΓΟΥ ΜΑΡΙΑ του ΝΙΚΟΛΑΟΥ | F133: =SUM(Αναλυτικά!F135:J135) -> 12 | G133: =SUM(Αναλυτικά!K135) -> 0 | H133: =SUM(Αναλυτικά!L135:M135) -> 9 | I133: =SUM(Αναλυτικά!N135:P135) -> 1 | J133: =SUM(Αναλυτικά!Q135:S135) -> 3 | K133: =SUM(Αναλυτικά!T135:U135) -> 3 | L133: =SUM(Αναλυτικά!V135:X135) -> 5 | M133: =SUM(Αναλυτικά!Y135) -> 0 | N133: =SUM(Αναλυτικά!Z135:AA135) -> 0 | O133: =SUM(Αναλυτικά!AB135:AC135) -> 0 | P133: =SUM(Αναλυτικά!AD135:AE135) -> 0 | Q133: =SUM(Αναλυτικά!AF135:AK135) -> 2 | R133: =SUM(Αναλυτικά!AL135:AN135) -> 2 | S133: =SUM(Αναλυτικά!AO135:AP135) -> 0 | T133: 37
A134: 154 | D134: 123 | E134: =Αναλυτικά!E136 -> ΔΡΟΣΟΣ ΣΠΥΡΙΔΩΝ του ΣΤΑΥΡΟΥ | F134: =SUM(Αναλυτικά!F136:J136) -> 79 | G134: =SUM(Αναλυτικά!K136) -> 5 | H134: =SUM(Αναλυτικά!L136:M136) -> 1 | I134: =SUM(Αναλυτικά!N136:P136) -> 246 | J134: =SUM(Αναλυτικά!Q136:S136) -> 32 | K134: =SUM(Αναλυτικά!T136:U136) -> 30 | L134: =SUM(Αναλυτικά!V136:X136) -> 22 | M134: =SUM(Αναλυτικά!Y136) -> 8 | N134: =SUM(Αναλυτικά!Z136:AA136) -> 3 | O134: =SUM(Αναλυτικά!AB136:AC136) -> 29 | P134: =SUM(Αναλυτικά!AD136:AE136) -> 30 | Q134: =SUM(Αναλυτικά!AF136:AK136) -> 39 | R134: =SUM(Αναλυτικά!AL136:AN136) -> 8 | S134: =SUM(Αναλυτικά!AO136:AP136) -> 3 | T134: 535
A135: 155 | D135: 124 | E135: =Αναλυτικά!E137 -> ΖΑΜΠΕΛΗ ΕΙΡΗΝΗ του ΑΝΑΣΤΑΣΙΟΥ | F135: =SUM(Αναλυτικά!F137:J137) -> 27 | G135: =SUM(Αναλυτικά!K137) -> 1 | H135: =SUM(Αναλυτικά!L137:M137) -> 2 | I135: =SUM(Αναλυτικά!N137:P137) -> 2 | J135: =SUM(Αναλυτικά!Q137:S137) -> 2 | K135: =SUM(Αναλυτικά!T137:U137) -> 1 | L135: =SUM(Αναλυτικά!V137:X137) -> 4 | M135: =SUM(Αναλυτικά!Y137) -> 0 | N135: =SUM(Αναλυτικά!Z137:AA137) -> 1 | O135: =SUM(Αναλυτικά!AB137:AC137) -> 1 | P135: =SUM(Αναλυτικά!AD137:AE137) -> 0 | Q135: =SUM(Αναλυτικά!AF137:AK137) -> 3 | R135: =SUM(Αναλυτικά!AL137:AN137) -> 3 | S135: =SUM(Αναλυτικά!AO137:AP137) -> 0 | T135: 47
A136: 156 | D136: 125 | E136: =Αναλυτικά!E138 -> ΖΑΜΠΕΛΗΣ ΓΕΩΡΓΙΟΣ του ΝΙΚΟΛΑΟΥ | F136: =SUM(Αναλυτικά!F138:J138) -> 5 | G136: =SUM(Αναλυτικά!K138) -> 1 | H136: =SUM(Αναλυτικά!L138:M138) -> 1 | I136: =SUM(Αναλυτικά!N138:P138) -> 1 | J136: =SUM(Αναλυτικά!Q138:S138) -> 3 | K136: =SUM(Αναλυτικά!T138:U138) -> 5 | L136: =SUM(Αναλυτικά!V138:X138) -> 1 | M136: =SUM(Αναλυτικά!Y138) -> 1 | N136: =SUM(Αναλυτικά!Z138:AA138) -> 2 | O136: =SUM(Αναλυτικά!AB138:AC138) -> 8 | P136: =SUM(Αναλυτικά!AD138:AE138) -> 4 | Q136: =SUM(Αναλυτικά!AF138:AK138) -> 30 | R136: =SUM(Αναλυτικά!AL138:AN138) -> 0 | S136: =SUM(Αναλυτικά!AO138:AP138) -> 0 | T136: 62
A137: 157 | D137: 126 | E137: =Αναλυτικά!E139 -> ΖΩΤΟΥ ΑΝΤΩΝΙΑ του ΙΩΑΝΝΗ (ΤΟΝΙΑ) | F137: =SUM(Αναλυτικά!F139:J139) -> 19 | G137: =SUM(Αναλυτικά!K139) -> 1 | H137: =SUM(Αναλυτικά!L139:M139) -> 0 | I137: =SUM(Αναλυτικά!N139:P139) -> 6 | J137: =SUM(Αναλυτικά!Q139:S139) -> 0 | K137: =SUM(Αναλυτικά!T139:U139) -> 1 | L137: =SUM(Αναλυτικά!V139:X139) -> 2 | M137: =SUM(Αναλυτικά!Y139) -> 1 | N137: =SUM(Αναλυτικά!Z139:AA139) -> 0 | O137: =SUM(Αναλυτικά!AB139:AC139) -> 0 | P137: =SUM(Αναλυτικά!AD139:AE139) -> 0 | Q137: =SUM(Αναλυτικά!AF139:AK139) -> 2 | R137: =SUM(Αναλυτικά!AL139:AN139) -> 0 | S137: =SUM(Αναλυτικά!AO139:AP139) -> 0 | T137: 32
A138: 158 | D138: 127 | E138: =Αναλυτικά!E140 -> ΚΑΛΑΪΔΟΠΟΥΛΟΥ ΚΥΡΙΑΚΗ του ΜΙΧΑΗΛ (ΚΑΙΤΗ) | F138: =SUM(Αναλυτικά!F140:J140) -> 4 | G138: =SUM(Αναλυτικά!K140) -> 1 | H138: =SUM(Αναλυτικά!L140:M140) -> 1 | I138: =SUM(Αναλυτικά!N140:P140) -> 9 | J138: =SUM(Αναλυτικά!Q140:S140) -> 1 | K138: =SUM(Αναλυτικά!T140:U140) -> 2 | L138: =SUM(Αναλυτικά!V140:X140) -> 4 | M138: =SUM(Αναλυτικά!Y140) -> 0 | N138: =SUM(Αναλυτικά!Z140:AA140) -> 0 | O138: =SUM(Αναλυτικά!AB140:AC140) -> 0 | P138: =SUM(Αναλυτικά!AD140:AE140) -> 0 | Q138: =SUM(Αναλυτικά!AF140:AK140) -> 4 | R138: =SUM(Αναλυτικά!AL140:AN140) -> 0 | S138: =SUM(Αναλυτικά!AO140:AP140) -> 0 | T138: 26
A139: 159 | D139: 128 | E139: =Αναλυτικά!E141 -> ΚΑΛΟΥΔΗΣ ΘΕΟΔΩΡΟΣ του ΕΛΕΥΘΕΡΙΟΥ | F139: =SUM(Αναλυτικά!F141:J141) -> 13 | G139: =SUM(Αναλυτικά!K141) -> 9 | H139: =SUM(Αναλυτικά!L141:M141) -> 5 | I139: =SUM(Αναλυτικά!N141:P141) -> 12 | J139: =SUM(Αναλυτικά!Q141:S141) -> 27 | K139: =SUM(Αναλυτικά!T141:U141) -> 31 | L139: =SUM(Αναλυτικά!V141:X141) -> 23 | M139: =SUM(Αναλυτικά!Y141) -> 2 | N139: =SUM(Αναλυτικά!Z141:AA141) -> 4 | O139: =SUM(Αναλυτικά!AB141:AC141) -> 1 | P139: =SUM(Αναλυτικά!AD141:AE141) -> 3 | Q139: =SUM(Αναλυτικά!AF141:AK141) -> 6 | R139: =SUM(Αναλυτικά!AL141:AN141) -> 0 | S139: =SUM(Αναλυτικά!AO141:AP141) -> 0 | T139: 136
A140: 160 | D140: 129 | E140: =Αναλυτικά!E142 -> ΚΑΝΤΖΕΛΗΣ ΧΡΗΣΤΟΣ του ΗΛΙΑ | F140: =SUM(Αναλυτικά!F142:J142) -> 12 | G140: =SUM(Αναλυτικά!K142) -> 4 | H140: =SUM(Αναλυτικά!L142:M142) -> 0 | I140: =SUM(Αναλυτικά!N142:P142) -> 12 | J140: =SUM(Αναλυτικά!Q142:S142) -> 4 | K140: =SUM(Αναλυτικά!T142:U142) -> 11 | L140: =SUM(Αναλυτικά!V142:X142) -> 40 | M140: =SUM(Αναλυτικά!Y142) -> 11 | N140: =SUM(Αναλυτικά!Z142:AA142) -> 3 | O140: =SUM(Αναλυτικά!AB142:AC142) -> 0 | P140: =SUM(Αναλυτικά!AD142:AE142) -> 4 | Q140: =SUM(Αναλυτικά!AF142:AK142) -> 7 | R140: =SUM(Αναλυτικά!AL142:AN142) -> 5 | S140: =SUM(Αναλυτικά!AO142:AP142) -> 0 | T140: 113
A141: 161 | D141: 130 | E141: =Αναλυτικά!E143 -> ΚΑΤΣΙΠΗΣ ΑΝΤΩΝΙΟΣ του ΓΕΩΡΓΙΟΥ | F141: =SUM(Αναλυτικά!F143:J143) -> 44 | G141: =SUM(Αναλυτικά!K143) -> 4 | H141: =SUM(Αναλυτικά!L143:M143) -> 0 | I141: =SUM(Αναλυτικά!N143:P143) -> 3 | J141: =SUM(Αναλυτικά!Q143:S143) -> 22 | K141: =SUM(Αναλυτικά!T143:U143) -> 13 | L141: =SUM(Αναλυτικά!V143:X143) -> 3 | M141: =SUM(Αναλυτικά!Y143) -> 2 | N141: =SUM(Αναλυτικά!Z143:AA143) -> 5 | O141: =SUM(Αναλυτικά!AB143:AC143) -> 10 | P141: =SUM(Αναλυτικά!AD143:AE143) -> 3 | Q141: =SUM(Αναλυτικά!AF143:AK143) -> 55 | R141: =SUM(Αναλυτικά!AL143:AN143) -> 0 | S141: =SUM(Αναλυτικά!AO143:AP143) -> 0 | T141: 164
A142: 162 | D142: 131 | E142: =Αναλυτικά!E144 -> ΚΑΤΣΙΠΗΣ ΕΜΜΑΝΟΥΗΛ του ΝΙΚΟΛΑΟΥ (ΣΠΕΗΣ) | F142: =SUM(Αναλυτικά!F144:J144) -> 5 | G142: =SUM(Αναλυτικά!K144) -> 0 | H142: =SUM(Αναλυτικά!L144:M144) -> 0 | I142: =SUM(Αναλυτικά!N144:P144) -> 2 | J142: =SUM(Αναλυτικά!Q144:S144) -> 3 | K142: =SUM(Αναλυτικά!T144:U144) -> 1 | L142: =SUM(Αναλυτικά!V144:X144) -> 1 | M142: =SUM(Αναλυτικά!Y144) -> 0 | N142: =SUM(Αναλυτικά!Z144:AA144) -> 4 | O142: =SUM(Αναλυτικά!AB144:AC144) -> 3 | P142: =SUM(Αναλυτικά!AD144:AE144) -> 0 | Q142: =SUM(Αναλυτικά!AF144:AK144) -> 40 | R142: =SUM(Αναλυτικά!AL144:AN144) -> 0 | S142: =SUM(Αναλυτικά!AO144:AP144) -> 0 | T142: 59
A143: 163 | D143: 132 | E143: =Αναλυτικά!E145 -> ΚΑΤΣΙΠΗΣ ΣΑΜΨΩΝ του ΙΑΚΩΒΟΥ | F143: =SUM(Αναλυτικά!F145:J145) -> 21 | G143: =SUM(Αναλυτικά!K145) -> 6 | H143: =SUM(Αναλυτικά!L145:M145) -> 2 | I143: =SUM(Αναλυτικά!N145:P145) -> 5 | J143: =SUM(Αναλυτικά!Q145:S145) -> 8 | K143: =SUM(Αναλυτικά!T145:U145) -> 8 | L143: =SUM(Αναλυτικά!V145:X145) -> 6 | M143: =SUM(Αναλυτικά!Y145) -> 6 | N143: =SUM(Αναλυτικά!Z145:AA145) -> 16 | O143: =SUM(Αναλυτικά!AB145:AC145) -> 11 | P143: =SUM(Αναλυτικά!AD145:AE145) -> 5 | Q143: =SUM(Αναλυτικά!AF145:AK145) -> 33 | R143: =SUM(Αναλυτικά!AL145:AN145) -> 0 | S143: =SUM(Αναλυτικά!AO145:AP145) -> 0 | T143: 127
A144: 164 | D144: 133 | E144: =Αναλυτικά!E146 -> ΚΟΥΡΟΥΠΗ ΑΙΚΑΤΕΡΙΝΗ του ΝΙΚΟΛΑΟΥ | F144: =SUM(Αναλυτικά!F146:J146) -> 7 | G144: =SUM(Αναλυτικά!K146) -> 1 | H144: =SUM(Αναλυτικά!L146:M146) -> 0 | I144: =SUM(Αναλυτικά!N146:P146) -> 1 | J144: =SUM(Αναλυτικά!Q146:S146) -> 4 | K144: =SUM(Αναλυτικά!T146:U146) -> 0 | L144: =SUM(Αναλυτικά!V146:X146) -> 2 | M144: =SUM(Αναλυτικά!Y146) -> 0 | N144: =SUM(Αναλυτικά!Z146:AA146) -> 0 | O144: =SUM(Αναλυτικά!AB146:AC146) -> 0 | P144: =SUM(Αναλυτικά!AD146:AE146) -> 0 | Q144: =SUM(Αναλυτικά!AF146:AK146) -> 2 | R144: =SUM(Αναλυτικά!AL146:AN146) -> 1 | S144: =SUM(Αναλυτικά!AO146:AP146) -> 0 | T144: 18
A145: 165 | D145: 134 | E145: =Αναλυτικά!E147 -> ΛΙΓΝΟΥ ΠΑΡΑΣΚΕΥΗ του ΕΜΜΑΝΟΥΗΛ | F145: =SUM(Αναλυτικά!F147:J147) -> 28 | G145: =SUM(Αναλυτικά!K147) -> 12 | H145: =SUM(Αναλυτικά!L147:M147) -> 0 | I145: =SUM(Αναλυτικά!N147:P147) -> 8 | J145: =SUM(Αναλυτικά!Q147:S147) -> 9 | K145: =SUM(Αναλυτικά!T147:U147) -> 60 | L145: =SUM(Αναλυτικά!V147:X147) -> 11 | M145: =SUM(Αναλυτικά!Y147) -> 4 | N145: =SUM(Αναλυτικά!Z147:AA147) -> 3 | O145: =SUM(Αναλυτικά!AB147:AC147) -> 3 | P145: =SUM(Αναλυτικά!AD147:AE147) -> 7 | Q145: =SUM(Αναλυτικά!AF147:AK147) -> 9 | R145: =SUM(Αναλυτικά!AL147:AN147) -> 2 | S145: =SUM(Αναλυτικά!AO147:AP147) -> 0 | T145: 156
A146: 166 | D146: 135 | E146: =Αναλυτικά!E148 -> ΜΑΪΝΑΣ ΙΩΑΝΝΗΣ του ΝΙΚΟΛΑΟΥ | F146: =SUM(Αναλυτικά!F148:J148) -> 34 | G146: =SUM(Αναλυτικά!K148) -> 31 | H146: =SUM(Αναλυτικά!L148:M148) -> 3 | I146: =SUM(Αναλυτικά!N148:P148) -> 27 | J146: =SUM(Αναλυτικά!Q148:S148) -> 41 | K146: =SUM(Αναλυτικά!T148:U148) -> 98 | L146: =SUM(Αναλυτικά!V148:X148) -> 154 | M146: =SUM(Αναλυτικά!Y148) -> 8 | N146: =SUM(Αναλυτικά!Z148:AA148) -> 9 | O146: =SUM(Αναλυτικά!AB148:AC148) -> 5 | P146: =SUM(Αναλυτικά!AD148:AE148) -> 9 | Q146: =SUM(Αναλυτικά!AF148:AK148) -> 58 | R146: =SUM(Αναλυτικά!AL148:AN148) -> 7 | S146: =SUM(Αναλυτικά!AO148:AP148) -> 3 | T146: 487
A147: 167 | D147: 136 | E147: =Αναλυτικά!E149 -> ΝΟΜΙΚΟΣ ΕΥΘΥΜΙΟΣ του ΓΕΩΡΓΙΟΥ | F147: =SUM(Αναλυτικά!F149:J149) -> 9 | G147: =SUM(Αναλυτικά!K149) -> 0 | H147: =SUM(Αναλυτικά!L149:M149) -> 0 | I147: =SUM(Αναλυτικά!N149:P149) -> 6 | J147: =SUM(Αναλυτικά!Q149:S149) -> 4 | K147: =SUM(Αναλυτικά!T149:U149) -> 6 | L147: =SUM(Αναλυτικά!V149:X149) -> 4 | M147: =SUM(Αναλυτικά!Y149) -> 0 | N147: =SUM(Αναλυτικά!Z149:AA149) -> 3 | O147: =SUM(Αναλυτικά!AB149:AC149) -> 20 | P147: =SUM(Αναλυτικά!AD149:AE149) -> 6 | Q147: =SUM(Αναλυτικά!AF149:AK149) -> 10 | R147: =SUM(Αναλυτικά!AL149:AN149) -> 0 | S147: =SUM(Αναλυτικά!AO149:AP149) -> 0 | T147: 68
A148: 168 | D148: 137 | E148: =Αναλυτικά!E150 -> ΝΟΜΙΚΟΥ ΚΥΡΙΑΚΗ του ΙΩΑΝΝΗ (ΚΕΛΛΥ) | F148: =SUM(Αναλυτικά!F150:J150) -> 5 | G148: =SUM(Αναλυτικά!K150) -> 2 | H148: =SUM(Αναλυτικά!L150:M150) -> 0 | I148: =SUM(Αναλυτικά!N150:P150) -> 8 | J148: =SUM(Αναλυτικά!Q150:S150) -> 4 | K148: =SUM(Αναλυτικά!T150:U150) -> 2 | L148: =SUM(Αναλυτικά!V150:X150) -> 0 | M148: =SUM(Αναλυτικά!Y150) -> 0 | N148: =SUM(Αναλυτικά!Z150:AA150) -> 1 | O148: =SUM(Αναλυτικά!AB150:AC150) -> 5 | P148: =SUM(Αναλυτικά!AD150:AE150) -> 12 | Q148: =SUM(Αναλυτικά!AF150:AK150) -> 17 | R148: =SUM(Αναλυτικά!AL150:AN150) -> 0 | S148: =SUM(Αναλυτικά!AO150:AP150) -> 0 | T148: 56
A149: 169 | D149: 138 | E149: =Αναλυτικά!E151 -> ΝΟΜΙΚΟΥ ΜΑΡΙΑ του ΜΑΡΚΟΥ (ΜΟΔΑ ΜΑΡΙΑ) | F149: =SUM(Αναλυτικά!F151:J151) -> 54 | G149: =SUM(Αναλυτικά!K151) -> 4 | H149: =SUM(Αναλυτικά!L151:M151) -> 3 | I149: =SUM(Αναλυτικά!N151:P151) -> 4 | J149: =SUM(Αναλυτικά!Q151:S151) -> 9 | K149: =SUM(Αναλυτικά!T151:U151) -> 7 | L149: =SUM(Αναλυτικά!V151:X151) -> 1 | M149: =SUM(Αναλυτικά!Y151) -> 1 | N149: =SUM(Αναλυτικά!Z151:AA151) -> 4 | O149: =SUM(Αναλυτικά!AB151:AC151) -> 7 | P149: =SUM(Αναλυτικά!AD151:AE151) -> 2 | Q149: =SUM(Αναλυτικά!AF151:AK151) -> 25 | R149: =SUM(Αναλυτικά!AL151:AN151) -> 0 | S149: =SUM(Αναλυτικά!AO151:AP151) -> 0 | T149: 121
A150: 170 | D150: 139 | E150: =Αναλυτικά!E152 -> ΠΑΓΚΑΛΙΔΗΣ ΚΥΡΟΣ του ΧΡΗΣΤΟΥ | F150: =SUM(Αναλυτικά!F152:J152) -> 17 | G150: =SUM(Αναλυτικά!K152) -> 12 | H150: =SUM(Αναλυτικά!L152:M152) -> 0 | I150: =SUM(Αναλυτικά!N152:P152) -> 13 | J150: =SUM(Αναλυτικά!Q152:S152) -> 15 | K150: =SUM(Αναλυτικά!T152:U152) -> 6 | L150: =SUM(Αναλυτικά!V152:X152) -> 14 | M150: =SUM(Αναλυτικά!Y152) -> 13 | N150: =SUM(Αναλυτικά!Z152:AA152) -> 0 | O150: =SUM(Αναλυτικά!AB152:AC152) -> 2 | P150: =SUM(Αναλυτικά!AD152:AE152) -> 3 | Q150: =SUM(Αναλυτικά!AF152:AK152) -> 4 | R150: =SUM(Αναλυτικά!AL152:AN152) -> 3 | S150: =SUM(Αναλυτικά!AO152:AP152) -> 0 | T150: 102
A151: 171 | D151: 140 | E151: =Αναλυτικά!E153 -> ΠΑΠΑΓΙΑΝΝΟΠΟΥΛΟΥ ΝΕΦΕΛΗ ΕΥΑΓΓΕΛΙΑ του ΓΕΩΡΓΙΟΥ | F151: =SUM(Αναλυτικά!F153:J153) -> 10 | G151: =SUM(Αναλυτικά!K153) -> 0 | H151: =SUM(Αναλυτικά!L153:M153) -> 0 | I151: =SUM(Αναλυτικά!N153:P153) -> 5 | J151: =SUM(Αναλυτικά!Q153:S153) -> 4 | K151: =SUM(Αναλυτικά!T153:U153) -> 0 | L151: =SUM(Αναλυτικά!V153:X153) -> 6 | M151: =SUM(Αναλυτικά!Y153) -> 2 | N151: =SUM(Αναλυτικά!Z153:AA153) -> 1 | O151: =SUM(Αναλυτικά!AB153:AC153) -> 1 | P151: =SUM(Αναλυτικά!AD153:AE153) -> 1 | Q151: =SUM(Αναλυτικά!AF153:AK153) -> 3 | R151: =SUM(Αναλυτικά!AL153:AN153) -> 4 | S151: =SUM(Αναλυτικά!AO153:AP153) -> 0 | T151: 37
A152: 172 | D152: 141 | E152: =Αναλυτικά!E154 -> ΠΟΥΛΗΣ ΧΑΡΑΛΑΜΠΟΣ του ΦΑΝΟΥΡΙΟΥ | F152: =SUM(Αναλυτικά!F154:J154) -> 1 | G152: =SUM(Αναλυτικά!K154) -> 0 | H152: =SUM(Αναλυτικά!L154:M154) -> 1 | I152: =SUM(Αναλυτικά!N154:P154) -> 2 | J152: =SUM(Αναλυτικά!Q154:S154) -> 7 | K152: =SUM(Αναλυτικά!T154:U154) -> 2 | L152: =SUM(Αναλυτικά!V154:X154) -> 42 | M152: =SUM(Αναλυτικά!Y154) -> 4 | N152: =SUM(Αναλυτικά!Z154:AA154) -> 4 | O152: =SUM(Αναλυτικά!AB154:AC154) -> 0 | P152: =SUM(Αναλυτικά!AD154:AE154) -> 2 | Q152: =SUM(Αναλυτικά!AF154:AK154) -> 9 | R152: =SUM(Αναλυτικά!AL154:AN154) -> 1 | S152: =SUM(Αναλυτικά!AO154:AP154) -> 0 | T152: 75
A153: 173 | D153: 142 | E153: =Αναλυτικά!E155 -> ΠΡΕΒΟΛΗ ΑΙΚΑΤΕΡΙΝΗ του ΜΙΧΑΗΛ (ΣΤΑΚΟΥ) | F153: =SUM(Αναλυτικά!F155:J155) -> 1 | G153: =SUM(Αναλυτικά!K155) -> 1 | H153: =SUM(Αναλυτικά!L155:M155) -> 0 | I153: =SUM(Αναλυτικά!N155:P155) -> 4 | J153: =SUM(Αναλυτικά!Q155:S155) -> 1 | K153: =SUM(Αναλυτικά!T155:U155) -> 1 | L153: =SUM(Αναλυτικά!V155:X155) -> 1 | M153: =SUM(Αναλυτικά!Y155) -> 11 | N153: =SUM(Αναλυτικά!Z155:AA155) -> 0 | O153: =SUM(Αναλυτικά!AB155:AC155) -> 0 | P153: =SUM(Αναλυτικά!AD155:AE155) -> 0 | Q153: =SUM(Αναλυτικά!AF155:AK155) -> 0 | R153: =SUM(Αναλυτικά!AL155:AN155) -> 0 | S153: =SUM(Αναλυτικά!AO155:AP155) -> 0 | T153: 20
A154: 174 | D154: 143 | E154: =Αναλυτικά!E156 -> ΡΟΥΣΣΟΣ ΓΕΩΡΓΙΟΣ του ΑΡΤΕΜΙΟΥ (ΑΡΑΠΗΣ) | F154: =SUM(Αναλυτικά!F156:J156) -> 13 | G154: =SUM(Αναλυτικά!K156) -> 2 | H154: =SUM(Αναλυτικά!L156:M156) -> 1 | I154: =SUM(Αναλυτικά!N156:P156) -> 6 | J154: =SUM(Αναλυτικά!Q156:S156) -> 3 | K154: =SUM(Αναλυτικά!T156:U156) -> 7 | L154: =SUM(Αναλυτικά!V156:X156) -> 3 | M154: =SUM(Αναλυτικά!Y156) -> 28 | N154: =SUM(Αναλυτικά!Z156:AA156) -> 1 | O154: =SUM(Αναλυτικά!AB156:AC156) -> 2 | P154: =SUM(Αναλυτικά!AD156:AE156) -> 1 | Q154: =SUM(Αναλυτικά!AF156:AK156) -> 4 | R154: =SUM(Αναλυτικά!AL156:AN156) -> 0 | S154: =SUM(Αναλυτικά!AO156:AP156) -> 0 | T154: 71
A155: 175 | D155: 144 | E155: =Αναλυτικά!E157 -> ΡΟΥΣΣΟΣ ΓΕΩΡΓΙΟΣ του ΠΑΝΑΓΙΩΤΗ | F155: =SUM(Αναλυτικά!F157:J157) -> 44 | G155: =SUM(Αναλυτικά!K157) -> 3 | H155: =SUM(Αναλυτικά!L157:M157) -> 1 | I155: =SUM(Αναλυτικά!N157:P157) -> 30 | J155: =SUM(Αναλυτικά!Q157:S157) -> 11 | K155: =SUM(Αναλυτικά!T157:U157) -> 41 | L155: =SUM(Αναλυτικά!V157:X157) -> 13 | M155: =SUM(Αναλυτικά!Y157) -> 3 | N155: =SUM(Αναλυτικά!Z157:AA157) -> 0 | O155: =SUM(Αναλυτικά!AB157:AC157) -> 5 | P155: =SUM(Αναλυτικά!AD157:AE157) -> 2 | Q155: =SUM(Αναλυτικά!AF157:AK157) -> 4 | R155: =SUM(Αναλυτικά!AL157:AN157) -> 2 | S155: =SUM(Αναλυτικά!AO157:AP157) -> 2 | T155: 161
A156: 176 | D156: 145 | E156: =Αναλυτικά!E158 -> ΣΙΓΑΛΑΣ ΕΠΙΦΑΝΙΟΣ του ΑΝΤΩΝΙΟΥ | F156: =SUM(Αναλυτικά!F158:J158) -> 20 | G156: =SUM(Αναλυτικά!K158) -> 10 | H156: =SUM(Αναλυτικά!L158:M158) -> 4 | I156: =SUM(Αναλυτικά!N158:P158) -> 13 | J156: =SUM(Αναλυτικά!Q158:S158) -> 31 | K156: =SUM(Αναλυτικά!T158:U158) -> 71 | L156: =SUM(Αναλυτικά!V158:X158) -> 14 | M156: =SUM(Αναλυτικά!Y158) -> 3 | N156: =SUM(Αναλυτικά!Z158:AA158) -> 8 | O156: =SUM(Αναλυτικά!AB158:AC158) -> 15 | P156: =SUM(Αναλυτικά!AD158:AE158) -> 69 | Q156: =SUM(Αναλυτικά!AF158:AK158) -> 39 | R156: =SUM(Αναλυτικά!AL158:AN158) -> 1 | S156: =SUM(Αναλυτικά!AO158:AP158) -> 0 | T156: 298
A157: 177 | D157: 146 | E157: =Αναλυτικά!E159 -> ΦΟΥΣΤΕΡΗ ΜΑΡΙΑΝΝΑ του ΕΛΕΥΘΕΡΙΟΥ | F157: =SUM(Αναλυτικά!F159:J159) -> 5 | G157: =SUM(Αναλυτικά!K159) -> 1 | H157: =SUM(Αναλυτικά!L159:M159) -> 0 | I157: =SUM(Αναλυτικά!N159:P159) -> 1 | J157: =SUM(Αναλυτικά!Q159:S159) -> 51 | K157: =SUM(Αναλυτικά!T159:U159) -> 4 | L157: =SUM(Αναλυτικά!V159:X159) -> 3 | M157: =SUM(Αναλυτικά!Y159) -> 2 | N157: =SUM(Αναλυτικά!Z159:AA159) -> 0 | O157: =SUM(Αναλυτικά!AB159:AC159) -> 0 | P157: =SUM(Αναλυτικά!AD159:AE159) -> 1 | Q157: =SUM(Αναλυτικά!AF159:AK159) -> 0 | R157: =SUM(Αναλυτικά!AL159:AN159) -> 0 | S157: =SUM(Αναλυτικά!AO159:AP159) -> 0 | T157: 68
A158: 178 | D158: 147 | E158: =Αναλυτικά!E160 -> ΦΟΥΣΤΕΡΗΣ ΙΩΑΝΝΗΣ του ΓΕΩΡΓΙΟΥ | F158: =SUM(Αναλυτικά!F160:J160) -> 8 | G158: =SUM(Αναλυτικά!K160) -> 1 | H158: =SUM(Αναλυτικά!L160:M160) -> 0 | I158: =SUM(Αναλυτικά!N160:P160) -> 0 | J158: =SUM(Αναλυτικά!Q160:S160) -> 7 | K158: =SUM(Αναλυτικά!T160:U160) -> 4 | L158: =SUM(Αναλυτικά!V160:X160) -> 1 | M158: =SUM(Αναλυτικά!Y160) -> 0 | N158: =SUM(Αναλυτικά!Z160:AA160) -> 9 | O158: =SUM(Αναλυτικά!AB160:AC160) -> 0 | P158: =SUM(Αναλυτικά!AD160:AE160) -> 1 | Q158: =SUM(Αναλυτικά!AF160:AK160) -> 2 | R158: =SUM(Αναλυτικά!AL160:AN160) -> 0 | S158: =SUM(Αναλυτικά!AO160:AP160) -> 0 | T158: 33
A159: 179 | D159: 148 | E159: =Αναλυτικά!E161 -> ΦΟΥΣΤΕΡΗΣ ΙΩΑΝΝΗΣ του ΕΥΑΓΓΕΛΟΥ | F159: =SUM(Αναλυτικά!F161:J161) -> 4 | G159: =SUM(Αναλυτικά!K161) -> 3 | H159: =SUM(Αναλυτικά!L161:M161) -> 1 | I159: =SUM(Αναλυτικά!N161:P161) -> 4 | J159: =SUM(Αναλυτικά!Q161:S161) -> 60 | K159: =SUM(Αναλυτικά!T161:U161) -> 7 | L159: =SUM(Αναλυτικά!V161:X161) -> 15 | M159: =SUM(Αναλυτικά!Y161) -> 1 | N159: =SUM(Αναλυτικά!Z161:AA161) -> 3 | O159: =SUM(Αναλυτικά!AB161:AC161) -> 0 | P159: =SUM(Αναλυτικά!AD161:AE161) -> 1 | Q159: =SUM(Αναλυτικά!AF161:AK161) -> 3 | R159: =SUM(Αναλυτικά!AL161:AN161) -> 2 | S159: =SUM(Αναλυτικά!AO161:AP161) -> 0 | T159: 104
A160: 180 | D160: 149 | E160: =Αναλυτικά!E162 -> ΧΑΛΑΡΗ ΜΑΡΙΑ του ΑΝΤΩΝΙΟΥ | F160: =SUM(Αναλυτικά!F162:J162) -> 4 | G160: =SUM(Αναλυτικά!K162) -> 11 | H160: =SUM(Αναλυτικά!L162:M162) -> 0 | I160: =SUM(Αναλυτικά!N162:P162) -> 3 | J160: =SUM(Αναλυτικά!Q162:S162) -> 3 | K160: =SUM(Αναλυτικά!T162:U162) -> 2 | L160: =SUM(Αναλυτικά!V162:X162) -> 2 | M160: =SUM(Αναλυτικά!Y162) -> 0 | N160: =SUM(Αναλυτικά!Z162:AA162) -> 1 | O160: =SUM(Αναλυτικά!AB162:AC162) -> 0 | P160: =SUM(Αναλυτικά!AD162:AE162) -> 0 | Q160: =SUM(Αναλυτικά!AF162:AK162) -> 3 | R160: =SUM(Αναλυτικά!AL162:AN162) -> 3 | S160: =SUM(Αναλυτικά!AO162:AP162) -> 0 | T160: 32
A161: 181 | D161: 150 | E161: =Αναλυτικά!E163 -> ΧΑΛΑΡΗΣ ΑΝΤΩΝΙΟΣ του ΝΙΚΗΤΑ (ΣΚΑΡΑΜΑΓΚΑΣ) | F161: =SUM(Αναλυτικά!F163:J163) -> 27 | G161: =SUM(Αναλυτικά!K163) -> 22 | H161: =SUM(Αναλυτικά!L163:M163) -> 2 | I161: =SUM(Αναλυτικά!N163:P163) -> 102 | J161: =SUM(Αναλυτικά!Q163:S163) -> 26 | K161: =SUM(Αναλυτικά!T163:U163) -> 13 | L161: =SUM(Αναλυτικά!V163:X163) -> 34 | M161: =SUM(Αναλυτικά!Y163) -> 2 | N161: =SUM(Αναλυτικά!Z163:AA163) -> 1 | O161: =SUM(Αναλυτικά!AB163:AC163) -> 1 | P161: =SUM(Αναλυτικά!AD163:AE163) -> 3 | Q161: =SUM(Αναλυτικά!AF163:AK163) -> 7 | R161: =SUM(Αναλυτικά!AL163:AN163) -> 3 | S161: =SUM(Αναλυτικά!AO163:AP163) -> 0 | T161: 243
A162: 182 | D162: 151 | E162: =Αναλυτικά!E164 -> ΧΗΤΑΣ ΡΕΝΟΣ του ΑΘΑΝΑΣΙΟΥ | F162: =SUM(Αναλυτικά!F164:J164) -> 31 | G162: =SUM(Αναλυτικά!K164) -> 5 | H162: =SUM(Αναλυτικά!L164:M164) -> 0 | I162: =SUM(Αναλυτικά!N164:P164) -> 133 | J162: =SUM(Αναλυτικά!Q164:S164) -> 16 | K162: =SUM(Αναλυτικά!T164:U164) -> 12 | L162: =SUM(Αναλυτικά!V164:X164) -> 8 | M162: =SUM(Αναλυτικά!Y164) -> 5 | N162: =SUM(Αναλυτικά!Z164:AA164) -> 3 | O162: =SUM(Αναλυτικά!AB164:AC164) -> 1 | P162: =SUM(Αναλυτικά!AD164:AE164) -> 5 | Q162: =SUM(Αναλυτικά!AF164:AK164) -> 3 | R162: =SUM(Αναλυτικά!AL164:AN164) -> 2 | S162: =SUM(Αναλυτικά!AO164:AP164) -> 1 | T162: 225
A163: 194 | E163: ΔΗΜΟΤΙΚΗ ΕΝΟΤΗΤΑ ΟΙΑΣ
A164: 195 | D164: 152 | E164: =Αναλυτικά!E166 -> ΚΑΡΡΑΣ ΜΙΧΑΗΛ του ΧΡΗΣΤΟΥ | F164: =SUM(Αναλυτικά!F166:J166) -> 21 | G164: =SUM(Αναλυτικά!K166) -> 16 | H164: =SUM(Αναλυτικά!L166:M166) -> 0 | I164: =SUM(Αναλυτικά!N166:P166) -> 15 | J164: =SUM(Αναλυτικά!Q166:S166) -> 21 | K164: =SUM(Αναλυτικά!T166:U166) -> 12 | L164: =SUM(Αναλυτικά!V166:X166) -> 16 | M164: =SUM(Αναλυτικά!Y166) -> 3 | N164: =SUM(Αναλυτικά!Z166:AA166) -> 3 | O164: =SUM(Αναλυτικά!AB166:AC166) -> 3 | P164: =SUM(Αναλυτικά!AD166:AE166) -> 2 | Q164: =SUM(Αναλυτικά!AF166:AK166) -> 32 | R164: =SUM(Αναλυτικά!AL166:AN166) -> 37 | S164: =SUM(Αναλυτικά!AO166:AP166) -> 1 | T164: =SUM(F164:S164) -> 182
A165: 196 | D165: 153 | E165: =Αναλυτικά!E167 -> ΜΑΡΚΟΖΑΝΕΣ ΙΩΑΝΝΗΣ του ΓΕΩΡΓΙΟΥ | F165: =SUM(Αναλυτικά!F167:J167) -> 38 | G165: =SUM(Αναλυτικά!K167) -> 10 | H165: =SUM(Αναλυτικά!L167:M167) -> 1 | I165: =SUM(Αναλυτικά!N167:P167) -> 92 | J165: =SUM(Αναλυτικά!Q167:S167) -> 31 | K165: =SUM(Αναλυτικά!T167:U167) -> 17 | L165: =SUM(Αναλυτικά!V167:X167) -> 20 | M165: =SUM(Αναλυτικά!Y167) -> 19 | N165: =SUM(Αναλυτικά!Z167:AA167) -> 3 | O165: =SUM(Αναλυτικά!AB167:AC167) -> 6 | P165: =SUM(Αναλυτικά!AD167:AE167) -> 5 | Q165: =SUM(Αναλυτικά!AF167:AK167) -> 25 | R165: =SUM(Αναλυτικά!AL167:AN167) -> 5 | S165: =SUM(Αναλυτικά!AO167:AP167) -> 0 | T165: 272
A166: 197 | D166: 154 | E166: =Αναλυτικά!E168 -> ΜΟΥΤΣΑΤΣΟΥ ΚΥΡΙΑΚΗ του ΓΕΩΡΓΙΟΥ (ΚΙΚΗ) | F166: =SUM(Αναλυτικά!F168:J168) -> 26 | G166: =SUM(Αναλυτικά!K168) -> 6 | H166: =SUM(Αναλυτικά!L168:M168) -> 1 | I166: =SUM(Αναλυτικά!N168:P168) -> 25 | J166: =SUM(Αναλυτικά!Q168:S168) -> 28 | K166: =SUM(Αναλυτικά!T168:U168) -> 52 | L166: =SUM(Αναλυτικά!V168:X168) -> 16 | M166: =SUM(Αναλυτικά!Y168) -> 3 | N166: =SUM(Αναλυτικά!Z168:AA168) -> 1 | O166: =SUM(Αναλυτικά!AB168:AC168) -> 6 | P166: =SUM(Αναλυτικά!AD168:AE168) -> 2 | Q166: =SUM(Αναλυτικά!AF168:AK168) -> 13 | R166: =SUM(Αναλυτικά!AL168:AN168) -> 14 | S166: =SUM(Αναλυτικά!AO168:AP168) -> 0 | T166: 193
A167: 198 | D167: 155 | E167: =Αναλυτικά!E169 -> ΣΟΡΩΤΟΣ ΙΩΑΝΝΗΣ του ΑΝΑΡΓΥΡΟΥ | F167: =SUM(Αναλυτικά!F169:J169) -> 77 | G167: =SUM(Αναλυτικά!K169) -> 19 | H167: =SUM(Αναλυτικά!L169:M169) -> 11 | I167: =SUM(Αναλυτικά!N169:P169) -> 65 | J167: =SUM(Αναλυτικά!Q169:S169) -> 27 | K167: =SUM(Αναλυτικά!T169:U169) -> 54 | L167: =SUM(Αναλυτικά!V169:X169) -> 38 | M167: =SUM(Αναλυτικά!Y169) -> 2 | N167: =SUM(Αναλυτικά!Z169:AA169) -> 12 | O167: =SUM(Αναλυτικά!AB169:AC169) -> 14 | P167: =SUM(Αναλυτικά!AD169:AE169) -> 21 | Q167: =SUM(Αναλυτικά!AF169:AK169) -> 42 | R167: =SUM(Αναλυτικά!AL169:AN169) -> 6 | S167: =SUM(Αναλυτικά!AO169:AP169) -> 2 | T167: 390
A168: 199 | D168: 156 | E168: =Αναλυτικά!E170 -> ΣΥΡΙΓΟΥ ΑΝΝΑ του ΙΑΚΩΒΟΥ | F168: =SUM(Αναλυτικά!F170:J170) -> 12 | G168: =SUM(Αναλυτικά!K170) -> 5 | H168: =SUM(Αναλυτικά!L170:M170) -> 1 | I168: =SUM(Αναλυτικά!N170:P170) -> 9 | J168: =SUM(Αναλυτικά!Q170:S170) -> 8 | K168: =SUM(Αναλυτικά!T170:U170) -> 8 | L168: =SUM(Αναλυτικά!V170:X170) -> 8 | M168: =SUM(Αναλυτικά!Y170) -> 5 | N168: =SUM(Αναλυτικά!Z170:AA170) -> 4 | O168: =SUM(Αναλυτικά!AB170:AC170) -> 7 | P168: =SUM(Αναλυτικά!AD170:AE170) -> 4 | Q168: =SUM(Αναλυτικά!AF170:AK170) -> 13 | R168: =SUM(Αναλυτικά!AL170:AN170) -> 7 | S168: =SUM(Αναλυτικά!AO170:AP170) -> 5 | T168: 96
A169: 201 | B169: ΤΩΡΑ! Για τη Σαντορίνη και τη Θηρασιά | E169: ΔΗΜΟΤΙΚΗ ΕΝΟΤΗΤΑ ΘΗΡΑΣ
A170: 202 | D170: 157 | E170: =Αναλυτικά!E172 -> ΑΓΓΕΛΑΚΗ ΜΑΡΙΑ του ΣΠΥΡΙΔΩΝΟΣ | F170: =SUM(Αναλυτικά!F172:J172) -> 45 | G170: =SUM(Αναλυτικά!K172) -> 15 | H170: =SUM(Αναλυτικά!L172:M172) -> 3 | I170: =SUM(Αναλυτικά!N172:P172) -> 18 | J170: =SUM(Αναλυτικά!Q172:S172) -> 18 | K170: =SUM(Αναλυτικά!T172:U172) -> 17 | L170: =SUM(Αναλυτικά!V172:X172) -> 17 | M170: =SUM(Αναλυτικά!Y172) -> 4 | N170: =SUM(Αναλυτικά!Z172:AA172) -> 11 | O170: =SUM(Αναλυτικά!AB172:AC172) -> 3 | P170: =SUM(Αναλυτικά!AD172:AE172) -> 6 | Q170: =SUM(Αναλυτικά!AF172:AK172) -> 18 | R170: =SUM(Αναλυτικά!AL172:AN172) -> 10 | S170: =SUM(Αναλυτικά!AO172:AP172) -> 2 | T170: =SUM(F170:S170) -> 187
A171: 203 | D171: 158 | E171: =Αναλυτικά!E173 -> ΑΛΑΦΟΥΖΟΣ ΒΑΣΙΛΕΙΟΣ του ΑΝΑΣΤΑΣΙΟΥ | F171: =SUM(Αναλυτικά!F173:J173) -> 49 | G171: =SUM(Αναλυτικά!K173) -> 14 | H171: =SUM(Αναλυτικά!L173:M173) -> 10 | I171: =SUM(Αναλυτικά!N173:P173) -> 29 | J171: =SUM(Αναλυτικά!Q173:S173) -> 21 | K171: =SUM(Αναλυτικά!T173:U173) -> 13 | L171: =SUM(Αναλυτικά!V173:X173) -> 82 | M171: =SUM(Αναλυτικά!Y173) -> 7 | N171: =SUM(Αναλυτικά!Z173:AA173) -> 12 | O171: =SUM(Αναλυτικά!AB173:AC173) -> 3 | P171: =SUM(Αναλυτικά!AD173:AE173) -> 7 | Q171: =SUM(Αναλυτικά!AF173:AK173) -> 18 | R171: =SUM(Αναλυτικά!AL173:AN173) -> 30 | S171: =SUM(Αναλυτικά!AO173:AP173) -> 0 | T171: 295
A172: 204 | D172: 159 | E172: =Αναλυτικά!E174 -> ΑΛΕΞΙΟΥ ΝΙΚΟΛΕΤΑ (ΝΙΚΗ) του ΙΠΠΟΚΡΑΤΗ | F172: =SUM(Αναλυτικά!F174:J174) -> 5 | G172: =SUM(Αναλυτικά!K174) -> 4 | H172: =SUM(Αναλυτικά!L174:M174) -> 1 | I172: =SUM(Αναλυτικά!N174:P174) -> 3 | J172: =SUM(Αναλυτικά!Q174:S174) -> 3 | K172: =SUM(Αναλυτικά!T174:U174) -> 2 | L172: =SUM(Αναλυτικά!V174:X174) -> 38 | M172: =SUM(Αναλυτικά!Y174) -> 0 | N172: =SUM(Αναλυτικά!Z174:AA174) -> 6 | O172: =SUM(Αναλυτικά!AB174:AC174) -> 0 | P172: =SUM(Αναλυτικά!AD174:AE174) -> 1 | Q172: =SUM(Αναλυτικά!AF174:AK174) -> 3 | R172: =SUM(Αναλυτικά!AL174:AN174) -> 0 | S172: =SUM(Αναλυτικά!AO174:AP174) -> 0 | T172: 66
A173: 205 | D173: 160 | E173: =Αναλυτικά!E175 -> ΒΑΛΒΗΣ ΧΑΡΑΛΑΜΠΟΣ (ΨΟΜΟΦΑΣ) του ΝΙΚΟΛΑΟΥ | F173: =SUM(Αναλυτικά!F175:J175) -> 4 | G173: =SUM(Αναλυτικά!K175) -> 1 | H173: =SUM(Αναλυτικά!L175:M175) -> 0 | I173: =SUM(Αναλυτικά!N175:P175) -> 0 | J173: =SUM(Αναλυτικά!Q175:S175) -> 4 | K173: =SUM(Αναλυτικά!T175:U175) -> 2 | L173: =SUM(Αναλυτικά!V175:X175) -> 4 | M173: =SUM(Αναλυτικά!Y175) -> 0 | N173: =SUM(Αναλυτικά!Z175:AA175) -> 1 | O173: =SUM(Αναλυτικά!AB175:AC175) -> 0 | P173: =SUM(Αναλυτικά!AD175:AE175) -> 0 | Q173: =SUM(Αναλυτικά!AF175:AK175) -> 8 | R173: =SUM(Αναλυτικά!AL175:AN175) -> 2 | S173: =SUM(Αναλυτικά!AO175:AP175) -> 0 | T173: 26
A174: 206 | D174: 161 | E174: =Αναλυτικά!E176 -> ΒΛΑΒΙΑΝΟΥ ΕΙΡΗΝΗ του ΛΟΥΚΑ | F174: =SUM(Αναλυτικά!F176:J176) -> 29 | G174: =SUM(Αναλυτικά!K176) -> 50 | H174: =SUM(Αναλυτικά!L176:M176) -> 5 | I174: =SUM(Αναλυτικά!N176:P176) -> 11 | J174: =SUM(Αναλυτικά!Q176:S176) -> 8 | K174: =SUM(Αναλυτικά!T176:U176) -> 2 | L174: =SUM(Αναλυτικά!V176:X176) -> 6 | M174: =SUM(Αναλυτικά!Y176) -> 4 | N174: =SUM(Αναλυτικά!Z176:AA176) -> 6 | O174: =SUM(Αναλυτικά!AB176:AC176) -> 1 | P174: =SUM(Αναλυτικά!AD176:AE176) -> 1 | Q174: =SUM(Αναλυτικά!AF176:AK176) -> 6 | R174: =SUM(Αναλυτικά!AL176:AN176) -> 19 | S174: =SUM(Αναλυτικά!AO176:AP176) -> 0 | T174: 148
A175: 207 | D175: 162 | E175: =Αναλυτικά!E177 -> ΓΑΛΑΙΟΣ ΝΙΚΟΛΑΟΣ του ΕΜΜΑΝΟΥΗΛ | F175: =SUM(Αναλυτικά!F177:J177) -> 3 | G175: =SUM(Αναλυτικά!K177) -> 1 | H175: =SUM(Αναλυτικά!L177:M177) -> 0 | I175: =SUM(Αναλυτικά!N177:P177) -> 3 | J175: =SUM(Αναλυτικά!Q177:S177) -> 4 | K175: =SUM(Αναλυτικά!T177:U177) -> 1 | L175: =SUM(Αναλυτικά!V177:X177) -> 7 | M175: =SUM(Αναλυτικά!Y177) -> 1 | N175: =SUM(Αναλυτικά!Z177:AA177) -> 20 | O175: =SUM(Αναλυτικά!AB177:AC177) -> 1 | P175: =SUM(Αναλυτικά!AD177:AE177) -> 1 | Q175: =SUM(Αναλυτικά!AF177:AK177) -> 3 | R175: =SUM(Αναλυτικά!AL177:AN177) -> 6 | S175: =SUM(Αναλυτικά!AO177:AP177) -> 0 | T175: 51
A176: 208 | D176: 163 | E176: =Αναλυτικά!E178 -> ΓΑΛΑΙΟΣ ΠΑΝΑΓΙΩΤΗΣ του ΠΑΡΑΣΚΕΥΑ | F176: =SUM(Αναλυτικά!F178:J178) -> 17 | G176: =SUM(Αναλυτικά!K178) -> 2 | H176: =SUM(Αναλυτικά!L178:M178) -> 3 | I176: =SUM(Αναλυτικά!N178:P178) -> 0 | J176: =SUM(Αναλυτικά!Q178:S178) -> 7 | K176: =SUM(Αναλυτικά!T178:U178) -> 5 | L176: =SUM(Αναλυτικά!V178:X178) -> 4 | M176: =SUM(Αναλυτικά!Y178) -> 3 | N176: =SUM(Αναλυτικά!Z178:AA178) -> 8 | O176: =SUM(Αναλυτικά!AB178:AC178) -> 1 | P176: =SUM(Αναλυτικά!AD178:AE178) -> 1 | Q176: =SUM(Αναλυτικά!AF178:AK178) -> 7 | R176: =SUM(Αναλυτικά!AL178:AN178) -> 2 | S176: =SUM(Αναλυτικά!AO178:AP178) -> 0 | T176: 60
A177: 209 | D177: 164 | E177: =Αναλυτικά!E179 -> ΔΑΚΟΡΩΝΙΑ‑ ΖΩΡΖΟΥ ΠΕΤΡΟΥΛΑ του ΓΕΩΡΓΙΟΥ | F177: =SUM(Αναλυτικά!F179:J179) -> 30 | G177: =SUM(Αναλυτικά!K179) -> 1 | H177: =SUM(Αναλυτικά!L179:M179) -> 0 | I177: =SUM(Αναλυτικά!N179:P179) -> 10 | J177: =SUM(Αναλυτικά!Q179:S179) -> 8 | K177: =SUM(Αναλυτικά!T179:U179) -> 5 | L177: =SUM(Αναλυτικά!V179:X179) -> 5 | M177: =SUM(Αναλυτικά!Y179) -> 2 | N177: =SUM(Αναλυτικά!Z179:AA179) -> 5 | O177: =SUM(Αναλυτικά!AB179:AC179) -> 1 | P177: =SUM(Αναλυτικά!AD179:AE179) -> 4 | Q177: =SUM(Αναλυτικά!AF179:AK179) -> 12 | R177: =SUM(Αναλυτικά!AL179:AN179) -> 1 | S177: =SUM(Αναλυτικά!AO179:AP179) -> 2 | T177: 86
A178: 210 | D178: 165 | E178: =Αναλυτικά!E180 -> ΔΑΚΟΥΤΡΟΣ ΙΑΚΩΒΟΣ (ΒΑΚΗΣ) του ΑΝΔΡΕΑ | F178: =SUM(Αναλυτικά!F180:J180) -> 59 | G178: =SUM(Αναλυτικά!K180) -> 2 | H178: =SUM(Αναλυτικά!L180:M180) -> 1 | I178: =SUM(Αναλυτικά!N180:P180) -> 3 | J178: =SUM(Αναλυτικά!Q180:S180) -> 12 | K178: =SUM(Αναλυτικά!T180:U180) -> 4 | L178: =SUM(Αναλυτικά!V180:X180) -> 3 | M178: =SUM(Αναλυτικά!Y180) -> 2 | N178: =SUM(Αναλυτικά!Z180:AA180) -> 8 | O178: =SUM(Αναλυτικά!AB180:AC180) -> 0 | P178: =SUM(Αναλυτικά!AD180:AE180) -> 0 | Q178: =SUM(Αναλυτικά!AF180:AK180) -> 2 | R178: =SUM(Αναλυτικά!AL180:AN180) -> 3 | S178: =SUM(Αναλυτικά!AO180:AP180) -> 2 | T178: 101
A179: 211 | D179: 166 | E179: =Αναλυτικά!E181 -> ΔΑΜΑΣΚΗΝΟΣ ΑΝΤΩΝΙΟΣ του ΙΩΑΝΝΗ | F179: =SUM(Αναλυτικά!F181:J181) -> 4 | G179: =SUM(Αναλυτικά!K181) -> 0 | H179: =SUM(Αναλυτικά!L181:M181) -> 1 | I179: =SUM(Αναλυτικά!N181:P181) -> 1 | J179: =SUM(Αναλυτικά!Q181:S181) -> 2 | K179: =SUM(Αναλυτικά!T181:U181) -> 4 | L179: =SUM(Αναλυτικά!V181:X181) -> 2 | M179: =SUM(Αναλυτικά!Y181) -> 0 | N179: =SUM(Αναλυτικά!Z181:AA181) -> 0 | O179: =SUM(Αναλυτικά!AB181:AC181) -> 4 | P179: =SUM(Αναλυτικά!AD181:AE181) -> 4 | Q179: =SUM(Αναλυτικά!AF181:AK181) -> 7 | R179: =SUM(Αναλυτικά!AL181:AN181) -> 1 | S179: =SUM(Αναλυτικά!AO181:AP181) -> 0 | T179: 30
A180: 212 | D180: 167 | E180: =Αναλυτικά!E182 -> ΔΡΟΣΟΣ ΜΙΧΑΗΛ (ΜΠΙΣΤΟΛΗΣ) του ΕΥΣΤΑΘΙΟΥ | F180: =SUM(Αναλυτικά!F182:J182) -> 0 | G180: =SUM(Αναλυτικά!K182) -> 0 | H180: =SUM(Αναλυτικά!L182:M182) -> 0 | I180: =SUM(Αναλυτικά!N182:P182) -> 1 | J180: =SUM(Αναλυτικά!Q182:S182) -> 0 | K180: =SUM(Αναλυτικά!T182:U182) -> 0 | L180: =SUM(Αναλυτικά!V182:X182) -> 0 | M180: =SUM(Αναλυτικά!Y182) -> 0 | N180: =SUM(Αναλυτικά!Z182:AA182) -> 0 | O180: =SUM(Αναλυτικά!AB182:AC182) -> 0 | P180: =SUM(Αναλυτικά!AD182:AE182) -> 0 | Q180: =SUM(Αναλυτικά!AF182:AK182) -> 9 | R180: =SUM(Αναλυτικά!AL182:AN182) -> 0 | S180: =SUM(Αναλυτικά!AO182:AP182) -> 0 | T180: 10
A181: 213 | D181: 168 | E181: =Αναλυτικά!E183 -> ΔΡΟΣΟΥ ΜΑΡΙΑ του ΕΥΑΓΓΕΛΟΥ | F181: =SUM(Αναλυτικά!F183:J183) -> 5 | G181: =SUM(Αναλυτικά!K183) -> 3 | H181: =SUM(Αναλυτικά!L183:M183) -> 0 | I181: =SUM(Αναλυτικά!N183:P183) -> 3 | J181: =SUM(Αναλυτικά!Q183:S183) -> 2 | K181: =SUM(Αναλυτικά!T183:U183) -> 3 | L181: =SUM(Αναλυτικά!V183:X183) -> 7 | M181: =SUM(Αναλυτικά!Y183) -> 1 | N181: =SUM(Αναλυτικά!Z183:AA183) -> 3 | O181: =SUM(Αναλυτικά!AB183:AC183) -> 0 | P181: =SUM(Αναλυτικά!AD183:AE183) -> 1 | Q181: =SUM(Αναλυτικά!AF183:AK183) -> 25 | R181: =SUM(Αναλυτικά!AL183:AN183) -> 3 | S181: =SUM(Αναλυτικά!AO183:AP183) -> 1 | T181: 57
A182: 214 | D182: 169 | E182: =Αναλυτικά!E184 -> ΖΑΜΠΕΛΗ ΕΙΡΗΝΗ του ΣΤΑΥΡΟΥ | F182: =SUM(Αναλυτικά!F184:J184) -> 5 | G182: =SUM(Αναλυτικά!K184) -> 1 | H182: =SUM(Αναλυτικά!L184:M184) -> 0 | I182: =SUM(Αναλυτικά!N184:P184) -> 15 | J182: =SUM(Αναλυτικά!Q184:S184) -> 3 | K182: =SUM(Αναλυτικά!T184:U184) -> 3 | L182: =SUM(Αναλυτικά!V184:X184) -> 8 | M182: =SUM(Αναλυτικά!Y184) -> 1 | N182: =SUM(Αναλυτικά!Z184:AA184) -> 3 | O182: =SUM(Αναλυτικά!AB184:AC184) -> 0 | P182: =SUM(Αναλυτικά!AD184:AE184) -> 0 | Q182: =SUM(Αναλυτικά!AF184:AK184) -> 31 | R182: =SUM(Αναλυτικά!AL184:AN184) -> 3 | S182: =SUM(Αναλυτικά!AO184:AP184) -> 0 | T182: 73
A183: 215 | D183: 170 | E183: =Αναλυτικά!E185 -> ΚΑΤΡΗΣ ΛΟΥΚΑΣ του ΓΕΩΡΓΙΟΥ | F183: =SUM(Αναλυτικά!F185:J185) -> 30 | G183: =SUM(Αναλυτικά!K185) -> 4 | H183: =SUM(Αναλυτικά!L185:M185) -> 11 | I183: =SUM(Αναλυτικά!N185:P185) -> 12 | J183: =SUM(Αναλυτικά!Q185:S185) -> 9 | K183: =SUM(Αναλυτικά!T185:U185) -> 2 | L183: =SUM(Αναλυτικά!V185:X185) -> 4 | M183: =SUM(Αναλυτικά!Y185) -> 3 | N183: =SUM(Αναλυτικά!Z185:AA185) -> 4 | O183: =SUM(Αναλυτικά!AB185:AC185) -> 0 | P183: =SUM(Αναλυτικά!AD185:AE185) -> 2 | Q183: =SUM(Αναλυτικά!AF185:AK185) -> 2 | R183: =SUM(Αναλυτικά!AL185:AN185) -> 2 | S183: =SUM(Αναλυτικά!AO185:AP185) -> 0 | T183: 85
A184: 216 | D184: 171 | E184: =Αναλυτικά!E186 -> ΛΙΓΝΟΥ ΑΝΝΑ του ΕΥΑΓΓΕΛΟΥ | F184: =SUM(Αναλυτικά!F186:J186) -> 12 | G184: =SUM(Αναλυτικά!K186) -> 1 | H184: =SUM(Αναλυτικά!L186:M186) -> 1 | I184: =SUM(Αναλυτικά!N186:P186) -> 7 | J184: =SUM(Αναλυτικά!Q186:S186) -> 16 | K184: =SUM(Αναλυτικά!T186:U186) -> 25 | L184: =SUM(Αναλυτικά!V186:X186) -> 1 | M184: =SUM(Αναλυτικά!Y186) -> 1 | N184: =SUM(Αναλυτικά!Z186:AA186) -> 1 | O184: =SUM(Αναλυτικά!AB186:AC186) -> 0 | P184: =SUM(Αναλυτικά!AD186:AE186) -> 0 | Q184: =SUM(Αναλυτικά!AF186:AK186) -> 2 | R184: =SUM(Αναλυτικά!AL186:AN186) -> 3 | S184: =SUM(Αναλυτικά!AO186:AP186) -> 2 | T184: 72
A185: 217 | D185: 172 | E185: =Αναλυτικά!E187 -> ΛΥΓΝΟΥ ΝΙΚΟΛΙΝΑ (ΝΙΚΗ) του ΕΥΑΓΓΕΛΟΥ | F185: =SUM(Αναλυτικά!F187:J187) -> 5 | G185: =SUM(Αναλυτικά!K187) -> 0 | H185: =SUM(Αναλυτικά!L187:M187) -> 0 | I185: =SUM(Αναλυτικά!N187:P187) -> 4 | J185: =SUM(Αναλυτικά!Q187:S187) -> 19 | K185: =SUM(Αναλυτικά!T187:U187) -> 0 | L185: =SUM(Αναλυτικά!V187:X187) -> 1 | M185: =SUM(Αναλυτικά!Y187) -> 0 | N185: =SUM(Αναλυτικά!Z187:AA187) -> 0 | O185: =SUM(Αναλυτικά!AB187:AC187) -> 0 | P185: =SUM(Αναλυτικά!AD187:AE187) -> 0 | Q185: =SUM(Αναλυτικά!AF187:AK187) -> 0 | R185: =SUM(Αναλυτικά!AL187:AN187) -> 3 | S185: =SUM(Αναλυτικά!AO187:AP187) -> 0 | T185: 32
A186: 218 | D186: 173 | E186: =Αναλυτικά!E188 -> ΜΑΚΡΗΣ ΠΑΝΑΓΙΩΤΗΣ του ΧΡΗΣΤΟΥ | F186: =SUM(Αναλυτικά!F188:J188) -> 2 | G186: =SUM(Αναλυτικά!K188) -> 0 | H186: =SUM(Αναλυτικά!L188:M188) -> 0 | I186: =SUM(Αναλυτικά!N188:P188) -> 5 | J186: =SUM(Αναλυτικά!Q188:S188) -> 2 | K186: =SUM(Αναλυτικά!T188:U188) -> 2 | L186: =SUM(Αναλυτικά!V188:X188) -> 26 | M186: =SUM(Αναλυτικά!Y188) -> 0 | N186: =SUM(Αναλυτικά!Z188:AA188) -> 5 | O186: =SUM(Αναλυτικά!AB188:AC188) -> 0 | P186: =SUM(Αναλυτικά!AD188:AE188) -> 1 | Q186: =SUM(Αναλυτικά!AF188:AK188) -> 0 | R186: =SUM(Αναλυτικά!AL188:AN188) -> 0 | S186: =SUM(Αναλυτικά!AO188:AP188) -> 0 | T186: 43
A187: 219 | D187: 174 | E187: =Αναλυτικά!E189 -> ΜΟΥΚΑΤΕΜΙΔΟΥ‑ΙΩΑΝΝΙΔΟΥ ΕΛΙΣΣΑΒΕΤ (ΛΙΖΑ) του ΙΩΑΝΝΗ | F187: =SUM(Αναλυτικά!F189:J189) -> 15 | G187: =SUM(Αναλυτικά!K189) -> 1 | H187: =SUM(Αναλυτικά!L189:M189) -> 1 | I187: =SUM(Αναλυτικά!N189:P189) -> 2 | J187: =SUM(Αναλυτικά!Q189:S189) -> 2 | K187: =SUM(Αναλυτικά!T189:U189) -> 1 | L187: =SUM(Αναλυτικά!V189:X189) -> 25 | M187: =SUM(Αναλυτικά!Y189) -> 0 | N187: =SUM(Αναλυτικά!Z189:AA189) -> 2 | O187: =SUM(Αναλυτικά!AB189:AC189) -> 2 | P187: =SUM(Αναλυτικά!AD189:AE189) -> 2 | Q187: =SUM(Αναλυτικά!AF189:AK189) -> 3 | R187: =SUM(Αναλυτικά!AL189:AN189) -> 1 | S187: =SUM(Αναλυτικά!AO189:AP189) -> 0 | T187: 57
A188: 220 | D188: 175 | E188: =Αναλυτικά!E190 -> ΜΠΑΪΚΑ ΜΑΡΙΑ του ΧΡΗΣΤΟΥ | F188: =SUM(Αναλυτικά!F190:J190) -> 13 | G188: =SUM(Αναλυτικά!K190) -> 3 | H188: =SUM(Αναλυτικά!L190:M190) -> 0 | I188: =SUM(Αναλυτικά!N190:P190) -> 3 | J188: =SUM(Αναλυτικά!Q190:S190) -> 1 | K188: =SUM(Αναλυτικά!T190:U190) -> 2 | L188: =SUM(Αναλυτικά!V190:X190) -> 3 | M188: =SUM(Αναλυτικά!Y190) -> 1 | N188: =SUM(Αναλυτικά!Z190:AA190) -> 1 | O188: =SUM(Αναλυτικά!AB190:AC190) -> 0 | P188: =SUM(Αναλυτικά!AD190:AE190) -> 29 | Q188: =SUM(Αναλυτικά!AF190:AK190) -> 5 | R188: =SUM(Αναλυτικά!AL190:AN190) -> 3 | S188: =SUM(Αναλυτικά!AO190:AP190) -> 0 | T188: 64
A189: 221 | D189: 176 | E189: =Αναλυτικά!E191 -> ΜΠΛΕΔΑΚΗΣ ΑΛΕΞΑΝΔΡΟΣ (ΑΛΕΚΟΣ) του ΑΝΤΩΝΙΟΥ | F189: =SUM(Αναλυτικά!F191:J191) -> 63 | G189: =SUM(Αναλυτικά!K191) -> 34 | H189: =SUM(Αναλυτικά!L191:M191) -> 3 | I189: =SUM(Αναλυτικά!N191:P191) -> 8 | J189: =SUM(Αναλυτικά!Q191:S191) -> 12 | K189: =SUM(Αναλυτικά!T191:U191) -> 7 | L189: =SUM(Αναλυτικά!V191:X191) -> 16 | M189: =SUM(Αναλυτικά!Y191) -> 2 | N189: =SUM(Αναλυτικά!Z191:AA191) -> 2 | O189: =SUM(Αναλυτικά!AB191:AC191) -> 1 | P189: =SUM(Αναλυτικά!AD191:AE191) -> 0 | Q189: =SUM(Αναλυτικά!AF191:AK191) -> 4 | R189: =SUM(Αναλυτικά!AL191:AN191) -> 4 | S189: =SUM(Αναλυτικά!AO191:AP191) -> 0 | T189: 156
A190: 222 | D190: 177 | E190: =Αναλυτικά!E192 -> ΞΑΓΟΡΑΡΗΣ ΓΡΗΓΟΡΙΟΣ του ΝΙΚΟΛΑΟΥ | F190: =SUM(Αναλυτικά!F192:J192) -> 30 | G190: =SUM(Αναλυτικά!K192) -> 7 | H190: =SUM(Αναλυτικά!L192:M192) -> 3 | I190: =SUM(Αναλυτικά!N192:P192) -> 10 | J190: =SUM(Αναλυτικά!Q192:S192) -> 13 | K190: =SUM(Αναλυτικά!T192:U192) -> 8 | L190: =SUM(Αναλυτικά!V192:X192) -> 11 | M190: =SUM(Αναλυτικά!Y192) -> 4 | N190: =SUM(Αναλυτικά!Z192:AA192) -> 27 | O190: =SUM(Αναλυτικά!AB192:AC192) -> 0 | P190: =SUM(Αναλυτικά!AD192:AE192) -> 7 | Q190: =SUM(Αναλυτικά!AF192:AK192) -> 11 | R190: =SUM(Αναλυτικά!AL192:AN192) -> 1 | S190: =SUM(Αναλυτικά!AO192:AP192) -> 4 | T190: 136
A191: 223 | D191: 178 | E191: =Αναλυτικά!E193 -> ΠΕΛΕΚΑΝΟΥ ΑΙΚΑΤΕΡΙΝΗ του ΚΩΝΣΤΑΝΤΙΝΟΥ | F191: =SUM(Αναλυτικά!F193:J193) -> 26 | G191: =SUM(Αναλυτικά!K193) -> 3 | H191: =SUM(Αναλυτικά!L193:M193) -> 0 | I191: =SUM(Αναλυτικά!N193:P193) -> 20 | J191: =SUM(Αναλυτικά!Q193:S193) -> 15 | K191: =SUM(Αναλυτικά!T193:U193) -> 3 | L191: =SUM(Αναλυτικά!V193:X193) -> 6 | M191: =SUM(Αναλυτικά!Y193) -> 3 | N191: =SUM(Αναλυτικά!Z193:AA193) -> 3 | O191: =SUM(Αναλυτικά!AB193:AC193) -> 2 | P191: =SUM(Αναλυτικά!AD193:AE193) -> 4 | Q191: =SUM(Αναλυτικά!AF193:AK193) -> 5 | R191: =SUM(Αναλυτικά!AL193:AN193) -> 8 | S191: =SUM(Αναλυτικά!AO193:AP193) -> 4 | T191: 102
A192: 224 | D192: 179 | E192: =Αναλυτικά!E194 -> ΠΕΤΙΝΗΣ ΝΙΚΟΛΑΟΣ του ΕΜΜΑΝΟΥΗΛ | F192: =SUM(Αναλυτικά!F194:J194) -> 34 | G192: =SUM(Αναλυτικά!K194) -> 2 | H192: =SUM(Αναλυτικά!L194:M194) -> 5 | I192: =SUM(Αναλυτικά!N194:P194) -> 34 | J192: =SUM(Αναλυτικά!Q194:S194) -> 24 | K192: =SUM(Αναλυτικά!T194:U194) -> 10 | L192: =SUM(Αναλυτικά!V194:X194) -> 6 | M192: =SUM(Αναλυτικά!Y194) -> 2 | N192: =SUM(Αναλυτικά!Z194:AA194) -> 4 | O192: =SUM(Αναλυτικά!AB194:AC194) -> 1 | P192: =SUM(Αναλυτικά!AD194:AE194) -> 3 | Q192: =SUM(Αναλυτικά!AF194:AK194) -> 11 | R192: =SUM(Αναλυτικά!AL194:AN194) -> 7 | S192: =SUM(Αναλυτικά!AO194:AP194) -> 0 | T192: 143
D193: 180 | E193: =Αναλυτικά!E195 -> ΠΡΕΚΑΣ ΓΕΩΡΓΙΟΣ του ΠΑΝΑΓΙΩΤΗ | F193: =SUM(Αναλυτικά!F195:J195) -> 25 | G193: =SUM(Αναλυτικά!K195) -> 1 | H193: =SUM(Αναλυτικά!L195:M195) -> 0 | I193: =SUM(Αναλυτικά!N195:P195) -> 9 | J193: =SUM(Αναλυτικά!Q195:S195) -> 7 | K193: =SUM(Αναλυτικά!T195:U195) -> 2 | L193: =SUM(Αναλυτικά!V195:X195) -> 9 | M193: =SUM(Αναλυτικά!Y195) -> 0 | N193: =SUM(Αναλυτικά!Z195:AA195) -> 1 | O193: =SUM(Αναλυτικά!AB195:AC195) -> 0 | P193: =SUM(Αναλυτικά!AD195:AE195) -> 2 | Q193: =SUM(Αναλυτικά!AF195:AK195) -> 4 | R193: =SUM(Αναλυτικά!AL195:AN195) -> 4 | S193: =SUM(Αναλυτικά!AO195:AP195) -> 2 | T193: 66
D194: 181 | E194: =Αναλυτικά!E196 -> ΠΡΕΚΑΣ ΠΕΤΡΟΣ (ΣΒΟΡΩΝΟΣ) του ΕΜΜΑΝΟΥΗΛ | F194: =SUM(Αναλυτικά!F196:J196) -> 99 | G194: =SUM(Αναλυτικά!K196) -> 9 | H194: =SUM(Αναλυτικά!L196:M196) -> 2 | I194: =SUM(Αναλυτικά!N196:P196) -> 18 | J194: =SUM(Αναλυτικά!Q196:S196) -> 3 | K194: =SUM(Αναλυτικά!T196:U196) -> 2 | L194: =SUM(Αναλυτικά!V196:X196) -> 6 | M194: =SUM(Αναλυτικά!Y196) -> 0 | N194: =SUM(Αναλυτικά!Z196:AA196) -> 53 | O194: =SUM(Αναλυτικά!AB196:AC196) -> 2 | P194: =SUM(Αναλυτικά!AD196:AE196) -> 2 | Q194: =SUM(Αναλυτικά!AF196:AK196) -> 9 | R194: =SUM(Αναλυτικά!AL196:AN196) -> 7 | S194: =SUM(Αναλυτικά!AO196:AP196) -> 1 | T194: 213
D195: 182 | E195: =Αναλυτικά!E197 -> ΡΟΥΣΣΟΣ ΣΤΑΥΡΟΣ του ΒΙΔΙΑΝΟΥ | F195: =SUM(Αναλυτικά!F197:J197) -> 24 | G195: =SUM(Αναλυτικά!K197) -> 13 | H195: =SUM(Αναλυτικά!L197:M197) -> 6 | I195: =SUM(Αναλυτικά!N197:P197) -> 48 | J195: =SUM(Αναλυτικά!Q197:S197) -> 11 | K195: =SUM(Αναλυτικά!T197:U197) -> 3 | L195: =SUM(Αναλυτικά!V197:X197) -> 5 | M195: =SUM(Αναλυτικά!Y197) -> 0 | N195: =SUM(Αναλυτικά!Z197:AA197) -> 3 | O195: =SUM(Αναλυτικά!AB197:AC197) -> 2 | P195: =SUM(Αναλυτικά!AD197:AE197) -> 5 | Q195: =SUM(Αναλυτικά!AF197:AK197) -> 9 | R195: =SUM(Αναλυτικά!AL197:AN197) -> 18 | S195: =SUM(Αναλυτικά!AO197:AP197) -> 27 | T195: 174
D196: 183 | E196: =Αναλυτικά!E198 -> ΡΟΥΣΣΟΣ ΦΑΝΟΥΡΙΟΣ (ΦΑΝΗΣ) του ΒΑΣΙΛΕΙΟΥ | F196: =SUM(Αναλυτικά!F198:J198) -> 11 | G196: =SUM(Αναλυτικά!K198) -> 1 | H196: =SUM(Αναλυτικά!L198:M198) -> 0 | I196: =SUM(Αναλυτικά!N198:P198) -> 19 | J196: =SUM(Αναλυτικά!Q198:S198) -> 4 | K196: =SUM(Αναλυτικά!T198:U198) -> 2 | L196: =SUM(Αναλυτικά!V198:X198) -> 2 | M196: =SUM(Αναλυτικά!Y198) -> 0 | N196: =SUM(Αναλυτικά!Z198:AA198) -> 3 | O196: =SUM(Αναλυτικά!AB198:AC198) -> 0 | P196: =SUM(Αναλυτικά!AD198:AE198) -> 0 | Q196: =SUM(Αναλυτικά!AF198:AK198) -> 4 | R196: =SUM(Αναλυτικά!AL198:AN198) -> 2 | S196: =SUM(Αναλυτικά!AO198:AP198) -> 0 | T196: 48
A197: 225 | D197: 184 | E197: =Αναλυτικά!E199 -> ΣΑΧ ΧΑΜΙΝΤ ΑΛΕΞΑΝΔΡΟΣ του ΦΙΝΤΑ ΧΟΥΣΕΪΝ | F197: =SUM(Αναλυτικά!F199:J199) -> 38 | G197: =SUM(Αναλυτικά!K199) -> 6 | H197: =SUM(Αναλυτικά!L199:M199) -> 1 | I197: =SUM(Αναλυτικά!N199:P199) -> 29 | J197: =SUM(Αναλυτικά!Q199:S199) -> 24 | K197: =SUM(Αναλυτικά!T199:U199) -> 4 | L197: =SUM(Αναλυτικά!V199:X199) -> 18 | M197: =SUM(Αναλυτικά!Y199) -> 7 | N197: =SUM(Αναλυτικά!Z199:AA199) -> 5 | O197: =SUM(Αναλυτικά!AB199:AC199) -> 2 | P197: =SUM(Αναλυτικά!AD199:AE199) -> 17 | Q197: =SUM(Αναλυτικά!AF199:AK199) -> 7 | R197: =SUM(Αναλυτικά!AL199:AN199) -> 12 | S197: =SUM(Αναλυτικά!AO199:AP199) -> 2 | T197: 172
D198: 185 | E198: =Αναλυτικά!E200 -> ΣΙΓΑΛΑ ΧΡΙΣΤΙΝΑ του ΕΥΑΓΓΕΛΟΥ | F198: =SUM(Αναλυτικά!F200:J200) -> 13 | G198: =SUM(Αναλυτικά!K200) -> 3 | H198: =SUM(Αναλυτικά!L200:M200) -> 2 | I198: =SUM(Αναλυτικά!N200:P200) -> 13 | J198: =SUM(Αναλυτικά!Q200:S200) -> 10 | K198: =SUM(Αναλυτικά!T200:U200) -> 4 | L198: =SUM(Αναλυτικά!V200:X200) -> 3 | M198: =SUM(Αναλυτικά!Y200) -> 2 | N198: =SUM(Αναλυτικά!Z200:AA200) -> 8 | O198: =SUM(Αναλυτικά!AB200:AC200) -> 4 | P198: =SUM(Αναλυτικά!AD200:AE200) -> 16 | Q198: =SUM(Αναλυτικά!AF200:AK200) -> 50 | R198: =SUM(Αναλυτικά!AL200:AN200) -> 2 | S198: =SUM(Αναλυτικά!AO200:AP200) -> 0 | T198: 130
D199: 186 | E199: =Αναλυτικά!E201 -> ΣΤΕΦΑΝΟΓΙΑΝΝΗΣ ΜΙΧΑΗΛ του ΙΩΑΝΝΗ | F199: =SUM(Αναλυτικά!F201:J201) -> 19 | G199: =SUM(Αναλυτικά!K201) -> 1 | H199: =SUM(Αναλυτικά!L201:M201) -> 0 | I199: =SUM(Αναλυτικά!N201:P201) -> 15 | J199: =SUM(Αναλυτικά!Q201:S201) -> 8 | K199: =SUM(Αναλυτικά!T201:U201) -> 3 | L199: =SUM(Αναλυτικά!V201:X201) -> 8 | M199: =SUM(Αναλυτικά!Y201) -> 0 | N199: =SUM(Αναλυτικά!Z201:AA201) -> 4 | O199: =SUM(Αναλυτικά!AB201:AC201) -> 0 | P199: =SUM(Αναλυτικά!AD201:AE201) -> 1 | Q199: =SUM(Αναλυτικά!AF201:AK201) -> 5 | R199: =SUM(Αναλυτικά!AL201:AN201) -> 3 | S199: =SUM(Αναλυτικά!AO201:AP201) -> 1 | T199: 68
D200: 187 | E200: =Αναλυτικά!E202 -> ΣΥΚΗΝΙΩΤΗΣ ΙΩΑΝΝΗΣ του ΝΕΚΤΑΡΙΟΥ | F200: =SUM(Αναλυτικά!F202:J202) -> 13 | G200: =SUM(Αναλυτικά!K202) -> 32 | H200: =SUM(Αναλυτικά!L202:M202) -> 3 | I200: =SUM(Αναλυτικά!N202:P202) -> 4 | J200: =SUM(Αναλυτικά!Q202:S202) -> 9 | K200: =SUM(Αναλυτικά!T202:U202) -> 3 | L200: =SUM(Αναλυτικά!V202:X202) -> 1 | M200: =SUM(Αναλυτικά!Y202) -> 1 | N200: =SUM(Αναλυτικά!Z202:AA202) -> 0 | O200: =SUM(Αναλυτικά!AB202:AC202) -> 1 | P200: =SUM(Αναλυτικά!AD202:AE202) -> 1 | Q200: =SUM(Αναλυτικά!AF202:AK202) -> 21 | R200: =SUM(Αναλυτικά!AL202:AN202) -> 4 | S200: =SUM(Αναλυτικά!AO202:AP202) -> 0 | T200: 93
D201: 188 | E201: =Αναλυτικά!E203 -> ΤΣΙΓΑΡΙΔΑΣ ΚΩΝΣΤΑΝΤΙΝΟΣ του ΛΑΜΠΡΟΥ | F201: =SUM(Αναλυτικά!F203:J203) -> 12 | G201: =SUM(Αναλυτικά!K203) -> 0 | H201: =SUM(Αναλυτικά!L203:M203) -> 1 | I201: =SUM(Αναλυτικά!N203:P203) -> 7 | J201: =SUM(Αναλυτικά!Q203:S203) -> 10 | K201: =SUM(Αναλυτικά!T203:U203) -> 1 | L201: =SUM(Αναλυτικά!V203:X203) -> 2 | M201: =SUM(Αναλυτικά!Y203) -> 0 | N201: =SUM(Αναλυτικά!Z203:AA203) -> 3 | O201: =SUM(Αναλυτικά!AB203:AC203) -> 0 | P201: =SUM(Αναλυτικά!AD203:AE203) -> 1 | Q201: =SUM(Αναλυτικά!AF203:AK203) -> 0 | R201: =SUM(Αναλυτικά!AL203:AN203) -> 0 | S201: =SUM(Αναλυτικά!AO203:AP203) -> 0 | T201: 37
D202: 189 | E202: =Αναλυτικά!E204 -> ΤΣΟΛΑΚΑΚΗΣ ΓΕΩΡΓΙΟΣ του ΝΙΚΟΛΑΟΥ | F202: =SUM(Αναλυτικά!F204:J204) -> 13 | G202: =SUM(Αναλυτικά!K204) -> 0 | H202: =SUM(Αναλυτικά!L204:M204) -> 2 | I202: =SUM(Αναλυτικά!N204:P204) -> 2 | J202: =SUM(Αναλυτικά!Q204:S204) -> 4 | K202: =SUM(Αναλυτικά!T204:U204) -> 16 | L202: =SUM(Αναλυτικά!V204:X204) -> 7 | M202: =SUM(Αναλυτικά!Y204) -> 1 | N202: =SUM(Αναλυτικά!Z204:AA204) -> 2 | O202: =SUM(Αναλυτικά!AB204:AC204) -> 0 | P202: =SUM(Αναλυτικά!AD204:AE204) -> 0 | Q202: =SUM(Αναλυτικά!AF204:AK204) -> 1 | R202: =SUM(Αναλυτικά!AL204:AN204) -> 0 | S202: =SUM(Αναλυτικά!AO204:AP204) -> 0 | T202: 48
... 9 more rows

Sheet Παράμετροι
A1: Αριθμός Συνδυασμών | B1: 5
A2: Τελευταία γραμμή υποψηφίων | B2: 213
A4: Συνδυασμοί
A5: Θηραϊκή Πολιτεία
A6: Σαντορίνη Θηρασία Ενότητα Αλλαγή
A7: Λαϊκή Συσπείρωση
A8: ΜΑΖΙ ΑΛΛΑΖΟΥΜΕ ΣΑΝΤΟΡΙΝΗ – ΘΗΡΑΣΙΑ
A9: ΤΩΡΑ! Για τη Σαντορίνη και τη Θηρασιά
